Workbook

Sheet Cotizador
B1: COTIZACIÓN DE ARRENDAMIENTO PURO
F2: Folio
F3: Fecha | G3: =TODAY() -> 2026-03-06
E6: Régimen
B7: Cliente | C7: SOPORTE LOGISTICO EXPRESS | E7: Moral
B9: Contacto | C9: A QUIEN CORRESPONDA
B11: Teléfono
B13: E-mail
B15: Tipo de activo | C15: Laptops
B17: Descripción del activo | C17: LAP TOP DELL PRO 14", 16 GB
B20: Valor factura sin IVA | C20: =C24/1.16 -> 14670.12931
B22: IVA | C22: =C20*0.16 -> 2347.22069
U23: FALSE
B24: Valor factura con IVA | C24: 17017.35
B26: Plazo (meses) | C26: 24 | D26: 36 | E26: 48
B29: Anticipo | C29: 0.05
B31: Renta en depósito | C31: No
B33: Seguro financiado | C33: Si
B35: Seguro anual sin IVA | C35: 2000
B37: Comisión Referencia | C37: 0.02
C40: 24 | D40: 36 | E40: 48
B41: Valores sin IVA
B42: Renta Mensual | C42: =Captura!L14 -> 796 | D42: =Captura!M14 -> 605 | E42: =Captura!N14 -> 0
B44: Seguro de Daños | C44: =Resumen!J30 -> 184.5797054 | D44: =Resumen!K30 -> 193.6031232 | E44: =Resumen!L30 -> 0
B46: Renta Total sin IVA | C46: =C42+C44 -> 980.5797054 | D46: =D42+D44 -> 798.6031232 | E46: =E42+E44 -> 0
B48: Renta Total con IVA | C48: =C46*1.16 -> 1137.472458 | D48: =D46*1.16 -> 926.3796229 | E48: =E46*1.16 -> 0
C50: =Captura!L36 -> 0.2977121045 | D50: =Captura!M36 -> 0.2881162056 | E50: =Captura!N36 -> 0
B52: PAGO INICIAL
B53: Valores sin IVA
B54: Anticipo | C54: =Resumen!J34 -> 733.5064655 | D54: =Resumen!K34 -> 733.5064655 | E54: =Resumen!L34 -> 0
B56: Comisión de apertura | C56: =Resumen!J35 -> 440.1038793 | D56: =Resumen!K35 -> 440.1038793 | E56: =Resumen!L35 -> 0
B58: Seguro de daños * | C58: =Captura!L22 -> 0 | D58: =Captura!M22 -> 0 | E58: =Captura!N22 -> 0
B60: Renta en depósito | C60: =Captura!L19 -> 0 | D60: =Captura!M19 -> 0 | E60: =Captura!N19 -> 0
B62: Pago inicial sin IVA | C62: =C54+C56+C58+C60 -> 1173.610345 | D62: =D54+D56+D58+D60 -> 1173.610345 | E62: 0
B64: Pago inicial con IVA | C64: =((C62-C60)*1.16)+C60 -> 1361.388 | D64: =((D62-D60)*1.16)+D60 -> 1361.388 | E64: =((E62-E60)*1.16)+E60 -> 0
B66: Valor residual sin IVA | C66: =Resumen!J44 -> 1467.012931 | D66: =Resumen!K44 -> 1467.012931 | E66: =Resumen!L44 -> 1467.012931
B68: * Seguro del primer año
A70: Notas:
A71: 1. Esta cotización no es una autorización y no representa ninguna obligación para Leasing Mobile de México, S. A. de C. V.
A72: 2. La información descrita en el presente documento está sujeta a cambios sin previo aviso.
A73: 3. Esta cotización no considera gastos que el equipo requiera para su adquisición, uso o mantenimiento.
A74: 4. Las rentas en depósito serán devueltas al cumplimiento de todas las obligaciones contractauales del Arrendatario.

Sheet Captura (hidden)
O2: Cotizador Arrendamiento Puro
N3: =TODAY() -> 2026-03-06
I5: Full service tasa | K5: 0.1
B6: Solicitante | I6: Condiciones del arrendamiento | M6: Condiciones del fondeo
B7: Nombre | D7: =Cotizador!C7 -> SOPORTE LOGISTICO EXPRESS | I7: Tasa de interés activa | K7: 0.3 | M7: % de Fondeo | O7: 0.5 | R7: Tipo | S7: 2 | T7: =VLOOKUP(S7,R8:S14,2,FALSE) -> Vehículo utilitario
B8: Atención | D8: =Cotizador!C9 -> A QUIEN CORRESPONDA | I8: No. de rentas en depósito | K8: =IF(Cotizador!C31=Referencia!D3,0,1) -> 0 | M8: Fondeo | O8: =+G20*O7-K10*C19 -> 8391.313966 | R8: 1 | S8: Automóvil ejecutivo
B9: Teléfono | D9: =Cotizador!C11 -> 0 | I9: Comisión de apertura | K9: 0.03 | M9: Tasa de interés pasiva | O9: 0.16 | R9: 2 | S9: Vehículo utilitario
B10: e-mail | D10: =Cotizador!C13 -> 0 | I10: Anticipo | K10: =G18*(L10) -> 733.5064655 | L10: =Cotizador!$C$29 -> 0.05 | M10: Comisión de apertura | O10: 0.015 | R10: 3 | S10: Equipo de cómputo
J11: VP de Flujos | K11: =+'Plazo 1'!AJ18+'Plazo 1'!AK18 -> -9543.883851 | L11: =+'Plazo 2'!AJ18+'Plazo 2'!AK18 -> 3963.397001 | M11: =+'Plazo 3'!AJ18+'Plazo 3'!AK18 -> 5918.562923 | N11: =+'Plazo 4'!AJ18+'Plazo 4'!AK18 -> -13536.76277 | O11: =+'Plazo 5'!AJ18+'Plazo 5'!AK18 -> -15531.06875 | R11: 4 | S11: Equipo solar
B12: Equipo a cotizar | I12: Resultados | J12: Indicador Anualiz. | K12: =+'Plazo 1'!AK24 -> -0.7376029046 | L12: =+'Plazo 2'!AK24 -> 0.2977121045 | M12: =+'Plazo 3'!AK24 -> 0.2881162056 | N12: =+'Plazo 4'!AK24 -> -0.3923228096 | O12: =+'Plazo 5'!AK24 -> -0.3600974697 | R12: 5 | S12: Otro 1
B13: Tipo de equipo | I13: Plazo en meses | K13: 18 | L13: 24 | M13: 36 | N13: 48 | O13: 60 | R13: 6 | S13: Otro 2
B14: Estado del equipo | I14: Renta mensual | K14: =ROUNDUP(PMT($K$7/12,K13,-$G$18-$G$41+K17,K29),0)*R24 -> 0 | L14: =ROUNDUP(PMT($K$7/12,L13,-$G$18-$G$41+L17,L29),0)*S24 -> 796 | M14: 605 | N14: 0 | O14: 0 | R14: 7 | S14: Otro 2
B15: Descripción | D15: =Cotizador!C17 -> LAP TOP DELL PRO 14", 16 GB | I15: Factor | K15: =((K14*K13)+K10+K29)/G18*R24 -> 0 | L15: =((L14*L13)+K10+L29)/G18*S24 -> 1.35223801 | M15: =((M14*M13)+K10+M29)/G18*T24 -> 1.53464949 | N15: =((N14*N13)+K10+N29)/G18*U24 -> 0 | O15: =((O14*O13)+K10+O29)/G18*V24 -> 0
I16: Renta total | K16: =+K14 -> 0 | L16: =+L14 -> 796 | M16: 605 | N16: 0 | O16: 0
I17: Anticipo | K17: =+$K$10*R24 -> 0 | L17: =+$K$10*S24 -> 733.5064655 | M17: =+$K$10*T24 -> 733.5064655 | N17: =+$K$10*U24 -> 0 | O17: =+$K$10*V24 -> 0 | R17: Estado | S17: 1 | T17: =VLOOKUP(S17,R18:S19,2,FALSE) -> Nuevo
B18: Valor factura sin IVA | G18: =Cotizador!$C$20 -> 14670.12931 | I18: Comisión de apertura | K18: =+$G$18*$K$9*R24 -> 0 | L18: 440.1038793 | M18: 440.1038793 | N18: =+$G$18*$K$9*U24 -> 0 | O18: =+$G$18*$K$9*V24 -> 0 | R18: 1 | S18: Nuevo | W18: =W28*W27 -> 3243.082321 | X18: =X28*X27 -> 4429.912928 | Y18: 6969.712434 | Z18: 9739.232039 | AA18: 12748.22683
B19: IVA | C19: 0.16 | G19: =+G18*C19 -> 2347.22069 | I19: Rentas en depósito | K19: =+K14*$K$8*R24 -> 0 | L19: =+L14*$K$8*S24 -> 0 | M19: =+M14*$K$8*T24 -> 0 | N19: =+N14*$K$8*U24 -> 0 | O19: =+O14*$K$8*V24 -> 0 | R19: 2 | S19: Usado
B20: Valor factura con IVA | G20: =+G18+G19 -> 17017.35 | I20: Gestoría y Registro | K20: =+$G$23*R24 -> 0 | L20: =+$G$23*S24 -> 0 | M20: =+$G$23*T24 -> 0 | N20: =+$G$23*U24 -> 0 | O20: =+$G$23*V24 -> 0
I21: Equipo de geolocalización | K21: =+$G$24*R24 -> 0 | L21: =+$G$24*S24 -> 0 | M21: =+$G$24*T24 -> 0 | N21: =+$G$24*U24 -> 0 | O21: =+$G$24*V24 -> 0 | R21: Plazo | W21: Renta adicional total
B22: Accesorios - importes sin IVA | I22: Seguro de daños | K22: =IF($S$26=1,+$G$25*R24,0) -> 0 | L22: =IF($S$26=1,+$G$25*S24,0) -> 0 | M22: =IF($S$26=1,+$G$25*T24,0) -> 0 | N22: =IF($S$26=1,+$G$25*U24,0) -> 0 | O22: =IF($S$26=1,+$G$25*V24,0) -> 0 | R22: =+K13 -> 18 | S22: =+L13 -> 24 | T22: =+M13 -> 36 | U22: =+N13 -> 48 | V22: =+O13 -> 60 | W22: =R22 -> 18 | X22: =S22 -> 24 | Y22: 36 | Z22: 48 | AA22: 60
B23: Gestoría y Registro | F23: Pago único | I23: Placas y Tenencia | K23: =IF($S$33=1,+$G$26*R24,0) -> 0 | L23: =IF($S$33=1,+$G$26*S24,0) -> 0 | M23: =IF($S$33=1,+$G$26*T24,0) -> 0 | N23: =IF($S$33=1,+$G$26*U24,0) -> 0 | O23: =IF($S$33=1,+$G$26*V24,0) -> 0 | R23: FALSE | S23: TRUE | T23: TRUE | U23: FALSE | V23: FALSE | W23: =HLOOKUP(W22,W27:AA28,2,FALSE)+HLOOKUP(W22,W34:AA35,2,FALSE)+HLOOKUP(W22,W41:AA42,2,FALSE) -> 180.17124 | X23: =HLOOKUP(X22,W27:AA28,2,FALSE)+HLOOKUP(X22,W34:AA35,2,FALSE)+HLOOKUP(X22,W41:AA42,2,FALSE) -> 184.5797054 | Y23: =HLOOKUP(Y22,W27:AA28,2,FALSE)+HLOOKUP(Y22,W34:AA35,2,FALSE)+HLOOKUP(Y22,W41:AA42,2,FALSE) -> 193.6031232 | Z23: =HLOOKUP(Z22,W27:AA28,2,FALSE)+HLOOKUP(Z22,W34:AA35,2,FALSE)+HLOOKUP(Z22,W41:AA42,2,FALSE) -> 202.9006675 | AA23: =HLOOKUP(AA22,W27:AA28,2,FALSE)+HLOOKUP(AA22,W34:AA35,2,FALSE)+HLOOKUP(AA22,W41:AA42,2,FALSE) -> 212.4704471
B24: Equipo de geolocalización | F24: Pago único | I24: Servicio de geolocalización | K24: =IF($S$40=1,+$G$27*R24,0) -> 0 | L24: =IF($S$40=1,+$G$27*S24,0) -> 0 | M24: =IF($S$40=1,+$G$27*T24,0) -> 0 | N24: =IF($S$40=1,+$G$27*U24,0) -> 0 | O24: =IF($S$40=1,+$G$27*V24,0) -> 0 | R24: =IF(R23=TRUE,1,0) -> 0 | S24: =IF(S23=TRUE,1,0) -> 1 | T24: 1 | U24: 0 | V24: 0
B25: Seguro de daños anual | G25: =Cotizador!$C$35 -> 2000 | I25: =IF(B28="","Otro",+B28) -> Otro | K25: =+$G$28*R24 -> 0 | L25: =+$G$28*S24 -> 0 | M25: =+$G$28*T24 -> 0 | N25: =+$G$28*U24 -> 0 | O25: =+$G$28*V24 -> 0
B26: Placas y Tenencia anual | I26: IVA | K26: =$C$19*SUM(K17:K18,K20:K22) -> 0 | L26: =$C$19*SUM(L17:L18,L20:L22) -> 187.7776552 | M26: =$C$19*SUM(M17:M18,M20:M22) -> 187.7776552 | N26: 0 | O26: 0 | R26: Seguro de daños | S26: =IF(Cotizador!C33=Captura!T29,Captura!R29,Captura!R30) -> 2 | T26: =VLOOKUP(S26,R29:S30,2,FALSE) -> Pago en renta | W26: Rentas
B27: GPS | I27: Desembolso inicial | K27: =SUM(K17:K22,K25:K26) -> 0 | L27: =SUM(L17:L22,L25:L26) -> 1361.388 | M27: =SUM(M17:M22,M25:M26) -> 1361.388 | N27: 0 | O27: 0 | R27: =R22 -> 18 | S27: =S22 -> 24 | T27: 36 | U27: 48 | V27: 60 | W27: 18 | X27: 24 | Y27: 36 | Z27: 48 | AA27: 60
I28: Residual % | K28: 0 | L28: 0 | M28: 0 | N28: 0 | O28: 0 | R28: =+G25 -> 2000 | S28: =+R28*(1+$D$35) -> 2080 | T28: =+S28*(1+$D$35) -> 2163.2 | U28: =+T28*(1+$D$35) -> 2249.728 | V28: =+U28*(1+$D$35) -> 2339.71712 | W28: =IF($S26=$R30,PMT($K$5/12,R27,-(($R28/12)*W27)*R27/W27),0) -> 180.17124 | X28: =IF($S26=$R30,PMT($K$5/12,S27,-(($R28/12)*X27)*S27/X27),0) -> 184.5797054 | Y28: 193.6031232 | Z28: 202.9006675 | AA28: 212.4704471
I29: Residual sin IVA | K29: =+K28*$G$20*R24 -> 0 | L29: =+L28*$G$20*S24 -> 0 | M29: =+M28*$G$20*T24 -> 0 | N29: =+N28*$G$20*U24 -> 0 | O29: =+O28*$G$20*V24 -> 0 | R29: 1 | S29: Pago anual | T29: No
B30: Ejecutivo LMM | I30: Pago de fondeo sin IVA | K30: =PMT($O$9/12,K13,-$O$8,K33)*R24 -> 0 | L30: =PMT($O$9/12,L13,-$O$8,L33)*S24 -> 410.8648331 | M30: =PMT($O$9/12,M13,-$O$8,M33)*T24 -> 295.0137023 | N30: =PMT($O$9/12,N13,-$O$8,N33)*U24 -> 0 | O30: =PMT($O$9/12,O13,-$O$8,O33)*V24 -> 0 | R30: 2 | S30: Pago en renta | T30: Si
B31: Nombre | D31: xxxx | I31: Comisión de apertura sin IVA | K31: =+$G$20*$O$7*$O$10*R24 -> 0 | L31: =+$G$20*$O$7*$O$10*S24 -> 127.630125 | M31: =+$G$20*$O$7*$O$10*T24 -> 127.630125 | N31: =+$G$20*$O$7*$O$10*U24 -> 0 | O31: =+$G$20*$O$7*$O$10*V24 -> 0 | R31: 3 | S31: Otro no habilitado
B32: Teléfono | D32: xxxx | I32: Bullet payment % | K32: 0 | L32: 0 | M32: 0 | N32: 0 | O32: 0
B33: e-mail | D33: xxxx | I33: Bullet payment | K33: =+K32*$G$20*$O$7*R24 -> 0 | L33: =+L32*$G$20*$O$7*S24 -> 0 | M33: =+M32*$G$20*$O$7*T24 -> 0 | N33: =+N32*$G$20*$O$7*U24 -> 0 | O33: =+O32*$G$20*$O$7*V24 -> 0 | R33: Placas y Tenencia | S33: 1 | T33: =VLOOKUP(S33,R36:S37,2,FALSE) -> Pago anual | W33: Rentas
I34: Capital requerido | K34: =+$G$20-K14-K17-K18-K19-$O$8 -> 8626.036034 | L34: =+$G$20-L14-L17-L18-L19-$O$8 -> 6656.42569 | M34: =+$G$20-M14-M17-M18-M19-$O$8 -> 6847.42569 | N34: =+$G$20-N14-N17-N18-N19-$O$8 -> 8626.036034 | O34: =+$G$20-O14-O17-O18-O19-$O$8 -> 8626.036034 | R34: =R22 -> 18 | S34: =S22 -> 24 | T34: 36 | U34: 48 | V34: 60 | W34: 18 | X34: 24 | Y34: 36 | Z34: 48 | AA34: 60
B35: Tasa para VP | D35: 0.04 | I35: resumen | K35: detalle | L35: detalle | M35: detalle | N35: detalle | O35: detalle | R35: =+G26 -> 0 | S35: =+R35*(1+$D$35) -> 0 | T35: =+S35*(1+$D$35) -> 0 | U35: =+T35*(1+$D$35) -> 0 | V35: =+U35*(1+$D$35) -> 0 | W35: =IF($S33=$R37,PMT($K$5/12,R34,-$R35*R34/W34),0) -> 0 | X35: =IF($S33=$R37,PMT($K$5/12,S34,-$R35*S34/X34),0) -> 0 | Y35: 0 | Z35: 0 | AA35: 0
I36: Evaluación | K36: =IF(R24=0,0,'Plazo 1'!AK24) -> 0 | L36: =IF(S24=0,0,'Plazo 2'!AK24) -> 0.2977121045 | M36: =IF(T24=0,0,'Plazo 3'!AK24) -> 0.2881162056 | N36: =IF(U24=0,0,'Plazo 4'!AK24) -> 0 | O36: =IF(V24=0,0,'Plazo 5'!AK24) -> 0 | R36: 1 | S36: Pago anual
I37: Flujo de rentas vs fondeo | K37: =IF(K14-K30>=0,"Positivo","Negativo") -> Positivo | L37: =IF(L14-L30>=0,"Positivo","Negativo") -> Positivo | M37: =IF(M14-M30>=0,"Positivo","Negativo") -> Positivo | N37: =IF(N14-N30>=0,"Positivo","Negativo") -> Positivo | O37: =IF(O14-O30>=0,"Positivo","Negativo") -> Positivo | R37: 2 | S37: Pago en renta
R38: 3 | S38: Otro no habilitado
O40: v. 20240220 | R40: GPS y Servicios | S40: 1 | T40: =VLOOKUP(S40,R43:S44,2,FALSE) -> Pago anual | W40: Rentas
B41: Referencia | F41: =Cotizador!C37 -> 0.02 | G41: =F41*G18 -> 293.4025862 | R41: =R22 -> 18 | S41: =S22 -> 24 | T41: 36 | U41: 48 | V41: 60 | W41: 18 | X41: 24 | Y41: 36 | Z41: 48 | AA41: 60
F42: Poner % correspondiente | R42: =+G27 -> 0 | S42: =+R42*(1+$D$35) -> 0 | T42: =+S42*(1+$D$35) -> 0 | U42: =+T42*(1+$D$35) -> 0 | V42: =+U42*(1+$D$35) -> 0 | W42: =IF($S40=$R44,PMT($K$5/12,R41,-$R42*R41/W41),0) -> 0 | X42: =IF($S40=$R44,PMT($K$5/12,S41,-$R42*S41/X41),0) -> 0 | Y42: 0 | Z42: 0 | AA42: 0
R43: 1 | S43: Pago anual
R44: 2 | S44: Pago en renta
R45: 3 | S45: Otro no habilitado
I59: GMOV | K59: =IFERROR(K47/K14,0) -> 0 | L59: =IFERROR(L47/L14,0) -> 0 | M59: 0 | N59: =IFERROR(N47/N14,0) -> 0 | O59: 0
I60: Renta ajustada | K60: =IFERROR(K48/K14,0) -> 0 | L60: =IFERROR(L48/L14,0) -> 0 | M60: 0 | N60: 0 | O60: 0
I61: Deducibilidad
I62: Gasolina / Diesel | J62: 1 | K62: =(K$59*1)+(K$60*K52) -> 0 | L62: =(L$59*1)+(L$60*L52) -> 0 | M62: 0 | N62: 0 | O62: 0
I63: Eléctrico / Híbrido | J63: 2 | K63: =(K$59*1)+(K$60*K54) -> 0 | L63: =(L$59*1)+(L$60*L54) -> 0 | M63: 0 | N63: 0 | O63: 0
I64: Carga / Transporte | J64: 3 | K64: =(K$59*1)+(K$60*K56) -> 0 | L64: =(L$59*1)+(L$60*L56) -> 0 | M64: 0 | N64: 0 | O64: 0

Sheet Resumen (hidden)
B7: Cotización
B8: Arrendamiento Puro
L10: =+Captura!N3 -> 2026-03-06
B14: Cliente: | E14: =+Captura!D7 -> SOPORTE LOGISTICO EXPRESS | I14: Teléfono | J14: =+Captura!D9 -> 0
B15: Atención: | E15: =+Captura!D8 -> A QUIEN CORRESPONDA | I15: E-mail | J15: =+Captura!D10 -> 0
M18: =+Captura!O40 -> v. 20240220
B21: Tipo de equipo | E21: =+Captura!T7 -> Vehículo utilitario | M21: Regresar
B22: Estado del equipo | E22: =+Captura!T17 -> Nuevo
B23: Descripción | E23: =+Captura!D15 -> LAP TOP DELL PRO 14", 16 GB | G23: RENTAS/MESES
G24: Factor interno | I24: =Captura!K15 -> 0 | J24: =Captura!L15 -> 1.35223801 | K24: =Captura!M15 -> 1.53464949 | L24: =Captura!N15 -> 0 | M24: =Captura!O15 -> 0
G25: % de Deducibilidad | I25: =SUMIF(Captura!$J$62:$J$64,Captura!$K$42,Captura!K62:K64) -> 0 | J25: =SUMIF(Captura!$J$62:$J$64,Captura!$K$42,Captura!L62:L64) -> 0 | K25: =SUMIF(Captura!$J$62:$J$64,Captura!$K$42,Captura!M62:M64) -> 0 | L25: =SUMIF(Captura!$J$62:$J$64,Captura!$K$42,Captura!N62:N64) -> 0 | M25: =SUMIF(Captura!$J$62:$J$64,Captura!$K$42,Captura!O62:O64) -> 0
I26: =+Captura!K13 -> 18 | J26: =+Captura!L13 -> 24 | K26: =+Captura!M13 -> 36 | L26: =+Captura!N13 -> 48 | M26: =+Captura!O13 -> 60
B27: Valor factura sin IVA | E27: =+Captura!G18 -> 14670.12931 | G27: Renta mensual s/IVA | I27: =Captura!K14 -> 0 | J27: =Captura!L14 -> 796 | K27: =Captura!M14 -> 605 | L27: =Captura!N14 -> 0 | M27: =Captura!O14 -> 0
G28: GMOV | I28: =Captura!K47 -> 0 | J28: =Captura!L47 -> 0 | K28: =Captura!M47 -> 0 | L28: =Captura!N47 -> 0 | M28: =Captura!O47 -> 0
B29: IVA | E29: =+Captura!G19 -> 2347.22069 | G29: Servicio Geolocalización | I29: =IF(I24=0,0,Captura!K24) -> 0 | J29: =IF(J24=0,0,Captura!L24) -> 0 | K29: =IF(K24=0,0,Captura!M24) -> 0 | L29: =IF(L24=0,0,Captura!N24) -> 0 | M29: =IF(M24=0,0,Captura!O24) -> 0
B30: Valor factura con IVA | E30: =+Captura!G20 -> 17017.35 | G30: Seguro de daños | I30: =IF(I27=0,0,Captura!W28) -> 0 | J30: =IF(J27=0,0,Captura!X28) -> 184.5797054 | K30: =IF(K27=0,0,Captura!Y28) -> 193.6031232 | L30: =IF(L27=0,0,Captura!Z28) -> 0 | M30: =IF(M27=0,0,Captura!AA28) -> 0
G31: Renta mensual s/IVA | I31: =SUM(I27:I30) -> 0 | J31: =SUM(J27:J30) -> 980.5797054 | K31: =SUM(K27:K30) -> 798.6031232 | L31: =SUM(L27:L30) -> 0 | M31: =SUM(M27:M30) -> 0
G32: Renta mensual total | I32: =I31*1.16 -> 0 | J32: =J31*1.16 -> 1137.472458 | K32: =K31*1.16 -> 926.3796229 | L32: =L31*1.16 -> 0 | M32: =M31*1.16 -> 0
G33: PAGO INICIAL
B34: No. de rentas en depósito | E34: =+Captura!K8 -> 0 | G34: Anticipo | I34: =+Captura!K17 -> 0 | J34: =+Captura!L17 -> 733.5064655 | K34: =+Captura!M17 -> 733.5064655 | L34: =+Captura!N17 -> 0 | M34: =+Captura!O17 -> 0
B35: Comisión de apertura | E35: =+Captura!K9 -> 0.03 | G35: Comisión de apertura | I35: =+Captura!K18 -> 0 | J35: =+Captura!L18 -> 440.1038793 | K35: =+Captura!M18 -> 440.1038793 | L35: =+Captura!N18 -> 0 | M35: =+Captura!O18 -> 0
B36: Anticipo | E36: =+Captura!K10 -> 733.5064655 | G36: Gestoría y Registro | I36: =+Captura!K20 -> 0 | J36: =+Captura!L20 -> 0 | K36: =+Captura!M20 -> 0 | L36: =+Captura!N20 -> 0 | M36: =+Captura!O20 -> 0
G37: Equipo de geo localización | I37: =+Captura!K21 -> 0 | J37: =+Captura!L21 -> 0 | K37: =+Captura!M21 -> 0 | L37: =+Captura!N21 -> 0 | M37: =+Captura!O21 -> 0
G38: Placas y Tenencia | I38: =+Captura!K23 -> 0 | J38: =+Captura!L23 -> 0 | K38: =+Captura!M23 -> 0 | L38: =+Captura!N23 -> 0 | M38: =+Captura!O23 -> 0
G39: =+Captura!I25 -> Otro | I39: =+Captura!K25 -> 0 | J39: =+Captura!L25 -> 0 | K39: =+Captura!M25 -> 0 | L39: =+Captura!N25 -> 0 | M39: =+Captura!O25 -> 0
B40: Gestoría y Registro | E40: =+Captura!F23 -> Pago único | G40: IVA | I40: =+Captura!K26 -> 0 | J40: =+Captura!L26 -> 187.7776552 | K40: =+Captura!M26 -> 187.7776552 | L40: =+Captura!N26 -> 0 | M40: =+Captura!O26 -> 0
B41: Equipo de geolocalización | E41: =+Captura!F24 -> Pago único | G41: Pago inicial | I41: =I43-I42 -> 0 | J41: =J43-J42 -> 1361.388 | K41: 1361.388 | L41: =L43-L42 -> 0 | M41: 0
B42: Seguro de daños | E42: =+Captura!T26 -> Pago en renta | G42: Rentas en depósito | I42: =+Captura!K19 -> 0 | J42: =+Captura!L19 -> 0 | K42: =+Captura!M19 -> 0 | L42: =+Captura!N19 -> 0 | M42: =+Captura!O19 -> 0
B43: Placas y Tenencia | E43: =+Captura!T33 -> Pago anual | G43: Pago Total inicial | I43: =Captura!K27 -> 0 | J43: =Captura!L27 -> 1361.388 | K43: =Captura!M27 -> 1361.388 | L43: =Captura!N27 -> 0 | M43: =Captura!O27 -> 0
B44: Servicio de geolocalización | E44: Pago mensual | G44: Residual s/IVA | I44: =IF(I24=0,0,Captura!$G$18*Captura!K28) -> 0 | J44: =$E$27*0.1 -> 1467.012931 | K44: =$E$27*0.1 -> 1467.012931 | L44: 1467.012931 | M44: =IF(M24=0,0,Captura!$G$18*Captura!O28) -> 0
B45: =+Captura!I25 -> Otro | E45: =+Captura!F28 -> 0 | G45: No incluye seguro anual, placas y tenencia. Pago inicial NO incluye renta 1. Las rentas en depósito NO se incluyen en la factura inicial, se otorga recibo.
B49: Notas:
B50: 1. Esta cotización no es una autorización y no representa ninguna obligación para Leasing Mobile de México, S. A. de C. V.
B51: 2. La información descrita en el presente documento está sujeta a cambios sin previo aviso.
B52: 3. Esta cotización no considera gastos que el equipo requiera para su adquisición, uso o mantenimiento.
B53: 4. Las rentas en depósito serán devueltas al cumplimiento de todas las obligaciones contractauales del Arrendatario.
B58: Documentación requerida:
B60: 1 | C60: Copia de Acta Constitutiva de la empresa y poder (es) del Rep. Legal
B61: 2 | C61: Información Financiera (últimos 3 años)
B62: 3 | C62: Comprobante de domicilio con antigüedad no mayor a 3 meses
D63: - Recibo de teléfono fijo.
D64: - Estado de cuenta bancario.
D65: - Recibo de luz, agua o predial.
B66: 4 | C66: Registro Federal de Contribuyentes.
B67: 5 | C67: Identificación oficial vigente
D68: - Credencial de elector.
D69: - Pasaporte.
D70: - FM2.
B71: 6 | C71: Buró de crédito de la empresa y principales accionistas.
B72: 7 | C72: Solicitud firmada.
B85: DIRECTIVO LEASING MOBILE | G85: =Captura!D31 -> xxxx | K85: =Captura!D8 -> A QUIEN CORRESPONDA
H86: =Captura!D32 -> xxxx
H87: =Captura!D33 -> xxxx

Sheet Deducible (hidden)
C1: Diario | D1: Mensual | E1: Anual
A2: Gasolina / Diesel | B2: 1 | C2: 200 | D2: =E2/12 -> 6000 | E2: =C2*360 -> 72000
A3: Eléctrico / Híbrido | B3: 2 | C3: 285 | D3: =E3/12 -> 8550 | E3: =C3*360 -> 102600
A4: Carga / Transporte | B4: 3 | F4: 100% deducible
B16: gmdo | C16: Seguro | D16: Renta | E16: Mensual
A17: =450000/1.16 -> 387931.0345 | B17: 5063 | C17: 1729.24 | D17: 5588.71 | E17: =B17+C17+D17 -> 12380.95 | F17: =E17*1.16 -> 14361.902
B18: =B17/A17 -> 0.01305128889 | F18: =Resumen!L32 -> 0
F19: =F18-F17 -> -14361.902
D22: =(B17+D17)*36 -> 383461.56

Sheet Referencia (hidden)
A1: Tipo de activo | B1: Plazo | C1: Anticipo | D1: Flotilla | E1: Residual | F1: Tipo | G1: Persona
A2: Laptops | B2: 18 | C2: 0 | D2: Si | E2: 0 | F2: 1 | G2: Moral
A3: Workstation | B3: 24 | C3: 0.05 | D3: No | E3: 0.05 | F3: 2 | G3: Física AE
A4: Servidores | B4: 36 | C4: 0.1 | E4: 0.1 | F4: 3
A5: Infraestructura de IT | B5: 48 | C5: 0.12 | E5: 0.15
C6: 0.15 | E6: 0.2
C7: 0.2 | E7: 0.25
C8: 0.25 | E8: 0.3
C9: 0.3 | E9: 0.35
E10: 0.4

Sheet Plazo 1 (hidden)
B7: Cotización
B8: Arrendamiento Puro
P10: =+Captura!N3 -> 2026-03-06
B12: Cliente: | E12: =+Captura!D7 -> SOPORTE LOGISTICO EXPRESS | J12: Teléfono | K12: =+Captura!D9 -> 0
B13: Atención: | E13: =+Captura!D8 -> A QUIEN CORRESPONDA | J13: E-mail | K13: =+Captura!D10 -> 0
Q14: =+Captura!O40 -> v. 20240220
B17: Tipo de equipo | E17: =+Captura!T7 -> Vehículo utilitario | H17: Plazo del arrendamiento | J17: =+Captura!K13 -> 18 | L17: Gestoría y Registro | N17: =+Captura!F23 -> Pago único | AJ17: Valor presente de flujos
B18: Estado del equipo | E18: =+Captura!T17 -> Nuevo | H18: No. de rentas en depósito | J18: =+Captura!K8 -> 0 | L18: Equipo de geolocalizacióon | N18: =+Captura!F24 -> Pago único | Q18: =+Captura!K36 -> 0 | AJ18: =NPV(Captura!$D$35/12,AJ29:AJ88)+AJ28 -> -13936.62284 | AK18: =NPV(Captura!$D$35/12,AK29:AK88)+AK28 -> 4392.738994
B19: Descripción | E19: =+Captura!D15 -> LAP TOP DELL PRO 14", 16 GB | H19: Comisión de apertura | J19: =+Captura!K9 -> 0.03 | L19: Seguro de daños | N19: =+Captura!T26 -> Pago en renta | AJ19: Tasa Interna de Retorno
H20: Anticipo | J20: =+Captura!K10 -> 733.5064655 | L20: Placas y Tenencia | N20: =+Captura!T33 -> Pago anual | AJ20: =IRR(AJ28:AJ88,0.01)*12 ->  | AK20: =IRR(AK28:AK88,0.01)*12 -> -1.071664704
H21: Residual estimado | J21: Valor mercado | L21: Servicio de geolocalización | N21: =+Captura!T40 -> Pago anual | Q21: =+Captura!K37 -> Positivo | AJ21: Capital Req. | AK21: =+Captura!K34 -> 8626.036034
B22: Valor factura sin IVA | E22: =+Captura!G18 -> 14670.12931 | L22: =+Captura!I25 -> Otro | N22: =+Captura!F28 -> 0 | AJ22: VP / CR | AK22: =+(AJ18+AK18)/AK21 -> -1.106404357
B23: IVA | E23: =+Captura!G19 -> 2347.22069 | Q23: Regresar
B24: Valor factua con IVA | E24: =+Captura!G20 -> 17017.35 | AJ24: Indicador anualizado | AK24: =+AK22/J17*12 -> -0.7376029046
B26: Periodo | C26: Mes | D26: Renta | E26: Anticipo | F26: Comisión de apertura | G26: Rentas en depósito | H26: Devolución de rentas en depósito | I26: Gestoría y Registro | J26: Equipo de geo localización | K26: Seguro de daños | L26: Placas y Tenencia | M26: Servicio de geo localización | N26: =+L22 -> Otro | O26: Residual estimado | P26: IVA | Q26: TOTAL | T26: Mes | U26: Periodo | V26: Fondeo | W26: Comisión de apertura | X26: Intereses | Y26: Capital | Z26: Pago | AA26: Bullet | AB26: Equipo de geo localización | AC26: Seguro de daños | AD26: Placas y Tenencia | AE26: Servicio de geo localización | AF26: Otro | AG26: IVA | AH26: TOTAL | AJ26: Flujo Activo sin IVA | AK26: Flujo Pasivo sin IVA
B28: 0 | C28: =+P10 -> 2026-03-06 | D28: =+Captura!K16+Resumen!I29+Resumen!I30 -> 0 | E28: =+Captura!K10 -> 733.5064655 | F28: =+Captura!K18 -> 0 | G28: =+Captura!K19 -> 0 | H28: =IF(B28=J$17,-G$28,0) -> 0 | I28: =+Captura!K20 -> 0 | J28: =+Captura!K21 -> 0 | K28: =+Captura!K22 -> 0 | L28: =+Captura!K23 -> 0 | M28: =+Captura!K24 -> 0 | N28: =+Captura!K25 -> 0 | O28: =IF(B28=J$17,Captura!$K$29,0) -> 0 | P28: =SUM(D28:F28,I28:N28)*Captura!$C$19 -> 117.3610345 | Q28: =SUM(D28:P28)-O28 -> 850.8675 | T28: 1 | U28: =+B28 -> 0 | V28: =+Captura!O8 -> 8391.313966 | W28: =+Captura!K31 -> 0 | AB28: =+J28 -> 0 | AC28: =+Captura!G25 -> 2000 | AD28: =+Captura!G26 -> 0 | AE28: =+Captura!G27 -> 0 | AF28: =+N28 -> 0 | AG28: =+(W28+AB28+AC28+AD28+AE28+AF28)*Captura!$C$19 -> 320 | AH28: =SUM(W28,Z28:AG28) -> 2320 | AJ28: =-E22+(Q28-P28)+O28 -> -13936.62284 | AK28: =+V28-(AH28-AG28) -> 6391.313966
B29: 1 | C29: =EDATE(C28,1) -> 2026-04-06 | D29: =IF(B29<J$17,Captura!$K$16,0)+Resumen!$I$29+Resumen!$I$30 -> 0 | H29: 0 | K29: 0 | L29: 0 | M29: 0 | O29: =IF(B29=J$17,Captura!$K$29,0) -> 0 | P29: =SUM(D29:F29,I29:N29)*Captura!$C$19 -> 0 | Q29: =SUM(D29:P29)-O29 -> 0 | T29: =IF(T28=12,1,T28+1) -> 2 | U29: =+B29 -> 1 | V29: =+V28-Y29-AA29 -> 8503.198152 | X29: =+V28*Captura!$O$9/12 -> 111.8841862 | Y29: =+Z29-X29 -> -111.8841862 | Z29: =+Captura!K30 -> 0 | AA29: =IF(U29=J$17,Captura!$K$33,0) -> 0 | AC29: 0 | AD29: 0 | AE29: 0 | AG29: =+(W29+AB29+AC29+AD29+AE29+AF29)*Captura!$C$19 -> 0 | AH29: =SUM(W29,Z29:AG29) -> 0 | AJ29: =Q29-P29+O29 -> 0 | AK29: =-(AH29-AG29) -> 0
B30: 2 | C30: =EDATE(C29,1) -> 2026-05-06 | D30: =IF(B30<J$17,Captura!$K$16,0)+Resumen!$I$29+Resumen!$I$30 -> 0 | H30: 0 | K30: 0 | L30: 0 | M30: 0 | O30: =IF(B30=J$17,Captura!$K$29,0) -> 0 | P30: =SUM(D30:F30,I30:N30)*Captura!$C$19 -> 0 | Q30: 0 | T30: =IF(T29=12,1,T29+1) -> 3 | U30: 2 | V30: =+V29-Y30-AA30 -> 8616.574127 | X30: =+V29*Captura!$O$9/12 -> 113.3759754 | Y30: =+Z30-X30 -> -113.3759754 | Z30: =IF(U30>J$17,0,Z29) -> 0 | AA30: =IF(U30=J$17,Captura!$K$33,0) -> 0 | AC30: 0 | AD30: 0 | AE30: 0 | AG30: =+(W30+AB30+AC30+AD30+AE30+AF30)*Captura!$C$19 -> 0 | AH30: 0 | AJ30: =Q30-P30+O30 -> 0 | AK30: =-(AH30-AG30) -> 0
B31: 3 | C31: 2026-06-06 | D31: =IF(B31<J$17,Captura!$K$16,0)+Resumen!$I$29+Resumen!$I$30 -> 0 | H31: 0 | K31: 0 | L31: 0 | M31: 0 | O31: =IF(B31=J$17,Captura!$K$29,0) -> 0 | P31: =SUM(D31:F31,I31:N31)*Captura!$C$19 -> 0 | Q31: 0 | T31: 4 | U31: 3 | V31: 8731.461782 | X31: =+V30*Captura!$O$9/12 -> 114.887655 | Y31: -114.887655 | Z31: =IF(U31>J$17,0,Z30) -> 0 | AA31: =IF(U31=J$17,Captura!$K$33,0) -> 0 | AC31: 0 | AD31: 0 | AE31: 0 | AG31: =+(W31+AB31+AC31+AD31+AE31+AF31)*Captura!$C$19 -> 0 | AH31: 0 | AJ31: 0 | AK31: 0
B32: 4 | C32: 2026-07-06 | D32: =IF(B32<J$17,Captura!$K$16,0)+Resumen!$I$29+Resumen!$I$30 -> 0 | H32: 0 | K32: 0 | L32: 0 | M32: 0 | O32: =IF(B32=J$17,Captura!$K$29,0) -> 0 | P32: =SUM(D32:F32,I32:N32)*Captura!$C$19 -> 0 | Q32: 0 | T32: 5 | U32: 4 | V32: 8847.881273 | X32: =+V31*Captura!$O$9/12 -> 116.4194904 | Y32: -116.4194904 | Z32: 0 | AA32: =IF(U32=J$17,Captura!$K$33,0) -> 0 | AC32: 0 | AD32: 0 | AE32: 0 | AG32: =+(W32+AB32+AC32+AD32+AE32+AF32)*Captura!$C$19 -> 0 | AH32: 0 | AJ32: 0 | AK32: 0
B33: 5 | C33: 2026-08-06 | D33: =IF(B33<J$17,Captura!$K$16,0)+Resumen!$I$29+Resumen!$I$30 -> 0 | H33: 0 | K33: 0 | L33: 0 | M33: 0 | O33: =IF(B33=J$17,Captura!$K$29,0) -> 0 | P33: =SUM(D33:F33,I33:N33)*Captura!$C$19 -> 0 | Q33: 0 | T33: 6 | U33: 5 | V33: 8965.853023 | X33: =+V32*Captura!$O$9/12 -> 117.9717503 | Y33: -117.9717503 | Z33: 0 | AA33: =IF(U33=J$17,Captura!$K$33,0) -> 0 | AC33: 0 | AD33: 0 | AE33: 0 | AG33: =+(W33+AB33+AC33+AD33+AE33+AF33)*Captura!$C$19 -> 0 | AH33: 0 | AJ33: 0 | AK33: 0
B34: 6 | C34: 2026-09-06 | D34: =IF(B34<J$17,Captura!$K$16,0)+Resumen!$I$29+Resumen!$I$30 -> 0 | H34: 0 | K34: 0 | L34: 0 | M34: 0 | O34: =IF(B34=J$17,Captura!$K$29,0) -> 0 | P34: =SUM(D34:F34,I34:N34)*Captura!$C$19 -> 0 | Q34: 0 | T34: 7 | U34: 6 | V34: 9085.39773 | X34: =+V33*Captura!$O$9/12 -> 119.544707 | Y34: -119.544707 | Z34: 0 | AA34: =IF(U34=J$17,Captura!$K$33,0) -> 0 | AC34: 0 | AD34: 0 | AE34: 0 | AG34: =+(W34+AB34+AC34+AD34+AE34+AF34)*Captura!$C$19 -> 0 | AH34: 0 | AJ34: 0 | AK34: 0
B35: 7 | C35: 2026-10-06 | D35: =IF(B35<J$17,Captura!$K$16,0)+Resumen!$I$29+Resumen!$I$30 -> 0 | H35: 0 | K35: 0 | L35: 0 | M35: 0 | O35: =IF(B35=J$17,Captura!$K$29,0) -> 0 | P35: =SUM(D35:F35,I35:N35)*Captura!$C$19 -> 0 | Q35: 0 | T35: 8 | U35: 7 | V35: 9206.536366 | X35: =+V34*Captura!$O$9/12 -> 121.1386364 | Y35: -121.1386364 | Z35: 0 | AA35: =IF(U35=J$17,Captura!$K$33,0) -> 0 | AC35: 0 | AD35: 0 | AE35: 0 | AG35: =+(W35+AB35+AC35+AD35+AE35+AF35)*Captura!$C$19 -> 0 | AH35: 0 | AJ35: 0 | AK35: 0
B36: 8 | C36: 2026-11-06 | D36: =IF(B36<J$17,Captura!$K$16,0)+Resumen!$I$29+Resumen!$I$30 -> 0 | H36: 0 | K36: 0 | L36: 0 | M36: 0 | O36: =IF(B36=J$17,Captura!$K$29,0) -> 0 | P36: =SUM(D36:F36,I36:N36)*Captura!$C$19 -> 0 | Q36: 0 | T36: 9 | U36: 8 | V36: 9329.290184 | X36: =+V35*Captura!$O$9/12 -> 122.7538182 | Y36: -122.7538182 | Z36: 0 | AA36: =IF(U36=J$17,Captura!$K$33,0) -> 0 | AC36: 0 | AD36: 0 | AE36: 0 | AG36: =+(W36+AB36+AC36+AD36+AE36+AF36)*Captura!$C$19 -> 0 | AH36: 0 | AJ36: 0 | AK36: 0
B37: 9 | C37: 2026-12-06 | D37: =IF(B37<J$17,Captura!$K$16,0)+Resumen!$I$29+Resumen!$I$30 -> 0 | H37: 0 | K37: 0 | L37: 0 | M37: 0 | O37: =IF(B37=J$17,Captura!$K$29,0) -> 0 | P37: =SUM(D37:F37,I37:N37)*Captura!$C$19 -> 0 | Q37: 0 | T37: 10 | U37: 9 | V37: 9453.68072 | X37: =+V36*Captura!$O$9/12 -> 124.3905358 | Y37: -124.3905358 | Z37: 0 | AA37: =IF(U37=J$17,Captura!$K$33,0) -> 0 | AC37: 0 | AD37: 0 | AE37: 0 | AG37: =+(W37+AB37+AC37+AD37+AE37+AF37)*Captura!$C$19 -> 0 | AH37: 0 | AJ37: 0 | AK37: 0
B38: 10 | C38: 2027-01-06 | D38: =IF(B38<J$17,Captura!$K$16,0)+Resumen!$I$29+Resumen!$I$30 -> 0 | H38: 0 | K38: 0 | L38: 0 | M38: 0 | O38: =IF(B38=J$17,Captura!$K$29,0) -> 0 | P38: =SUM(D38:F38,I38:N38)*Captura!$C$19 -> 0 | Q38: 0 | T38: 11 | U38: 10 | V38: 9579.729796 | X38: =+V37*Captura!$O$9/12 -> 126.0490763 | Y38: -126.0490763 | Z38: 0 | AA38: =IF(U38=J$17,Captura!$K$33,0) -> 0 | AC38: 0 | AD38: 0 | AE38: 0 | AG38: =+(W38+AB38+AC38+AD38+AE38+AF38)*Captura!$C$19 -> 0 | AH38: 0 | AJ38: 0 | AK38: 0
B39: 11 | C39: 2027-02-06 | D39: =IF(B39<J$17,Captura!$K$16,0)+Resumen!$I$29+Resumen!$I$30 -> 0 | H39: 0 | K39: 0 | L39: 0 | M39: 0 | O39: =IF(B39=J$17,Captura!$K$29,0) -> 0 | P39: =SUM(D39:F39,I39:N39)*Captura!$C$19 -> 0 | Q39: 0 | T39: 12 | U39: 11 | V39: 9707.459527 | X39: =+V38*Captura!$O$9/12 -> 127.7297306 | Y39: -127.7297306 | Z39: 0 | AA39: =IF(U39=J$17,Captura!$K$33,0) -> 0 | AC39: 0 | AD39: 0 | AE39: 0 | AG39: =+(W39+AB39+AC39+AD39+AE39+AF39)*Captura!$C$19 -> 0 | AH39: 0 | AJ39: 0 | AK39: 0
B40: 12 | C40: 2027-03-06 | D40: =IF(B40<J$17,Captura!$K$16,0)+Resumen!$I$29+Resumen!$I$30 -> 0 | H40: 0 | K40: =IF(B40+1>=$J$17,0,K28*(1+Captura!$D$35)) -> 0 | L40: =IF(B40+1>=$J$17,0,L28*(1+Captura!$D$35)) -> 0 | M40: =IF(B40+1>=$J$17,0,M28*(1+Captura!$D$35)) -> 0 | O40: =IF(B40=J$17,Captura!$K$29,0) -> 0 | P40: =SUM(D40:F40,I40:N40)*Captura!$C$19 -> 0 | Q40: 0 | T40: 1 | U40: 12 | V40: 9836.892321 | X40: =+V39*Captura!$O$9/12 -> 129.4327937 | Y40: -129.4327937 | Z40: 0 | AA40: =IF(U40=J$17,Captura!$K$33,0) -> 0 | AC40: =IF(U40+1>=$J$17,0,AC28*(1+Captura!$D$35)) -> 2080 | AD40: =IF(U40+1>=$J$17,0,AD28*(1+Captura!$D$35)) -> 0 | AE40: =IF(U40+1>=$J$17,0,AE28*(1+Captura!$D$35)) -> 0 | AG40: =+(W40+AB40+AC40+AD40+AE40+AF40)*Captura!$C$19 -> 332.8 | AH40: 2412.8 | AJ40: 0 | AK40: -2080
B41: 13 | C41: 2027-04-06 | D41: =IF(B41<J$17,Captura!$K$16,0)+Resumen!$I$29+Resumen!$I$30 -> 0 | H41: 0 | K41: =IF(B41+1>=$J$17,0,K29*(1+Captura!$D$35)) -> 0 | L41: =IF(B41+1>=$J$17,0,L29*(1+Captura!$D$35)) -> 0 | M41: =IF(B41+1>=$J$17,0,M29*(1+Captura!$D$35)) -> 0 | O41: =IF(B41=J$17,Captura!$K$29,0) -> 0 | P41: =SUM(D41:F41,I41:N41)*Captura!$C$19 -> 0 | Q41: 0 | T41: 2 | U41: 13 | V41: 9968.050885 | X41: =+V40*Captura!$O$9/12 -> 131.1585643 | Y41: -131.1585643 | Z41: 0 | AA41: =IF(U41=J$17,Captura!$K$33,0) -> 0 | AC41: =IF(U41+1>=$J$17,0,AC29*(1+Captura!$D$35)) -> 0 | AD41: =IF(U41+1>=$J$17,0,AD29*(1+Captura!$D$35)) -> 0 | AE41: =IF(U41+1>=$J$17,0,AE29*(1+Captura!$D$35)) -> 0 | AG41: =+(W41+AB41+AC41+AD41+AE41+AF41)*Captura!$C$19 -> 0 | AH41: 0 | AJ41: 0 | AK41: 0
B42: 14 | C42: 2027-05-06 | D42: =IF(B42<J$17,Captura!$K$16,0)+Resumen!$I$29+Resumen!$I$30 -> 0 | H42: =IF(B42=J$17,-G$28,0) -> 0 | K42: =IF(B42+1>=$J$17,0,K30*(1+Captura!$D$35)) -> 0 | L42: =IF(B42+1>=$J$17,0,L30*(1+Captura!$D$35)) -> 0 | M42: =IF(B42+1>=$J$17,0,M30*(1+Captura!$D$35)) -> 0 | O42: =IF(B42=J$17,Captura!$K$29,0) -> 0 | P42: =SUM(D42:F42,I42:N42)*Captura!$C$19 -> 0 | Q42: 0 | T42: 3 | U42: 14 | V42: 10100.95823 | X42: =+V41*Captura!$O$9/12 -> 132.9073451 | Y42: -132.9073451 | Z42: 0 | AA42: =IF(U42=J$17,Captura!$K$33,0) -> 0 | AC42: =IF(U42+1>=$J$17,0,AC30*(1+Captura!$D$35)) -> 0 | AD42: =IF(U42+1>=$J$17,0,AD30*(1+Captura!$D$35)) -> 0 | AE42: =IF(U42+1>=$J$17,0,AE30*(1+Captura!$D$35)) -> 0 | AG42: =+(W42+AB42+AC42+AD42+AE42+AF42)*Captura!$C$19 -> 0 | AH42: 0 | AJ42: 0 | AK42: 0
B43: 15 | C43: 2027-06-06 | D43: =IF(B43<J$17,Captura!$K$16,0)+Resumen!$I$29+Resumen!$I$30 -> 0 | H43: 0 | K43: =IF(B43+1>=$J$17,0,K31*(1+Captura!$D$35)) -> 0 | L43: =IF(B43+1>=$J$17,0,L31*(1+Captura!$D$35)) -> 0 | M43: =IF(B43+1>=$J$17,0,M31*(1+Captura!$D$35)) -> 0 | O43: =IF(B43=J$17,Captura!$K$29,0) -> 0 | P43: =SUM(D43:F43,I43:N43)*Captura!$C$19 -> 0 | Q43: 0 | T43: 4 | U43: 15 | V43: 10235.63767 | X43: =+V42*Captura!$O$9/12 -> 134.6794431 | Y43: -134.6794431 | Z43: 0 | AA43: =IF(U43=J$17,Captura!$K$33,0) -> 0 | AC43: =IF(U43+1>=$J$17,0,AC31*(1+Captura!$D$35)) -> 0 | AD43: =IF(U43+1>=$J$17,0,AD31*(1+Captura!$D$35)) -> 0 | AE43: =IF(U43+1>=$J$17,0,AE31*(1+Captura!$D$35)) -> 0 | AG43: =+(W43+AB43+AC43+AD43+AE43+AF43)*Captura!$C$19 -> 0 | AH43: 0 | AJ43: 0 | AK43: 0
B44: 16 | C44: 2027-07-06 | D44: =IF(B44<J$17,Captura!$K$16,0)+Resumen!$I$29+Resumen!$I$30 -> 0 | H44: 0 | K44: =IF(B44+1>=$J$17,0,K32*(1+Captura!$D$35)) -> 0 | L44: =IF(B44+1>=$J$17,0,L32*(1+Captura!$D$35)) -> 0 | M44: =IF(B44+1>=$J$17,0,M32*(1+Captura!$D$35)) -> 0 | O44: =IF(B44=J$17,Captura!$K$29,0) -> 0 | P44: =SUM(D44:F44,I44:N44)*Captura!$C$19 -> 0 | Q44: 0 | T44: 5 | U44: 16 | V44: 10372.11284 | X44: =+V43*Captura!$O$9/12 -> 136.475169 | Y44: -136.475169 | Z44: 0 | AA44: =IF(U44=J$17,Captura!$K$33,0) -> 0 | AC44: =IF(U44+1>=$J$17,0,AC32*(1+Captura!$D$35)) -> 0 | AD44: =IF(U44+1>=$J$17,0,AD32*(1+Captura!$D$35)) -> 0 | AE44: =IF(U44+1>=$J$17,0,AE32*(1+Captura!$D$35)) -> 0 | AG44: =+(W44+AB44+AC44+AD44+AE44+AF44)*Captura!$C$19 -> 0 | AH44: 0 | AJ44: 0 | AK44: 0
B45: 17 | C45: 2027-08-06 | D45: =IF(B45<J$17,Captura!$K$16,0)+Resumen!$I$29+Resumen!$I$30 -> 0 | H45: 0 | K45: =IF(B45+1>=$J$17,0,K33*(1+Captura!$D$35)) -> 0 | L45: =IF(B45+1>=$J$17,0,L33*(1+Captura!$D$35)) -> 0 | M45: =IF(B45+1>=$J$17,0,M33*(1+Captura!$D$35)) -> 0 | O45: =IF(B45=J$17,Captura!$K$29,0) -> 0 | P45: =SUM(D45:F45,I45:N45)*Captura!$C$19 -> 0 | Q45: 0 | T45: 6 | U45: 17 | V45: 10510.40768 | X45: =+V44*Captura!$O$9/12 -> 138.2948379 | Y45: -138.2948379 | Z45: 0 | AA45: =IF(U45=J$17,Captura!$K$33,0) -> 0 | AC45: =IF(U45+1>=$J$17,0,AC33*(1+Captura!$D$35)) -> 0 | AD45: =IF(U45+1>=$J$17,0,AD33*(1+Captura!$D$35)) -> 0 | AE45: =IF(U45+1>=$J$17,0,AE33*(1+Captura!$D$35)) -> 0 | AG45: =+(W45+AB45+AC45+AD45+AE45+AF45)*Captura!$C$19 -> 0 | AH45: 0 | AJ45: 0 | AK45: 0
B46: 18 | C46: 2027-09-06 | D46: =IF(B46<J$17,Captura!$K$16,0) -> 0 | H46: 0 | K46: =IF(B46+1>=$J$17,0,K34*(1+Captura!$D$35)) -> 0 | L46: =IF(B46+1>=$J$17,0,L34*(1+Captura!$D$35)) -> 0 | M46: =IF(B46+1>=$J$17,0,M34*(1+Captura!$D$35)) -> 0 | O46: =IF(B46=J$17,Captura!$K$29,0) -> 0 | P46: =SUM(D46:F46,I46:N46)*Captura!$C$19 -> 0 | Q46: 0 | T46: 7 | U46: 18 | V46: 10650.54645 | X46: =+V45*Captura!$O$9/12 -> 140.1387691 | Y46: -140.1387691 | Z46: 0 | AA46: =IF(U46=J$17,Captura!$K$33,0) -> 0 | AC46: =IF(U46+1>=$J$17,0,AC34*(1+Captura!$D$35)) -> 0 | AD46: =IF(U46+1>=$J$17,0,AD34*(1+Captura!$D$35)) -> 0 | AE46: =IF(U46+1>=$J$17,0,AE34*(1+Captura!$D$35)) -> 0 | AG46: =+(W46+AB46+AC46+AD46+AE46+AF46)*Captura!$C$19 -> 0 | AH46: 0 | AJ46: 0 | AK46: 0
B47: 19 | C47: 2027-10-06 | D47: =IF(B47<J$17,Captura!$K$16,0) -> 0 | H47: 0 | K47: =IF(B47+1>=$J$17,0,K35*(1+Captura!$D$35)) -> 0 | L47: =IF(B47+1>=$J$17,0,L35*(1+Captura!$D$35)) -> 0 | M47: =IF(B47+1>=$J$17,0,M35*(1+Captura!$D$35)) -> 0 | O47: =IF(B47=J$17,Captura!$K$29,0) -> 0 | P47: =SUM(D47:F47,I47:N47)*Captura!$C$19 -> 0 | Q47: 0 | T47: 8 | U47: 19 | V47: 10792.55374 | X47: =+V46*Captura!$O$9/12 -> 142.007286 | Y47: -142.007286 | Z47: 0 | AA47: =IF(U47=J$17,Captura!$K$33,0) -> 0 | AC47: =IF(U47+1>=$J$17,0,AC35*(1+Captura!$D$35)) -> 0 | AD47: =IF(U47+1>=$J$17,0,AD35*(1+Captura!$D$35)) -> 0 | AE47: =IF(U47+1>=$J$17,0,AE35*(1+Captura!$D$35)) -> 0 | AG47: =+(W47+AB47+AC47+AD47+AE47+AF47)*Captura!$C$19 -> 0 | AH47: 0 | AJ47: 0 | AK47: 0
B48: 20 | C48: 2027-11-06 | D48: =IF(B48<J$17,Captura!$K$16,0) -> 0 | H48: 0 | K48: =IF(B48+1>=$J$17,0,K36*(1+Captura!$D$35)) -> 0 | L48: =IF(B48+1>=$J$17,0,L36*(1+Captura!$D$35)) -> 0 | M48: =IF(B48+1>=$J$17,0,M36*(1+Captura!$D$35)) -> 0 | O48: =IF(B48=J$17,Captura!$K$29,0) -> 0 | P48: =SUM(D48:F48,I48:N48)*Captura!$C$19 -> 0 | Q48: 0 | T48: 9 | U48: 20 | V48: 10936.45445 | X48: =+V47*Captura!$O$9/12 -> 143.9007165 | Y48: -143.9007165 | Z48: 0 | AA48: =IF(U48=J$17,Captura!$K$33,0) -> 0 | AC48: =IF(U48+1>=$J$17,0,AC36*(1+Captura!$D$35)) -> 0 | AD48: =IF(U48+1>=$J$17,0,AD36*(1+Captura!$D$35)) -> 0 | AE48: =IF(U48+1>=$J$17,0,AE36*(1+Captura!$D$35)) -> 0 | AG48: =+(W48+AB48+AC48+AD48+AE48+AF48)*Captura!$C$19 -> 0 | AH48: 0 | AJ48: 0 | AK48: 0
B49: 21 | C49: 2027-12-06 | D49: =IF(B49<J$17,Captura!$K$16,0) -> 0 | H49: 0 | K49: =IF(B49+1>=$J$17,0,K37*(1+Captura!$D$35)) -> 0 | L49: =IF(B49+1>=$J$17,0,L37*(1+Captura!$D$35)) -> 0 | M49: =IF(B49+1>=$J$17,0,M37*(1+Captura!$D$35)) -> 0 | O49: =IF(B49=J$17,Captura!$K$29,0) -> 0 | P49: =SUM(D49:F49,I49:N49)*Captura!$C$19 -> 0 | Q49: 0 | T49: 10 | U49: 21 | V49: 11082.27384 | X49: =+V48*Captura!$O$9/12 -> 145.8193927 | Y49: -145.8193927 | Z49: 0 | AA49: =IF(U49=J$17,Captura!$K$33,0) -> 0 | AC49: =IF(U49+1>=$J$17,0,AC37*(1+Captura!$D$35)) -> 0 | AD49: =IF(U49+1>=$J$17,0,AD37*(1+Captura!$D$35)) -> 0 | AE49: =IF(U49+1>=$J$17,0,AE37*(1+Captura!$D$35)) -> 0 | AG49: =+(W49+AB49+AC49+AD49+AE49+AF49)*Captura!$C$19 -> 0 | AH49: 0 | AJ49: 0 | AK49: 0
B50: 22 | C50: 2028-01-06 | D50: =IF(B50<J$17,Captura!$K$16,0) -> 0 | H50: 0 | K50: =IF(B50+1>=$J$17,0,K38*(1+Captura!$D$35)) -> 0 | L50: =IF(B50+1>=$J$17,0,L38*(1+Captura!$D$35)) -> 0 | M50: =IF(B50+1>=$J$17,0,M38*(1+Captura!$D$35)) -> 0 | O50: =IF(B50=J$17,Captura!$K$29,0) -> 0 | P50: =SUM(D50:F50,I50:N50)*Captura!$C$19 -> 0 | Q50: 0 | T50: 11 | U50: 22 | V50: 11230.0375 | X50: =+V49*Captura!$O$9/12 -> 147.7636513 | Y50: -147.7636513 | Z50: 0 | AA50: =IF(U50=J$17,Captura!$K$33,0) -> 0 | AC50: =IF(U50+1>=$J$17,0,AC38*(1+Captura!$D$35)) -> 0 | AD50: =IF(U50+1>=$J$17,0,AD38*(1+Captura!$D$35)) -> 0 | AE50: =IF(U50+1>=$J$17,0,AE38*(1+Captura!$D$35)) -> 0 | AG50: =+(W50+AB50+AC50+AD50+AE50+AF50)*Captura!$C$19 -> 0 | AH50: 0 | AJ50: 0 | AK50: 0
B51: 23 | C51: 2028-02-06 | D51: =IF(B51<J$17,Captura!$K$16,0) -> 0 | H51: 0 | K51: =IF(B51+1>=$J$17,0,K39*(1+Captura!$D$35)) -> 0 | L51: =IF(B51+1>=$J$17,0,L39*(1+Captura!$D$35)) -> 0 | M51: =IF(B51+1>=$J$17,0,M39*(1+Captura!$D$35)) -> 0 | O51: =IF(B51=J$17,Captura!$K$29,0) -> 0 | P51: =SUM(D51:F51,I51:N51)*Captura!$C$19 -> 0 | Q51: 0 | T51: 12 | U51: 23 | V51: 11379.77133 | X51: =+V50*Captura!$O$9/12 -> 149.7338333 | Y51: -149.7338333 | Z51: 0 | AA51: =IF(U51=J$17,Captura!$K$33,0) -> 0 | AC51: =IF(U51+1>=$J$17,0,AC39*(1+Captura!$D$35)) -> 0 | AD51: =IF(U51+1>=$J$17,0,AD39*(1+Captura!$D$35)) -> 0 | AE51: =IF(U51+1>=$J$17,0,AE39*(1+Captura!$D$35)) -> 0 | AG51: =+(W51+AB51+AC51+AD51+AE51+AF51)*Captura!$C$19 -> 0 | AH51: 0 | AJ51: 0 | AK51: 0
B52: 24 | C52: 2028-03-06 | D52: =IF(B52<J$17,Captura!$K$16,0) -> 0 | H52: 0 | K52: =IF(B52+1>=$J$17,0,K40*(1+Captura!$D$35)) -> 0 | L52: =IF(B52+1>=$J$17,0,L40*(1+Captura!$D$35)) -> 0 | M52: =IF(B52+1>=$J$17,0,M40*(1+Captura!$D$35)) -> 0 | O52: =IF(B52=J$17,Captura!$K$29,0) -> 0 | P52: =SUM(D52:F52,I52:N52)*Captura!$C$19 -> 0 | Q52: 0 | T52: 1 | U52: 24 | V52: 11531.50161 | X52: =+V51*Captura!$O$9/12 -> 151.7302844 | Y52: -151.7302844 | Z52: 0 | AA52: =IF(U52=J$17,Captura!$K$33,0) -> 0 | AC52: =IF(U52+1>=$J$17,0,AC40*(1+Captura!$D$35)) -> 0 | AD52: =IF(U52+1>=$J$17,0,AD40*(1+Captura!$D$35)) -> 0 | AE52: =IF(U52+1>=$J$17,0,AE40*(1+Captura!$D$35)) -> 0 | AG52: =+(W52+AB52+AC52+AD52+AE52+AF52)*Captura!$C$19 -> 0 | AH52: 0 | AJ52: 0 | AK52: 0
B53: 25 | C53: 2028-04-06 | D53: =IF(B53<J$17,Captura!$K$16,0) -> 0 | H53: 0 | K53: =IF(B53+1>=$J$17,0,K41*(1+Captura!$D$35)) -> 0 | L53: =IF(B53+1>=$J$17,0,L41*(1+Captura!$D$35)) -> 0 | M53: =IF(B53+1>=$J$17,0,M41*(1+Captura!$D$35)) -> 0 | O53: =IF(B53=J$17,Captura!$K$29,0) -> 0 | P53: =SUM(D53:F53,I53:N53)*Captura!$C$19 -> 0 | Q53: 0 | T53: 2 | U53: 25 | V53: 11685.25497 | X53: =+V52*Captura!$O$9/12 -> 153.7533548 | Y53: -153.7533548 | Z53: 0 | AA53: =IF(U53=J$17,Captura!$K$33,0) -> 0 | AC53: =IF(U53+1>=$J$17,0,AC41*(1+Captura!$D$35)) -> 0 | AD53: =IF(U53+1>=$J$17,0,AD41*(1+Captura!$D$35)) -> 0 | AE53: =IF(U53+1>=$J$17,0,AE41*(1+Captura!$D$35)) -> 0 | AG53: =+(W53+AB53+AC53+AD53+AE53+AF53)*Captura!$C$19 -> 0 | AH53: 0 | AJ53: 0 | AK53: 0
B54: 26 | C54: 2028-05-06 | D54: =IF(B54<J$17,Captura!$K$16,0) -> 0 | H54: 0 | K54: =IF(B54+1>=$J$17,0,K42*(1+Captura!$D$35)) -> 0 | L54: =IF(B54+1>=$J$17,0,L42*(1+Captura!$D$35)) -> 0 | M54: =IF(B54+1>=$J$17,0,M42*(1+Captura!$D$35)) -> 0 | O54: =IF(B54=J$17,Captura!$K$29,0) -> 0 | P54: =SUM(D54:F54,I54:N54)*Captura!$C$19 -> 0 | Q54: 0 | T54: 3 | U54: 26 | V54: 11841.05837 | X54: =+V53*Captura!$O$9/12 -> 155.8033996 | Y54: -155.8033996 | Z54: 0 | AA54: =IF(U54=J$17,Captura!$K$33,0) -> 0 | AC54: =IF(U54+1>=$J$17,0,AC42*(1+Captura!$D$35)) -> 0 | AD54: =IF(U54+1>=$J$17,0,AD42*(1+Captura!$D$35)) -> 0 | AE54: =IF(U54+1>=$J$17,0,AE42*(1+Captura!$D$35)) -> 0 | AG54: =+(W54+AB54+AC54+AD54+AE54+AF54)*Captura!$C$19 -> 0 | AH54: 0 | AJ54: 0 | AK54: 0
B55: 27 | C55: 2028-06-06 | D55: =IF(B55<J$17,Captura!$K$16,0) -> 0 | H55: 0 | K55: =IF(B55+1>=$J$17,0,K43*(1+Captura!$D$35)) -> 0 | L55: =IF(B55+1>=$J$17,0,L43*(1+Captura!$D$35)) -> 0 | M55: =IF(B55+1>=$J$17,0,M43*(1+Captura!$D$35)) -> 0 | O55: =IF(B55=J$17,Captura!$K$29,0) -> 0 | P55: =SUM(D55:F55,I55:N55)*Captura!$C$19 -> 0 | Q55: 0 | T55: 4 | U55: 27 | V55: 11998.93915 | X55: =+V54*Captura!$O$9/12 -> 157.8807782 | Y55: -157.8807782 | Z55: 0 | AA55: =IF(U55=J$17,Captura!$K$33,0) -> 0 | AC55: =IF(U55+1>=$J$17,0,AC43*(1+Captura!$D$35)) -> 0 | AD55: =IF(U55+1>=$J$17,0,AD43*(1+Captura!$D$35)) -> 0 | AE55: =IF(U55+1>=$J$17,0,AE43*(1+Captura!$D$35)) -> 0 | AG55: =+(W55+AB55+AC55+AD55+AE55+AF55)*Captura!$C$19 -> 0 | AH55: 0 | AJ55: 0 | AK55: 0
B56: 28 | C56: 2028-07-06 | D56: =IF(B56<J$17,Captura!$K$16,0) -> 0 | H56: 0 | K56: =IF(B56+1>=$J$17,0,K44*(1+Captura!$D$35)) -> 0 | L56: =IF(B56+1>=$J$17,0,L44*(1+Captura!$D$35)) -> 0 | M56: =IF(B56+1>=$J$17,0,M44*(1+Captura!$D$35)) -> 0 | O56: =IF(B56=J$17,Captura!$K$29,0) -> 0 | P56: =SUM(D56:F56,I56:N56)*Captura!$C$19 -> 0 | Q56: 0 | T56: 5 | U56: 28 | V56: 12158.925 | X56: =+V55*Captura!$O$9/12 -> 159.9858553 | Y56: -159.9858553 | Z56: 0 | AA56: =IF(U56=J$17,Captura!$K$33,0) -> 0 | AC56: =IF(U56+1>=$J$17,0,AC44*(1+Captura!$D$35)) -> 0 | AD56: =IF(U56+1>=$J$17,0,AD44*(1+Captura!$D$35)) -> 0 | AE56: =IF(U56+1>=$J$17,0,AE44*(1+Captura!$D$35)) -> 0 | AG56: =+(W56+AB56+AC56+AD56+AE56+AF56)*Captura!$C$19 -> 0 | AH56: 0 | AJ56: 0 | AK56: 0
B57: 29 | C57: 2028-08-06 | D57: =IF(B57<J$17,Captura!$K$16,0) -> 0 | H57: 0 | K57: =IF(B57+1>=$J$17,0,K45*(1+Captura!$D$35)) -> 0 | L57: =IF(B57+1>=$J$17,0,L45*(1+Captura!$D$35)) -> 0 | M57: =IF(B57+1>=$J$17,0,M45*(1+Captura!$D$35)) -> 0 | O57: =IF(B57=J$17,Captura!$K$29,0) -> 0 | P57: =SUM(D57:F57,I57:N57)*Captura!$C$19 -> 0 | Q57: 0 | T57: 6 | U57: 29 | V57: 12321.044 | X57: =+V56*Captura!$O$9/12 -> 162.119 | Y57: -162.119 | Z57: 0 | AA57: =IF(U57=J$17,Captura!$K$33,0) -> 0 | AC57: =IF(U57+1>=$J$17,0,AC45*(1+Captura!$D$35)) -> 0 | AD57: =IF(U57+1>=$J$17,0,AD45*(1+Captura!$D$35)) -> 0 | AE57: =IF(U57+1>=$J$17,0,AE45*(1+Captura!$D$35)) -> 0 | AG57: =+(W57+AB57+AC57+AD57+AE57+AF57)*Captura!$C$19 -> 0 | AH57: 0 | AJ57: 0 | AK57: 0
B58: 30 | C58: 2028-09-06 | D58: =IF(B58<J$17,Captura!$K$16,0) -> 0 | H58: 0 | K58: =IF(B58+1>=$J$17,0,K46*(1+Captura!$D$35)) -> 0 | L58: =IF(B58+1>=$J$17,0,L46*(1+Captura!$D$35)) -> 0 | M58: =IF(B58+1>=$J$17,0,M46*(1+Captura!$D$35)) -> 0 | O58: =IF(B58=J$17,Captura!$K$29,0) -> 0 | P58: =SUM(D58:F58,I58:N58)*Captura!$C$19 -> 0 | Q58: 0 | T58: 7 | U58: 30 | V58: 12485.32459 | X58: =+V57*Captura!$O$9/12 -> 164.2805867 | Y58: -164.2805867 | Z58: 0 | AA58: =IF(U58=J$17,Captura!$K$33,0) -> 0 | AC58: =IF(U58+1>=$J$17,0,AC46*(1+Captura!$D$35)) -> 0 | AD58: =IF(U58+1>=$J$17,0,AD46*(1+Captura!$D$35)) -> 0 | AE58: =IF(U58+1>=$J$17,0,AE46*(1+Captura!$D$35)) -> 0 | AG58: =+(W58+AB58+AC58+AD58+AE58+AF58)*Captura!$C$19 -> 0 | AH58: 0 | AJ58: 0 | AK58: 0
B59: 31 | C59: 2028-10-06 | D59: =IF(B59<J$17,Captura!$K$16,0) -> 0 | H59: 0 | K59: =IF(B59+1>=$J$17,0,K47*(1+Captura!$D$35)) -> 0 | L59: =IF(B59+1>=$J$17,0,L47*(1+Captura!$D$35)) -> 0 | M59: =IF(B59+1>=$J$17,0,M47*(1+Captura!$D$35)) -> 0 | O59: =IF(B59=J$17,Captura!$K$29,0) -> 0 | P59: =SUM(D59:F59,I59:N59)*Captura!$C$19 -> 0 | Q59: 0 | T59: 8 | U59: 31 | V59: 12651.79558 | X59: =+V58*Captura!$O$9/12 -> 166.4709945 | Y59: -166.4709945 | Z59: 0 | AA59: =IF(U59=J$17,Captura!$K$33,0) -> 0 | AC59: =IF(U59+1>=$J$17,0,AC47*(1+Captura!$D$35)) -> 0 | AD59: =IF(U59+1>=$J$17,0,AD47*(1+Captura!$D$35)) -> 0 | AE59: =IF(U59+1>=$J$17,0,AE47*(1+Captura!$D$35)) -> 0 | AG59: =+(W59+AB59+AC59+AD59+AE59+AF59)*Captura!$C$19 -> 0 | AH59: 0 | AJ59: 0 | AK59: 0
B60: 32 | C60: 2028-11-06 | D60: =IF(B60<J$17,Captura!$K$16,0) -> 0 | H60: 0 | K60: =IF(B60+1>=$J$17,0,K48*(1+Captura!$D$35)) -> 0 | L60: =IF(B60+1>=$J$17,0,L48*(1+Captura!$D$35)) -> 0 | M60: =IF(B60+1>=$J$17,0,M48*(1+Captura!$D$35)) -> 0 | O60: =IF(B60=J$17,Captura!$K$29,0) -> 0 | P60: =SUM(D60:F60,I60:N60)*Captura!$C$19 -> 0 | Q60: 0 | T60: 9 | U60: 32 | V60: 12820.48619 | X60: =+V59*Captura!$O$9/12 -> 168.6906078 | Y60: -168.6906078 | Z60: 0 | AA60: =IF(U60=J$17,Captura!$K$33,0) -> 0 | AC60: =IF(U60+1>=$J$17,0,AC48*(1+Captura!$D$35)) -> 0 | AD60: =IF(U60+1>=$J$17,0,AD48*(1+Captura!$D$35)) -> 0 | AE60: =IF(U60+1>=$J$17,0,AE48*(1+Captura!$D$35)) -> 0 | AG60: =+(W60+AB60+AC60+AD60+AE60+AF60)*Captura!$C$19 -> 0 | AH60: 0 | AJ60: 0 | AK60: 0
B61: 33 | C61: 2028-12-06 | D61: =IF(B61<J$17,Captura!$K$16,0) -> 0 | H61: 0 | K61: =IF(B61+1>=$J$17,0,K49*(1+Captura!$D$35)) -> 0 | L61: =IF(B61+1>=$J$17,0,L49*(1+Captura!$D$35)) -> 0 | M61: =IF(B61+1>=$J$17,0,M49*(1+Captura!$D$35)) -> 0 | O61: =IF(B61=J$17,Captura!$K$29,0) -> 0 | P61: =SUM(D61:F61,I61:N61)*Captura!$C$19 -> 0 | Q61: 0 | T61: 10 | U61: 33 | V61: 12991.42601 | X61: =+V60*Captura!$O$9/12 -> 170.9398159 | Y61: -170.9398159 | Z61: 0 | AA61: =IF(U61=J$17,Captura!$K$33,0) -> 0 | AC61: =IF(U61+1>=$J$17,0,AC49*(1+Captura!$D$35)) -> 0 | AD61: =IF(U61+1>=$J$17,0,AD49*(1+Captura!$D$35)) -> 0 | AE61: =IF(U61+1>=$J$17,0,AE49*(1+Captura!$D$35)) -> 0 | AG61: =+(W61+AB61+AC61+AD61+AE61+AF61)*Captura!$C$19 -> 0 | AH61: 0 | AJ61: 0 | AK61: 0
B62: 34 | C62: 2029-01-06 | D62: =IF(B62<J$17,Captura!$K$16,0) -> 0 | H62: 0 | K62: =IF(B62+1>=$J$17,0,K50*(1+Captura!$D$35)) -> 0 | L62: =IF(B62+1>=$J$17,0,L50*(1+Captura!$D$35)) -> 0 | M62: =IF(B62+1>=$J$17,0,M50*(1+Captura!$D$35)) -> 0 | O62: =IF(B62=J$17,Captura!$K$29,0) -> 0 | P62: =SUM(D62:F62,I62:N62)*Captura!$C$19 -> 0 | Q62: 0 | T62: 11 | U62: 34 | V62: 13164.64502 | X62: =+V61*Captura!$O$9/12 -> 173.2190134 | Y62: -173.2190134 | Z62: 0 | AA62: =IF(U62=J$17,Captura!$K$33,0) -> 0 | AC62: =IF(U62+1>=$J$17,0,AC50*(1+Captura!$D$35)) -> 0 | AD62: =IF(U62+1>=$J$17,0,AD50*(1+Captura!$D$35)) -> 0 | AE62: =IF(U62+1>=$J$17,0,AE50*(1+Captura!$D$35)) -> 0 | AG62: =+(W62+AB62+AC62+AD62+AE62+AF62)*Captura!$C$19 -> 0 | AH62: 0 | AJ62: 0 | AK62: 0
B63: 35 | C63: 2029-02-06 | D63: =IF(B63<J$17,Captura!$K$16,0) -> 0 | H63: 0 | K63: =IF(B63+1>=$J$17,0,K51*(1+Captura!$D$35)) -> 0 | L63: =IF(B63+1>=$J$17,0,L51*(1+Captura!$D$35)) -> 0 | M63: =IF(B63+1>=$J$17,0,M51*(1+Captura!$D$35)) -> 0 | O63: =IF(B63=J$17,Captura!$K$29,0) -> 0 | P63: =SUM(D63:F63,I63:N63)*Captura!$C$19 -> 0 | Q63: 0 | T63: 12 | U63: 35 | V63: 13340.17362 | X63: =+V62*Captura!$O$9/12 -> 175.5286003 | Y63: -175.5286003 | Z63: 0 | AA63: =IF(U63=J$17,Captura!$K$33,0) -> 0 | AC63: =IF(U63+1>=$J$17,0,AC51*(1+Captura!$D$35)) -> 0 | AD63: =IF(U63+1>=$J$17,0,AD51*(1+Captura!$D$35)) -> 0 | AE63: =IF(U63+1>=$J$17,0,AE51*(1+Captura!$D$35)) -> 0 | AG63: =+(W63+AB63+AC63+AD63+AE63+AF63)*Captura!$C$19 -> 0 | AH63: 0 | AJ63: 0 | AK63: 0
B64: 36 | C64: 2029-03-06 | D64: =IF(B64<J$17,Captura!$K$16,0) -> 0 | H64: 0 | K64: =IF(B64+1>=$J$17,0,K52*(1+Captura!$D$35)) -> 0 | L64: =IF(B64+1>=$J$17,0,L52*(1+Captura!$D$35)) -> 0 | M64: =IF(B64+1>=$J$17,0,M52*(1+Captura!$D$35)) -> 0 | O64: =IF(B64=J$17,Captura!$K$29,0) -> 0 | P64: =SUM(D64:F64,I64:N64)*Captura!$C$19 -> 0 | Q64: 0 | T64: 1 | U64: 36 | V64: 13518.0426 | X64: =+V63*Captura!$O$9/12 -> 177.8689816 | Y64: -177.8689816 | Z64: 0 | AA64: =IF(U64=J$17,Captura!$K$33,0) -> 0 | AC64: =IF(U64+1>=$J$17,0,AC52*(1+Captura!$D$35)) -> 0 | AD64: =IF(U64+1>=$J$17,0,AD52*(1+Captura!$D$35)) -> 0 | AE64: =IF(U64+1>=$J$17,0,AE52*(1+Captura!$D$35)) -> 0 | AG64: =+(W64+AB64+AC64+AD64+AE64+AF64)*Captura!$C$19 -> 0 | AH64: 0 | AJ64: 0 | AK64: 0
B65: 37 | C65: 2029-04-06 | D65: =IF(B65<J$17,Captura!$K$16,0) -> 0 | H65: 0 | K65: =IF(B65+1>=$J$17,0,K53*(1+Captura!$D$35)) -> 0 | L65: =IF(B65+1>=$J$17,0,L53*(1+Captura!$D$35)) -> 0 | M65: =IF(B65+1>=$J$17,0,M53*(1+Captura!$D$35)) -> 0 | O65: =IF(B65=J$17,Captura!$K$29,0) -> 0 | P65: =SUM(D65:F65,I65:N65)*Captura!$C$19 -> 0 | Q65: 0 | T65: 2 | U65: 37 | V65: 13698.28317 | X65: =+V64*Captura!$O$9/12 -> 180.240568 | Y65: -180.240568 | Z65: 0 | AA65: =IF(U65=J$17,Captura!$K$33,0) -> 0 | AC65: =IF(U65+1>=$J$17,0,AC53*(1+Captura!$D$35)) -> 0 | AD65: =IF(U65+1>=$J$17,0,AD53*(1+Captura!$D$35)) -> 0 | AE65: =IF(U65+1>=$J$17,0,AE53*(1+Captura!$D$35)) -> 0 | AG65: =+(W65+AB65+AC65+AD65+AE65+AF65)*Captura!$C$19 -> 0 | AH65: 0 | AJ65: 0 | AK65: 0
B66: 38 | C66: 2029-05-06 | D66: =IF(B66<J$17,Captura!$K$16,0) -> 0 | H66: 0 | K66: =IF(B66+1>=$J$17,0,K54*(1+Captura!$D$35)) -> 0 | L66: =IF(B66+1>=$J$17,0,L54*(1+Captura!$D$35)) -> 0 | M66: =IF(B66+1>=$J$17,0,M54*(1+Captura!$D$35)) -> 0 | O66: =IF(B66=J$17,Captura!$K$29,0) -> 0 | P66: =SUM(D66:F66,I66:N66)*Captura!$C$19 -> 0 | Q66: 0 | T66: 3 | U66: 38 | V66: 13880.92694 | X66: =+V65*Captura!$O$9/12 -> 182.6437756 | Y66: -182.6437756 | Z66: 0 | AA66: =IF(U66=J$17,Captura!$K$33,0) -> 0 | AC66: =IF(U66+1>=$J$17,0,AC54*(1+Captura!$D$35)) -> 0 | AD66: =IF(U66+1>=$J$17,0,AD54*(1+Captura!$D$35)) -> 0 | AE66: =IF(U66+1>=$J$17,0,AE54*(1+Captura!$D$35)) -> 0 | AG66: =+(W66+AB66+AC66+AD66+AE66+AF66)*Captura!$C$19 -> 0 | AH66: 0 | AJ66: 0 | AK66: 0
B67: 39 | C67: 2029-06-06 | D67: =IF(B67<J$17,Captura!$K$16,0) -> 0 | H67: 0 | K67: =IF(B67+1>=$J$17,0,K55*(1+Captura!$D$35)) -> 0 | L67: =IF(B67+1>=$J$17,0,L55*(1+Captura!$D$35)) -> 0 | M67: =IF(B67+1>=$J$17,0,M55*(1+Captura!$D$35)) -> 0 | O67: =IF(B67=J$17,Captura!$K$29,0) -> 0 | P67: =SUM(D67:F67,I67:N67)*Captura!$C$19 -> 0 | Q67: 0 | T67: 4 | U67: 39 | V67: 14066.00597 | X67: =+V66*Captura!$O$9/12 -> 185.0790259 | Y67: -185.0790259 | Z67: 0 | AA67: =IF(U67=J$17,Captura!$K$33,0) -> 0 | AC67: =IF(U67+1>=$J$17,0,AC55*(1+Captura!$D$35)) -> 0 | AD67: =IF(U67+1>=$J$17,0,AD55*(1+Captura!$D$35)) -> 0 | AE67: =IF(U67+1>=$J$17,0,AE55*(1+Captura!$D$35)) -> 0 | AG67: =+(W67+AB67+AC67+AD67+AE67+AF67)*Captura!$C$19 -> 0 | AH67: 0 | AJ67: 0 | AK67: 0
B68: 40 | C68: 2029-07-06 | D68: =IF(B68<J$17,Captura!$K$16,0) -> 0 | H68: 0 | K68: =IF(B68+1>=$J$17,0,K56*(1+Captura!$D$35)) -> 0 | L68: =IF(B68+1>=$J$17,0,L56*(1+Captura!$D$35)) -> 0 | M68: =IF(B68+1>=$J$17,0,M56*(1+Captura!$D$35)) -> 0 | O68: =IF(B68=J$17,Captura!$K$29,0) -> 0 | P68: =SUM(D68:F68,I68:N68)*Captura!$C$19 -> 0 | Q68: 0 | T68: 5 | U68: 40 | V68: 14253.55272 | X68: =+V67*Captura!$O$9/12 -> 187.5467463 | Y68: -187.5467463 | Z68: 0 | AA68: =IF(U68=J$17,Captura!$K$33,0) -> 0 | AC68: =IF(U68+1>=$J$17,0,AC56*(1+Captura!$D$35)) -> 0 | AD68: =IF(U68+1>=$J$17,0,AD56*(1+Captura!$D$35)) -> 0 | AE68: =IF(U68+1>=$J$17,0,AE56*(1+Captura!$D$35)) -> 0 | AG68: =+(W68+AB68+AC68+AD68+AE68+AF68)*Captura!$C$19 -> 0 | AH68: 0 | AJ68: 0 | AK68: 0
B69: 41 | C69: 2029-08-06 | D69: =IF(B69<J$17,Captura!$K$16,0) -> 0 | H69: 0 | K69: =IF(B69+1>=$J$17,0,K57*(1+Captura!$D$35)) -> 0 | L69: =IF(B69+1>=$J$17,0,L57*(1+Captura!$D$35)) -> 0 | M69: =IF(B69+1>=$J$17,0,M57*(1+Captura!$D$35)) -> 0 | O69: =IF(B69=J$17,Captura!$K$29,0) -> 0 | P69: =SUM(D69:F69,I69:N69)*Captura!$C$19 -> 0 | Q69: 0 | T69: 6 | U69: 41 | V69: 14443.60009 | X69: =+V68*Captura!$O$9/12 -> 190.0473696 | Y69: -190.0473696 | Z69: 0 | AA69: =IF(U69=J$17,Captura!$K$33,0) -> 0 | AC69: =IF(U69+1>=$J$17,0,AC57*(1+Captura!$D$35)) -> 0 | AD69: =IF(U69+1>=$J$17,0,AD57*(1+Captura!$D$35)) -> 0 | AE69: =IF(U69+1>=$J$17,0,AE57*(1+Captura!$D$35)) -> 0 | AG69: =+(W69+AB69+AC69+AD69+AE69+AF69)*Captura!$C$19 -> 0 | AH69: 0 | AJ69: 0 | AK69: 0
B70: 42 | C70: 2029-09-06 | D70: =IF(B70<J$17,Captura!$K$16,0) -> 0 | H70: 0 | K70: =IF(B70+1>=$J$17,0,K58*(1+Captura!$D$35)) -> 0 | L70: =IF(B70+1>=$J$17,0,L58*(1+Captura!$D$35)) -> 0 | M70: =IF(B70+1>=$J$17,0,M58*(1+Captura!$D$35)) -> 0 | O70: =IF(B70=J$17,Captura!$K$29,0) -> 0 | P70: =SUM(D70:F70,I70:N70)*Captura!$C$19 -> 0 | Q70: 0 | T70: 7 | U70: 42 | V70: 14636.18142 | X70: =+V69*Captura!$O$9/12 -> 192.5813345 | Y70: -192.5813345 | Z70: 0 | AA70: =IF(U70=J$17,Captura!$K$33,0) -> 0 | AC70: =IF(U70+1>=$J$17,0,AC58*(1+Captura!$D$35)) -> 0 | AD70: =IF(U70+1>=$J$17,0,AD58*(1+Captura!$D$35)) -> 0 | AE70: =IF(U70+1>=$J$17,0,AE58*(1+Captura!$D$35)) -> 0 | AG70: =+(W70+AB70+AC70+AD70+AE70+AF70)*Captura!$C$19 -> 0 | AH70: 0 | AJ70: 0 | AK70: 0
B71: 43 | C71: 2029-10-06 | D71: =IF(B71<J$17,Captura!$K$16,0) -> 0 | H71: 0 | K71: =IF(B71+1>=$J$17,0,K59*(1+Captura!$D$35)) -> 0 | L71: =IF(B71+1>=$J$17,0,L59*(1+Captura!$D$35)) -> 0 | M71: =IF(B71+1>=$J$17,0,M59*(1+Captura!$D$35)) -> 0 | O71: =IF(B71=J$17,Captura!$K$29,0) -> 0 | P71: =SUM(D71:F71,I71:N71)*Captura!$C$19 -> 0 | Q71: 0 | T71: 8 | U71: 43 | V71: 14831.33051 | X71: =+V70*Captura!$O$9/12 -> 195.1490856 | Y71: -195.1490856 | Z71: 0 | AA71: =IF(U71=J$17,Captura!$K$33,0) -> 0 | AC71: =IF(U71+1>=$J$17,0,AC59*(1+Captura!$D$35)) -> 0 | AD71: =IF(U71+1>=$J$17,0,AD59*(1+Captura!$D$35)) -> 0 | AE71: =IF(U71+1>=$J$17,0,AE59*(1+Captura!$D$35)) -> 0 | AG71: =+(W71+AB71+AC71+AD71+AE71+AF71)*Captura!$C$19 -> 0 | AH71: 0 | AJ71: 0 | AK71: 0
B72: 44 | C72: 2029-11-06 | D72: =IF(B72<J$17,Captura!$K$16,0) -> 0 | H72: 0 | K72: =IF(B72+1>=$J$17,0,K60*(1+Captura!$D$35)) -> 0 | L72: =IF(B72+1>=$J$17,0,L60*(1+Captura!$D$35)) -> 0 | M72: =IF(B72+1>=$J$17,0,M60*(1+Captura!$D$35)) -> 0 | O72: =IF(B72=J$17,Captura!$K$29,0) -> 0 | P72: =SUM(D72:F72,I72:N72)*Captura!$C$19 -> 0 | Q72: 0 | T72: 9 | U72: 44 | V72: 15029.08158 | X72: =+V71*Captura!$O$9/12 -> 197.7510734 | Y72: -197.7510734 | Z72: 0 | AA72: =IF(U72=J$17,Captura!$K$33,0) -> 0 | AC72: =IF(U72+1>=$J$17,0,AC60*(1+Captura!$D$35)) -> 0 | AD72: =IF(U72+1>=$J$17,0,AD60*(1+Captura!$D$35)) -> 0 | AE72: =IF(U72+1>=$J$17,0,AE60*(1+Captura!$D$35)) -> 0 | AG72: =+(W72+AB72+AC72+AD72+AE72+AF72)*Captura!$C$19 -> 0 | AH72: 0 | AJ72: 0 | AK72: 0
B73: 45 | C73: 2029-12-06 | D73: =IF(B73<J$17,Captura!$K$16,0) -> 0 | H73: 0 | K73: =IF(B73+1>=$J$17,0,K61*(1+Captura!$D$35)) -> 0 | L73: =IF(B73+1>=$J$17,0,L61*(1+Captura!$D$35)) -> 0 | M73: =IF(B73+1>=$J$17,0,M61*(1+Captura!$D$35)) -> 0 | O73: =IF(B73=J$17,Captura!$K$29,0) -> 0 | P73: =SUM(D73:F73,I73:N73)*Captura!$C$19 -> 0 | Q73: 0 | T73: 10 | U73: 45 | V73: 15229.46933 | X73: =+V72*Captura!$O$9/12 -> 200.3877544 | Y73: -200.3877544 | Z73: 0 | AA73: =IF(U73=J$17,Captura!$K$33,0) -> 0 | AC73: =IF(U73+1>=$J$17,0,AC61*(1+Captura!$D$35)) -> 0 | AD73: =IF(U73+1>=$J$17,0,AD61*(1+Captura!$D$35)) -> 0 | AE73: =IF(U73+1>=$J$17,0,AE61*(1+Captura!$D$35)) -> 0 | AG73: =+(W73+AB73+AC73+AD73+AE73+AF73)*Captura!$C$19 -> 0 | AH73: 0 | AJ73: 0 | AK73: 0
B74: 46 | C74: 2030-01-06 | D74: =IF(B74<J$17,Captura!$K$16,0) -> 0 | H74: 0 | K74: =IF(B74+1>=$J$17,0,K62*(1+Captura!$D$35)) -> 0 | L74: =IF(B74+1>=$J$17,0,L62*(1+Captura!$D$35)) -> 0 | M74: =IF(B74+1>=$J$17,0,M62*(1+Captura!$D$35)) -> 0 | O74: =IF(B74=J$17,Captura!$K$29,0) -> 0 | P74: =SUM(D74:F74,I74:N74)*Captura!$C$19 -> 0 | Q74: 0 | T74: 11 | U74: 46 | V74: 15432.52893 | X74: =+V73*Captura!$O$9/12 -> 203.0595911 | Y74: -203.0595911 | Z74: 0 | AA74: =IF(U74=J$17,Captura!$K$33,0) -> 0 | AC74: =IF(U74+1>=$J$17,0,AC62*(1+Captura!$D$35)) -> 0 | AD74: =IF(U74+1>=$J$17,0,AD62*(1+Captura!$D$35)) -> 0 | AE74: =IF(U74+1>=$J$17,0,AE62*(1+Captura!$D$35)) -> 0 | AG74: =+(W74+AB74+AC74+AD74+AE74+AF74)*Captura!$C$19 -> 0 | AH74: 0 | AJ74: 0 | AK74: 0
B75: 47 | C75: 2030-02-06 | D75: =IF(B75<J$17,Captura!$K$16,0) -> 0 | H75: 0 | K75: =IF(B75+1>=$J$17,0,K63*(1+Captura!$D$35)) -> 0 | L75: =IF(B75+1>=$J$17,0,L63*(1+Captura!$D$35)) -> 0 | M75: =IF(B75+1>=$J$17,0,M63*(1+Captura!$D$35)) -> 0 | O75: =IF(B75=J$17,Captura!$K$29,0) -> 0 | P75: =SUM(D75:F75,I75:N75)*Captura!$C$19 -> 0 | Q75: 0 | T75: 12 | U75: 47 | V75: 15638.29598 | X75: =+V74*Captura!$O$9/12 -> 205.7670523 | Y75: -205.7670523 | Z75: 0 | AA75: =IF(U75=J$17,Captura!$K$33,0) -> 0 | AC75: =IF(U75+1>=$J$17,0,AC63*(1+Captura!$D$35)) -> 0 | AD75: =IF(U75+1>=$J$17,0,AD63*(1+Captura!$D$35)) -> 0 | AE75: =IF(U75+1>=$J$17,0,AE63*(1+Captura!$D$35)) -> 0 | AG75: =+(W75+AB75+AC75+AD75+AE75+AF75)*Captura!$C$19 -> 0 | AH75: 0 | AJ75: 0 | AK75: 0
B76: 48 | C76: 2030-03-06 | D76: =IF(B76<J$17,Captura!$K$16,0) -> 0 | H76: 0 | K76: =IF(B76+1>=$J$17,0,K64*(1+Captura!$D$35)) -> 0 | L76: =IF(B76+1>=$J$17,0,L64*(1+Captura!$D$35)) -> 0 | M76: =IF(B76+1>=$J$17,0,M64*(1+Captura!$D$35)) -> 0 | O76: =IF(B76=J$17,Captura!$K$29,0) -> 0 | P76: =SUM(D76:F76,I76:N76)*Captura!$C$19 -> 0 | Q76: 0 | T76: 1 | U76: 48 | V76: 15846.80659 | X76: =+V75*Captura!$O$9/12 -> 208.510613 | Y76: -208.510613 | Z76: 0 | AA76: =IF(U76=J$17,Captura!$K$33,0) -> 0 | AC76: =IF(U76+1>=$J$17,0,AC64*(1+Captura!$D$35)) -> 0 | AD76: =IF(U76+1>=$J$17,0,AD64*(1+Captura!$D$35)) -> 0 | AE76: =IF(U76+1>=$J$17,0,AE64*(1+Captura!$D$35)) -> 0 | AG76: =+(W76+AB76+AC76+AD76+AE76+AF76)*Captura!$C$19 -> 0 | AH76: 0 | AJ76: 0 | AK76: 0
B77: 49 | C77: 2030-04-06 | D77: =IF(B77<J$17,Captura!$K$16,0) -> 0 | H77: 0 | K77: =IF(B77+1>=$J$17,0,K65*(1+Captura!$D$35)) -> 0 | L77: =IF(B77+1>=$J$17,0,L65*(1+Captura!$D$35)) -> 0 | M77: =IF(B77+1>=$J$17,0,M65*(1+Captura!$D$35)) -> 0 | O77: =IF(B77=J$17,Captura!$K$29,0) -> 0 | P77: =SUM(D77:F77,I77:N77)*Captura!$C$19 -> 0 | Q77: 0 | T77: 2 | U77: 49 | V77: 16058.09735 | X77: =+V76*Captura!$O$9/12 -> 211.2907545 | Y77: -211.2907545 | Z77: 0 | AA77: =IF(U77=J$17,Captura!$K$33,0) -> 0 | AC77: =IF(U77+1>=$J$17,0,AC65*(1+Captura!$D$35)) -> 0 | AD77: =IF(U77+1>=$J$17,0,AD65*(1+Captura!$D$35)) -> 0 | AE77: =IF(U77+1>=$J$17,0,AE65*(1+Captura!$D$35)) -> 0 | AG77: =+(W77+AB77+AC77+AD77+AE77+AF77)*Captura!$C$19 -> 0 | AH77: 0 | AJ77: 0 | AK77: 0
B78: 50 | C78: 2030-05-06 | D78: =IF(B78<J$17,Captura!$K$16,0) -> 0 | H78: 0 | K78: =IF(B78+1>=$J$17,0,K66*(1+Captura!$D$35)) -> 0 | L78: =IF(B78+1>=$J$17,0,L66*(1+Captura!$D$35)) -> 0 | M78: =IF(B78+1>=$J$17,0,M66*(1+Captura!$D$35)) -> 0 | O78: =IF(B78=J$17,Captura!$K$29,0) -> 0 | P78: =SUM(D78:F78,I78:N78)*Captura!$C$19 -> 0 | Q78: 0 | T78: 3 | U78: 50 | V78: 16272.20531 | X78: =+V77*Captura!$O$9/12 -> 214.1079646 | Y78: -214.1079646 | Z78: 0 | AA78: =IF(U78=J$17,Captura!$K$33,0) -> 0 | AC78: =IF(U78+1>=$J$17,0,AC66*(1+Captura!$D$35)) -> 0 | AD78: =IF(U78+1>=$J$17,0,AD66*(1+Captura!$D$35)) -> 0 | AE78: =IF(U78+1>=$J$17,0,AE66*(1+Captura!$D$35)) -> 0 | AG78: =+(W78+AB78+AC78+AD78+AE78+AF78)*Captura!$C$19 -> 0 | AH78: 0 | AJ78: 0 | AK78: 0
B79: 51 | C79: 2030-06-06 | D79: =IF(B79<J$17,Captura!$K$16,0) -> 0 | H79: 0 | K79: =IF(B79+1>=$J$17,0,K67*(1+Captura!$D$35)) -> 0 | L79: =IF(B79+1>=$J$17,0,L67*(1+Captura!$D$35)) -> 0 | M79: =IF(B79+1>=$J$17,0,M67*(1+Captura!$D$35)) -> 0 | O79: =IF(B79=J$17,Captura!$K$29,0) -> 0 | P79: =SUM(D79:F79,I79:N79)*Captura!$C$19 -> 0 | Q79: 0 | T79: 4 | U79: 51 | V79: 16489.16805 | X79: =+V78*Captura!$O$9/12 -> 216.9627375 | Y79: -216.9627375 | Z79: 0 | AA79: =IF(U79=J$17,Captura!$K$33,0) -> 0 | AC79: =IF(U79+1>=$J$17,0,AC67*(1+Captura!$D$35)) -> 0 | AD79: =IF(U79+1>=$J$17,0,AD67*(1+Captura!$D$35)) -> 0 | AE79: =IF(U79+1>=$J$17,0,AE67*(1+Captura!$D$35)) -> 0 | AG79: =+(W79+AB79+AC79+AD79+AE79+AF79)*Captura!$C$19 -> 0 | AH79: 0 | AJ79: 0 | AK79: 0
B80: 52 | C80: 2030-07-06 | D80: =IF(B80<J$17,Captura!$K$16,0) -> 0 | H80: 0 | K80: =IF(B80+1>=$J$17,0,K68*(1+Captura!$D$35)) -> 0 | L80: =IF(B80+1>=$J$17,0,L68*(1+Captura!$D$35)) -> 0 | M80: =IF(B80+1>=$J$17,0,M68*(1+Captura!$D$35)) -> 0 | O80: =IF(B80=J$17,Captura!$K$29,0) -> 0 | P80: =SUM(D80:F80,I80:N80)*Captura!$C$19 -> 0 | Q80: 0 | T80: 5 | U80: 52 | V80: 16709.02362 | X80: =+V79*Captura!$O$9/12 -> 219.855574 | Y80: -219.855574 | Z80: 0 | AA80: =IF(U80=J$17,Captura!$K$33,0) -> 0 | AC80: =IF(U80+1>=$J$17,0,AC68*(1+Captura!$D$35)) -> 0 | AD80: =IF(U80+1>=$J$17,0,AD68*(1+Captura!$D$35)) -> 0 | AE80: =IF(U80+1>=$J$17,0,AE68*(1+Captura!$D$35)) -> 0 | AG80: =+(W80+AB80+AC80+AD80+AE80+AF80)*Captura!$C$19 -> 0 | AH80: 0 | AJ80: 0 | AK80: 0
B81: 53 | C81: 2030-08-06 | D81: =IF(B81<J$17,Captura!$K$16,0) -> 0 | H81: 0 | K81: =IF(B81+1>=$J$17,0,K69*(1+Captura!$D$35)) -> 0 | L81: =IF(B81+1>=$J$17,0,L69*(1+Captura!$D$35)) -> 0 | M81: =IF(B81+1>=$J$17,0,M69*(1+Captura!$D$35)) -> 0 | O81: =IF(B81=J$17,Captura!$K$29,0) -> 0 | P81: =SUM(D81:F81,I81:N81)*Captura!$C$19 -> 0 | Q81: 0 | T81: 6 | U81: 53 | V81: 16931.8106 | X81: =+V80*Captura!$O$9/12 -> 222.7869816 | Y81: -222.7869816 | Z81: 0 | AA81: =IF(U81=J$17,Captura!$K$33,0) -> 0 | AC81: =IF(U81+1>=$J$17,0,AC69*(1+Captura!$D$35)) -> 0 | AD81: =IF(U81+1>=$J$17,0,AD69*(1+Captura!$D$35)) -> 0 | AE81: =IF(U81+1>=$J$17,0,AE69*(1+Captura!$D$35)) -> 0 | AG81: =+(W81+AB81+AC81+AD81+AE81+AF81)*Captura!$C$19 -> 0 | AH81: 0 | AJ81: 0 | AK81: 0
B82: 54 | C82: 2030-09-06 | D82: =IF(B82<J$17,Captura!$K$16,0) -> 0 | H82: 0 | K82: =IF(B82+1>=$J$17,0,K70*(1+Captura!$D$35)) -> 0 | L82: =IF(B82+1>=$J$17,0,L70*(1+Captura!$D$35)) -> 0 | M82: =IF(B82+1>=$J$17,0,M70*(1+Captura!$D$35)) -> 0 | O82: =IF(B82=J$17,Captura!$K$29,0) -> 0 | P82: =SUM(D82:F82,I82:N82)*Captura!$C$19 -> 0 | Q82: 0 | T82: 7 | U82: 54 | V82: 17157.56808 | X82: =+V81*Captura!$O$9/12 -> 225.7574747 | Y82: -225.7574747 | Z82: 0 | AA82: =IF(U82=J$17,Captura!$K$33,0) -> 0 | AC82: =IF(U82+1>=$J$17,0,AC70*(1+Captura!$D$35)) -> 0 | AD82: =IF(U82+1>=$J$17,0,AD70*(1+Captura!$D$35)) -> 0 | AE82: =IF(U82+1>=$J$17,0,AE70*(1+Captura!$D$35)) -> 0 | AG82: =+(W82+AB82+AC82+AD82+AE82+AF82)*Captura!$C$19 -> 0 | AH82: 0 | AJ82: 0 | AK82: 0
B83: 55 | C83: 2030-10-06 | D83: =IF(B83<J$17,Captura!$K$16,0) -> 0 | H83: 0 | K83: =IF(B83+1>=$J$17,0,K71*(1+Captura!$D$35)) -> 0 | L83: =IF(B83+1>=$J$17,0,L71*(1+Captura!$D$35)) -> 0 | M83: =IF(B83+1>=$J$17,0,M71*(1+Captura!$D$35)) -> 0 | O83: =IF(B83=J$17,Captura!$K$29,0) -> 0 | P83: =SUM(D83:F83,I83:N83)*Captura!$C$19 -> 0 | Q83: 0 | T83: 8 | U83: 55 | V83: 17386.33565 | X83: =+V82*Captura!$O$9/12 -> 228.7675744 | Y83: -228.7675744 | Z83: 0 | AA83: =IF(U83=J$17,Captura!$K$33,0) -> 0 | AC83: =IF(U83+1>=$J$17,0,AC71*(1+Captura!$D$35)) -> 0 | AD83: =IF(U83+1>=$J$17,0,AD71*(1+Captura!$D$35)) -> 0 | AE83: =IF(U83+1>=$J$17,0,AE71*(1+Captura!$D$35)) -> 0 | AG83: =+(W83+AB83+AC83+AD83+AE83+AF83)*Captura!$C$19 -> 0 | AH83: 0 | AJ83: 0 | AK83: 0
B84: 56 | C84: 2030-11-06 | D84: =IF(B84<J$17,Captura!$K$16,0) -> 0 | H84: 0 | K84: =IF(B84+1>=$J$17,0,K72*(1+Captura!$D$35)) -> 0 | L84: =IF(B84+1>=$J$17,0,L72*(1+Captura!$D$35)) -> 0 | M84: =IF(B84+1>=$J$17,0,M72*(1+Captura!$D$35)) -> 0 | O84: =IF(B84=J$17,Captura!$K$29,0) -> 0 | P84: =SUM(D84:F84,I84:N84)*Captura!$C$19 -> 0 | Q84: 0 | T84: 9 | U84: 56 | V84: 17618.15346 | X84: =+V83*Captura!$O$9/12 -> 231.8178087 | Y84: -231.8178087 | Z84: 0 | AA84: =IF(U84=J$17,Captura!$K$33,0) -> 0 | AC84: =IF(U84+1>=$J$17,0,AC72*(1+Captura!$D$35)) -> 0 | AD84: =IF(U84+1>=$J$17,0,AD72*(1+Captura!$D$35)) -> 0 | AE84: =IF(U84+1>=$J$17,0,AE72*(1+Captura!$D$35)) -> 0 | AG84: =+(W84+AB84+AC84+AD84+AE84+AF84)*Captura!$C$19 -> 0 | AH84: 0 | AJ84: 0 | AK84: 0
B85: 57 | C85: 2030-12-06 | D85: =IF(B85<J$17,Captura!$K$16,0) -> 0 | H85: 0 | K85: =IF(B85+1>=$J$17,0,K73*(1+Captura!$D$35)) -> 0 | L85: =IF(B85+1>=$J$17,0,L73*(1+Captura!$D$35)) -> 0 | M85: =IF(B85+1>=$J$17,0,M73*(1+Captura!$D$35)) -> 0 | O85: =IF(B85=J$17,Captura!$K$29,0) -> 0 | P85: =SUM(D85:F85,I85:N85)*Captura!$C$19 -> 0 | Q85: 0 | T85: 10 | U85: 57 | V85: 17853.06217 | X85: =+V84*Captura!$O$9/12 -> 234.9087128 | Y85: -234.9087128 | Z85: 0 | AA85: =IF(U85=J$17,Captura!$K$33,0) -> 0 | AC85: =IF(U85+1>=$J$17,0,AC73*(1+Captura!$D$35)) -> 0 | AD85: =IF(U85+1>=$J$17,0,AD73*(1+Captura!$D$35)) -> 0 | AE85: =IF(U85+1>=$J$17,0,AE73*(1+Captura!$D$35)) -> 0 | AG85: =+(W85+AB85+AC85+AD85+AE85+AF85)*Captura!$C$19 -> 0 | AH85: 0 | AJ85: 0 | AK85: 0
B86: 58 | C86: 2031-01-06 | D86: =IF(B86<J$17,Captura!$K$16,0) -> 0 | H86: 0 | K86: =IF(B86+1>=$J$17,0,K74*(1+Captura!$D$35)) -> 0 | L86: =IF(B86+1>=$J$17,0,L74*(1+Captura!$D$35)) -> 0 | M86: =IF(B86+1>=$J$17,0,M74*(1+Captura!$D$35)) -> 0 | O86: =IF(B86=J$17,Captura!$K$29,0) -> 0 | P86: =SUM(D86:F86,I86:N86)*Captura!$C$19 -> 0 | Q86: 0 | T86: 11 | U86: 58 | V86: 18091.103 | X86: =+V85*Captura!$O$9/12 -> 238.040829 | Y86: -238.040829 | Z86: 0 | AA86: =IF(U86=J$17,Captura!$K$33,0) -> 0 | AC86: =IF(U86+1>=$J$17,0,AC74*(1+Captura!$D$35)) -> 0 | AD86: =IF(U86+1>=$J$17,0,AD74*(1+Captura!$D$35)) -> 0 | AE86: =IF(U86+1>=$J$17,0,AE74*(1+Captura!$D$35)) -> 0 | AG86: =+(W86+AB86+AC86+AD86+AE86+AF86)*Captura!$C$19 -> 0 | AH86: 0 | AJ86: 0 | AK86: 0
B87: 59 | C87: 2031-02-06 | D87: =IF(B87<J$17,Captura!$K$16,0) -> 0 | H87: 0 | K87: =IF(B87+1>=$J$17,0,K75*(1+Captura!$D$35)) -> 0 | L87: =IF(B87+1>=$J$17,0,L75*(1+Captura!$D$35)) -> 0 | M87: =IF(B87+1>=$J$17,0,M75*(1+Captura!$D$35)) -> 0 | O87: =IF(B87=J$17,Captura!$K$29,0) -> 0 | P87: =SUM(D87:F87,I87:N87)*Captura!$C$19 -> 0 | Q87: 0 | T87: 12 | U87: 59 | V87: 18332.31771 | X87: =+V86*Captura!$O$9/12 -> 241.2147067 | Y87: -241.2147067 | Z87: 0 | AA87: =IF(U87=J$17,Captura!$K$33,0) -> 0 | AC87: =IF(U87+1>=$J$17,0,AC75*(1+Captura!$D$35)) -> 0 | AD87: =IF(U87+1>=$J$17,0,AD75*(1+Captura!$D$35)) -> 0 | AE87: =IF(U87+1>=$J$17,0,AE75*(1+Captura!$D$35)) -> 0 | AG87: =+(W87+AB87+AC87+AD87+AE87+AF87)*Captura!$C$19 -> 0 | AH87: 0 | AJ87: 0 | AK87: 0
B88: 60 | C88: 2031-03-06 | D88: =IF(B88<J$17,Captura!$K$16,0) -> 0 | H88: 0 | K88: =IF(B88+1>=$J$17,0,K76*(1+Captura!$D$35)) -> 0 | L88: =IF(B88+1>=$J$17,0,L76*(1+Captura!$D$35)) -> 0 | M88: =IF(B88+1>=$J$17,0,M76*(1+Captura!$D$35)) -> 0 | O88: =IF(B88=J$17,Captura!$K$29,0) -> 0 | P88: =SUM(D88:F88,I88:N88)*Captura!$C$19 -> 0 | Q88: 0 | T88: 1 | U88: 60 | V88: 18576.74861 | X88: =+V87*Captura!$O$9/12 -> 244.4309028 | Y88: -244.4309028 | Z88: 0 | AA88: =IF(U88=J$17,Captura!$K$33,0) -> 0 | AC88: =IF(U88+1>=$J$17,0,AC76*(1+Captura!$D$35)) -> 0 | AD88: =IF(U88+1>=$J$17,0,AD76*(1+Captura!$D$35)) -> 0 | AE88: =IF(U88+1>=$J$17,0,AE76*(1+Captura!$D$35)) -> 0 | AG88: =+(W88+AB88+AC88+AD88+AE88+AF88)*Captura!$C$19 -> 0 | AH88: 0 | AJ88: 0 | AK88: 0
B92: Notas:
B93: 1. Esta cotización no es una autorización y no representa ninguna obligación para Leasing Mobile de México, S. A. de C. V.
B94: 2. La información descrita en el presente documento está sujeta a cambios sin previo aviso.
B95: 3. Esta cotización no considera gastos que el equipo requiera para su adquisición, uso o mantenimiento.
B96: 4. Las rentas en depósito serán devueltas al cumplimiento de todas las obligaciones contractauales del Arrendatario.
B107: __________________________________
B108: Leasing Mobile de Mexico, SA de CV
B109: =+Captura!D31 -> xxxx
B110: =+Captura!D32 -> xxxx
B111: =+Captura!D33 -> xxxx

Sheet Plazo 2 (hidden)
B7: Cotización
B8: Arrendamiento Puro
P10: =+Captura!N3 -> 2026-03-06
B12: Cliente: | E12: =+Captura!D7 -> SOPORTE LOGISTICO EXPRESS | J12: Teléfono | K12: =+Captura!D9 -> 0
B13: Atención: | E13: =+Captura!D8 -> A QUIEN CORRESPONDA | J13: E-mail | K13: =+Captura!D10 -> 0
Q14: =+Captura!O40 -> v. 20240220
B17: Tipo de equipo | E17: =+Captura!T7 -> Vehículo utilitario | H17: Plazo del arrendamiento | J17: =+Captura!L13 -> 24 | L17: Gestoría y Registro | N17: =+Captura!F23 -> Pago único | AJ17: Valor presente de flujos
B18: Estado del equipo | E18: =+Captura!T17 -> Nuevo | H18: No. de rentas en depósito | J18: =+Captura!K8 -> 0 | L18: Equipo de geolocalizacióon | N18: =+Captura!F24 -> Pago único | Q18: =+Captura!L36 -> 0.2977121045 | AJ18: =NPV(Captura!$D$35/12,AJ29:AJ88)+AJ28 -> 9159.786566 | AK18: =NPV(Captura!$D$35/12,AK29:AK88)+AK28 -> -5196.389565
B19: Descripción | E19: =+Captura!D15 -> LAP TOP DELL PRO 14", 16 GB | H19: Comisión de apertura | J19: =+Captura!K9 -> 0.03 | L19: Seguro de daños | N19: =+Captura!T26 -> Pago en renta | AJ19: Tasa Interna de Retorno
H20: Anticipo | J20: =+Captura!K10 -> 733.5064655 | L20: Placas y Tenencia | N20: =+Captura!T33 -> Pago anual | AJ20: =IRR(AJ28:AJ88,0.01)*12 -> 0.6713484506 | AK20: =IRR(AK28:AK88,0.01)*12 -> 0.7052691352
H21: Residual estimado | J21: Valor mercado | L21: Servicio de geolocalización | N21: =+Captura!T40 -> Pago anual | Q21: =+Captura!L37 -> Positivo | AJ21: Capital Req. | AK21: =+Captura!L34 -> 6656.42569
B22: Valor factura sin IVA | E22: =+Captura!G18 -> 14670.12931 | L22: =+Captura!I25 -> Otro | N22: =+Captura!F28 -> 0 | AJ22: VP / CR | AK22: =+(AJ18+AK18)/AK21 -> 0.595424209
B23: IVA | E23: =+Captura!G19 -> 2347.22069 | Q23: Regresar
B24: Valor factua con IVA | E24: =+Captura!G20 -> 17017.35 | AJ24: Indicador anualizado | AK24: =+AK22/J17*12 -> 0.2977121045
B26: Periodo | C26: Mes | D26: Renta | E26: Anticipo | F26: Comisión de apertura | G26: Rentas en depósito | H26: Devolución de rentas en depósito | I26: Gestoría y Registro | J26: Equipo de geo localización | K26: Seguro de daños | L26: Placas y Tenencia | M26: Servicio de geo localización | N26: =+L22 -> Otro | O26: Residual estimado | P26: IVA | Q26: TOTAL | T26: Mes | U26: Periodo | V26: Fondeo | W26: Comisión de apertura | X26: Intereses | Y26: Capital | Z26: Pago | AA26: Bullet | AB26: Equipo de geo localización | AC26: Seguro de daños | AD26: Placas y Tenencia | AE26: Servicio de geo localización | AF26: Otro | AG26: IVA | AH26: TOTAL | AJ26: Flujo Activo sin IVA | AK26: Flujo Pasivo sin IVA
B28: 0 | C28: =+P10 -> 2026-03-06 | D28: =+Captura!L16+Resumen!J29+Resumen!J30 -> 980.5797054 | E28: =+Captura!K10 -> 733.5064655 | F28: =+Captura!L18 -> 440.1038793 | G28: =+Captura!L19 -> 0 | H28: =IF(B28=J$17,-G$28,0) -> 0 | I28: =+Captura!L20 -> 0 | J28: =+Captura!L21 -> 0 | K28: =+Captura!L22 -> 0 | L28: =+Captura!L23 -> 0 | M28: =+Captura!L24 -> 0 | N28: =+Captura!L25 -> 0 | O28: =IF(B28=J$17,Captura!$L$29,0) -> 0 | P28: =SUM(D28:F28,I28:N28)*Captura!$C$19 -> 344.670408 | Q28: =SUM(D28:P28)-O28 -> 2498.860458 | T28: 1 | U28: =+B28 -> 0 | V28: =+Captura!O8 -> 8391.313966 | W28: =+Captura!L31 -> 127.630125 | AB28: =+J28 -> 0 | AC28: =+Captura!G25 -> 2000 | AD28: =+Captura!G26 -> 0 | AE28: =+Captura!G27 -> 0 | AF28: =+N28 -> 0 | AG28: =+(W28+AB28+AC28+AD28+AE28+AF28)*Captura!$C$19 -> 340.42082 | AH28: =SUM(W28,Z28:AG28) -> 2468.050945 | AJ28: =-E22+(Q28-P28)+O28 -> -12515.93926 | AK28: =+V28-(AH28-AG28) -> 6263.683841
B29: 1 | C29: =EDATE(C28,1) -> 2026-04-06 | D29: =IF(B29<J$17,Captura!$L$16,0)+Resumen!$J$29+Resumen!$J$30 -> 980.5797054 | H29: 0 | K29: 0 | L29: 0 | M29: 0 | O29: =IF(B29=J$17,Captura!$L$29,0) -> 0 | P29: =SUM(D29:F29,I29:N29)*Captura!$C$19 -> 156.8927529 | Q29: =SUM(D29:P29)-O29 -> 1137.472458 | T29: =IF(T28=12,1,T28+1) -> 2 | U29: =+B29 -> 1 | V29: =+V28-Y29-AA29 -> 8092.333319 | X29: =+V28*Captura!$O$9/12 -> 111.8841862 | Y29: =+Z29-X29 -> 298.9806469 | Z29: =+Captura!L30 -> 410.8648331 | AA29: =IF(U29=J$17,Captura!$L$33,0) -> 0 | AC29: 0 | AD29: 0 | AE29: 0 | AG29: =+(W29+AB29+AC29+AD29+AE29+AF29)*Captura!$C$19 -> 0 | AH29: =SUM(W29,Z29:AG29) -> 410.8648331 | AJ29: =Q29-P29+O29 -> 980.5797054 | AK29: =-(AH29-AG29) -> -410.8648331
B30: 2 | C30: =EDATE(C29,1) -> 2026-05-06 | D30: =IF(B30<J$17,Captura!$L$16,0)+Resumen!$J$29+Resumen!$J$30 -> 980.5797054 | H30: 0 | K30: 0 | L30: 0 | M30: 0 | O30: =IF(B30=J$17,Captura!$L$29,0) -> 0 | P30: =SUM(D30:F30,I30:N30)*Captura!$C$19 -> 156.8927529 | Q30: 1137.472458 | T30: =IF(T29=12,1,T29+1) -> 3 | U30: 2 | V30: =+V29-Y30-AA30 -> 7789.366263 | X30: =+V29*Captura!$O$9/12 -> 107.8977776 | Y30: =+Z30-X30 -> 302.9670555 | Z30: =IF(U30>J$17,0,Z29) -> 410.8648331 | AA30: =IF(U30=J$17,Captura!$L$33,0) -> 0 | AC30: 0 | AD30: 0 | AE30: 0 | AG30: =+(W30+AB30+AC30+AD30+AE30+AF30)*Captura!$C$19 -> 0 | AH30: 410.8648331 | AJ30: =Q30-P30+O30 -> 980.5797054 | AK30: =-(AH30-AG30) -> -410.8648331
B31: 3 | C31: 2026-06-06 | D31: =IF(B31<J$17,Captura!$L$16,0)+Resumen!$J$29+Resumen!$J$30 -> 980.5797054 | H31: 0 | K31: 0 | L31: 0 | M31: 0 | O31: =IF(B31=J$17,Captura!$L$29,0) -> 0 | P31: =SUM(D31:F31,I31:N31)*Captura!$C$19 -> 156.8927529 | Q31: 1137.472458 | T31: 4 | U31: 3 | V31: 7482.359647 | X31: =+V30*Captura!$O$9/12 -> 103.8582168 | Y31: 307.0066162 | Z31: =IF(U31>J$17,0,Z30) -> 410.8648331 | AA31: =IF(U31=J$17,Captura!$L$33,0) -> 0 | AC31: 0 | AD31: 0 | AE31: 0 | AG31: =+(W31+AB31+AC31+AD31+AE31+AF31)*Captura!$C$19 -> 0 | AH31: 410.8648331 | AJ31: 980.5797054 | AK31: -410.8648331
B32: 4 | C32: 2026-07-06 | D32: =IF(B32<J$17,Captura!$L$16,0)+Resumen!$J$29+Resumen!$J$30 -> 980.5797054 | H32: 0 | K32: 0 | L32: 0 | M32: 0 | O32: =IF(B32=J$17,Captura!$L$29,0) -> 0 | P32: =SUM(D32:F32,I32:N32)*Captura!$C$19 -> 156.8927529 | Q32: 1137.472458 | T32: 5 | U32: 4 | V32: 7171.259609 | X32: =+V31*Captura!$O$9/12 -> 99.76479529 | Y32: 311.1000378 | Z32: 410.8648331 | AA32: =IF(U32=J$17,Captura!$L$33,0) -> 0 | AC32: 0 | AD32: 0 | AE32: 0 | AG32: =+(W32+AB32+AC32+AD32+AE32+AF32)*Captura!$C$19 -> 0 | AH32: 410.8648331 | AJ32: 980.5797054 | AK32: -410.8648331
B33: 5 | C33: 2026-08-06 | D33: =IF(B33<J$17,Captura!$L$16,0)+Resumen!$J$29+Resumen!$J$30 -> 980.5797054 | H33: 0 | K33: 0 | L33: 0 | M33: 0 | O33: =IF(B33=J$17,Captura!$L$29,0) -> 0 | P33: =SUM(D33:F33,I33:N33)*Captura!$C$19 -> 156.8927529 | Q33: 1137.472458 | T33: 6 | U33: 5 | V33: 6856.011571 | X33: =+V32*Captura!$O$9/12 -> 95.61679479 | Y33: 315.2480383 | Z33: 410.8648331 | AA33: =IF(U33=J$17,Captura!$L$33,0) -> 0 | AC33: 0 | AD33: 0 | AE33: 0 | AG33: =+(W33+AB33+AC33+AD33+AE33+AF33)*Captura!$C$19 -> 0 | AH33: 410.8648331 | AJ33: 980.5797054 | AK33: -410.8648331
B34: 6 | C34: 2026-09-06 | D34: =IF(B34<J$17,Captura!$L$16,0)+Resumen!$J$29+Resumen!$J$30 -> 980.5797054 | H34: 0 | K34: 0 | L34: 0 | M34: 0 | O34: =IF(B34=J$17,Captura!$L$29,0) -> 0 | P34: =SUM(D34:F34,I34:N34)*Captura!$C$19 -> 156.8927529 | Q34: 1137.472458 | T34: 7 | U34: 6 | V34: 6536.560225 | X34: =+V33*Captura!$O$9/12 -> 91.41348761 | Y34: 319.4513455 | Z34: 410.8648331 | AA34: =IF(U34=J$17,Captura!$L$33,0) -> 0 | AC34: 0 | AD34: 0 | AE34: 0 | AG34: =+(W34+AB34+AC34+AD34+AE34+AF34)*Captura!$C$19 -> 0 | AH34: 410.8648331 | AJ34: 980.5797054 | AK34: -410.8648331
B35: 7 | C35: 2026-10-06 | D35: =IF(B35<J$17,Captura!$L$16,0)+Resumen!$J$29+Resumen!$J$30 -> 980.5797054 | H35: 0 | K35: 0 | L35: 0 | M35: 0 | O35: =IF(B35=J$17,Captura!$L$29,0) -> 0 | P35: =SUM(D35:F35,I35:N35)*Captura!$C$19 -> 156.8927529 | Q35: 1137.472458 | T35: 8 | U35: 7 | V35: 6212.849529 | X35: =+V34*Captura!$O$9/12 -> 87.15413634 | Y35: 323.7106967 | Z35: 410.8648331 | AA35: =IF(U35=J$17,Captura!$L$33,0) -> 0 | AC35: 0 | AD35: 0 | AE35: 0 | AG35: =+(W35+AB35+AC35+AD35+AE35+AF35)*Captura!$C$19 -> 0 | AH35: 410.8648331 | AJ35: 980.5797054 | AK35: -410.8648331
B36: 8 | C36: 2026-11-06 | D36: =IF(B36<J$17,Captura!$L$16,0)+Resumen!$J$29+Resumen!$J$30 -> 980.5797054 | H36: 0 | K36: 0 | L36: 0 | M36: 0 | O36: =IF(B36=J$17,Captura!$L$29,0) -> 0 | P36: =SUM(D36:F36,I36:N36)*Captura!$C$19 -> 156.8927529 | Q36: 1137.472458 | T36: 9 | U36: 8 | V36: 5884.822689 | X36: =+V35*Captura!$O$9/12 -> 82.83799371 | Y36: 328.0268394 | Z36: 410.8648331 | AA36: =IF(U36=J$17,Captura!$L$33,0) -> 0 | AC36: 0 | AD36: 0 | AE36: 0 | AG36: =+(W36+AB36+AC36+AD36+AE36+AF36)*Captura!$C$19 -> 0 | AH36: 410.8648331 | AJ36: 980.5797054 | AK36: -410.8648331
B37: 9 | C37: 2026-12-06 | D37: =IF(B37<J$17,Captura!$L$16,0)+Resumen!$J$29+Resumen!$J$30 -> 980.5797054 | H37: 0 | K37: 0 | L37: 0 | M37: 0 | O37: =IF(B37=J$17,Captura!$L$29,0) -> 0 | P37: =SUM(D37:F37,I37:N37)*Captura!$C$19 -> 156.8927529 | Q37: 1137.472458 | T37: 10 | U37: 9 | V37: 5552.422159 | X37: =+V36*Captura!$O$9/12 -> 78.46430252 | Y37: 332.4005306 | Z37: 410.8648331 | AA37: =IF(U37=J$17,Captura!$L$33,0) -> 0 | AC37: 0 | AD37: 0 | AE37: 0 | AG37: =+(W37+AB37+AC37+AD37+AE37+AF37)*Captura!$C$19 -> 0 | AH37: 410.8648331 | AJ37: 980.5797054 | AK37: -410.8648331
B38: 10 | C38: 2027-01-06 | D38: =IF(B38<J$17,Captura!$L$16,0)+Resumen!$J$29+Resumen!$J$30 -> 980.5797054 | H38: 0 | K38: 0 | L38: 0 | M38: 0 | O38: =IF(B38=J$17,Captura!$L$29,0) -> 0 | P38: =SUM(D38:F38,I38:N38)*Captura!$C$19 -> 156.8927529 | Q38: 1137.472458 | T38: 11 | U38: 10 | V38: 5215.589621 | X38: =+V37*Captura!$O$9/12 -> 74.03229545 | Y38: 336.8325376 | Z38: 410.8648331 | AA38: =IF(U38=J$17,Captura!$L$33,0) -> 0 | AC38: 0 | AD38: 0 | AE38: 0 | AG38: =+(W38+AB38+AC38+AD38+AE38+AF38)*Captura!$C$19 -> 0 | AH38: 410.8648331 | AJ38: 980.5797054 | AK38: -410.8648331
B39: 11 | C39: 2027-02-06 | D39: =IF(B39<J$17,Captura!$L$16,0)+Resumen!$J$29+Resumen!$J$30 -> 980.5797054 | H39: 0 | K39: 0 | L39: 0 | M39: 0 | O39: =IF(B39=J$17,Captura!$L$29,0) -> 0 | P39: =SUM(D39:F39,I39:N39)*Captura!$C$19 -> 156.8927529 | Q39: 1137.472458 | T39: 12 | U39: 11 | V39: 4874.265983 | X39: =+V38*Captura!$O$9/12 -> 69.54119495 | Y39: 341.3236381 | Z39: 410.8648331 | AA39: =IF(U39=J$17,Captura!$L$33,0) -> 0 | AC39: 0 | AD39: 0 | AE39: 0 | AG39: =+(W39+AB39+AC39+AD39+AE39+AF39)*Captura!$C$19 -> 0 | AH39: 410.8648331 | AJ39: 980.5797054 | AK39: -410.8648331
B40: 12 | C40: 2027-03-06 | D40: =IF(B40<J$17,Captura!$L$16,0)+Resumen!$J$29+Resumen!$J$30 -> 980.5797054 | H40: 0 | K40: =IF(B40+1>=$J$17,0,K28*(1+Captura!$D$35)) -> 0 | L40: =IF(B40+1>=$J$17,0,L28*(1+Captura!$D$35)) -> 0 | M40: =IF(B40+1>=$J$17,0,M28*(1+Captura!$D$35)) -> 0 | O40: =IF(B40=J$17,Captura!$L$29,0) -> 0 | P40: =SUM(D40:F40,I40:N40)*Captura!$C$19 -> 156.8927529 | Q40: 1137.472458 | T40: 1 | U40: 12 | V40: 4528.391363 | X40: =+V39*Captura!$O$9/12 -> 64.99021311 | Y40: 345.87462 | Z40: 410.8648331 | AA40: =IF(U40=J$17,Captura!$L$33,0) -> 0 | AC40: =IF(U40+1>=$J$17,0,AC28*(1+Captura!$D$35)) -> 2080 | AD40: =IF(U40+1>=$J$17,0,AD28*(1+Captura!$D$35)) -> 0 | AE40: =IF(U40+1>=$J$17,0,AE28*(1+Captura!$D$35)) -> 0 | AG40: =+(W40+AB40+AC40+AD40+AE40+AF40)*Captura!$C$19 -> 332.8 | AH40: 2823.664833 | AJ40: 980.5797054 | AK40: -2490.864833
B41: 13 | C41: 2027-04-06 | D41: =IF(B41<J$17,Captura!$L$16,0)+Resumen!$J$29+Resumen!$J$30 -> 980.5797054 | H41: 0 | K41: =IF(B41+1>=$J$17,0,K29*(1+Captura!$D$35)) -> 0 | L41: =IF(B41+1>=$J$17,0,L29*(1+Captura!$D$35)) -> 0 | M41: =IF(B41+1>=$J$17,0,M29*(1+Captura!$D$35)) -> 0 | O41: =IF(B41=J$17,Captura!$L$29,0) -> 0 | P41: =SUM(D41:F41,I41:N41)*Captura!$C$19 -> 156.8927529 | Q41: 1137.472458 | T41: 2 | U41: 13 | V41: 4177.905081 | X41: =+V40*Captura!$O$9/12 -> 60.37855151 | Y41: 350.4862816 | Z41: 410.8648331 | AA41: =IF(U41=J$17,Captura!$L$33,0) -> 0 | AC41: =IF(U41+1>=$J$17,0,AC29*(1+Captura!$D$35)) -> 0 | AD41: =IF(U41+1>=$J$17,0,AD29*(1+Captura!$D$35)) -> 0 | AE41: =IF(U41+1>=$J$17,0,AE29*(1+Captura!$D$35)) -> 0 | AG41: =+(W41+AB41+AC41+AD41+AE41+AF41)*Captura!$C$19 -> 0 | AH41: 410.8648331 | AJ41: 980.5797054 | AK41: -410.8648331
B42: 14 | C42: 2027-05-06 | D42: =IF(B42<J$17,Captura!$L$16,0)+Resumen!$J$29+Resumen!$J$30 -> 980.5797054 | H42: 0 | K42: =IF(B42+1>=$J$17,0,K30*(1+Captura!$D$35)) -> 0 | L42: =IF(B42+1>=$J$17,0,L30*(1+Captura!$D$35)) -> 0 | M42: =IF(B42+1>=$J$17,0,M30*(1+Captura!$D$35)) -> 0 | O42: =IF(B42=J$17,Captura!$L$29,0) -> 0 | P42: =SUM(D42:F42,I42:N42)*Captura!$C$19 -> 156.8927529 | Q42: 1137.472458 | T42: 3 | U42: 14 | V42: 3822.745649 | X42: =+V41*Captura!$O$9/12 -> 55.70540108 | Y42: 355.159432 | Z42: 410.8648331 | AA42: =IF(U42=J$17,Captura!$L$33,0) -> 0 | AC42: =IF(U42+1>=$J$17,0,AC30*(1+Captura!$D$35)) -> 0 | AD42: =IF(U42+1>=$J$17,0,AD30*(1+Captura!$D$35)) -> 0 | AE42: =IF(U42+1>=$J$17,0,AE30*(1+Captura!$D$35)) -> 0 | AG42: =+(W42+AB42+AC42+AD42+AE42+AF42)*Captura!$C$19 -> 0 | AH42: 410.8648331 | AJ42: 980.5797054 | AK42: -410.8648331
B43: 15 | C43: 2027-06-06 | D43: =IF(B43<J$17,Captura!$L$16,0)+Resumen!$J$29+Resumen!$J$30 -> 980.5797054 | H43: 0 | K43: =IF(B43+1>=$J$17,0,K31*(1+Captura!$D$35)) -> 0 | L43: =IF(B43+1>=$J$17,0,L31*(1+Captura!$D$35)) -> 0 | M43: =IF(B43+1>=$J$17,0,M31*(1+Captura!$D$35)) -> 0 | O43: =IF(B43=J$17,Captura!$L$29,0) -> 0 | P43: =SUM(D43:F43,I43:N43)*Captura!$C$19 -> 156.8927529 | Q43: 1137.472458 | T43: 4 | U43: 15 | V43: 3462.850758 | X43: =+V42*Captura!$O$9/12 -> 50.96994199 | Y43: 359.8948911 | Z43: 410.8648331 | AA43: =IF(U43=J$17,Captura!$L$33,0) -> 0 | AC43: =IF(U43+1>=$J$17,0,AC31*(1+Captura!$D$35)) -> 0 | AD43: =IF(U43+1>=$J$17,0,AD31*(1+Captura!$D$35)) -> 0 | AE43: =IF(U43+1>=$J$17,0,AE31*(1+Captura!$D$35)) -> 0 | AG43: =+(W43+AB43+AC43+AD43+AE43+AF43)*Captura!$C$19 -> 0 | AH43: 410.8648331 | AJ43: 980.5797054 | AK43: -410.8648331
B44: 16 | C44: 2027-07-06 | D44: =IF(B44<J$17,Captura!$L$16,0)+Resumen!$J$29+Resumen!$J$30 -> 980.5797054 | H44: 0 | K44: =IF(B44+1>=$J$17,0,K32*(1+Captura!$D$35)) -> 0 | L44: =IF(B44+1>=$J$17,0,L32*(1+Captura!$D$35)) -> 0 | M44: =IF(B44+1>=$J$17,0,M32*(1+Captura!$D$35)) -> 0 | O44: =IF(B44=J$17,Captura!$L$29,0) -> 0 | P44: =SUM(D44:F44,I44:N44)*Captura!$C$19 -> 156.8927529 | Q44: 1137.472458 | T44: 5 | U44: 16 | V44: 3098.157269 | X44: =+V43*Captura!$O$9/12 -> 46.17134344 | Y44: 364.6934896 | Z44: 410.8648331 | AA44: =IF(U44=J$17,Captura!$L$33,0) -> 0 | AC44: =IF(U44+1>=$J$17,0,AC32*(1+Captura!$D$35)) -> 0 | AD44: =IF(U44+1>=$J$17,0,AD32*(1+Captura!$D$35)) -> 0 | AE44: =IF(U44+1>=$J$17,0,AE32*(1+Captura!$D$35)) -> 0 | AG44: =+(W44+AB44+AC44+AD44+AE44+AF44)*Captura!$C$19 -> 0 | AH44: 410.8648331 | AJ44: 980.5797054 | AK44: -410.8648331
B45: 17 | C45: 2027-08-06 | D45: =IF(B45<J$17,Captura!$L$16,0)+Resumen!$J$29+Resumen!$J$30 -> 980.5797054 | H45: 0 | K45: =IF(B45+1>=$J$17,0,K33*(1+Captura!$D$35)) -> 0 | L45: =IF(B45+1>=$J$17,0,L33*(1+Captura!$D$35)) -> 0 | M45: =IF(B45+1>=$J$17,0,M33*(1+Captura!$D$35)) -> 0 | O45: =IF(B45=J$17,Captura!$L$29,0) -> 0 | P45: =SUM(D45:F45,I45:N45)*Captura!$C$19 -> 156.8927529 | Q45: 1137.472458 | T45: 6 | U45: 17 | V45: 2728.601199 | X45: =+V44*Captura!$O$9/12 -> 41.30876358 | Y45: 369.5560695 | Z45: 410.8648331 | AA45: =IF(U45=J$17,Captura!$L$33,0) -> 0 | AC45: =IF(U45+1>=$J$17,0,AC33*(1+Captura!$D$35)) -> 0 | AD45: =IF(U45+1>=$J$17,0,AD33*(1+Captura!$D$35)) -> 0 | AE45: =IF(U45+1>=$J$17,0,AE33*(1+Captura!$D$35)) -> 0 | AG45: =+(W45+AB45+AC45+AD45+AE45+AF45)*Captura!$C$19 -> 0 | AH45: 410.8648331 | AJ45: 980.5797054 | AK45: -410.8648331
B46: 18 | C46: 2027-09-06 | D46: =IF(B46<J$17,Captura!$L$16,0)+Resumen!$J$29+Resumen!$J$30 -> 980.5797054 | H46: 0 | K46: =IF(B46+1>=$J$17,0,K34*(1+Captura!$D$35)) -> 0 | L46: =IF(B46+1>=$J$17,0,L34*(1+Captura!$D$35)) -> 0 | M46: =IF(B46+1>=$J$17,0,M34*(1+Captura!$D$35)) -> 0 | O46: =IF(B46=J$17,Captura!$L$29,0) -> 0 | P46: =SUM(D46:F46,I46:N46)*Captura!$C$19 -> 156.8927529 | Q46: 1137.472458 | T46: 7 | U46: 18 | V46: 2354.117715 | X46: =+V45*Captura!$O$9/12 -> 36.38134932 | Y46: 374.4834838 | Z46: 410.8648331 | AA46: =IF(U46=J$17,Captura!$L$33,0) -> 0 | AC46: =IF(U46+1>=$J$17,0,AC34*(1+Captura!$D$35)) -> 0 | AD46: =IF(U46+1>=$J$17,0,AD34*(1+Captura!$D$35)) -> 0 | AE46: =IF(U46+1>=$J$17,0,AE34*(1+Captura!$D$35)) -> 0 | AG46: =+(W46+AB46+AC46+AD46+AE46+AF46)*Captura!$C$19 -> 0 | AH46: 410.8648331 | AJ46: 980.5797054 | AK46: -410.8648331
B47: 19 | C47: 2027-10-06 | D47: =IF(B47<J$17,Captura!$L$16,0)+Resumen!$J$29+Resumen!$J$30 -> 980.5797054 | H47: 0 | K47: =IF(B47+1>=$J$17,0,K35*(1+Captura!$D$35)) -> 0 | L47: =IF(B47+1>=$J$17,0,L35*(1+Captura!$D$35)) -> 0 | M47: =IF(B47+1>=$J$17,0,M35*(1+Captura!$D$35)) -> 0 | O47: =IF(B47=J$17,Captura!$L$29,0) -> 0 | P47: =SUM(D47:F47,I47:N47)*Captura!$C$19 -> 156.8927529 | Q47: 1137.472458 | T47: 8 | U47: 19 | V47: 1974.641119 | X47: =+V46*Captura!$O$9/12 -> 31.38823621 | Y47: 379.4765969 | Z47: 410.8648331 | AA47: =IF(U47=J$17,Captura!$L$33,0) -> 0 | AC47: =IF(U47+1>=$J$17,0,AC35*(1+Captura!$D$35)) -> 0 | AD47: =IF(U47+1>=$J$17,0,AD35*(1+Captura!$D$35)) -> 0 | AE47: =IF(U47+1>=$J$17,0,AE35*(1+Captura!$D$35)) -> 0 | AG47: =+(W47+AB47+AC47+AD47+AE47+AF47)*Captura!$C$19 -> 0 | AH47: 410.8648331 | AJ47: 980.5797054 | AK47: -410.8648331
B48: 20 | C48: 2027-11-06 | D48: =IF(B48<J$17,Captura!$L$16,0)+Resumen!$J$29+Resumen!$J$30 -> 980.5797054 | H48: 0 | K48: =IF(B48+1>=$J$17,0,K36*(1+Captura!$D$35)) -> 0 | L48: =IF(B48+1>=$J$17,0,L36*(1+Captura!$D$35)) -> 0 | M48: =IF(B48+1>=$J$17,0,M36*(1+Captura!$D$35)) -> 0 | O48: =IF(B48=J$17,Captura!$L$29,0) -> 0 | P48: =SUM(D48:F48,I48:N48)*Captura!$C$19 -> 156.8927529 | Q48: 1137.472458 | T48: 9 | U48: 20 | V48: 1590.104834 | X48: =+V47*Captura!$O$9/12 -> 26.32854825 | Y48: 384.5362848 | Z48: 410.8648331 | AA48: =IF(U48=J$17,Captura!$L$33,0) -> 0 | AC48: =IF(U48+1>=$J$17,0,AC36*(1+Captura!$D$35)) -> 0 | AD48: =IF(U48+1>=$J$17,0,AD36*(1+Captura!$D$35)) -> 0 | AE48: =IF(U48+1>=$J$17,0,AE36*(1+Captura!$D$35)) -> 0 | AG48: =+(W48+AB48+AC48+AD48+AE48+AF48)*Captura!$C$19 -> 0 | AH48: 410.8648331 | AJ48: 980.5797054 | AK48: -410.8648331
B49: 21 | C49: 2027-12-06 | D49: =IF(B49<J$17,Captura!$L$16,0)+Resumen!$J$29+Resumen!$J$30 -> 980.5797054 | H49: 0 | K49: =IF(B49+1>=$J$17,0,K37*(1+Captura!$D$35)) -> 0 | L49: =IF(B49+1>=$J$17,0,L37*(1+Captura!$D$35)) -> 0 | M49: =IF(B49+1>=$J$17,0,M37*(1+Captura!$D$35)) -> 0 | O49: =IF(B49=J$17,Captura!$L$29,0) -> 0 | P49: =SUM(D49:F49,I49:N49)*Captura!$C$19 -> 156.8927529 | Q49: 1137.472458 | T49: 10 | U49: 21 | V49: 1200.441398 | X49: =+V48*Captura!$O$9/12 -> 21.20139778 | Y49: 389.6634353 | Z49: 410.8648331 | AA49: =IF(U49=J$17,Captura!$L$33,0) -> 0 | AC49: =IF(U49+1>=$J$17,0,AC37*(1+Captura!$D$35)) -> 0 | AD49: =IF(U49+1>=$J$17,0,AD37*(1+Captura!$D$35)) -> 0 | AE49: =IF(U49+1>=$J$17,0,AE37*(1+Captura!$D$35)) -> 0 | AG49: =+(W49+AB49+AC49+AD49+AE49+AF49)*Captura!$C$19 -> 0 | AH49: 410.8648331 | AJ49: 980.5797054 | AK49: -410.8648331
B50: 22 | C50: 2028-01-06 | D50: =IF(B50<J$17,Captura!$L$16,0)+Resumen!$J$29+Resumen!$J$30 -> 980.5797054 | H50: 0 | K50: =IF(B50+1>=$J$17,0,K38*(1+Captura!$D$35)) -> 0 | L50: =IF(B50+1>=$J$17,0,L38*(1+Captura!$D$35)) -> 0 | M50: =IF(B50+1>=$J$17,0,M38*(1+Captura!$D$35)) -> 0 | O50: =IF(B50=J$17,Captura!$L$29,0) -> 0 | P50: =SUM(D50:F50,I50:N50)*Captura!$C$19 -> 156.8927529 | Q50: 1137.472458 | T50: 11 | U50: 22 | V50: 805.5824506 | X50: =+V49*Captura!$O$9/12 -> 16.00588531 | Y50: 394.8589478 | Z50: 410.8648331 | AA50: =IF(U50=J$17,Captura!$L$33,0) -> 0 | AC50: =IF(U50+1>=$J$17,0,AC38*(1+Captura!$D$35)) -> 0 | AD50: =IF(U50+1>=$J$17,0,AD38*(1+Captura!$D$35)) -> 0 | AE50: =IF(U50+1>=$J$17,0,AE38*(1+Captura!$D$35)) -> 0 | AG50: =+(W50+AB50+AC50+AD50+AE50+AF50)*Captura!$C$19 -> 0 | AH50: 410.8648331 | AJ50: 980.5797054 | AK50: -410.8648331
B51: 23 | C51: 2028-02-06 | D51: =IF(B51<J$17,Captura!$L$16,0)+Resumen!$J$29+Resumen!$J$30 -> 980.5797054 | H51: 0 | K51: =IF(B51+1>=$J$17,0,K39*(1+Captura!$D$35)) -> 0 | L51: =IF(B51+1>=$J$17,0,L39*(1+Captura!$D$35)) -> 0 | M51: =IF(B51+1>=$J$17,0,M39*(1+Captura!$D$35)) -> 0 | O51: =IF(B51=J$17,Captura!$L$29,0) -> 0 | P51: =SUM(D51:F51,I51:N51)*Captura!$C$19 -> 156.8927529 | Q51: 1137.472458 | T51: 12 | U51: 23 | V51: 405.4587169 | X51: =+V50*Captura!$O$9/12 -> 10.74109934 | Y51: 400.1237337 | Z51: 410.8648331 | AA51: =IF(U51=J$17,Captura!$L$33,0) -> 0 | AC51: =IF(U51+1>=$J$17,0,AC39*(1+Captura!$D$35)) -> 0 | AD51: =IF(U51+1>=$J$17,0,AD39*(1+Captura!$D$35)) -> 0 | AE51: =IF(U51+1>=$J$17,0,AE39*(1+Captura!$D$35)) -> 0 | AG51: =+(W51+AB51+AC51+AD51+AE51+AF51)*Captura!$C$19 -> 0 | AH51: 410.8648331 | AJ51: 980.5797054 | AK51: -410.8648331
B52: 24 | C52: 2028-03-06 | D52: =IF(B52<J$17,Captura!$L$16,0) -> 0 | H52: 0 | K52: =IF(B52+1>=$J$17,0,K40*(1+Captura!$D$35)) -> 0 | L52: =IF(B52+1>=$J$17,0,L40*(1+Captura!$D$35)) -> 0 | M52: =IF(B52+1>=$J$17,0,M40*(1+Captura!$D$35)) -> 0 | O52: =IF(B52=J$17,Captura!$L$29,0) -> 0 | P52: =SUM(D52:F52,I52:N52)*Captura!$C$19 -> 0 | Q52: 0 | T52: 1 | U52: 24 | V52: 3.97903932e-13 | X52: =+V51*Captura!$O$9/12 -> 5.406116225 | Y52: 405.4587169 | Z52: 410.8648331 | AA52: =IF(U52=J$17,Captura!$L$33,0) -> 0 | AC52: =IF(U52+1>=$J$17,0,AC40*(1+Captura!$D$35)) -> 0 | AD52: =IF(U52+1>=$J$17,0,AD40*(1+Captura!$D$35)) -> 0 | AE52: =IF(U52+1>=$J$17,0,AE40*(1+Captura!$D$35)) -> 0 | AG52: =+(W52+AB52+AC52+AD52+AE52+AF52)*Captura!$C$19 -> 0 | AH52: 410.8648331 | AJ52: 0 | AK52: -410.8648331
B53: 25 | C53: 2028-04-06 | D53: =IF(B53<J$17,Captura!$L$16,0) -> 0 | H53: 0 | K53: =IF(B53+1>=$J$17,0,K41*(1+Captura!$D$35)) -> 0 | L53: =IF(B53+1>=$J$17,0,L41*(1+Captura!$D$35)) -> 0 | M53: =IF(B53+1>=$J$17,0,M41*(1+Captura!$D$35)) -> 0 | O53: =IF(B53=J$17,Captura!$L$29,0) -> 0 | P53: =SUM(D53:F53,I53:N53)*Captura!$C$19 -> 0 | Q53: 0 | T53: 2 | U53: 25 | V53: 4.032093178e-13 | X53: =+V52*Captura!$O$9/12 -> 5.30538576e-15 | Y53: -5.30538576e-15 | Z53: 0 | AA53: =IF(U53=J$17,Captura!$L$33,0) -> 0 | AC53: =IF(U53+1>=$J$17,0,AC41*(1+Captura!$D$35)) -> 0 | AD53: =IF(U53+1>=$J$17,0,AD41*(1+Captura!$D$35)) -> 0 | AE53: =IF(U53+1>=$J$17,0,AE41*(1+Captura!$D$35)) -> 0 | AG53: =+(W53+AB53+AC53+AD53+AE53+AF53)*Captura!$C$19 -> 0 | AH53: 0 | AJ53: 0 | AK53: 0
B54: 26 | C54: 2028-05-06 | D54: =IF(B54<J$17,Captura!$L$16,0) -> 0 | H54: 0 | K54: =IF(B54+1>=$J$17,0,K42*(1+Captura!$D$35)) -> 0 | L54: =IF(B54+1>=$J$17,0,L42*(1+Captura!$D$35)) -> 0 | M54: =IF(B54+1>=$J$17,0,M42*(1+Captura!$D$35)) -> 0 | O54: =IF(B54=J$17,Captura!$L$29,0) -> 0 | P54: =SUM(D54:F54,I54:N54)*Captura!$C$19 -> 0 | Q54: 0 | T54: 3 | U54: 26 | V54: 4.08585442e-13 | X54: =+V53*Captura!$O$9/12 -> 5.376124237e-15 | Y54: -5.376124237e-15 | Z54: 0 | AA54: =IF(U54=J$17,Captura!$L$33,0) -> 0 | AC54: =IF(U54+1>=$J$17,0,AC42*(1+Captura!$D$35)) -> 0 | AD54: =IF(U54+1>=$J$17,0,AD42*(1+Captura!$D$35)) -> 0 | AE54: =IF(U54+1>=$J$17,0,AE42*(1+Captura!$D$35)) -> 0 | AG54: =+(W54+AB54+AC54+AD54+AE54+AF54)*Captura!$C$19 -> 0 | AH54: 0 | AJ54: 0 | AK54: 0
B55: 27 | C55: 2028-06-06 | D55: =IF(B55<J$17,Captura!$L$16,0) -> 0 | H55: 0 | K55: =IF(B55+1>=$J$17,0,K43*(1+Captura!$D$35)) -> 0 | L55: =IF(B55+1>=$J$17,0,L43*(1+Captura!$D$35)) -> 0 | M55: =IF(B55+1>=$J$17,0,M43*(1+Captura!$D$35)) -> 0 | O55: =IF(B55=J$17,Captura!$L$29,0) -> 0 | P55: =SUM(D55:F55,I55:N55)*Captura!$C$19 -> 0 | Q55: 0 | T55: 4 | U55: 27 | V55: 4.140332479e-13 | X55: =+V54*Captura!$O$9/12 -> 5.447805894e-15 | Y55: -5.447805894e-15 | Z55: 0 | AA55: =IF(U55=J$17,Captura!$L$33,0) -> 0 | AC55: =IF(U55+1>=$J$17,0,AC43*(1+Captura!$D$35)) -> 0 | AD55: =IF(U55+1>=$J$17,0,AD43*(1+Captura!$D$35)) -> 0 | AE55: =IF(U55+1>=$J$17,0,AE43*(1+Captura!$D$35)) -> 0 | AG55: =+(W55+AB55+AC55+AD55+AE55+AF55)*Captura!$C$19 -> 0 | AH55: 0 | AJ55: 0 | AK55: 0
B56: 28 | C56: 2028-07-06 | D56: =IF(B56<J$17,Captura!$L$16,0) -> 0 | H56: 0 | K56: =IF(B56+1>=$J$17,0,K44*(1+Captura!$D$35)) -> 0 | L56: =IF(B56+1>=$J$17,0,L44*(1+Captura!$D$35)) -> 0 | M56: =IF(B56+1>=$J$17,0,M44*(1+Captura!$D$35)) -> 0 | O56: =IF(B56=J$17,Captura!$L$29,0) -> 0 | P56: =SUM(D56:F56,I56:N56)*Captura!$C$19 -> 0 | Q56: 0 | T56: 5 | U56: 28 | V56: 4.195536912e-13 | X56: =+V55*Captura!$O$9/12 -> 5.520443306e-15 | Y56: -5.520443306e-15 | Z56: 0 | AA56: =IF(U56=J$17,Captura!$L$33,0) -> 0 | AC56: =IF(U56+1>=$J$17,0,AC44*(1+Captura!$D$35)) -> 0 | AD56: =IF(U56+1>=$J$17,0,AD44*(1+Captura!$D$35)) -> 0 | AE56: =IF(U56+1>=$J$17,0,AE44*(1+Captura!$D$35)) -> 0 | AG56: =+(W56+AB56+AC56+AD56+AE56+AF56)*Captura!$C$19 -> 0 | AH56: 0 | AJ56: 0 | AK56: 0
B57: 29 | C57: 2028-08-06 | D57: =IF(B57<J$17,Captura!$L$16,0) -> 0 | H57: 0 | K57: =IF(B57+1>=$J$17,0,K45*(1+Captura!$D$35)) -> 0 | L57: =IF(B57+1>=$J$17,0,L45*(1+Captura!$D$35)) -> 0 | M57: =IF(B57+1>=$J$17,0,M45*(1+Captura!$D$35)) -> 0 | O57: =IF(B57=J$17,Captura!$L$29,0) -> 0 | P57: =SUM(D57:F57,I57:N57)*Captura!$C$19 -> 0 | Q57: 0 | T57: 6 | U57: 29 | V57: 4.251477404e-13 | X57: =+V56*Captura!$O$9/12 -> 5.594049216e-15 | Y57: -5.594049216e-15 | Z57: 0 | AA57: =IF(U57=J$17,Captura!$L$33,0) -> 0 | AC57: =IF(U57+1>=$J$17,0,AC45*(1+Captura!$D$35)) -> 0 | AD57: =IF(U57+1>=$J$17,0,AD45*(1+Captura!$D$35)) -> 0 | AE57: =IF(U57+1>=$J$17,0,AE45*(1+Captura!$D$35)) -> 0 | AG57: =+(W57+AB57+AC57+AD57+AE57+AF57)*Captura!$C$19 -> 0 | AH57: 0 | AJ57: 0 | AK57: 0
B58: 30 | C58: 2028-09-06 | D58: =IF(B58<J$17,Captura!$L$16,0) -> 0 | H58: 0 | K58: =IF(B58+1>=$J$17,0,K46*(1+Captura!$D$35)) -> 0 | L58: =IF(B58+1>=$J$17,0,L46*(1+Captura!$D$35)) -> 0 | M58: =IF(B58+1>=$J$17,0,M46*(1+Captura!$D$35)) -> 0 | O58: =IF(B58=J$17,Captura!$L$29,0) -> 0 | P58: =SUM(D58:F58,I58:N58)*Captura!$C$19 -> 0 | Q58: 0 | T58: 7 | U58: 30 | V58: 4.30816377e-13 | X58: =+V57*Captura!$O$9/12 -> 5.668636539e-15 | Y58: -5.668636539e-15 | Z58: 0 | AA58: =IF(U58=J$17,Captura!$L$33,0) -> 0 | AC58: =IF(U58+1>=$J$17,0,AC46*(1+Captura!$D$35)) -> 0 | AD58: =IF(U58+1>=$J$17,0,AD46*(1+Captura!$D$35)) -> 0 | AE58: =IF(U58+1>=$J$17,0,AE46*(1+Captura!$D$35)) -> 0 | AG58: =+(W58+AB58+AC58+AD58+AE58+AF58)*Captura!$C$19 -> 0 | AH58: 0 | AJ58: 0 | AK58: 0
B59: 31 | C59: 2028-10-06 | D59: =IF(B59<J$17,Captura!$L$16,0) -> 0 | H59: 0 | K59: =IF(B59+1>=$J$17,0,K47*(1+Captura!$D$35)) -> 0 | L59: =IF(B59+1>=$J$17,0,L47*(1+Captura!$D$35)) -> 0 | M59: =IF(B59+1>=$J$17,0,M47*(1+Captura!$D$35)) -> 0 | O59: =IF(B59=J$17,Captura!$L$29,0) -> 0 | P59: =SUM(D59:F59,I59:N59)*Captura!$C$19 -> 0 | Q59: 0 | T59: 8 | U59: 31 | V59: 4.365605953e-13 | X59: =+V58*Captura!$O$9/12 -> 5.74421836e-15 | Y59: -5.74421836e-15 | Z59: 0 | AA59: =IF(U59=J$17,Captura!$L$33,0) -> 0 | AC59: =IF(U59+1>=$J$17,0,AC47*(1+Captura!$D$35)) -> 0 | AD59: =IF(U59+1>=$J$17,0,AD47*(1+Captura!$D$35)) -> 0 | AE59: =IF(U59+1>=$J$17,0,AE47*(1+Captura!$D$35)) -> 0 | AG59: =+(W59+AB59+AC59+AD59+AE59+AF59)*Captura!$C$19 -> 0 | AH59: 0 | AJ59: 0 | AK59: 0
B60: 32 | C60: 2028-11-06 | D60: =IF(B60<J$17,Captura!$L$16,0) -> 0 | H60: 0 | K60: =IF(B60+1>=$J$17,0,K48*(1+Captura!$D$35)) -> 0 | L60: =IF(B60+1>=$J$17,0,L48*(1+Captura!$D$35)) -> 0 | M60: =IF(B60+1>=$J$17,0,M48*(1+Captura!$D$35)) -> 0 | O60: =IF(B60=J$17,Captura!$L$29,0) -> 0 | P60: =SUM(D60:F60,I60:N60)*Captura!$C$19 -> 0 | Q60: 0 | T60: 9 | U60: 32 | V60: 4.423814033e-13 | X60: =+V59*Captura!$O$9/12 -> 5.820807938e-15 | Y60: -5.820807938e-15 | Z60: 0 | AA60: =IF(U60=J$17,Captura!$L$33,0) -> 0 | AC60: =IF(U60+1>=$J$17,0,AC48*(1+Captura!$D$35)) -> 0 | AD60: =IF(U60+1>=$J$17,0,AD48*(1+Captura!$D$35)) -> 0 | AE60: =IF(U60+1>=$J$17,0,AE48*(1+Captura!$D$35)) -> 0 | AG60: =+(W60+AB60+AC60+AD60+AE60+AF60)*Captura!$C$19 -> 0 | AH60: 0 | AJ60: 0 | AK60: 0
B61: 33 | C61: 2028-12-06 | D61: =IF(B61<J$17,Captura!$L$16,0) -> 0 | H61: 0 | K61: =IF(B61+1>=$J$17,0,K49*(1+Captura!$D$35)) -> 0 | L61: =IF(B61+1>=$J$17,0,L49*(1+Captura!$D$35)) -> 0 | M61: =IF(B61+1>=$J$17,0,M49*(1+Captura!$D$35)) -> 0 | O61: =IF(B61=J$17,Captura!$L$29,0) -> 0 | P61: =SUM(D61:F61,I61:N61)*Captura!$C$19 -> 0 | Q61: 0 | T61: 10 | U61: 33 | V61: 4.48279822e-13 | X61: =+V60*Captura!$O$9/12 -> 5.89841871e-15 | Y61: -5.89841871e-15 | Z61: 0 | AA61: =IF(U61=J$17,Captura!$L$33,0) -> 0 | AC61: =IF(U61+1>=$J$17,0,AC49*(1+Captura!$D$35)) -> 0 | AD61: =IF(U61+1>=$J$17,0,AD49*(1+Captura!$D$35)) -> 0 | AE61: =IF(U61+1>=$J$17,0,AE49*(1+Captura!$D$35)) -> 0 | AG61: =+(W61+AB61+AC61+AD61+AE61+AF61)*Captura!$C$19 -> 0 | AH61: 0 | AJ61: 0 | AK61: 0
B62: 34 | C62: 2029-01-06 | D62: =IF(B62<J$17,Captura!$L$16,0) -> 0 | H62: 0 | K62: =IF(B62+1>=$J$17,0,K50*(1+Captura!$D$35)) -> 0 | L62: =IF(B62+1>=$J$17,0,L50*(1+Captura!$D$35)) -> 0 | M62: =IF(B62+1>=$J$17,0,M50*(1+Captura!$D$35)) -> 0 | O62: =IF(B62=J$17,Captura!$L$29,0) -> 0 | P62: =SUM(D62:F62,I62:N62)*Captura!$C$19 -> 0 | Q62: 0 | T62: 11 | U62: 34 | V62: 4.542568863e-13 | X62: =+V61*Captura!$O$9/12 -> 5.977064293e-15 | Y62: -5.977064293e-15 | Z62: 0 | AA62: =IF(U62=J$17,Captura!$L$33,0) -> 0 | AC62: =IF(U62+1>=$J$17,0,AC50*(1+Captura!$D$35)) -> 0 | AD62: =IF(U62+1>=$J$17,0,AD50*(1+Captura!$D$35)) -> 0 | AE62: =IF(U62+1>=$J$17,0,AE50*(1+Captura!$D$35)) -> 0 | AG62: =+(W62+AB62+AC62+AD62+AE62+AF62)*Captura!$C$19 -> 0 | AH62: 0 | AJ62: 0 | AK62: 0
B63: 35 | C63: 2029-02-06 | D63: =IF(B63<J$17,Captura!$L$16,0) -> 0 | H63: 0 | K63: =IF(B63+1>=$J$17,0,K51*(1+Captura!$D$35)) -> 0 | L63: =IF(B63+1>=$J$17,0,L51*(1+Captura!$D$35)) -> 0 | M63: =IF(B63+1>=$J$17,0,M51*(1+Captura!$D$35)) -> 0 | O63: =IF(B63=J$17,Captura!$L$29,0) -> 0 | P63: =SUM(D63:F63,I63:N63)*Captura!$C$19 -> 0 | Q63: 0 | T63: 12 | U63: 35 | V63: 4.603136448e-13 | X63: =+V62*Captura!$O$9/12 -> 6.056758484e-15 | Y63: -6.056758484e-15 | Z63: 0 | AA63: =IF(U63=J$17,Captura!$L$33,0) -> 0 | AC63: =IF(U63+1>=$J$17,0,AC51*(1+Captura!$D$35)) -> 0 | AD63: =IF(U63+1>=$J$17,0,AD51*(1+Captura!$D$35)) -> 0 | AE63: =IF(U63+1>=$J$17,0,AE51*(1+Captura!$D$35)) -> 0 | AG63: =+(W63+AB63+AC63+AD63+AE63+AF63)*Captura!$C$19 -> 0 | AH63: 0 | AJ63: 0 | AK63: 0
B64: 36 | C64: 2029-03-06 | D64: =IF(B64<J$17,Captura!$L$16,0) -> 0 | H64: 0 | K64: =IF(B64+1>=$J$17,0,K52*(1+Captura!$D$35)) -> 0 | L64: =IF(B64+1>=$J$17,0,L52*(1+Captura!$D$35)) -> 0 | M64: =IF(B64+1>=$J$17,0,M52*(1+Captura!$D$35)) -> 0 | O64: =IF(B64=J$17,Captura!$L$29,0) -> 0 | P64: =SUM(D64:F64,I64:N64)*Captura!$C$19 -> 0 | Q64: 0 | T64: 1 | U64: 36 | V64: 4.6645116e-13 | X64: =+V63*Captura!$O$9/12 -> 6.137515264e-15 | Y64: -6.137515264e-15 | Z64: 0 | AA64: =IF(U64=J$17,Captura!$L$33,0) -> 0 | AC64: =IF(U64+1>=$J$17,0,AC52*(1+Captura!$D$35)) -> 0 | AD64: =IF(U64+1>=$J$17,0,AD52*(1+Captura!$D$35)) -> 0 | AE64: =IF(U64+1>=$J$17,0,AE52*(1+Captura!$D$35)) -> 0 | AG64: =+(W64+AB64+AC64+AD64+AE64+AF64)*Captura!$C$19 -> 0 | AH64: 0 | AJ64: 0 | AK64: 0
B65: 37 | C65: 2029-04-06 | D65: =IF(B65<J$17,Captura!$L$16,0) -> 0 | H65: 0 | K65: =IF(B65+1>=$J$17,0,K53*(1+Captura!$D$35)) -> 0 | L65: =IF(B65+1>=$J$17,0,L53*(1+Captura!$D$35)) -> 0 | M65: =IF(B65+1>=$J$17,0,M53*(1+Captura!$D$35)) -> 0 | O65: =IF(B65=J$17,Captura!$L$29,0) -> 0 | P65: =SUM(D65:F65,I65:N65)*Captura!$C$19 -> 0 | Q65: 0 | T65: 2 | U65: 37 | V65: 4.726705088e-13 | X65: =+V64*Captura!$O$9/12 -> 6.2193488e-15 | Y65: -6.2193488e-15 | Z65: 0 | AA65: =IF(U65=J$17,Captura!$L$33,0) -> 0 | AC65: =IF(U65+1>=$J$17,0,AC53*(1+Captura!$D$35)) -> 0 | AD65: =IF(U65+1>=$J$17,0,AD53*(1+Captura!$D$35)) -> 0 | AE65: =IF(U65+1>=$J$17,0,AE53*(1+Captura!$D$35)) -> 0 | AG65: =+(W65+AB65+AC65+AD65+AE65+AF65)*Captura!$C$19 -> 0 | AH65: 0 | AJ65: 0 | AK65: 0
B66: 38 | C66: 2029-05-06 | D66: =IF(B66<J$17,Captura!$L$16,0) -> 0 | H66: 0 | K66: =IF(B66+1>=$J$17,0,K54*(1+Captura!$D$35)) -> 0 | L66: =IF(B66+1>=$J$17,0,L54*(1+Captura!$D$35)) -> 0 | M66: =IF(B66+1>=$J$17,0,M54*(1+Captura!$D$35)) -> 0 | O66: =IF(B66=J$17,Captura!$L$29,0) -> 0 | P66: =SUM(D66:F66,I66:N66)*Captura!$C$19 -> 0 | Q66: 0 | T66: 3 | U66: 38 | V66: 4.789727823e-13 | X66: =+V65*Captura!$O$9/12 -> 6.302273451e-15 | Y66: -6.302273451e-15 | Z66: 0 | AA66: =IF(U66=J$17,Captura!$L$33,0) -> 0 | AC66: =IF(U66+1>=$J$17,0,AC54*(1+Captura!$D$35)) -> 0 | AD66: =IF(U66+1>=$J$17,0,AD54*(1+Captura!$D$35)) -> 0 | AE66: =IF(U66+1>=$J$17,0,AE54*(1+Captura!$D$35)) -> 0 | AG66: =+(W66+AB66+AC66+AD66+AE66+AF66)*Captura!$C$19 -> 0 | AH66: 0 | AJ66: 0 | AK66: 0
B67: 39 | C67: 2029-06-06 | D67: =IF(B67<J$17,Captura!$L$16,0) -> 0 | H67: 0 | K67: =IF(B67+1>=$J$17,0,K55*(1+Captura!$D$35)) -> 0 | L67: =IF(B67+1>=$J$17,0,L55*(1+Captura!$D$35)) -> 0 | M67: =IF(B67+1>=$J$17,0,M55*(1+Captura!$D$35)) -> 0 | O67: =IF(B67=J$17,Captura!$L$29,0) -> 0 | P67: =SUM(D67:F67,I67:N67)*Captura!$C$19 -> 0 | Q67: 0 | T67: 4 | U67: 39 | V67: 4.85359086e-13 | X67: =+V66*Captura!$O$9/12 -> 6.386303764e-15 | Y67: -6.386303764e-15 | Z67: 0 | AA67: =IF(U67=J$17,Captura!$L$33,0) -> 0 | AC67: =IF(U67+1>=$J$17,0,AC55*(1+Captura!$D$35)) -> 0 | AD67: =IF(U67+1>=$J$17,0,AD55*(1+Captura!$D$35)) -> 0 | AE67: =IF(U67+1>=$J$17,0,AE55*(1+Captura!$D$35)) -> 0 | AG67: =+(W67+AB67+AC67+AD67+AE67+AF67)*Captura!$C$19 -> 0 | AH67: 0 | AJ67: 0 | AK67: 0
B68: 40 | C68: 2029-07-06 | D68: =IF(B68<J$17,Captura!$L$16,0) -> 0 | H68: 0 | K68: =IF(B68+1>=$J$17,0,K56*(1+Captura!$D$35)) -> 0 | L68: =IF(B68+1>=$J$17,0,L56*(1+Captura!$D$35)) -> 0 | M68: =IF(B68+1>=$J$17,0,M56*(1+Captura!$D$35)) -> 0 | O68: =IF(B68=J$17,Captura!$L$29,0) -> 0 | P68: =SUM(D68:F68,I68:N68)*Captura!$C$19 -> 0 | Q68: 0 | T68: 5 | U68: 40 | V68: 4.918305405e-13 | X68: =+V67*Captura!$O$9/12 -> 6.471454481e-15 | Y68: -6.471454481e-15 | Z68: 0 | AA68: =IF(U68=J$17,Captura!$L$33,0) -> 0 | AC68: =IF(U68+1>=$J$17,0,AC56*(1+Captura!$D$35)) -> 0 | AD68: =IF(U68+1>=$J$17,0,AD56*(1+Captura!$D$35)) -> 0 | AE68: =IF(U68+1>=$J$17,0,AE56*(1+Captura!$D$35)) -> 0 | AG68: =+(W68+AB68+AC68+AD68+AE68+AF68)*Captura!$C$19 -> 0 | AH68: 0 | AJ68: 0 | AK68: 0
B69: 41 | C69: 2029-08-06 | D69: =IF(B69<J$17,Captura!$L$16,0) -> 0 | H69: 0 | K69: =IF(B69+1>=$J$17,0,K57*(1+Captura!$D$35)) -> 0 | L69: =IF(B69+1>=$J$17,0,L57*(1+Captura!$D$35)) -> 0 | M69: =IF(B69+1>=$J$17,0,M57*(1+Captura!$D$35)) -> 0 | O69: =IF(B69=J$17,Captura!$L$29,0) -> 0 | P69: =SUM(D69:F69,I69:N69)*Captura!$C$19 -> 0 | Q69: 0 | T69: 6 | U69: 41 | V69: 4.983882811e-13 | X69: =+V68*Captura!$O$9/12 -> 6.55774054e-15 | Y69: -6.55774054e-15 | Z69: 0 | AA69: =IF(U69=J$17,Captura!$L$33,0) -> 0 | AC69: =IF(U69+1>=$J$17,0,AC57*(1+Captura!$D$35)) -> 0 | AD69: =IF(U69+1>=$J$17,0,AD57*(1+Captura!$D$35)) -> 0 | AE69: =IF(U69+1>=$J$17,0,AE57*(1+Captura!$D$35)) -> 0 | AG69: =+(W69+AB69+AC69+AD69+AE69+AF69)*Captura!$C$19 -> 0 | AH69: 0 | AJ69: 0 | AK69: 0
B70: 42 | C70: 2029-09-06 | D70: =IF(B70<J$17,Captura!$L$16,0) -> 0 | H70: 0 | K70: =IF(B70+1>=$J$17,0,K58*(1+Captura!$D$35)) -> 0 | L70: =IF(B70+1>=$J$17,0,L58*(1+Captura!$D$35)) -> 0 | M70: =IF(B70+1>=$J$17,0,M58*(1+Captura!$D$35)) -> 0 | O70: =IF(B70=J$17,Captura!$L$29,0) -> 0 | P70: =SUM(D70:F70,I70:N70)*Captura!$C$19 -> 0 | Q70: 0 | T70: 7 | U70: 42 | V70: 5.050334581e-13 | X70: =+V69*Captura!$O$9/12 -> 6.645177081e-15 | Y70: -6.645177081e-15 | Z70: 0 | AA70: =IF(U70=J$17,Captura!$L$33,0) -> 0 | AC70: =IF(U70+1>=$J$17,0,AC58*(1+Captura!$D$35)) -> 0 | AD70: =IF(U70+1>=$J$17,0,AD58*(1+Captura!$D$35)) -> 0 | AE70: =IF(U70+1>=$J$17,0,AE58*(1+Captura!$D$35)) -> 0 | AG70: =+(W70+AB70+AC70+AD70+AE70+AF70)*Captura!$C$19 -> 0 | AH70: 0 | AJ70: 0 | AK70: 0
B71: 43 | C71: 2029-10-06 | D71: =IF(B71<J$17,Captura!$L$16,0) -> 0 | H71: 0 | K71: =IF(B71+1>=$J$17,0,K59*(1+Captura!$D$35)) -> 0 | L71: =IF(B71+1>=$J$17,0,L59*(1+Captura!$D$35)) -> 0 | M71: =IF(B71+1>=$J$17,0,M59*(1+Captura!$D$35)) -> 0 | O71: =IF(B71=J$17,Captura!$L$29,0) -> 0 | P71: =SUM(D71:F71,I71:N71)*Captura!$C$19 -> 0 | Q71: 0 | T71: 8 | U71: 43 | V71: 5.117672376e-13 | X71: =+V70*Captura!$O$9/12 -> 6.733779442e-15 | Y71: -6.733779442e-15 | Z71: 0 | AA71: =IF(U71=J$17,Captura!$L$33,0) -> 0 | AC71: =IF(U71+1>=$J$17,0,AC59*(1+Captura!$D$35)) -> 0 | AD71: =IF(U71+1>=$J$17,0,AD59*(1+Captura!$D$35)) -> 0 | AE71: =IF(U71+1>=$J$17,0,AE59*(1+Captura!$D$35)) -> 0 | AG71: =+(W71+AB71+AC71+AD71+AE71+AF71)*Captura!$C$19 -> 0 | AH71: 0 | AJ71: 0 | AK71: 0
B72: 44 | C72: 2029-11-06 | D72: =IF(B72<J$17,Captura!$L$16,0) -> 0 | H72: 0 | K72: =IF(B72+1>=$J$17,0,K60*(1+Captura!$D$35)) -> 0 | L72: =IF(B72+1>=$J$17,0,L60*(1+Captura!$D$35)) -> 0 | M72: =IF(B72+1>=$J$17,0,M60*(1+Captura!$D$35)) -> 0 | O72: =IF(B72=J$17,Captura!$L$29,0) -> 0 | P72: =SUM(D72:F72,I72:N72)*Captura!$C$19 -> 0 | Q72: 0 | T72: 9 | U72: 44 | V72: 5.185908008e-13 | X72: =+V71*Captura!$O$9/12 -> 6.823563168e-15 | Y72: -6.823563168e-15 | Z72: 0 | AA72: =IF(U72=J$17,Captura!$L$33,0) -> 0 | AC72: =IF(U72+1>=$J$17,0,AC60*(1+Captura!$D$35)) -> 0 | AD72: =IF(U72+1>=$J$17,0,AD60*(1+Captura!$D$35)) -> 0 | AE72: =IF(U72+1>=$J$17,0,AE60*(1+Captura!$D$35)) -> 0 | AG72: =+(W72+AB72+AC72+AD72+AE72+AF72)*Captura!$C$19 -> 0 | AH72: 0 | AJ72: 0 | AK72: 0
B73: 45 | C73: 2029-12-06 | D73: =IF(B73<J$17,Captura!$L$16,0) -> 0 | H73: 0 | K73: =IF(B73+1>=$J$17,0,K61*(1+Captura!$D$35)) -> 0 | L73: =IF(B73+1>=$J$17,0,L61*(1+Captura!$D$35)) -> 0 | M73: =IF(B73+1>=$J$17,0,M61*(1+Captura!$D$35)) -> 0 | O73: =IF(B73=J$17,Captura!$L$29,0) -> 0 | P73: =SUM(D73:F73,I73:N73)*Captura!$C$19 -> 0 | Q73: 0 | T73: 10 | U73: 45 | V73: 5.255053448e-13 | X73: =+V72*Captura!$O$9/12 -> 6.91454401e-15 | Y73: -6.91454401e-15 | Z73: 0 | AA73: =IF(U73=J$17,Captura!$L$33,0) -> 0 | AC73: =IF(U73+1>=$J$17,0,AC61*(1+Captura!$D$35)) -> 0 | AD73: =IF(U73+1>=$J$17,0,AD61*(1+Captura!$D$35)) -> 0 | AE73: =IF(U73+1>=$J$17,0,AE61*(1+Captura!$D$35)) -> 0 | AG73: =+(W73+AB73+AC73+AD73+AE73+AF73)*Captura!$C$19 -> 0 | AH73: 0 | AJ73: 0 | AK73: 0
B74: 46 | C74: 2030-01-06 | D74: =IF(B74<J$17,Captura!$L$16,0) -> 0 | H74: 0 | K74: =IF(B74+1>=$J$17,0,K62*(1+Captura!$D$35)) -> 0 | L74: =IF(B74+1>=$J$17,0,L62*(1+Captura!$D$35)) -> 0 | M74: =IF(B74+1>=$J$17,0,M62*(1+Captura!$D$35)) -> 0 | O74: =IF(B74=J$17,Captura!$L$29,0) -> 0 | P74: =SUM(D74:F74,I74:N74)*Captura!$C$19 -> 0 | Q74: 0 | T74: 11 | U74: 46 | V74: 5.325120827e-13 | X74: =+V73*Captura!$O$9/12 -> 7.00673793e-15 | Y74: -7.00673793e-15 | Z74: 0 | AA74: =IF(U74=J$17,Captura!$L$33,0) -> 0 | AC74: =IF(U74+1>=$J$17,0,AC62*(1+Captura!$D$35)) -> 0 | AD74: =IF(U74+1>=$J$17,0,AD62*(1+Captura!$D$35)) -> 0 | AE74: =IF(U74+1>=$J$17,0,AE62*(1+Captura!$D$35)) -> 0 | AG74: =+(W74+AB74+AC74+AD74+AE74+AF74)*Captura!$C$19 -> 0 | AH74: 0 | AJ74: 0 | AK74: 0
B75: 47 | C75: 2030-02-06 | D75: =IF(B75<J$17,Captura!$L$16,0) -> 0 | H75: 0 | K75: =IF(B75+1>=$J$17,0,K63*(1+Captura!$D$35)) -> 0 | L75: =IF(B75+1>=$J$17,0,L63*(1+Captura!$D$35)) -> 0 | M75: =IF(B75+1>=$J$17,0,M63*(1+Captura!$D$35)) -> 0 | O75: =IF(B75=J$17,Captura!$L$29,0) -> 0 | P75: =SUM(D75:F75,I75:N75)*Captura!$C$19 -> 0 | Q75: 0 | T75: 12 | U75: 47 | V75: 5.396122438e-13 | X75: =+V74*Captura!$O$9/12 -> 7.100161103e-15 | Y75: -7.100161103e-15 | Z75: 0 | AA75: =IF(U75=J$17,Captura!$L$33,0) -> 0 | AC75: =IF(U75+1>=$J$17,0,AC63*(1+Captura!$D$35)) -> 0 | AD75: =IF(U75+1>=$J$17,0,AD63*(1+Captura!$D$35)) -> 0 | AE75: =IF(U75+1>=$J$17,0,AE63*(1+Captura!$D$35)) -> 0 | AG75: =+(W75+AB75+AC75+AD75+AE75+AF75)*Captura!$C$19 -> 0 | AH75: 0 | AJ75: 0 | AK75: 0
B76: 48 | C76: 2030-03-06 | D76: =IF(B76<J$17,Captura!$L$16,0) -> 0 | H76: 0 | K76: =IF(B76+1>=$J$17,0,K64*(1+Captura!$D$35)) -> 0 | L76: =IF(B76+1>=$J$17,0,L64*(1+Captura!$D$35)) -> 0 | M76: =IF(B76+1>=$J$17,0,M64*(1+Captura!$D$35)) -> 0 | O76: =IF(B76=J$17,Captura!$L$29,0) -> 0 | P76: =SUM(D76:F76,I76:N76)*Captura!$C$19 -> 0 | Q76: 0 | T76: 1 | U76: 48 | V76: 5.468070737e-13 | X76: =+V75*Captura!$O$9/12 -> 7.194829917e-15 | Y76: -7.194829917e-15 | Z76: 0 | AA76: =IF(U76=J$17,Captura!$L$33,0) -> 0 | AC76: =IF(U76+1>=$J$17,0,AC64*(1+Captura!$D$35)) -> 0 | AD76: =IF(U76+1>=$J$17,0,AD64*(1+Captura!$D$35)) -> 0 | AE76: =IF(U76+1>=$J$17,0,AE64*(1+Captura!$D$35)) -> 0 | AG76: =+(W76+AB76+AC76+AD76+AE76+AF76)*Captura!$C$19 -> 0 | AH76: 0 | AJ76: 0 | AK76: 0
B77: 49 | C77: 2030-04-06 | D77: =IF(B77<J$17,Captura!$L$16,0) -> 0 | H77: 0 | K77: =IF(B77+1>=$J$17,0,K65*(1+Captura!$D$35)) -> 0 | L77: =IF(B77+1>=$J$17,0,L65*(1+Captura!$D$35)) -> 0 | M77: =IF(B77+1>=$J$17,0,M65*(1+Captura!$D$35)) -> 0 | O77: =IF(B77=J$17,Captura!$L$29,0) -> 0 | P77: =SUM(D77:F77,I77:N77)*Captura!$C$19 -> 0 | Q77: 0 | T77: 2 | U77: 49 | V77: 5.540978347e-13 | X77: =+V76*Captura!$O$9/12 -> 7.290760983e-15 | Y77: -7.290760983e-15 | Z77: 0 | AA77: =IF(U77=J$17,Captura!$L$33,0) -> 0 | AC77: =IF(U77+1>=$J$17,0,AC65*(1+Captura!$D$35)) -> 0 | AD77: =IF(U77+1>=$J$17,0,AD65*(1+Captura!$D$35)) -> 0 | AE77: =IF(U77+1>=$J$17,0,AE65*(1+Captura!$D$35)) -> 0 | AG77: =+(W77+AB77+AC77+AD77+AE77+AF77)*Captura!$C$19 -> 0 | AH77: 0 | AJ77: 0 | AK77: 0
B78: 50 | C78: 2030-05-06 | D78: =IF(B78<J$17,Captura!$L$16,0) -> 0 | H78: 0 | K78: =IF(B78+1>=$J$17,0,K66*(1+Captura!$D$35)) -> 0 | L78: =IF(B78+1>=$J$17,0,L66*(1+Captura!$D$35)) -> 0 | M78: =IF(B78+1>=$J$17,0,M66*(1+Captura!$D$35)) -> 0 | O78: =IF(B78=J$17,Captura!$L$29,0) -> 0 | P78: =SUM(D78:F78,I78:N78)*Captura!$C$19 -> 0 | Q78: 0 | T78: 3 | U78: 50 | V78: 5.614858058e-13 | X78: =+V77*Captura!$O$9/12 -> 7.387971129e-15 | Y78: -7.387971129e-15 | Z78: 0 | AA78: =IF(U78=J$17,Captura!$L$33,0) -> 0 | AC78: =IF(U78+1>=$J$17,0,AC66*(1+Captura!$D$35)) -> 0 | AD78: =IF(U78+1>=$J$17,0,AD66*(1+Captura!$D$35)) -> 0 | AE78: =IF(U78+1>=$J$17,0,AE66*(1+Captura!$D$35)) -> 0 | AG78: =+(W78+AB78+AC78+AD78+AE78+AF78)*Captura!$C$19 -> 0 | AH78: 0 | AJ78: 0 | AK78: 0
B79: 51 | C79: 2030-06-06 | D79: =IF(B79<J$17,Captura!$L$16,0) -> 0 | H79: 0 | K79: =IF(B79+1>=$J$17,0,K67*(1+Captura!$D$35)) -> 0 | L79: =IF(B79+1>=$J$17,0,L67*(1+Captura!$D$35)) -> 0 | M79: =IF(B79+1>=$J$17,0,M67*(1+Captura!$D$35)) -> 0 | O79: =IF(B79=J$17,Captura!$L$29,0) -> 0 | P79: =SUM(D79:F79,I79:N79)*Captura!$C$19 -> 0 | Q79: 0 | T79: 4 | U79: 51 | V79: 5.689722832e-13 | X79: =+V78*Captura!$O$9/12 -> 7.486477411e-15 | Y79: -7.486477411e-15 | Z79: 0 | AA79: =IF(U79=J$17,Captura!$L$33,0) -> 0 | AC79: =IF(U79+1>=$J$17,0,AC67*(1+Captura!$D$35)) -> 0 | AD79: =IF(U79+1>=$J$17,0,AD67*(1+Captura!$D$35)) -> 0 | AE79: =IF(U79+1>=$J$17,0,AE67*(1+Captura!$D$35)) -> 0 | AG79: =+(W79+AB79+AC79+AD79+AE79+AF79)*Captura!$C$19 -> 0 | AH79: 0 | AJ79: 0 | AK79: 0
B80: 52 | C80: 2030-07-06 | D80: =IF(B80<J$17,Captura!$L$16,0) -> 0 | H80: 0 | K80: =IF(B80+1>=$J$17,0,K68*(1+Captura!$D$35)) -> 0 | L80: =IF(B80+1>=$J$17,0,L68*(1+Captura!$D$35)) -> 0 | M80: =IF(B80+1>=$J$17,0,M68*(1+Captura!$D$35)) -> 0 | O80: =IF(B80=J$17,Captura!$L$29,0) -> 0 | P80: =SUM(D80:F80,I80:N80)*Captura!$C$19 -> 0 | Q80: 0 | T80: 5 | U80: 52 | V80: 5.765585803e-13 | X80: =+V79*Captura!$O$9/12 -> 7.58629711e-15 | Y80: -7.58629711e-15 | Z80: 0 | AA80: =IF(U80=J$17,Captura!$L$33,0) -> 0 | AC80: =IF(U80+1>=$J$17,0,AC68*(1+Captura!$D$35)) -> 0 | AD80: =IF(U80+1>=$J$17,0,AD68*(1+Captura!$D$35)) -> 0 | AE80: =IF(U80+1>=$J$17,0,AE68*(1+Captura!$D$35)) -> 0 | AG80: =+(W80+AB80+AC80+AD80+AE80+AF80)*Captura!$C$19 -> 0 | AH80: 0 | AJ80: 0 | AK80: 0
B81: 53 | C81: 2030-08-06 | D81: =IF(B81<J$17,Captura!$L$16,0) -> 0 | H81: 0 | K81: =IF(B81+1>=$J$17,0,K69*(1+Captura!$D$35)) -> 0 | L81: =IF(B81+1>=$J$17,0,L69*(1+Captura!$D$35)) -> 0 | M81: =IF(B81+1>=$J$17,0,M69*(1+Captura!$D$35)) -> 0 | O81: =IF(B81=J$17,Captura!$L$29,0) -> 0 | P81: =SUM(D81:F81,I81:N81)*Captura!$C$19 -> 0 | Q81: 0 | T81: 6 | U81: 53 | V81: 5.842460281e-13 | X81: =+V80*Captura!$O$9/12 -> 7.687447738e-15 | Y81: -7.687447738e-15 | Z81: 0 | AA81: =IF(U81=J$17,Captura!$L$33,0) -> 0 | AC81: =IF(U81+1>=$J$17,0,AC69*(1+Captura!$D$35)) -> 0 | AD81: =IF(U81+1>=$J$17,0,AD69*(1+Captura!$D$35)) -> 0 | AE81: =IF(U81+1>=$J$17,0,AE69*(1+Captura!$D$35)) -> 0 | AG81: =+(W81+AB81+AC81+AD81+AE81+AF81)*Captura!$C$19 -> 0 | AH81: 0 | AJ81: 0 | AK81: 0
B82: 54 | C82: 2030-09-06 | D82: =IF(B82<J$17,Captura!$L$16,0) -> 0 | H82: 0 | K82: =IF(B82+1>=$J$17,0,K70*(1+Captura!$D$35)) -> 0 | L82: =IF(B82+1>=$J$17,0,L70*(1+Captura!$D$35)) -> 0 | M82: =IF(B82+1>=$J$17,0,M70*(1+Captura!$D$35)) -> 0 | O82: =IF(B82=J$17,Captura!$L$29,0) -> 0 | P82: =SUM(D82:F82,I82:N82)*Captura!$C$19 -> 0 | Q82: 0 | T82: 7 | U82: 54 | V82: 5.920359751e-13 | X82: =+V81*Captura!$O$9/12 -> 7.789947041e-15 | Y82: -7.789947041e-15 | Z82: 0 | AA82: =IF(U82=J$17,Captura!$L$33,0) -> 0 | AC82: =IF(U82+1>=$J$17,0,AC70*(1+Captura!$D$35)) -> 0 | AD82: =IF(U82+1>=$J$17,0,AD70*(1+Captura!$D$35)) -> 0 | AE82: =IF(U82+1>=$J$17,0,AE70*(1+Captura!$D$35)) -> 0 | AG82: =+(W82+AB82+AC82+AD82+AE82+AF82)*Captura!$C$19 -> 0 | AH82: 0 | AJ82: 0 | AK82: 0
B83: 55 | C83: 2030-10-06 | D83: =IF(B83<J$17,Captura!$L$16,0) -> 0 | H83: 0 | K83: =IF(B83+1>=$J$17,0,K71*(1+Captura!$D$35)) -> 0 | L83: =IF(B83+1>=$J$17,0,L71*(1+Captura!$D$35)) -> 0 | M83: =IF(B83+1>=$J$17,0,M71*(1+Captura!$D$35)) -> 0 | O83: =IF(B83=J$17,Captura!$L$29,0) -> 0 | P83: =SUM(D83:F83,I83:N83)*Captura!$C$19 -> 0 | Q83: 0 | T83: 8 | U83: 55 | V83: 5.999297881e-13 | X83: =+V82*Captura!$O$9/12 -> 7.893813002e-15 | Y83: -7.893813002e-15 | Z83: 0 | AA83: =IF(U83=J$17,Captura!$L$33,0) -> 0 | AC83: =IF(U83+1>=$J$17,0,AC71*(1+Captura!$D$35)) -> 0 | AD83: =IF(U83+1>=$J$17,0,AD71*(1+Captura!$D$35)) -> 0 | AE83: =IF(U83+1>=$J$17,0,AE71*(1+Captura!$D$35)) -> 0 | AG83: =+(W83+AB83+AC83+AD83+AE83+AF83)*Captura!$C$19 -> 0 | AH83: 0 | AJ83: 0 | AK83: 0
B84: 56 | C84: 2030-11-06 | D84: =IF(B84<J$17,Captura!$L$16,0) -> 0 | H84: 0 | K84: =IF(B84+1>=$J$17,0,K72*(1+Captura!$D$35)) -> 0 | L84: =IF(B84+1>=$J$17,0,L72*(1+Captura!$D$35)) -> 0 | M84: =IF(B84+1>=$J$17,0,M72*(1+Captura!$D$35)) -> 0 | O84: =IF(B84=J$17,Captura!$L$29,0) -> 0 | P84: =SUM(D84:F84,I84:N84)*Captura!$C$19 -> 0 | Q84: 0 | T84: 9 | U84: 56 | V84: 6.07928852e-13 | X84: =+V83*Captura!$O$9/12 -> 7.999063842e-15 | Y84: -7.999063842e-15 | Z84: 0 | AA84: =IF(U84=J$17,Captura!$L$33,0) -> 0 | AC84: =IF(U84+1>=$J$17,0,AC72*(1+Captura!$D$35)) -> 0 | AD84: =IF(U84+1>=$J$17,0,AD72*(1+Captura!$D$35)) -> 0 | AE84: =IF(U84+1>=$J$17,0,AE72*(1+Captura!$D$35)) -> 0 | AG84: =+(W84+AB84+AC84+AD84+AE84+AF84)*Captura!$C$19 -> 0 | AH84: 0 | AJ84: 0 | AK84: 0
B85: 57 | C85: 2030-12-06 | D85: =IF(B85<J$17,Captura!$L$16,0) -> 0 | H85: 0 | K85: =IF(B85+1>=$J$17,0,K73*(1+Captura!$D$35)) -> 0 | L85: =IF(B85+1>=$J$17,0,L73*(1+Captura!$D$35)) -> 0 | M85: =IF(B85+1>=$J$17,0,M73*(1+Captura!$D$35)) -> 0 | O85: =IF(B85=J$17,Captura!$L$29,0) -> 0 | P85: =SUM(D85:F85,I85:N85)*Captura!$C$19 -> 0 | Q85: 0 | T85: 10 | U85: 57 | V85: 6.1603457e-13 | X85: =+V84*Captura!$O$9/12 -> 8.105718026e-15 | Y85: -8.105718026e-15 | Z85: 0 | AA85: =IF(U85=J$17,Captura!$L$33,0) -> 0 | AC85: =IF(U85+1>=$J$17,0,AC73*(1+Captura!$D$35)) -> 0 | AD85: =IF(U85+1>=$J$17,0,AD73*(1+Captura!$D$35)) -> 0 | AE85: =IF(U85+1>=$J$17,0,AE73*(1+Captura!$D$35)) -> 0 | AG85: =+(W85+AB85+AC85+AD85+AE85+AF85)*Captura!$C$19 -> 0 | AH85: 0 | AJ85: 0 | AK85: 0
B86: 58 | C86: 2031-01-06 | D86: =IF(B86<J$17,Captura!$L$16,0) -> 0 | H86: 0 | K86: =IF(B86+1>=$J$17,0,K74*(1+Captura!$D$35)) -> 0 | L86: =IF(B86+1>=$J$17,0,L74*(1+Captura!$D$35)) -> 0 | M86: =IF(B86+1>=$J$17,0,M74*(1+Captura!$D$35)) -> 0 | O86: =IF(B86=J$17,Captura!$L$29,0) -> 0 | P86: =SUM(D86:F86,I86:N86)*Captura!$C$19 -> 0 | Q86: 0 | T86: 11 | U86: 58 | V86: 6.242483643e-13 | X86: =+V85*Captura!$O$9/12 -> 8.213794267e-15 | Y86: -8.213794267e-15 | Z86: 0 | AA86: =IF(U86=J$17,Captura!$L$33,0) -> 0 | AC86: =IF(U86+1>=$J$17,0,AC74*(1+Captura!$D$35)) -> 0 | AD86: =IF(U86+1>=$J$17,0,AD74*(1+Captura!$D$35)) -> 0 | AE86: =IF(U86+1>=$J$17,0,AE74*(1+Captura!$D$35)) -> 0 | AG86: =+(W86+AB86+AC86+AD86+AE86+AF86)*Captura!$C$19 -> 0 | AH86: 0 | AJ86: 0 | AK86: 0
B87: 59 | C87: 2031-02-06 | D87: =IF(B87<J$17,Captura!$L$16,0) -> 0 | H87: 0 | K87: =IF(B87+1>=$J$17,0,K75*(1+Captura!$D$35)) -> 0 | L87: =IF(B87+1>=$J$17,0,L75*(1+Captura!$D$35)) -> 0 | M87: =IF(B87+1>=$J$17,0,M75*(1+Captura!$D$35)) -> 0 | O87: =IF(B87=J$17,Captura!$L$29,0) -> 0 | P87: =SUM(D87:F87,I87:N87)*Captura!$C$19 -> 0 | Q87: 0 | T87: 12 | U87: 59 | V87: 6.325716758e-13 | X87: =+V86*Captura!$O$9/12 -> 8.323311523e-15 | Y87: -8.323311523e-15 | Z87: 0 | AA87: =IF(U87=J$17,Captura!$L$33,0) -> 0 | AC87: =IF(U87+1>=$J$17,0,AC75*(1+Captura!$D$35)) -> 0 | AD87: =IF(U87+1>=$J$17,0,AD75*(1+Captura!$D$35)) -> 0 | AE87: =IF(U87+1>=$J$17,0,AE75*(1+Captura!$D$35)) -> 0 | AG87: =+(W87+AB87+AC87+AD87+AE87+AF87)*Captura!$C$19 -> 0 | AH87: 0 | AJ87: 0 | AK87: 0
B88: 60 | C88: 2031-03-06 | D88: =IF(B88<J$17,Captura!$L$16,0) -> 0 | H88: 0 | K88: =IF(B88+1>=$J$17,0,K76*(1+Captura!$D$35)) -> 0 | L88: =IF(B88+1>=$J$17,0,L76*(1+Captura!$D$35)) -> 0 | M88: =IF(B88+1>=$J$17,0,M76*(1+Captura!$D$35)) -> 0 | O88: =IF(B88=J$17,Captura!$L$29,0) -> 0 | P88: =SUM(D88:F88,I88:N88)*Captura!$C$19 -> 0 | Q88: 0 | T88: 1 | U88: 60 | V88: 6.410059648e-13 | X88: =+V87*Captura!$O$9/12 -> 8.43428901e-15 | Y88: -8.43428901e-15 | Z88: 0 | AA88: =IF(U88=J$17,Captura!$L$33,0) -> 0 | AC88: =IF(U88+1>=$J$17,0,AC76*(1+Captura!$D$35)) -> 0 | AD88: =IF(U88+1>=$J$17,0,AD76*(1+Captura!$D$35)) -> 0 | AE88: =IF(U88+1>=$J$17,0,AE76*(1+Captura!$D$35)) -> 0 | AG88: =+(W88+AB88+AC88+AD88+AE88+AF88)*Captura!$C$19 -> 0 | AH88: 0 | AJ88: 0 | AK88: 0
B92: Notas:
B93: 1. Esta cotización no es una autorización y no representa ninguna obligación para Leasing Mobile de México, S. A. de C. V.
B94: 2. La información descrita en el presente documento está sujeta a cambios sin previo aviso.
B95: 3. Esta cotización no considera gastos que el equipo requiera para su adquisición, uso o mantenimiento.
B96: 4. Las rentas en depósito serán devueltas al cumplimiento de todas las obligaciones contractauales del Arrendatario.
B107: __________________________________
B108: Leasing Mobile de Mexico, SA de CV
B109: =+Captura!D31 -> xxxx
B110: =+Captura!D32 -> xxxx
B111: =+Captura!D33 -> xxxx

Sheet Plazo 3 (hidden)
B7: Cotización
B8: Arrendamiento Puro
P10: =+Captura!N3 -> 2026-03-06
B12: Cliente: | E12: =+Captura!D7 -> SOPORTE LOGISTICO EXPRESS | J12: Teléfono | K12: =+Captura!D9 -> 0
B13: Atención: | E13: =+Captura!D8 -> A QUIEN CORRESPONDA | J13: E-mail | K13: =+Captura!D10 -> 0
Q14: =+Captura!O40 -> v. 20240220
B17: Tipo de equipo | E17: =+Captura!T7 -> Vehículo utilitario | H17: Plazo del arrendamiento | J17: =+Captura!M13 -> 36 | L17: Gestoría y Registro | N17: =+Captura!F23 -> Pago único | AJ17: Valor presente de flujos
B18: Estado del equipo | E18: =+Captura!T17 -> Nuevo | H18: No. de rentas en depósito | J18: =+Captura!K8 -> 0 | L18: Equipo de geolocalizacióon | N18: =+Captura!F24 -> Pago único | Q18: =+Captura!M36 -> 0.2881162056 | AJ18: =NPV(Captura!$D$35/12,AJ29:AJ88)+AJ28 -> 13642.94522 | AK18: =NPV(Captura!$D$35/12,AK29:AK88)+AK28 -> -7724.382293
B19: Descripción | E19: =+Captura!D15 -> LAP TOP DELL PRO 14", 16 GB | H19: Comisión de apertura | J19: =+Captura!K9 -> 0.03 | L19: Seguro de daños | N19: =+Captura!T26 -> Pago en renta | AJ19: Tasa Interna de Retorno
H20: Anticipo | J20: =+Captura!K10 -> 733.5064655 | L20: Placas y Tenencia | N20: =+Captura!T33 -> Pago anual | AJ20: =IRR(AJ28:AJ88,0.01)*12 -> 0.628177773 | AK20: =IRR(AK28:AK88,0.01)*12 -> 0.6617678037
H21: Residual estimado | J21: Valor mercado | L21: Servicio de geolocalización | N21: =+Captura!T40 -> Pago anual | Q21: =+Captura!M37 -> Positivo | AJ21: Capital Req. | AK21: =+Captura!M34 -> 6847.42569
B22: Valor factura sin IVA | E22: =+Captura!G18 -> 14670.12931 | L22: =+Captura!I25 -> Otro | N22: =+Captura!F28 -> 0 | AJ22: VP / CR | AK22: =+(AJ18+AK18)/AK21 -> 0.8643486167
B23: IVA | E23: =+Captura!G19 -> 2347.22069 | Q23: Regresar
B24: Valor factua con IVA | E24: =+Captura!G20 -> 17017.35 | AJ24: Indicador anualizado | AK24: =+AK22/J17*12 -> 0.2881162056
B26: Periodo | C26: Mes | D26: Renta | E26: Anticipo | F26: Comisión de apertura | G26: Rentas en depósito | H26: Devolución de rentas en depósito | I26: Gestoría y Registro | J26: Equipo de geo localización | K26: Seguro de daños | L26: Placas y Tenencia | M26: Servicio de geo localización | N26: =+L22 -> Otro | O26: Residual estimado | P26: IVA | Q26: TOTAL | T26: Mes | U26: Periodo | V26: Fondeo | W26: Comisión de apertura | X26: Intereses | Y26: Capital | Z26: Pago | AA26: Bullet | AB26: Equipo de geo localización | AC26: Seguro de daños | AD26: Placas y Tenencia | AE26: Servicio de geo localización | AF26: Otro | AG26: IVA | AH26: TOTAL | AJ26: Flujo Activo sin IVA | AK26: Flujo Pasivo sin IVA
B28: 0 | C28: =+P10 -> 2026-03-06 | D28: =+Captura!M16+Resumen!K29+Resumen!K30 -> 798.6031232 | E28: =+Captura!K10 -> 733.5064655 | F28: =+Captura!M18 -> 440.1038793 | G28: =+Captura!M19 -> 0 | H28: =IF(B28=J$17,-G$28,0) -> 0 | I28: =+Captura!M20 -> 0 | J28: =+Captura!M21 -> 0 | K28: =+Captura!M22 -> 0 | L28: =+Captura!M23 -> 0 | M28: =+Captura!M24 -> 0 | N28: =+Captura!M25 -> 0 | O28: =IF(B28=J$17,Captura!$M$29,0) -> 0 | P28: =SUM(D28:F28,I28:N28)*Captura!$C$19 -> 315.5541549 | Q28: =SUM(D28:P28)-O28 -> 2287.767623 | T28: 1 | U28: =+B28 -> 0 | V28: =+Captura!O8 -> 8391.313966 | W28: =+Captura!M31 -> 127.630125 | AB28: =+J28 -> 0 | AC28: =+Captura!G25 -> 2000 | AD28: =+Captura!G26 -> 0 | AE28: =+Captura!G27 -> 0 | AF28: =+N28 -> 0 | AG28: =+(W28+AB28+AC28+AD28+AE28+AF28)*Captura!$C$19 -> 340.42082 | AH28: =SUM(W28,Z28:AG28) -> 2468.050945 | AJ28: =-E22+(Q28-P28)+O28 -> -12697.91584 | AK28: =+V28-(AH28-AG28) -> 6263.683841
B29: 1 | C29: =EDATE(C28,1) -> 2026-04-06 | D29: =IF(B29<J$17,Captura!$M$16,0)+Resumen!$K$29+Resumen!$K$30 -> 798.6031232 | H29: 0 | K29: 0 | L29: 0 | M29: 0 | O29: =IF(B29=J$17,Captura!$M$29,0) -> 0 | P29: =SUM(D29:F29,I29:N29)*Captura!$C$19 -> 127.7764997 | Q29: =SUM(D29:P29)-O29 -> 926.3796229 | T29: =IF(T28=12,1,T28+1) -> 2 | U29: =+B29 -> 1 | V29: =+V28-Y29-AA29 -> 8208.184449 | X29: =+V28*Captura!$O$9/12 -> 111.8841862 | Y29: =+Z29-X29 -> 183.1295161 | Z29: =+Captura!M30 -> 295.0137023 | AA29: =IF(U29=J$17,Captura!$M$33,0) -> 0 | AC29: 0 | AD29: 0 | AE29: 0 | AG29: =+(W29+AB29+AC29+AD29+AE29+AF29)*Captura!$C$19 -> 0 | AH29: =SUM(W29,Z29:AG29) -> 295.0137023 | AJ29: =Q29-P29+O29 -> 798.6031232 | AK29: =-(AH29-AG29) -> -295.0137023
B30: 2 | C30: =EDATE(C29,1) -> 2026-05-06 | D30: =IF(B30<J$17,Captura!$M$16,0)+Resumen!$K$29+Resumen!$K$30 -> 798.6031232 | H30: 0 | K30: 0 | L30: 0 | M30: 0 | O30: =IF(B30=J$17,Captura!$M$29,0) -> 0 | P30: =SUM(D30:F30,I30:N30)*Captura!$C$19 -> 127.7764997 | Q30: 926.3796229 | T30: =IF(T29=12,1,T29+1) -> 3 | U30: 2 | V30: =+V29-Y30-AA30 -> 8022.613206 | X30: =+V29*Captura!$O$9/12 -> 109.4424593 | Y30: =+Z30-X30 -> 185.571243 | Z30: =IF(U30>J$17,0,Z29) -> 295.0137023 | AA30: =IF(U30=J$17,Captura!$M$33,0) -> 0 | AC30: 0 | AD30: 0 | AE30: 0 | AG30: =+(W30+AB30+AC30+AD30+AE30+AF30)*Captura!$C$19 -> 0 | AH30: 295.0137023 | AJ30: =Q30-P30+O30 -> 798.6031232 | AK30: =-(AH30-AG30) -> -295.0137023
B31: 3 | C31: 2026-06-06 | D31: =IF(B31<J$17,Captura!$M$16,0)+Resumen!$K$29+Resumen!$K$30 -> 798.6031232 | H31: 0 | K31: 0 | L31: 0 | M31: 0 | O31: =IF(B31=J$17,Captura!$M$29,0) -> 0 | P31: =SUM(D31:F31,I31:N31)*Captura!$C$19 -> 127.7764997 | Q31: 926.3796229 | T31: 4 | U31: 3 | V31: 7834.56768 | X31: =+V30*Captura!$O$9/12 -> 106.9681761 | Y31: 188.0455262 | Z31: =IF(U31>J$17,0,Z30) -> 295.0137023 | AA31: =IF(U31=J$17,Captura!$M$33,0) -> 0 | AC31: 0 | AD31: 0 | AE31: 0 | AG31: =+(W31+AB31+AC31+AD31+AE31+AF31)*Captura!$C$19 -> 0 | AH31: 295.0137023 | AJ31: 798.6031232 | AK31: -295.0137023
B32: 4 | C32: 2026-07-06 | D32: =IF(B32<J$17,Captura!$M$16,0)+Resumen!$K$29+Resumen!$K$30 -> 798.6031232 | H32: 0 | K32: 0 | L32: 0 | M32: 0 | O32: =IF(B32=J$17,Captura!$M$29,0) -> 0 | P32: =SUM(D32:F32,I32:N32)*Captura!$C$19 -> 127.7764997 | Q32: 926.3796229 | T32: 5 | U32: 4 | V32: 7644.01488 | X32: =+V31*Captura!$O$9/12 -> 104.4609024 | Y32: 190.5527999 | Z32: 295.0137023 | AA32: =IF(U32=J$17,Captura!$M$33,0) -> 0 | AC32: 0 | AD32: 0 | AE32: 0 | AG32: =+(W32+AB32+AC32+AD32+AE32+AF32)*Captura!$C$19 -> 0 | AH32: 295.0137023 | AJ32: 798.6031232 | AK32: -295.0137023
B33: 5 | C33: 2026-08-06 | D33: =IF(B33<J$17,Captura!$M$16,0)+Resumen!$K$29+Resumen!$K$30 -> 798.6031232 | H33: 0 | K33: 0 | L33: 0 | M33: 0 | O33: =IF(B33=J$17,Captura!$M$29,0) -> 0 | P33: =SUM(D33:F33,I33:N33)*Captura!$C$19 -> 127.7764997 | Q33: 926.3796229 | T33: 6 | U33: 5 | V33: 7450.921376 | X33: =+V32*Captura!$O$9/12 -> 101.9201984 | Y33: 193.0935039 | Z33: 295.0137023 | AA33: =IF(U33=J$17,Captura!$M$33,0) -> 0 | AC33: 0 | AD33: 0 | AE33: 0 | AG33: =+(W33+AB33+AC33+AD33+AE33+AF33)*Captura!$C$19 -> 0 | AH33: 295.0137023 | AJ33: 798.6031232 | AK33: -295.0137023
B34: 6 | C34: 2026-09-06 | D34: =IF(B34<J$17,Captura!$M$16,0)+Resumen!$K$29+Resumen!$K$30 -> 798.6031232 | H34: 0 | K34: 0 | L34: 0 | M34: 0 | O34: =IF(B34=J$17,Captura!$M$29,0) -> 0 | P34: =SUM(D34:F34,I34:N34)*Captura!$C$19 -> 127.7764997 | Q34: 926.3796229 | T34: 7 | U34: 6 | V34: 7255.253292 | X34: =+V33*Captura!$O$9/12 -> 99.34561835 | Y34: 195.668084 | Z34: 295.0137023 | AA34: =IF(U34=J$17,Captura!$M$33,0) -> 0 | AC34: 0 | AD34: 0 | AE34: 0 | AG34: =+(W34+AB34+AC34+AD34+AE34+AF34)*Captura!$C$19 -> 0 | AH34: 295.0137023 | AJ34: 798.6031232 | AK34: -295.0137023
B35: 7 | C35: 2026-10-06 | D35: =IF(B35<J$17,Captura!$M$16,0)+Resumen!$K$29+Resumen!$K$30 -> 798.6031232 | H35: 0 | K35: 0 | L35: 0 | M35: 0 | O35: =IF(B35=J$17,Captura!$M$29,0) -> 0 | P35: =SUM(D35:F35,I35:N35)*Captura!$C$19 -> 127.7764997 | Q35: 926.3796229 | T35: 8 | U35: 7 | V35: 7056.976301 | X35: =+V34*Captura!$O$9/12 -> 96.73671057 | Y35: 198.2769917 | Z35: 295.0137023 | AA35: =IF(U35=J$17,Captura!$M$33,0) -> 0 | AC35: 0 | AD35: 0 | AE35: 0 | AG35: =+(W35+AB35+AC35+AD35+AE35+AF35)*Captura!$C$19 -> 0 | AH35: 295.0137023 | AJ35: 798.6031232 | AK35: -295.0137023
B36: 8 | C36: 2026-11-06 | D36: =IF(B36<J$17,Captura!$M$16,0)+Resumen!$K$29+Resumen!$K$30 -> 798.6031232 | H36: 0 | K36: 0 | L36: 0 | M36: 0 | O36: =IF(B36=J$17,Captura!$M$29,0) -> 0 | P36: =SUM(D36:F36,I36:N36)*Captura!$C$19 -> 127.7764997 | Q36: 926.3796229 | T36: 9 | U36: 8 | V36: 6856.055616 | X36: =+V35*Captura!$O$9/12 -> 94.09301734 | Y36: 200.920685 | Z36: 295.0137023 | AA36: =IF(U36=J$17,Captura!$M$33,0) -> 0 | AC36: 0 | AD36: 0 | AE36: 0 | AG36: =+(W36+AB36+AC36+AD36+AE36+AF36)*Captura!$C$19 -> 0 | AH36: 295.0137023 | AJ36: 798.6031232 | AK36: -295.0137023
B37: 9 | C37: 2026-12-06 | D37: =IF(B37<J$17,Captura!$M$16,0)+Resumen!$K$29+Resumen!$K$30 -> 798.6031232 | H37: 0 | K37: 0 | L37: 0 | M37: 0 | O37: =IF(B37=J$17,Captura!$M$29,0) -> 0 | P37: =SUM(D37:F37,I37:N37)*Captura!$C$19 -> 127.7764997 | Q37: 926.3796229 | T37: 10 | U37: 9 | V37: 6652.455988 | X37: =+V36*Captura!$O$9/12 -> 91.41407488 | Y37: 203.5996274 | Z37: 295.0137023 | AA37: =IF(U37=J$17,Captura!$M$33,0) -> 0 | AC37: 0 | AD37: 0 | AE37: 0 | AG37: =+(W37+AB37+AC37+AD37+AE37+AF37)*Captura!$C$19 -> 0 | AH37: 295.0137023 | AJ37: 798.6031232 | AK37: -295.0137023
B38: 10 | C38: 2027-01-06 | D38: =IF(B38<J$17,Captura!$M$16,0)+Resumen!$K$29+Resumen!$K$30 -> 798.6031232 | H38: 0 | K38: 0 | L38: 0 | M38: 0 | O38: =IF(B38=J$17,Captura!$M$29,0) -> 0 | P38: =SUM(D38:F38,I38:N38)*Captura!$C$19 -> 127.7764997 | Q38: 926.3796229 | T38: 11 | U38: 10 | V38: 6446.141699 | X38: =+V37*Captura!$O$9/12 -> 88.69941318 | Y38: 206.3142891 | Z38: 295.0137023 | AA38: =IF(U38=J$17,Captura!$M$33,0) -> 0 | AC38: 0 | AD38: 0 | AE38: 0 | AG38: =+(W38+AB38+AC38+AD38+AE38+AF38)*Captura!$C$19 -> 0 | AH38: 295.0137023 | AJ38: 798.6031232 | AK38: -295.0137023
B39: 11 | C39: 2027-02-06 | D39: =IF(B39<J$17,Captura!$M$16,0)+Resumen!$K$29+Resumen!$K$30 -> 798.6031232 | H39: 0 | K39: 0 | L39: 0 | M39: 0 | O39: =IF(B39=J$17,Captura!$M$29,0) -> 0 | P39: =SUM(D39:F39,I39:N39)*Captura!$C$19 -> 127.7764997 | Q39: 926.3796229 | T39: 12 | U39: 11 | V39: 6237.076553 | X39: =+V38*Captura!$O$9/12 -> 85.94855599 | Y39: 209.0651463 | Z39: 295.0137023 | AA39: =IF(U39=J$17,Captura!$M$33,0) -> 0 | AC39: 0 | AD39: 0 | AE39: 0 | AG39: =+(W39+AB39+AC39+AD39+AE39+AF39)*Captura!$C$19 -> 0 | AH39: 295.0137023 | AJ39: 798.6031232 | AK39: -295.0137023
B40: 12 | C40: 2027-03-06 | D40: =IF(B40<J$17,Captura!$M$16,0)+Resumen!$K$29+Resumen!$K$30 -> 798.6031232 | H40: 0 | K40: =IF(B40+1>=$J$17,0,K28*(1+Captura!$D$35)) -> 0 | L40: =IF(B40+1>=$J$17,0,L28*(1+Captura!$D$35)) -> 0 | M40: =IF(B40+1>=$J$17,0,M28*(1+Captura!$D$35)) -> 0 | O40: =IF(B40=J$17,Captura!$M$29,0) -> 0 | P40: =SUM(D40:F40,I40:N40)*Captura!$C$19 -> 127.7764997 | Q40: 926.3796229 | T40: 1 | U40: 12 | V40: 6025.223871 | X40: =+V39*Captura!$O$9/12 -> 83.16102071 | Y40: 211.8526816 | Z40: 295.0137023 | AA40: =IF(U40=J$17,Captura!$M$33,0) -> 0 | AC40: =IF(U40+1>=$J$17,0,AC28*(1+Captura!$D$35)) -> 2080 | AD40: =IF(U40+1>=$J$17,0,AD28*(1+Captura!$D$35)) -> 0 | AE40: =IF(U40+1>=$J$17,0,AE28*(1+Captura!$D$35)) -> 0 | AG40: =+(W40+AB40+AC40+AD40+AE40+AF40)*Captura!$C$19 -> 332.8 | AH40: 2707.813702 | AJ40: 798.6031232 | AK40: -2375.013702
B41: 13 | C41: 2027-04-06 | D41: =IF(B41<J$17,Captura!$M$16,0)+Resumen!$K$29+Resumen!$K$30 -> 798.6031232 | H41: 0 | K41: =IF(B41+1>=$J$17,0,K29*(1+Captura!$D$35)) -> 0 | L41: =IF(B41+1>=$J$17,0,L29*(1+Captura!$D$35)) -> 0 | M41: =IF(B41+1>=$J$17,0,M29*(1+Captura!$D$35)) -> 0 | O41: =IF(B41=J$17,Captura!$M$29,0) -> 0 | P41: =SUM(D41:F41,I41:N41)*Captura!$C$19 -> 127.7764997 | Q41: 926.3796229 | T41: 2 | U41: 13 | V41: 5810.546487 | X41: =+V40*Captura!$O$9/12 -> 80.33631828 | Y41: 214.677384 | Z41: 295.0137023 | AA41: =IF(U41=J$17,Captura!$M$33,0) -> 0 | AC41: =IF(U41+1>=$J$17,0,AC29*(1+Captura!$D$35)) -> 0 | AD41: =IF(U41+1>=$J$17,0,AD29*(1+Captura!$D$35)) -> 0 | AE41: =IF(U41+1>=$J$17,0,AE29*(1+Captura!$D$35)) -> 0 | AG41: =+(W41+AB41+AC41+AD41+AE41+AF41)*Captura!$C$19 -> 0 | AH41: 295.0137023 | AJ41: 798.6031232 | AK41: -295.0137023
B42: 14 | C42: 2027-05-06 | D42: =IF(B42<J$17,Captura!$M$16,0)+Resumen!$K$29+Resumen!$K$30 -> 798.6031232 | H42: 0 | K42: =IF(B42+1>=$J$17,0,K30*(1+Captura!$D$35)) -> 0 | L42: =IF(B42+1>=$J$17,0,L30*(1+Captura!$D$35)) -> 0 | M42: =IF(B42+1>=$J$17,0,M30*(1+Captura!$D$35)) -> 0 | O42: =IF(B42=J$17,Captura!$M$29,0) -> 0 | P42: =SUM(D42:F42,I42:N42)*Captura!$C$19 -> 127.7764997 | Q42: 926.3796229 | T42: 3 | U42: 14 | V42: 5593.006738 | X42: =+V41*Captura!$O$9/12 -> 77.47395316 | Y42: 217.5397491 | Z42: 295.0137023 | AA42: =IF(U42=J$17,Captura!$M$33,0) -> 0 | AC42: =IF(U42+1>=$J$17,0,AC30*(1+Captura!$D$35)) -> 0 | AD42: =IF(U42+1>=$J$17,0,AD30*(1+Captura!$D$35)) -> 0 | AE42: =IF(U42+1>=$J$17,0,AE30*(1+Captura!$D$35)) -> 0 | AG42: =+(W42+AB42+AC42+AD42+AE42+AF42)*Captura!$C$19 -> 0 | AH42: 295.0137023 | AJ42: 798.6031232 | AK42: -295.0137023
B43: 15 | C43: 2027-06-06 | D43: =IF(B43<J$17,Captura!$M$16,0)+Resumen!$K$29+Resumen!$K$30 -> 798.6031232 | H43: 0 | K43: =IF(B43+1>=$J$17,0,K31*(1+Captura!$D$35)) -> 0 | L43: =IF(B43+1>=$J$17,0,L31*(1+Captura!$D$35)) -> 0 | M43: =IF(B43+1>=$J$17,0,M31*(1+Captura!$D$35)) -> 0 | O43: =IF(B43=J$17,Captura!$M$29,0) -> 0 | P43: =SUM(D43:F43,I43:N43)*Captura!$C$19 -> 127.7764997 | Q43: 926.3796229 | T43: 4 | U43: 15 | V43: 5372.566459 | X43: =+V42*Captura!$O$9/12 -> 74.57342318 | Y43: 220.4402791 | Z43: 295.0137023 | AA43: =IF(U43=J$17,Captura!$M$33,0) -> 0 | AC43: =IF(U43+1>=$J$17,0,AC31*(1+Captura!$D$35)) -> 0 | AD43: =IF(U43+1>=$J$17,0,AD31*(1+Captura!$D$35)) -> 0 | AE43: =IF(U43+1>=$J$17,0,AE31*(1+Captura!$D$35)) -> 0 | AG43: =+(W43+AB43+AC43+AD43+AE43+AF43)*Captura!$C$19 -> 0 | AH43: 295.0137023 | AJ43: 798.6031232 | AK43: -295.0137023
B44: 16 | C44: 2027-07-06 | D44: =IF(B44<J$17,Captura!$M$16,0)+Resumen!$K$29+Resumen!$K$30 -> 798.6031232 | H44: 0 | K44: =IF(B44+1>=$J$17,0,K32*(1+Captura!$D$35)) -> 0 | L44: =IF(B44+1>=$J$17,0,L32*(1+Captura!$D$35)) -> 0 | M44: =IF(B44+1>=$J$17,0,M32*(1+Captura!$D$35)) -> 0 | O44: =IF(B44=J$17,Captura!$M$29,0) -> 0 | P44: =SUM(D44:F44,I44:N44)*Captura!$C$19 -> 127.7764997 | Q44: 926.3796229 | T44: 5 | U44: 16 | V44: 5149.186976 | X44: =+V43*Captura!$O$9/12 -> 71.63421945 | Y44: 223.3794829 | Z44: 295.0137023 | AA44: =IF(U44=J$17,Captura!$M$33,0) -> 0 | AC44: =IF(U44+1>=$J$17,0,AC32*(1+Captura!$D$35)) -> 0 | AD44: =IF(U44+1>=$J$17,0,AD32*(1+Captura!$D$35)) -> 0 | AE44: =IF(U44+1>=$J$17,0,AE32*(1+Captura!$D$35)) -> 0 | AG44: =+(W44+AB44+AC44+AD44+AE44+AF44)*Captura!$C$19 -> 0 | AH44: 295.0137023 | AJ44: 798.6031232 | AK44: -295.0137023
B45: 17 | C45: 2027-08-06 | D45: =IF(B45<J$17,Captura!$M$16,0)+Resumen!$K$29+Resumen!$K$30 -> 798.6031232 | H45: 0 | K45: =IF(B45+1>=$J$17,0,K33*(1+Captura!$D$35)) -> 0 | L45: =IF(B45+1>=$J$17,0,L33*(1+Captura!$D$35)) -> 0 | M45: =IF(B45+1>=$J$17,0,M33*(1+Captura!$D$35)) -> 0 | O45: =IF(B45=J$17,Captura!$M$29,0) -> 0 | P45: =SUM(D45:F45,I45:N45)*Captura!$C$19 -> 127.7764997 | Q45: 926.3796229 | T45: 6 | U45: 17 | V45: 4922.8291 | X45: =+V44*Captura!$O$9/12 -> 68.65582635 | Y45: 226.357876 | Z45: 295.0137023 | AA45: =IF(U45=J$17,Captura!$M$33,0) -> 0 | AC45: =IF(U45+1>=$J$17,0,AC33*(1+Captura!$D$35)) -> 0 | AD45: =IF(U45+1>=$J$17,0,AD33*(1+Captura!$D$35)) -> 0 | AE45: =IF(U45+1>=$J$17,0,AE33*(1+Captura!$D$35)) -> 0 | AG45: =+(W45+AB45+AC45+AD45+AE45+AF45)*Captura!$C$19 -> 0 | AH45: 295.0137023 | AJ45: 798.6031232 | AK45: -295.0137023
B46: 18 | C46: 2027-09-06 | D46: =IF(B46<J$17,Captura!$M$16,0)+Resumen!$K$29+Resumen!$K$30 -> 798.6031232 | H46: 0 | K46: =IF(B46+1>=$J$17,0,K34*(1+Captura!$D$35)) -> 0 | L46: =IF(B46+1>=$J$17,0,L34*(1+Captura!$D$35)) -> 0 | M46: =IF(B46+1>=$J$17,0,M34*(1+Captura!$D$35)) -> 0 | O46: =IF(B46=J$17,Captura!$M$29,0) -> 0 | P46: =SUM(D46:F46,I46:N46)*Captura!$C$19 -> 127.7764997 | Q46: 926.3796229 | T46: 7 | U46: 18 | V46: 4693.453119 | X46: =+V45*Captura!$O$9/12 -> 65.63772134 | Y46: 229.375981 | Z46: 295.0137023 | AA46: =IF(U46=J$17,Captura!$M$33,0) -> 0 | AC46: =IF(U46+1>=$J$17,0,AC34*(1+Captura!$D$35)) -> 0 | AD46: =IF(U46+1>=$J$17,0,AD34*(1+Captura!$D$35)) -> 0 | AE46: =IF(U46+1>=$J$17,0,AE34*(1+Captura!$D$35)) -> 0 | AG46: =+(W46+AB46+AC46+AD46+AE46+AF46)*Captura!$C$19 -> 0 | AH46: 295.0137023 | AJ46: 798.6031232 | AK46: -295.0137023
B47: 19 | C47: 2027-10-06 | D47: =IF(B47<J$17,Captura!$M$16,0)+Resumen!$K$29+Resumen!$K$30 -> 798.6031232 | H47: 0 | K47: =IF(B47+1>=$J$17,0,K35*(1+Captura!$D$35)) -> 0 | L47: =IF(B47+1>=$J$17,0,L35*(1+Captura!$D$35)) -> 0 | M47: =IF(B47+1>=$J$17,0,M35*(1+Captura!$D$35)) -> 0 | O47: =IF(B47=J$17,Captura!$M$29,0) -> 0 | P47: =SUM(D47:F47,I47:N47)*Captura!$C$19 -> 127.7764997 | Q47: 926.3796229 | T47: 8 | U47: 19 | V47: 4461.018792 | X47: =+V46*Captura!$O$9/12 -> 62.57937492 | Y47: 232.4343274 | Z47: 295.0137023 | AA47: =IF(U47=J$17,Captura!$M$33,0) -> 0 | AC47: =IF(U47+1>=$J$17,0,AC35*(1+Captura!$D$35)) -> 0 | AD47: =IF(U47+1>=$J$17,0,AD35*(1+Captura!$D$35)) -> 0 | AE47: =IF(U47+1>=$J$17,0,AE35*(1+Captura!$D$35)) -> 0 | AG47: =+(W47+AB47+AC47+AD47+AE47+AF47)*Captura!$C$19 -> 0 | AH47: 295.0137023 | AJ47: 798.6031232 | AK47: -295.0137023
B48: 20 | C48: 2027-11-06 | D48: =IF(B48<J$17,Captura!$M$16,0)+Resumen!$K$29+Resumen!$K$30 -> 798.6031232 | H48: 0 | K48: =IF(B48+1>=$J$17,0,K36*(1+Captura!$D$35)) -> 0 | L48: =IF(B48+1>=$J$17,0,L36*(1+Captura!$D$35)) -> 0 | M48: =IF(B48+1>=$J$17,0,M36*(1+Captura!$D$35)) -> 0 | O48: =IF(B48=J$17,Captura!$M$29,0) -> 0 | P48: =SUM(D48:F48,I48:N48)*Captura!$C$19 -> 127.7764997 | Q48: 926.3796229 | T48: 9 | U48: 20 | V48: 4225.48534 | X48: =+V47*Captura!$O$9/12 -> 59.48025056 | Y48: 235.5334517 | Z48: 295.0137023 | AA48: =IF(U48=J$17,Captura!$M$33,0) -> 0 | AC48: =IF(U48+1>=$J$17,0,AC36*(1+Captura!$D$35)) -> 0 | AD48: =IF(U48+1>=$J$17,0,AD36*(1+Captura!$D$35)) -> 0 | AE48: =IF(U48+1>=$J$17,0,AE36*(1+Captura!$D$35)) -> 0 | AG48: =+(W48+AB48+AC48+AD48+AE48+AF48)*Captura!$C$19 -> 0 | AH48: 295.0137023 | AJ48: 798.6031232 | AK48: -295.0137023
B49: 21 | C49: 2027-12-06 | D49: =IF(B49<J$17,Captura!$M$16,0)+Resumen!$K$29+Resumen!$K$30 -> 798.6031232 | H49: 0 | K49: =IF(B49+1>=$J$17,0,K37*(1+Captura!$D$35)) -> 0 | L49: =IF(B49+1>=$J$17,0,L37*(1+Captura!$D$35)) -> 0 | M49: =IF(B49+1>=$J$17,0,M37*(1+Captura!$D$35)) -> 0 | O49: =IF(B49=J$17,Captura!$M$29,0) -> 0 | P49: =SUM(D49:F49,I49:N49)*Captura!$C$19 -> 127.7764997 | Q49: 926.3796229 | T49: 10 | U49: 21 | V49: 3986.811442 | X49: =+V48*Captura!$O$9/12 -> 56.33980453 | Y49: 238.6738978 | Z49: 295.0137023 | AA49: =IF(U49=J$17,Captura!$M$33,0) -> 0 | AC49: =IF(U49+1>=$J$17,0,AC37*(1+Captura!$D$35)) -> 0 | AD49: =IF(U49+1>=$J$17,0,AD37*(1+Captura!$D$35)) -> 0 | AE49: =IF(U49+1>=$J$17,0,AE37*(1+Captura!$D$35)) -> 0 | AG49: =+(W49+AB49+AC49+AD49+AE49+AF49)*Captura!$C$19 -> 0 | AH49: 295.0137023 | AJ49: 798.6031232 | AK49: -295.0137023
B50: 22 | C50: 2028-01-06 | D50: =IF(B50<J$17,Captura!$M$16,0)+Resumen!$K$29+Resumen!$K$30 -> 798.6031232 | H50: 0 | K50: =IF(B50+1>=$J$17,0,K38*(1+Captura!$D$35)) -> 0 | L50: =IF(B50+1>=$J$17,0,L38*(1+Captura!$D$35)) -> 0 | M50: =IF(B50+1>=$J$17,0,M38*(1+Captura!$D$35)) -> 0 | O50: =IF(B50=J$17,Captura!$M$29,0) -> 0 | P50: =SUM(D50:F50,I50:N50)*Captura!$C$19 -> 127.7764997 | Q50: 926.3796229 | T50: 11 | U50: 22 | V50: 3744.955226 | X50: =+V49*Captura!$O$9/12 -> 53.1574859 | Y50: 241.8562164 | Z50: 295.0137023 | AA50: =IF(U50=J$17,Captura!$M$33,0) -> 0 | AC50: =IF(U50+1>=$J$17,0,AC38*(1+Captura!$D$35)) -> 0 | AD50: =IF(U50+1>=$J$17,0,AD38*(1+Captura!$D$35)) -> 0 | AE50: =IF(U50+1>=$J$17,0,AE38*(1+Captura!$D$35)) -> 0 | AG50: =+(W50+AB50+AC50+AD50+AE50+AF50)*Captura!$C$19 -> 0 | AH50: 295.0137023 | AJ50: 798.6031232 | AK50: -295.0137023
B51: 23 | C51: 2028-02-06 | D51: =IF(B51<J$17,Captura!$M$16,0)+Resumen!$K$29+Resumen!$K$30 -> 798.6031232 | H51: 0 | K51: =IF(B51+1>=$J$17,0,K39*(1+Captura!$D$35)) -> 0 | L51: =IF(B51+1>=$J$17,0,L39*(1+Captura!$D$35)) -> 0 | M51: =IF(B51+1>=$J$17,0,M39*(1+Captura!$D$35)) -> 0 | O51: =IF(B51=J$17,Captura!$M$29,0) -> 0 | P51: =SUM(D51:F51,I51:N51)*Captura!$C$19 -> 127.7764997 | Q51: 926.3796229 | T51: 12 | U51: 23 | V51: 3499.87426 | X51: =+V50*Captura!$O$9/12 -> 49.93273635 | Y51: 245.080966 | Z51: 295.0137023 | AA51: =IF(U51=J$17,Captura!$M$33,0) -> 0 | AC51: =IF(U51+1>=$J$17,0,AC39*(1+Captura!$D$35)) -> 0 | AD51: =IF(U51+1>=$J$17,0,AD39*(1+Captura!$D$35)) -> 0 | AE51: =IF(U51+1>=$J$17,0,AE39*(1+Captura!$D$35)) -> 0 | AG51: =+(W51+AB51+AC51+AD51+AE51+AF51)*Captura!$C$19 -> 0 | AH51: 295.0137023 | AJ51: 798.6031232 | AK51: -295.0137023
B52: 24 | C52: 2028-03-06 | D52: =IF(B52<J$17,Captura!$M$16,0)+Resumen!$K$29+Resumen!$K$30 -> 798.6031232 | H52: 0 | K52: =IF(B52+1>=$J$17,0,K40*(1+Captura!$D$35)) -> 0 | L52: =IF(B52+1>=$J$17,0,L40*(1+Captura!$D$35)) -> 0 | M52: =IF(B52+1>=$J$17,0,M40*(1+Captura!$D$35)) -> 0 | O52: =IF(B52=J$17,Captura!$M$29,0) -> 0 | P52: =SUM(D52:F52,I52:N52)*Captura!$C$19 -> 127.7764997 | Q52: 926.3796229 | T52: 1 | U52: 24 | V52: 3251.525548 | X52: =+V51*Captura!$O$9/12 -> 46.66499013 | Y52: 248.3487122 | Z52: 295.0137023 | AA52: =IF(U52=J$17,Captura!$M$33,0) -> 0 | AC52: =IF(U52+1>=$J$17,0,AC40*(1+Captura!$D$35)) -> 2163.2 | AD52: =IF(U52+1>=$J$17,0,AD40*(1+Captura!$D$35)) -> 0 | AE52: =IF(U52+1>=$J$17,0,AE40*(1+Captura!$D$35)) -> 0 | AG52: =+(W52+AB52+AC52+AD52+AE52+AF52)*Captura!$C$19 -> 346.112 | AH52: 2804.325702 | AJ52: 798.6031232 | AK52: -2458.213702
B53: 25 | C53: 2028-04-06 | D53: =IF(B53<J$17,Captura!$M$16,0)+Resumen!$K$29+Resumen!$K$30 -> 798.6031232 | H53: 0 | K53: =IF(B53+1>=$J$17,0,K41*(1+Captura!$D$35)) -> 0 | L53: =IF(B53+1>=$J$17,0,L41*(1+Captura!$D$35)) -> 0 | M53: =IF(B53+1>=$J$17,0,M41*(1+Captura!$D$35)) -> 0 | O53: =IF(B53=J$17,Captura!$M$29,0) -> 0 | P53: =SUM(D53:F53,I53:N53)*Captura!$C$19 -> 127.7764997 | Q53: 926.3796229 | T53: 2 | U53: 25 | V53: 2999.865519 | X53: =+V52*Captura!$O$9/12 -> 43.35367397 | Y53: 251.6600283 | Z53: 295.0137023 | AA53: =IF(U53=J$17,Captura!$M$33,0) -> 0 | AC53: =IF(U53+1>=$J$17,0,AC41*(1+Captura!$D$35)) -> 0 | AD53: =IF(U53+1>=$J$17,0,AD41*(1+Captura!$D$35)) -> 0 | AE53: =IF(U53+1>=$J$17,0,AE41*(1+Captura!$D$35)) -> 0 | AG53: =+(W53+AB53+AC53+AD53+AE53+AF53)*Captura!$C$19 -> 0 | AH53: 295.0137023 | AJ53: 798.6031232 | AK53: -295.0137023
B54: 26 | C54: 2028-05-06 | D54: =IF(B54<J$17,Captura!$M$16,0)+Resumen!$K$29+Resumen!$K$30 -> 798.6031232 | H54: 0 | K54: =IF(B54+1>=$J$17,0,K42*(1+Captura!$D$35)) -> 0 | L54: =IF(B54+1>=$J$17,0,L42*(1+Captura!$D$35)) -> 0 | M54: =IF(B54+1>=$J$17,0,M42*(1+Captura!$D$35)) -> 0 | O54: =IF(B54=J$17,Captura!$M$29,0) -> 0 | P54: =SUM(D54:F54,I54:N54)*Captura!$C$19 -> 127.7764997 | Q54: 926.3796229 | T54: 3 | U54: 26 | V54: 2744.850024 | X54: =+V53*Captura!$O$9/12 -> 39.99820693 | Y54: 255.0154954 | Z54: 295.0137023 | AA54: =IF(U54=J$17,Captura!$M$33,0) -> 0 | AC54: =IF(U54+1>=$J$17,0,AC42*(1+Captura!$D$35)) -> 0 | AD54: =IF(U54+1>=$J$17,0,AD42*(1+Captura!$D$35)) -> 0 | AE54: =IF(U54+1>=$J$17,0,AE42*(1+Captura!$D$35)) -> 0 | AG54: =+(W54+AB54+AC54+AD54+AE54+AF54)*Captura!$C$19 -> 0 | AH54: 295.0137023 | AJ54: 798.6031232 | AK54: -295.0137023
B55: 27 | C55: 2028-06-06 | D55: =IF(B55<J$17,Captura!$M$16,0)+Resumen!$K$29+Resumen!$K$30 -> 798.6031232 | H55: 0 | K55: =IF(B55+1>=$J$17,0,K43*(1+Captura!$D$35)) -> 0 | L55: =IF(B55+1>=$J$17,0,L43*(1+Captura!$D$35)) -> 0 | M55: =IF(B55+1>=$J$17,0,M43*(1+Captura!$D$35)) -> 0 | O55: =IF(B55=J$17,Captura!$M$29,0) -> 0 | P55: =SUM(D55:F55,I55:N55)*Captura!$C$19 -> 127.7764997 | Q55: 926.3796229 | T55: 4 | U55: 27 | V55: 2486.434322 | X55: =+V54*Captura!$O$9/12 -> 36.59800032 | Y55: 258.415702 | Z55: 295.0137023 | AA55: =IF(U55=J$17,Captura!$M$33,0) -> 0 | AC55: =IF(U55+1>=$J$17,0,AC43*(1+Captura!$D$35)) -> 0 | AD55: =IF(U55+1>=$J$17,0,AD43*(1+Captura!$D$35)) -> 0 | AE55: =IF(U55+1>=$J$17,0,AE43*(1+Captura!$D$35)) -> 0 | AG55: =+(W55+AB55+AC55+AD55+AE55+AF55)*Captura!$C$19 -> 0 | AH55: 295.0137023 | AJ55: 798.6031232 | AK55: -295.0137023
B56: 28 | C56: 2028-07-06 | D56: =IF(B56<J$17,Captura!$M$16,0)+Resumen!$K$29+Resumen!$K$30 -> 798.6031232 | H56: 0 | K56: =IF(B56+1>=$J$17,0,K44*(1+Captura!$D$35)) -> 0 | L56: =IF(B56+1>=$J$17,0,L44*(1+Captura!$D$35)) -> 0 | M56: =IF(B56+1>=$J$17,0,M44*(1+Captura!$D$35)) -> 0 | O56: =IF(B56=J$17,Captura!$M$29,0) -> 0 | P56: =SUM(D56:F56,I56:N56)*Captura!$C$19 -> 127.7764997 | Q56: 926.3796229 | T56: 5 | U56: 28 | V56: 2224.573077 | X56: =+V55*Captura!$O$9/12 -> 33.15245763 | Y56: 261.8612447 | Z56: 295.0137023 | AA56: =IF(U56=J$17,Captura!$M$33,0) -> 0 | AC56: =IF(U56+1>=$J$17,0,AC44*(1+Captura!$D$35)) -> 0 | AD56: =IF(U56+1>=$J$17,0,AD44*(1+Captura!$D$35)) -> 0 | AE56: =IF(U56+1>=$J$17,0,AE44*(1+Captura!$D$35)) -> 0 | AG56: =+(W56+AB56+AC56+AD56+AE56+AF56)*Captura!$C$19 -> 0 | AH56: 295.0137023 | AJ56: 798.6031232 | AK56: -295.0137023
B57: 29 | C57: 2028-08-06 | D57: =IF(B57<J$17,Captura!$M$16,0)+Resumen!$K$29+Resumen!$K$30 -> 798.6031232 | H57: 0 | K57: =IF(B57+1>=$J$17,0,K45*(1+Captura!$D$35)) -> 0 | L57: =IF(B57+1>=$J$17,0,L45*(1+Captura!$D$35)) -> 0 | M57: =IF(B57+1>=$J$17,0,M45*(1+Captura!$D$35)) -> 0 | O57: =IF(B57=J$17,Captura!$M$29,0) -> 0 | P57: =SUM(D57:F57,I57:N57)*Captura!$C$19 -> 127.7764997 | Q57: 926.3796229 | T57: 6 | U57: 29 | V57: 1959.22035 | X57: =+V56*Captura!$O$9/12 -> 29.66097437 | Y57: 265.3527279 | Z57: 295.0137023 | AA57: =IF(U57=J$17,Captura!$M$33,0) -> 0 | AC57: =IF(U57+1>=$J$17,0,AC45*(1+Captura!$D$35)) -> 0 | AD57: =IF(U57+1>=$J$17,0,AD45*(1+Captura!$D$35)) -> 0 | AE57: =IF(U57+1>=$J$17,0,AE45*(1+Captura!$D$35)) -> 0 | AG57: =+(W57+AB57+AC57+AD57+AE57+AF57)*Captura!$C$19 -> 0 | AH57: 295.0137023 | AJ57: 798.6031232 | AK57: -295.0137023
B58: 30 | C58: 2028-09-06 | D58: =IF(B58<J$17,Captura!$M$16,0)+Resumen!$K$29+Resumen!$K$30 -> 798.6031232 | H58: 0 | K58: =IF(B58+1>=$J$17,0,K46*(1+Captura!$D$35)) -> 0 | L58: =IF(B58+1>=$J$17,0,L46*(1+Captura!$D$35)) -> 0 | M58: =IF(B58+1>=$J$17,0,M46*(1+Captura!$D$35)) -> 0 | O58: =IF(B58=J$17,Captura!$M$29,0) -> 0 | P58: =SUM(D58:F58,I58:N58)*Captura!$C$19 -> 127.7764997 | Q58: 926.3796229 | T58: 7 | U58: 30 | V58: 1690.329585 | X58: =+V57*Captura!$O$9/12 -> 26.12293799 | Y58: 268.8907643 | Z58: 295.0137023 | AA58: =IF(U58=J$17,Captura!$M$33,0) -> 0 | AC58: =IF(U58+1>=$J$17,0,AC46*(1+Captura!$D$35)) -> 0 | AD58: =IF(U58+1>=$J$17,0,AD46*(1+Captura!$D$35)) -> 0 | AE58: =IF(U58+1>=$J$17,0,AE46*(1+Captura!$D$35)) -> 0 | AG58: =+(W58+AB58+AC58+AD58+AE58+AF58)*Captura!$C$19 -> 0 | AH58: 295.0137023 | AJ58: 798.6031232 | AK58: -295.0137023
B59: 31 | C59: 2028-10-06 | D59: =IF(B59<J$17,Captura!$M$16,0)+Resumen!$K$29+Resumen!$K$30 -> 798.6031232 | H59: 0 | K59: =IF(B59+1>=$J$17,0,K47*(1+Captura!$D$35)) -> 0 | L59: =IF(B59+1>=$J$17,0,L47*(1+Captura!$D$35)) -> 0 | M59: =IF(B59+1>=$J$17,0,M47*(1+Captura!$D$35)) -> 0 | O59: =IF(B59=J$17,Captura!$M$29,0) -> 0 | P59: =SUM(D59:F59,I59:N59)*Captura!$C$19 -> 127.7764997 | Q59: 926.3796229 | T59: 8 | U59: 31 | V59: 1417.853611 | X59: =+V58*Captura!$O$9/12 -> 22.5377278 | Y59: 272.4759745 | Z59: 295.0137023 | AA59: =IF(U59=J$17,Captura!$M$33,0) -> 0 | AC59: =IF(U59+1>=$J$17,0,AC47*(1+Captura!$D$35)) -> 0 | AD59: =IF(U59+1>=$J$17,0,AD47*(1+Captura!$D$35)) -> 0 | AE59: =IF(U59+1>=$J$17,0,AE47*(1+Captura!$D$35)) -> 0 | AG59: =+(W59+AB59+AC59+AD59+AE59+AF59)*Captura!$C$19 -> 0 | AH59: 295.0137023 | AJ59: 798.6031232 | AK59: -295.0137023
B60: 32 | C60: 2028-11-06 | D60: =IF(B60<J$17,Captura!$M$16,0)+Resumen!$K$29+Resumen!$K$30 -> 798.6031232 | H60: 0 | K60: =IF(B60+1>=$J$17,0,K48*(1+Captura!$D$35)) -> 0 | L60: =IF(B60+1>=$J$17,0,L48*(1+Captura!$D$35)) -> 0 | M60: =IF(B60+1>=$J$17,0,M48*(1+Captura!$D$35)) -> 0 | O60: =IF(B60=J$17,Captura!$M$29,0) -> 0 | P60: =SUM(D60:F60,I60:N60)*Captura!$C$19 -> 127.7764997 | Q60: 926.3796229 | T60: 9 | U60: 32 | V60: 1141.744623 | X60: =+V59*Captura!$O$9/12 -> 18.90471481 | Y60: 276.1089875 | Z60: 295.0137023 | AA60: =IF(U60=J$17,Captura!$M$33,0) -> 0 | AC60: =IF(U60+1>=$J$17,0,AC48*(1+Captura!$D$35)) -> 0 | AD60: =IF(U60+1>=$J$17,0,AD48*(1+Captura!$D$35)) -> 0 | AE60: =IF(U60+1>=$J$17,0,AE48*(1+Captura!$D$35)) -> 0 | AG60: =+(W60+AB60+AC60+AD60+AE60+AF60)*Captura!$C$19 -> 0 | AH60: 295.0137023 | AJ60: 798.6031232 | AK60: -295.0137023
B61: 33 | C61: 2028-12-06 | D61: =IF(B61<J$17,Captura!$M$16,0)+Resumen!$K$29+Resumen!$K$30 -> 798.6031232 | H61: 0 | K61: =IF(B61+1>=$J$17,0,K49*(1+Captura!$D$35)) -> 0 | L61: =IF(B61+1>=$J$17,0,L49*(1+Captura!$D$35)) -> 0 | M61: =IF(B61+1>=$J$17,0,M49*(1+Captura!$D$35)) -> 0 | O61: =IF(B61=J$17,Captura!$M$29,0) -> 0 | P61: =SUM(D61:F61,I61:N61)*Captura!$C$19 -> 127.7764997 | Q61: 926.3796229 | T61: 10 | U61: 33 | V61: 861.9541825 | X61: =+V60*Captura!$O$9/12 -> 15.22326164 | Y61: 279.7904407 | Z61: 295.0137023 | AA61: =IF(U61=J$17,Captura!$M$33,0) -> 0 | AC61: =IF(U61+1>=$J$17,0,AC49*(1+Captura!$D$35)) -> 0 | AD61: =IF(U61+1>=$J$17,0,AD49*(1+Captura!$D$35)) -> 0 | AE61: =IF(U61+1>=$J$17,0,AE49*(1+Captura!$D$35)) -> 0 | AG61: =+(W61+AB61+AC61+AD61+AE61+AF61)*Captura!$C$19 -> 0 | AH61: 295.0137023 | AJ61: 798.6031232 | AK61: -295.0137023
B62: 34 | C62: 2029-01-06 | D62: =IF(B62<J$17,Captura!$M$16,0)+Resumen!$K$29+Resumen!$K$30 -> 798.6031232 | H62: 0 | K62: =IF(B62+1>=$J$17,0,K50*(1+Captura!$D$35)) -> 0 | L62: =IF(B62+1>=$J$17,0,L50*(1+Captura!$D$35)) -> 0 | M62: =IF(B62+1>=$J$17,0,M50*(1+Captura!$D$35)) -> 0 | O62: =IF(B62=J$17,Captura!$M$29,0) -> 0 | P62: =SUM(D62:F62,I62:N62)*Captura!$C$19 -> 127.7764997 | Q62: 926.3796229 | T62: 11 | U62: 34 | V62: 578.4332027 | X62: =+V61*Captura!$O$9/12 -> 11.49272243 | Y62: 283.5209799 | Z62: 295.0137023 | AA62: =IF(U62=J$17,Captura!$M$33,0) -> 0 | AC62: =IF(U62+1>=$J$17,0,AC50*(1+Captura!$D$35)) -> 0 | AD62: =IF(U62+1>=$J$17,0,AD50*(1+Captura!$D$35)) -> 0 | AE62: =IF(U62+1>=$J$17,0,AE50*(1+Captura!$D$35)) -> 0 | AG62: =+(W62+AB62+AC62+AD62+AE62+AF62)*Captura!$C$19 -> 0 | AH62: 295.0137023 | AJ62: 798.6031232 | AK62: -295.0137023
B63: 35 | C63: 2029-02-06 | D63: =IF(B63<J$17,Captura!$M$16,0)+Resumen!$K$29+Resumen!$K$30 -> 798.6031232 | H63: 0 | K63: =IF(B63+1>=$J$17,0,K51*(1+Captura!$D$35)) -> 0 | L63: =IF(B63+1>=$J$17,0,L51*(1+Captura!$D$35)) -> 0 | M63: =IF(B63+1>=$J$17,0,M51*(1+Captura!$D$35)) -> 0 | O63: =IF(B63=J$17,Captura!$M$29,0) -> 0 | P63: =SUM(D63:F63,I63:N63)*Captura!$C$19 -> 127.7764997 | Q63: 926.3796229 | T63: 12 | U63: 35 | V63: 291.1319431 | X63: =+V62*Captura!$O$9/12 -> 7.712442702 | Y63: 287.3012596 | Z63: 295.0137023 | AA63: =IF(U63=J$17,Captura!$M$33,0) -> 0 | AC63: =IF(U63+1>=$J$17,0,AC51*(1+Captura!$D$35)) -> 0 | AD63: =IF(U63+1>=$J$17,0,AD51*(1+Captura!$D$35)) -> 0 | AE63: =IF(U63+1>=$J$17,0,AE51*(1+Captura!$D$35)) -> 0 | AG63: =+(W63+AB63+AC63+AD63+AE63+AF63)*Captura!$C$19 -> 0 | AH63: 295.0137023 | AJ63: 798.6031232 | AK63: -295.0137023
B64: 36 | C64: 2029-03-06 | D64: =IF(B64<J$17,Captura!$M$16,0) -> 0 | H64: 0 | K64: =IF(B64+1>=$J$17,0,K52*(1+Captura!$D$35)) -> 0 | L64: =IF(B64+1>=$J$17,0,L52*(1+Captura!$D$35)) -> 0 | M64: =IF(B64+1>=$J$17,0,M52*(1+Captura!$D$35)) -> 0 | O64: =IF(B64=J$17,Captura!$M$29,0) -> 0 | P64: =SUM(D64:F64,I64:N64)*Captura!$C$19 -> 0 | Q64: 0 | T64: 1 | U64: 36 | V64: 3.97903932e-13 | X64: =+V63*Captura!$O$9/12 -> 3.881759241 | Y64: 291.1319431 | Z64: 295.0137023 | AA64: =IF(U64=J$17,Captura!$M$33,0) -> 0 | AC64: =IF(U64+1>=$J$17,0,AC52*(1+Captura!$D$35)) -> 0 | AD64: =IF(U64+1>=$J$17,0,AD52*(1+Captura!$D$35)) -> 0 | AE64: =IF(U64+1>=$J$17,0,AE52*(1+Captura!$D$35)) -> 0 | AG64: =+(W64+AB64+AC64+AD64+AE64+AF64)*Captura!$C$19 -> 0 | AH64: 295.0137023 | AJ64: 0 | AK64: -295.0137023
B65: 37 | C65: 2029-04-06 | D65: =IF(B65<J$17,Captura!$M$16,0) -> 0 | H65: 0 | K65: =IF(B65+1>=$J$17,0,K53*(1+Captura!$D$35)) -> 0 | L65: =IF(B65+1>=$J$17,0,L53*(1+Captura!$D$35)) -> 0 | M65: =IF(B65+1>=$J$17,0,M53*(1+Captura!$D$35)) -> 0 | O65: =IF(B65=J$17,Captura!$M$29,0) -> 0 | P65: =SUM(D65:F65,I65:N65)*Captura!$C$19 -> 0 | Q65: 0 | T65: 2 | U65: 37 | V65: 4.032093178e-13 | X65: =+V64*Captura!$O$9/12 -> 5.30538576e-15 | Y65: -5.30538576e-15 | Z65: 0 | AA65: =IF(U65=J$17,Captura!$M$33,0) -> 0 | AC65: =IF(U65+1>=$J$17,0,AC53*(1+Captura!$D$35)) -> 0 | AD65: =IF(U65+1>=$J$17,0,AD53*(1+Captura!$D$35)) -> 0 | AE65: =IF(U65+1>=$J$17,0,AE53*(1+Captura!$D$35)) -> 0 | AG65: =+(W65+AB65+AC65+AD65+AE65+AF65)*Captura!$C$19 -> 0 | AH65: 0 | AJ65: 0 | AK65: 0
B66: 38 | C66: 2029-05-06 | D66: =IF(B66<J$17,Captura!$M$16,0) -> 0 | H66: 0 | K66: =IF(B66+1>=$J$17,0,K54*(1+Captura!$D$35)) -> 0 | L66: =IF(B66+1>=$J$17,0,L54*(1+Captura!$D$35)) -> 0 | M66: =IF(B66+1>=$J$17,0,M54*(1+Captura!$D$35)) -> 0 | O66: =IF(B66=J$17,Captura!$M$29,0) -> 0 | P66: =SUM(D66:F66,I66:N66)*Captura!$C$19 -> 0 | Q66: 0 | T66: 3 | U66: 38 | V66: 4.08585442e-13 | X66: =+V65*Captura!$O$9/12 -> 5.376124237e-15 | Y66: -5.376124237e-15 | Z66: 0 | AA66: =IF(U66=J$17,Captura!$M$33,0) -> 0 | AC66: =IF(U66+1>=$J$17,0,AC54*(1+Captura!$D$35)) -> 0 | AD66: =IF(U66+1>=$J$17,0,AD54*(1+Captura!$D$35)) -> 0 | AE66: =IF(U66+1>=$J$17,0,AE54*(1+Captura!$D$35)) -> 0 | AG66: =+(W66+AB66+AC66+AD66+AE66+AF66)*Captura!$C$19 -> 0 | AH66: 0 | AJ66: 0 | AK66: 0
B67: 39 | C67: 2029-06-06 | D67: =IF(B67<J$17,Captura!$M$16,0) -> 0 | H67: 0 | K67: =IF(B67+1>=$J$17,0,K55*(1+Captura!$D$35)) -> 0 | L67: =IF(B67+1>=$J$17,0,L55*(1+Captura!$D$35)) -> 0 | M67: =IF(B67+1>=$J$17,0,M55*(1+Captura!$D$35)) -> 0 | O67: =IF(B67=J$17,Captura!$M$29,0) -> 0 | P67: =SUM(D67:F67,I67:N67)*Captura!$C$19 -> 0 | Q67: 0 | T67: 4 | U67: 39 | V67: 4.140332479e-13 | X67: =+V66*Captura!$O$9/12 -> 5.447805894e-15 | Y67: -5.447805894e-15 | Z67: 0 | AA67: =IF(U67=J$17,Captura!$M$33,0) -> 0 | AC67: =IF(U67+1>=$J$17,0,AC55*(1+Captura!$D$35)) -> 0 | AD67: =IF(U67+1>=$J$17,0,AD55*(1+Captura!$D$35)) -> 0 | AE67: =IF(U67+1>=$J$17,0,AE55*(1+Captura!$D$35)) -> 0 | AG67: =+(W67+AB67+AC67+AD67+AE67+AF67)*Captura!$C$19 -> 0 | AH67: 0 | AJ67: 0 | AK67: 0
B68: 40 | C68: 2029-07-06 | D68: =IF(B68<J$17,Captura!$M$16,0) -> 0 | H68: 0 | K68: =IF(B68+1>=$J$17,0,K56*(1+Captura!$D$35)) -> 0 | L68: =IF(B68+1>=$J$17,0,L56*(1+Captura!$D$35)) -> 0 | M68: =IF(B68+1>=$J$17,0,M56*(1+Captura!$D$35)) -> 0 | O68: =IF(B68=J$17,Captura!$M$29,0) -> 0 | P68: =SUM(D68:F68,I68:N68)*Captura!$C$19 -> 0 | Q68: 0 | T68: 5 | U68: 40 | V68: 4.195536912e-13 | X68: =+V67*Captura!$O$9/12 -> 5.520443306e-15 | Y68: -5.520443306e-15 | Z68: 0 | AA68: =IF(U68=J$17,Captura!$M$33,0) -> 0 | AC68: =IF(U68+1>=$J$17,0,AC56*(1+Captura!$D$35)) -> 0 | AD68: =IF(U68+1>=$J$17,0,AD56*(1+Captura!$D$35)) -> 0 | AE68: =IF(U68+1>=$J$17,0,AE56*(1+Captura!$D$35)) -> 0 | AG68: =+(W68+AB68+AC68+AD68+AE68+AF68)*Captura!$C$19 -> 0 | AH68: 0 | AJ68: 0 | AK68: 0
B69: 41 | C69: 2029-08-06 | D69: =IF(B69<J$17,Captura!$M$16,0) -> 0 | H69: 0 | K69: =IF(B69+1>=$J$17,0,K57*(1+Captura!$D$35)) -> 0 | L69: =IF(B69+1>=$J$17,0,L57*(1+Captura!$D$35)) -> 0 | M69: =IF(B69+1>=$J$17,0,M57*(1+Captura!$D$35)) -> 0 | O69: =IF(B69=J$17,Captura!$M$29,0) -> 0 | P69: =SUM(D69:F69,I69:N69)*Captura!$C$19 -> 0 | Q69: 0 | T69: 6 | U69: 41 | V69: 4.251477404e-13 | X69: =+V68*Captura!$O$9/12 -> 5.594049216e-15 | Y69: -5.594049216e-15 | Z69: 0 | AA69: =IF(U69=J$17,Captura!$M$33,0) -> 0 | AC69: =IF(U69+1>=$J$17,0,AC57*(1+Captura!$D$35)) -> 0 | AD69: =IF(U69+1>=$J$17,0,AD57*(1+Captura!$D$35)) -> 0 | AE69: =IF(U69+1>=$J$17,0,AE57*(1+Captura!$D$35)) -> 0 | AG69: =+(W69+AB69+AC69+AD69+AE69+AF69)*Captura!$C$19 -> 0 | AH69: 0 | AJ69: 0 | AK69: 0
B70: 42 | C70: 2029-09-06 | D70: =IF(B70<J$17,Captura!$M$16,0) -> 0 | H70: 0 | K70: =IF(B70+1>=$J$17,0,K58*(1+Captura!$D$35)) -> 0 | L70: =IF(B70+1>=$J$17,0,L58*(1+Captura!$D$35)) -> 0 | M70: =IF(B70+1>=$J$17,0,M58*(1+Captura!$D$35)) -> 0 | O70: =IF(B70=J$17,Captura!$M$29,0) -> 0 | P70: =SUM(D70:F70,I70:N70)*Captura!$C$19 -> 0 | Q70: 0 | T70: 7 | U70: 42 | V70: 4.30816377e-13 | X70: =+V69*Captura!$O$9/12 -> 5.668636539e-15 | Y70: -5.668636539e-15 | Z70: 0 | AA70: =IF(U70=J$17,Captura!$M$33,0) -> 0 | AC70: =IF(U70+1>=$J$17,0,AC58*(1+Captura!$D$35)) -> 0 | AD70: =IF(U70+1>=$J$17,0,AD58*(1+Captura!$D$35)) -> 0 | AE70: =IF(U70+1>=$J$17,0,AE58*(1+Captura!$D$35)) -> 0 | AG70: =+(W70+AB70+AC70+AD70+AE70+AF70)*Captura!$C$19 -> 0 | AH70: 0 | AJ70: 0 | AK70: 0
B71: 43 | C71: 2029-10-06 | D71: =IF(B71<J$17,Captura!$M$16,0) -> 0 | H71: 0 | K71: =IF(B71+1>=$J$17,0,K59*(1+Captura!$D$35)) -> 0 | L71: =IF(B71+1>=$J$17,0,L59*(1+Captura!$D$35)) -> 0 | M71: =IF(B71+1>=$J$17,0,M59*(1+Captura!$D$35)) -> 0 | O71: =IF(B71=J$17,Captura!$M$29,0) -> 0 | P71: =SUM(D71:F71,I71:N71)*Captura!$C$19 -> 0 | Q71: 0 | T71: 8 | U71: 43 | V71: 4.365605953e-13 | X71: =+V70*Captura!$O$9/12 -> 5.74421836e-15 | Y71: -5.74421836e-15 | Z71: 0 | AA71: =IF(U71=J$17,Captura!$M$33,0) -> 0 | AC71: =IF(U71+1>=$J$17,0,AC59*(1+Captura!$D$35)) -> 0 | AD71: =IF(U71+1>=$J$17,0,AD59*(1+Captura!$D$35)) -> 0 | AE71: =IF(U71+1>=$J$17,0,AE59*(1+Captura!$D$35)) -> 0 | AG71: =+(W71+AB71+AC71+AD71+AE71+AF71)*Captura!$C$19 -> 0 | AH71: 0 | AJ71: 0 | AK71: 0
B72: 44 | C72: 2029-11-06 | D72: =IF(B72<J$17,Captura!$M$16,0) -> 0 | H72: 0 | K72: =IF(B72+1>=$J$17,0,K60*(1+Captura!$D$35)) -> 0 | L72: =IF(B72+1>=$J$17,0,L60*(1+Captura!$D$35)) -> 0 | M72: =IF(B72+1>=$J$17,0,M60*(1+Captura!$D$35)) -> 0 | O72: =IF(B72=J$17,Captura!$M$29,0) -> 0 | P72: =SUM(D72:F72,I72:N72)*Captura!$C$19 -> 0 | Q72: 0 | T72: 9 | U72: 44 | V72: 4.423814033e-13 | X72: =+V71*Captura!$O$9/12 -> 5.820807938e-15 | Y72: -5.820807938e-15 | Z72: 0 | AA72: =IF(U72=J$17,Captura!$M$33,0) -> 0 | AC72: =IF(U72+1>=$J$17,0,AC60*(1+Captura!$D$35)) -> 0 | AD72: =IF(U72+1>=$J$17,0,AD60*(1+Captura!$D$35)) -> 0 | AE72: =IF(U72+1>=$J$17,0,AE60*(1+Captura!$D$35)) -> 0 | AG72: =+(W72+AB72+AC72+AD72+AE72+AF72)*Captura!$C$19 -> 0 | AH72: 0 | AJ72: 0 | AK72: 0
B73: 45 | C73: 2029-12-06 | D73: =IF(B73<J$17,Captura!$M$16,0) -> 0 | H73: 0 | K73: =IF(B73+1>=$J$17,0,K61*(1+Captura!$D$35)) -> 0 | L73: =IF(B73+1>=$J$17,0,L61*(1+Captura!$D$35)) -> 0 | M73: =IF(B73+1>=$J$17,0,M61*(1+Captura!$D$35)) -> 0 | O73: =IF(B73=J$17,Captura!$M$29,0) -> 0 | P73: =SUM(D73:F73,I73:N73)*Captura!$C$19 -> 0 | Q73: 0 | T73: 10 | U73: 45 | V73: 4.48279822e-13 | X73: =+V72*Captura!$O$9/12 -> 5.89841871e-15 | Y73: -5.89841871e-15 | Z73: 0 | AA73: =IF(U73=J$17,Captura!$M$33,0) -> 0 | AC73: =IF(U73+1>=$J$17,0,AC61*(1+Captura!$D$35)) -> 0 | AD73: =IF(U73+1>=$J$17,0,AD61*(1+Captura!$D$35)) -> 0 | AE73: =IF(U73+1>=$J$17,0,AE61*(1+Captura!$D$35)) -> 0 | AG73: =+(W73+AB73+AC73+AD73+AE73+AF73)*Captura!$C$19 -> 0 | AH73: 0 | AJ73: 0 | AK73: 0
B74: 46 | C74: 2030-01-06 | D74: =IF(B74<J$17,Captura!$M$16,0) -> 0 | H74: 0 | K74: =IF(B74+1>=$J$17,0,K62*(1+Captura!$D$35)) -> 0 | L74: =IF(B74+1>=$J$17,0,L62*(1+Captura!$D$35)) -> 0 | M74: =IF(B74+1>=$J$17,0,M62*(1+Captura!$D$35)) -> 0 | O74: =IF(B74=J$17,Captura!$M$29,0) -> 0 | P74: =SUM(D74:F74,I74:N74)*Captura!$C$19 -> 0 | Q74: 0 | T74: 11 | U74: 46 | V74: 4.542568863e-13 | X74: =+V73*Captura!$O$9/12 -> 5.977064293e-15 | Y74: -5.977064293e-15 | Z74: 0 | AA74: =IF(U74=J$17,Captura!$M$33,0) -> 0 | AC74: =IF(U74+1>=$J$17,0,AC62*(1+Captura!$D$35)) -> 0 | AD74: =IF(U74+1>=$J$17,0,AD62*(1+Captura!$D$35)) -> 0 | AE74: =IF(U74+1>=$J$17,0,AE62*(1+Captura!$D$35)) -> 0 | AG74: =+(W74+AB74+AC74+AD74+AE74+AF74)*Captura!$C$19 -> 0 | AH74: 0 | AJ74: 0 | AK74: 0
B75: 47 | C75: 2030-02-06 | D75: =IF(B75<J$17,Captura!$M$16,0) -> 0 | H75: 0 | K75: =IF(B75+1>=$J$17,0,K63*(1+Captura!$D$35)) -> 0 | L75: =IF(B75+1>=$J$17,0,L63*(1+Captura!$D$35)) -> 0 | M75: =IF(B75+1>=$J$17,0,M63*(1+Captura!$D$35)) -> 0 | O75: =IF(B75=J$17,Captura!$M$29,0) -> 0 | P75: =SUM(D75:F75,I75:N75)*Captura!$C$19 -> 0 | Q75: 0 | T75: 12 | U75: 47 | V75: 4.603136448e-13 | X75: =+V74*Captura!$O$9/12 -> 6.056758484e-15 | Y75: -6.056758484e-15 | Z75: 0 | AA75: =IF(U75=J$17,Captura!$M$33,0) -> 0 | AC75: =IF(U75+1>=$J$17,0,AC63*(1+Captura!$D$35)) -> 0 | AD75: =IF(U75+1>=$J$17,0,AD63*(1+Captura!$D$35)) -> 0 | AE75: =IF(U75+1>=$J$17,0,AE63*(1+Captura!$D$35)) -> 0 | AG75: =+(W75+AB75+AC75+AD75+AE75+AF75)*Captura!$C$19 -> 0 | AH75: 0 | AJ75: 0 | AK75: 0
B76: 48 | C76: 2030-03-06 | D76: =IF(B76<J$17,Captura!$M$16,0) -> 0 | H76: 0 | K76: =IF(B76+1>=$J$17,0,K64*(1+Captura!$D$35)) -> 0 | L76: =IF(B76+1>=$J$17,0,L64*(1+Captura!$D$35)) -> 0 | M76: =IF(B76+1>=$J$17,0,M64*(1+Captura!$D$35)) -> 0 | O76: =IF(B76=J$17,Captura!$M$29,0) -> 0 | P76: =SUM(D76:F76,I76:N76)*Captura!$C$19 -> 0 | Q76: 0 | T76: 1 | U76: 48 | V76: 4.6645116e-13 | X76: =+V75*Captura!$O$9/12 -> 6.137515264e-15 | Y76: -6.137515264e-15 | Z76: 0 | AA76: =IF(U76=J$17,Captura!$M$33,0) -> 0 | AC76: =IF(U76+1>=$J$17,0,AC64*(1+Captura!$D$35)) -> 0 | AD76: =IF(U76+1>=$J$17,0,AD64*(1+Captura!$D$35)) -> 0 | AE76: =IF(U76+1>=$J$17,0,AE64*(1+Captura!$D$35)) -> 0 | AG76: =+(W76+AB76+AC76+AD76+AE76+AF76)*Captura!$C$19 -> 0 | AH76: 0 | AJ76: 0 | AK76: 0
B77: 49 | C77: 2030-04-06 | D77: =IF(B77<J$17,Captura!$M$16,0) -> 0 | H77: 0 | K77: =IF(B77+1>=$J$17,0,K65*(1+Captura!$D$35)) -> 0 | L77: =IF(B77+1>=$J$17,0,L65*(1+Captura!$D$35)) -> 0 | M77: =IF(B77+1>=$J$17,0,M65*(1+Captura!$D$35)) -> 0 | O77: =IF(B77=J$17,Captura!$M$29,0) -> 0 | P77: =SUM(D77:F77,I77:N77)*Captura!$C$19 -> 0 | Q77: 0 | T77: 2 | U77: 49 | V77: 4.726705088e-13 | X77: =+V76*Captura!$O$9/12 -> 6.2193488e-15 | Y77: -6.2193488e-15 | Z77: 0 | AA77: =IF(U77=J$17,Captura!$M$33,0) -> 0 | AC77: =IF(U77+1>=$J$17,0,AC65*(1+Captura!$D$35)) -> 0 | AD77: =IF(U77+1>=$J$17,0,AD65*(1+Captura!$D$35)) -> 0 | AE77: =IF(U77+1>=$J$17,0,AE65*(1+Captura!$D$35)) -> 0 | AG77: =+(W77+AB77+AC77+AD77+AE77+AF77)*Captura!$C$19 -> 0 | AH77: 0 | AJ77: 0 | AK77: 0
B78: 50 | C78: 2030-05-06 | D78: =IF(B78<J$17,Captura!$M$16,0) -> 0 | H78: 0 | K78: =IF(B78+1>=$J$17,0,K66*(1+Captura!$D$35)) -> 0 | L78: =IF(B78+1>=$J$17,0,L66*(1+Captura!$D$35)) -> 0 | M78: =IF(B78+1>=$J$17,0,M66*(1+Captura!$D$35)) -> 0 | O78: =IF(B78=J$17,Captura!$M$29,0) -> 0 | P78: =SUM(D78:F78,I78:N78)*Captura!$C$19 -> 0 | Q78: 0 | T78: 3 | U78: 50 | V78: 4.789727823e-13 | X78: =+V77*Captura!$O$9/12 -> 6.302273451e-15 | Y78: -6.302273451e-15 | Z78: 0 | AA78: =IF(U78=J$17,Captura!$M$33,0) -> 0 | AC78: =IF(U78+1>=$J$17,0,AC66*(1+Captura!$D$35)) -> 0 | AD78: =IF(U78+1>=$J$17,0,AD66*(1+Captura!$D$35)) -> 0 | AE78: =IF(U78+1>=$J$17,0,AE66*(1+Captura!$D$35)) -> 0 | AG78: =+(W78+AB78+AC78+AD78+AE78+AF78)*Captura!$C$19 -> 0 | AH78: 0 | AJ78: 0 | AK78: 0
B79: 51 | C79: 2030-06-06 | D79: =IF(B79<J$17,Captura!$M$16,0) -> 0 | H79: 0 | K79: =IF(B79+1>=$J$17,0,K67*(1+Captura!$D$35)) -> 0 | L79: =IF(B79+1>=$J$17,0,L67*(1+Captura!$D$35)) -> 0 | M79: =IF(B79+1>=$J$17,0,M67*(1+Captura!$D$35)) -> 0 | O79: =IF(B79=J$17,Captura!$M$29,0) -> 0 | P79: =SUM(D79:F79,I79:N79)*Captura!$C$19 -> 0 | Q79: 0 | T79: 4 | U79: 51 | V79: 4.85359086e-13 | X79: =+V78*Captura!$O$9/12 -> 6.386303764e-15 | Y79: -6.386303764e-15 | Z79: 0 | AA79: =IF(U79=J$17,Captura!$M$33,0) -> 0 | AC79: =IF(U79+1>=$J$17,0,AC67*(1+Captura!$D$35)) -> 0 | AD79: =IF(U79+1>=$J$17,0,AD67*(1+Captura!$D$35)) -> 0 | AE79: =IF(U79+1>=$J$17,0,AE67*(1+Captura!$D$35)) -> 0 | AG79: =+(W79+AB79+AC79+AD79+AE79+AF79)*Captura!$C$19 -> 0 | AH79: 0 | AJ79: 0 | AK79: 0
B80: 52 | C80: 2030-07-06 | D80: =IF(B80<J$17,Captura!$M$16,0) -> 0 | H80: 0 | K80: =IF(B80+1>=$J$17,0,K68*(1+Captura!$D$35)) -> 0 | L80: =IF(B80+1>=$J$17,0,L68*(1+Captura!$D$35)) -> 0 | M80: =IF(B80+1>=$J$17,0,M68*(1+Captura!$D$35)) -> 0 | O80: =IF(B80=J$17,Captura!$M$29,0) -> 0 | P80: =SUM(D80:F80,I80:N80)*Captura!$C$19 -> 0 | Q80: 0 | T80: 5 | U80: 52 | V80: 4.918305405e-13 | X80: =+V79*Captura!$O$9/12 -> 6.471454481e-15 | Y80: -6.471454481e-15 | Z80: 0 | AA80: =IF(U80=J$17,Captura!$M$33,0) -> 0 | AC80: =IF(U80+1>=$J$17,0,AC68*(1+Captura!$D$35)) -> 0 | AD80: =IF(U80+1>=$J$17,0,AD68*(1+Captura!$D$35)) -> 0 | AE80: =IF(U80+1>=$J$17,0,AE68*(1+Captura!$D$35)) -> 0 | AG80: =+(W80+AB80+AC80+AD80+AE80+AF80)*Captura!$C$19 -> 0 | AH80: 0 | AJ80: 0 | AK80: 0
B81: 53 | C81: 2030-08-06 | D81: =IF(B81<J$17,Captura!$M$16,0) -> 0 | H81: 0 | K81: =IF(B81+1>=$J$17,0,K69*(1+Captura!$D$35)) -> 0 | L81: =IF(B81+1>=$J$17,0,L69*(1+Captura!$D$35)) -> 0 | M81: =IF(B81+1>=$J$17,0,M69*(1+Captura!$D$35)) -> 0 | O81: =IF(B81=J$17,Captura!$M$29,0) -> 0 | P81: =SUM(D81:F81,I81:N81)*Captura!$C$19 -> 0 | Q81: 0 | T81: 6 | U81: 53 | V81: 4.983882811e-13 | X81: =+V80*Captura!$O$9/12 -> 6.55774054e-15 | Y81: -6.55774054e-15 | Z81: 0 | AA81: =IF(U81=J$17,Captura!$M$33,0) -> 0 | AC81: =IF(U81+1>=$J$17,0,AC69*(1+Captura!$D$35)) -> 0 | AD81: =IF(U81+1>=$J$17,0,AD69*(1+Captura!$D$35)) -> 0 | AE81: =IF(U81+1>=$J$17,0,AE69*(1+Captura!$D$35)) -> 0 | AG81: =+(W81+AB81+AC81+AD81+AE81+AF81)*Captura!$C$19 -> 0 | AH81: 0 | AJ81: 0 | AK81: 0
B82: 54 | C82: 2030-09-06 | D82: =IF(B82<J$17,Captura!$M$16,0) -> 0 | H82: 0 | K82: =IF(B82+1>=$J$17,0,K70*(1+Captura!$D$35)) -> 0 | L82: =IF(B82+1>=$J$17,0,L70*(1+Captura!$D$35)) -> 0 | M82: =IF(B82+1>=$J$17,0,M70*(1+Captura!$D$35)) -> 0 | O82: =IF(B82=J$17,Captura!$M$29,0) -> 0 | P82: =SUM(D82:F82,I82:N82)*Captura!$C$19 -> 0 | Q82: 0 | T82: 7 | U82: 54 | V82: 5.050334581e-13 | X82: =+V81*Captura!$O$9/12 -> 6.645177081e-15 | Y82: -6.645177081e-15 | Z82: 0 | AA82: =IF(U82=J$17,Captura!$M$33,0) -> 0 | AC82: =IF(U82+1>=$J$17,0,AC70*(1+Captura!$D$35)) -> 0 | AD82: =IF(U82+1>=$J$17,0,AD70*(1+Captura!$D$35)) -> 0 | AE82: =IF(U82+1>=$J$17,0,AE70*(1+Captura!$D$35)) -> 0 | AG82: =+(W82+AB82+AC82+AD82+AE82+AF82)*Captura!$C$19 -> 0 | AH82: 0 | AJ82: 0 | AK82: 0
B83: 55 | C83: 2030-10-06 | D83: =IF(B83<J$17,Captura!$M$16,0) -> 0 | H83: 0 | K83: =IF(B83+1>=$J$17,0,K71*(1+Captura!$D$35)) -> 0 | L83: =IF(B83+1>=$J$17,0,L71*(1+Captura!$D$35)) -> 0 | M83: =IF(B83+1>=$J$17,0,M71*(1+Captura!$D$35)) -> 0 | O83: =IF(B83=J$17,Captura!$M$29,0) -> 0 | P83: =SUM(D83:F83,I83:N83)*Captura!$C$19 -> 0 | Q83: 0 | T83: 8 | U83: 55 | V83: 5.117672376e-13 | X83: =+V82*Captura!$O$9/12 -> 6.733779442e-15 | Y83: -6.733779442e-15 | Z83: 0 | AA83: =IF(U83=J$17,Captura!$M$33,0) -> 0 | AC83: =IF(U83+1>=$J$17,0,AC71*(1+Captura!$D$35)) -> 0 | AD83: =IF(U83+1>=$J$17,0,AD71*(1+Captura!$D$35)) -> 0 | AE83: =IF(U83+1>=$J$17,0,AE71*(1+Captura!$D$35)) -> 0 | AG83: =+(W83+AB83+AC83+AD83+AE83+AF83)*Captura!$C$19 -> 0 | AH83: 0 | AJ83: 0 | AK83: 0
B84: 56 | C84: 2030-11-06 | D84: =IF(B84<J$17,Captura!$M$16,0) -> 0 | H84: 0 | K84: =IF(B84+1>=$J$17,0,K72*(1+Captura!$D$35)) -> 0 | L84: =IF(B84+1>=$J$17,0,L72*(1+Captura!$D$35)) -> 0 | M84: =IF(B84+1>=$J$17,0,M72*(1+Captura!$D$35)) -> 0 | O84: =IF(B84=J$17,Captura!$M$29,0) -> 0 | P84: =SUM(D84:F84,I84:N84)*Captura!$C$19 -> 0 | Q84: 0 | T84: 9 | U84: 56 | V84: 5.185908008e-13 | X84: =+V83*Captura!$O$9/12 -> 6.823563168e-15 | Y84: -6.823563168e-15 | Z84: 0 | AA84: =IF(U84=J$17,Captura!$M$33,0) -> 0 | AC84: =IF(U84+1>=$J$17,0,AC72*(1+Captura!$D$35)) -> 0 | AD84: =IF(U84+1>=$J$17,0,AD72*(1+Captura!$D$35)) -> 0 | AE84: =IF(U84+1>=$J$17,0,AE72*(1+Captura!$D$35)) -> 0 | AG84: =+(W84+AB84+AC84+AD84+AE84+AF84)*Captura!$C$19 -> 0 | AH84: 0 | AJ84: 0 | AK84: 0
B85: 57 | C85: 2030-12-06 | D85: =IF(B85<J$17,Captura!$M$16,0) -> 0 | H85: 0 | K85: =IF(B85+1>=$J$17,0,K73*(1+Captura!$D$35)) -> 0 | L85: =IF(B85+1>=$J$17,0,L73*(1+Captura!$D$35)) -> 0 | M85: =IF(B85+1>=$J$17,0,M73*(1+Captura!$D$35)) -> 0 | O85: =IF(B85=J$17,Captura!$M$29,0) -> 0 | P85: =SUM(D85:F85,I85:N85)*Captura!$C$19 -> 0 | Q85: 0 | T85: 10 | U85: 57 | V85: 5.255053448e-13 | X85: =+V84*Captura!$O$9/12 -> 6.91454401e-15 | Y85: -6.91454401e-15 | Z85: 0 | AA85: =IF(U85=J$17,Captura!$M$33,0) -> 0 | AC85: =IF(U85+1>=$J$17,0,AC73*(1+Captura!$D$35)) -> 0 | AD85: =IF(U85+1>=$J$17,0,AD73*(1+Captura!$D$35)) -> 0 | AE85: =IF(U85+1>=$J$17,0,AE73*(1+Captura!$D$35)) -> 0 | AG85: =+(W85+AB85+AC85+AD85+AE85+AF85)*Captura!$C$19 -> 0 | AH85: 0 | AJ85: 0 | AK85: 0
B86: 58 | C86: 2031-01-06 | D86: =IF(B86<J$17,Captura!$M$16,0) -> 0 | H86: 0 | K86: =IF(B86+1>=$J$17,0,K74*(1+Captura!$D$35)) -> 0 | L86: =IF(B86+1>=$J$17,0,L74*(1+Captura!$D$35)) -> 0 | M86: =IF(B86+1>=$J$17,0,M74*(1+Captura!$D$35)) -> 0 | O86: =IF(B86=J$17,Captura!$M$29,0) -> 0 | P86: =SUM(D86:F86,I86:N86)*Captura!$C$19 -> 0 | Q86: 0 | T86: 11 | U86: 58 | V86: 5.325120827e-13 | X86: =+V85*Captura!$O$9/12 -> 7.00673793e-15 | Y86: -7.00673793e-15 | Z86: 0 | AA86: =IF(U86=J$17,Captura!$M$33,0) -> 0 | AC86: =IF(U86+1>=$J$17,0,AC74*(1+Captura!$D$35)) -> 0 | AD86: =IF(U86+1>=$J$17,0,AD74*(1+Captura!$D$35)) -> 0 | AE86: =IF(U86+1>=$J$17,0,AE74*(1+Captura!$D$35)) -> 0 | AG86: =+(W86+AB86+AC86+AD86+AE86+AF86)*Captura!$C$19 -> 0 | AH86: 0 | AJ86: 0 | AK86: 0
B87: 59 | C87: 2031-02-06 | D87: =IF(B87<J$17,Captura!$M$16,0) -> 0 | H87: 0 | K87: =IF(B87+1>=$J$17,0,K75*(1+Captura!$D$35)) -> 0 | L87: =IF(B87+1>=$J$17,0,L75*(1+Captura!$D$35)) -> 0 | M87: =IF(B87+1>=$J$17,0,M75*(1+Captura!$D$35)) -> 0 | O87: =IF(B87=J$17,Captura!$M$29,0) -> 0 | P87: =SUM(D87:F87,I87:N87)*Captura!$C$19 -> 0 | Q87: 0 | T87: 12 | U87: 59 | V87: 5.396122438e-13 | X87: =+V86*Captura!$O$9/12 -> 7.100161103e-15 | Y87: -7.100161103e-15 | Z87: 0 | AA87: =IF(U87=J$17,Captura!$M$33,0) -> 0 | AC87: =IF(U87+1>=$J$17,0,AC75*(1+Captura!$D$35)) -> 0 | AD87: =IF(U87+1>=$J$17,0,AD75*(1+Captura!$D$35)) -> 0 | AE87: =IF(U87+1>=$J$17,0,AE75*(1+Captura!$D$35)) -> 0 | AG87: =+(W87+AB87+AC87+AD87+AE87+AF87)*Captura!$C$19 -> 0 | AH87: 0 | AJ87: 0 | AK87: 0
B88: 60 | C88: 2031-03-06 | D88: =IF(B88<J$17,Captura!$M$16,0) -> 0 | H88: 0 | K88: =IF(B88+1>=$J$17,0,K76*(1+Captura!$D$35)) -> 0 | L88: =IF(B88+1>=$J$17,0,L76*(1+Captura!$D$35)) -> 0 | M88: =IF(B88+1>=$J$17,0,M76*(1+Captura!$D$35)) -> 0 | O88: =IF(B88=J$17,Captura!$M$29,0) -> 0 | P88: =SUM(D88:F88,I88:N88)*Captura!$C$19 -> 0 | Q88: 0 | T88: 1 | U88: 60 | V88: 5.468070737e-13 | X88: =+V87*Captura!$O$9/12 -> 7.194829917e-15 | Y88: -7.194829917e-15 | Z88: 0 | AA88: =IF(U88=J$17,Captura!$M$33,0) -> 0 | AC88: =IF(U88+1>=$J$17,0,AC76*(1+Captura!$D$35)) -> 0 | AD88: =IF(U88+1>=$J$17,0,AD76*(1+Captura!$D$35)) -> 0 | AE88: =IF(U88+1>=$J$17,0,AE76*(1+Captura!$D$35)) -> 0 | AG88: =+(W88+AB88+AC88+AD88+AE88+AF88)*Captura!$C$19 -> 0 | AH88: 0 | AJ88: 0 | AK88: 0
B92: Notas:
B93: 1. Esta cotización no es una autorización y no representa ninguna obligación para Leasing Mobile de México, S. A. de C. V.
B94: 2. La información descrita en el presente documento está sujeta a cambios sin previo aviso.
B95: 3. Esta cotización no considera gastos que el equipo requiera para su adquisición, uso o mantenimiento.
B96: 4. Las rentas en depósito serán devueltas al cumplimiento de todas las obligaciones contractauales del Arrendatario.
B107: __________________________________
B108: Leasing Mobile de Mexico, SA de CV
B109: =+Captura!D31 -> xxxx
B110: =+Captura!D32 -> xxxx
B111: =+Captura!D33 -> xxxx

Sheet Plazo 4 (hidden)
B7: Cotización
B8: Arrendamiento Puro
P10: =+Captura!N3 -> 2026-03-06
B12: Cliente: | E12: =+Captura!D7 -> SOPORTE LOGISTICO EXPRESS | J12: Teléfono | K12: =+Captura!D9 -> 0
B13: Atención: | E13: =+Captura!D8 -> A QUIEN CORRESPONDA | J13: E-mail | K13: =+Captura!D10 -> 0
Q14: =+Captura!O40 -> v. 20240220
B17: Tipo de equipo | E17: =+Captura!T7 -> Vehículo utilitario | H17: Plazo del arrendamiento | J17: =+Captura!N13 -> 48 | L17: Gestoría y Registro | N17: =+Captura!F23 -> Pago único | AJ17: Valor presente de flujos
B18: Estado del equipo | E18: =+Captura!T17 -> Nuevo | H18: No. de rentas en depósito | J18: =+Captura!K8 -> 0 | L18: Equipo de geolocalizacióon | N18: =+Captura!F24 -> Pago único | Q18: =+Captura!N36 -> 0 | AJ18: =NPV(Captura!$D$35/12,AJ29:AJ88)+AJ28 -> -13936.62284 | AK18: =NPV(Captura!$D$35/12,AK29:AK88)+AK28 -> 399.8600728
B19: Descripción | E19: =+Captura!D15 -> LAP TOP DELL PRO 14", 16 GB | H19: Comisión de apertura | J19: =+Captura!K9 -> 0.03 | L19: Seguro de daños | N19: =+Captura!T26 -> Pago en renta | AJ19: Tasa Interna de Retorno
H20: Anticipo | J20: =+Captura!K10 -> 733.5064655 | L20: Placas y Tenencia | N20: =+Captura!T33 -> Pago anual | AJ20: =IRR(AJ28:AJ88,0.01)*12 ->  | AK20: =IRR(AK28:AK88,0.01)*12 -> 0.007797623706
H21: Residual estimado | J21: Valor mercado | L21: Servicio de geolocalización | N21: =+Captura!T40 -> Pago anual | Q21: =+Captura!N37 -> Positivo | AJ21: Capital Req. | AK21: =+Captura!N34 -> 8626.036034
B22: Valor factura sin IVA | E22: =+Captura!G18 -> 14670.12931 | L22: =+Captura!I25 -> Otro | N22: =+Captura!F28 -> 0 | AJ22: VP / CR | AK22: =+(AJ18+AK18)/AK21 -> -1.569291239
B23: IVA | E23: =+Captura!G19 -> 2347.22069 | Q23: Regresar
B24: Valor factua con IVA | E24: =+Captura!G20 -> 17017.35 | AJ24: Indicador anualizado | AK24: =+AK22/J17*12 -> -0.3923228096
B26: Periodo | C26: Mes | D26: Renta | E26: Anticipo | F26: Comisión de apertura | G26: Rentas en depósito | H26: Devolución de rentas en depósito | I26: Gestoría y Registro | J26: Equipo de geo localización | K26: Seguro de daños | L26: Placas y Tenencia | M26: Servicio de geo localización | N26: =+L22 -> Otro | O26: Residual estimado | P26: IVA | Q26: TOTAL | T26: Mes | U26: Periodo | V26: Fondeo | W26: Comisión de apertura | X26: Intereses | Y26: Capital | Z26: Pago | AA26: Bullet | AB26: Equipo de geo localización | AC26: Seguro de daños | AD26: Placas y Tenencia | AE26: Servicio de geo localización | AF26: Otro | AG26: IVA | AH26: TOTAL | AJ26: Flujo Activo sin IVA | AK26: Flujo Pasivo sin IVA
B28: 0 | C28: =+P10 -> 2026-03-06 | D28: =+Captura!N16+Resumen!M29+Resumen!L30 -> 0 | E28: =+Captura!K10 -> 733.5064655 | F28: =+Captura!N18 -> 0 | G28: =+Captura!N19 -> 0 | H28: =IF(B28=J$17,-G$28,0) -> 0 | I28: =+Captura!N20 -> 0 | J28: =+Captura!N21 -> 0 | K28: =+Captura!N22 -> 0 | L28: =+Captura!N23 -> 0 | M28: =+Captura!N24 -> 0 | N28: =+Captura!N25 -> 0 | O28: =IF(B28=J$17,Captura!$N$29,0) -> 0 | P28: =SUM(D28:F28,I28:N28)*Captura!$C$19 -> 117.3610345 | Q28: =SUM(D28:P28)-O28 -> 850.8675 | T28: 1 | U28: =+B28 -> 0 | V28: =+Captura!O8 -> 8391.313966 | W28: =+Captura!N31 -> 0 | AB28: =+J28 -> 0 | AC28: =+Captura!G25 -> 2000 | AD28: =+Captura!G26 -> 0 | AE28: =+Captura!G27 -> 0 | AF28: =+N28 -> 0 | AG28: =+(W28+AB28+AC28+AD28+AE28+AF28)*Captura!$C$19 -> 320 | AH28: =SUM(W28,Z28:AG28) -> 2320 | AJ28: =-E22+(Q28-P28)+O28 -> -13936.62284 | AK28: =+V28-(AH28-AG28) -> 6391.313966
B29: 1 | C29: =EDATE(C28,1) -> 2026-04-06 | D29: =IF(B29<J$17,Captura!$N$16,0)+Resumen!$L$29+Resumen!$L$30 -> 0 | H29: 0 | K29: 0 | L29: 0 | M29: 0 | O29: =IF(B29=J$17,Captura!$N$29,0) -> 0 | P29: =SUM(D29:F29,I29:N29)*Captura!$C$19 -> 0 | Q29: =SUM(D29:P29)-O29 -> 0 | T29: =IF(T28=12,1,T28+1) -> 2 | U29: =+B29 -> 1 | V29: =+V28-Y29-AA29 -> 8503.198152 | X29: =+V28*Captura!$O$9/12 -> 111.8841862 | Y29: =+Z29-X29 -> -111.8841862 | Z29: =+Captura!N30 -> 0 | AA29: =IF(U29=J$17,Captura!$N$33,0) -> 0 | AC29: 0 | AD29: 0 | AE29: 0 | AG29: =+(W29+AB29+AC29+AD29+AE29+AF29)*Captura!$C$19 -> 0 | AH29: =SUM(W29,Z29:AG29) -> 0 | AJ29: =Q29-P29+O29 -> 0 | AK29: =-(AH29-AG29) -> 0
B30: 2 | C30: =EDATE(C29,1) -> 2026-05-06 | D30: =IF(B30<J$17,Captura!$N$16,0)+Resumen!$L$29+Resumen!$L$30 -> 0 | H30: 0 | K30: 0 | L30: 0 | M30: 0 | O30: =IF(B30=J$17,Captura!$N$29,0) -> 0 | P30: =SUM(D30:F30,I30:N30)*Captura!$C$19 -> 0 | Q30: 0 | T30: =IF(T29=12,1,T29+1) -> 3 | U30: 2 | V30: =+V29-Y30-AA30 -> 8616.574127 | X30: =+V29*Captura!$O$9/12 -> 113.3759754 | Y30: =+Z30-X30 -> -113.3759754 | Z30: =IF(U30>J$17,0,Z29) -> 0 | AA30: =IF(U30=J$17,Captura!$N$33,0) -> 0 | AC30: 0 | AD30: 0 | AE30: 0 | AG30: =+(W30+AB30+AC30+AD30+AE30+AF30)*Captura!$C$19 -> 0 | AH30: 0 | AJ30: =Q30-P30+O30 -> 0 | AK30: =-(AH30-AG30) -> 0
B31: 3 | C31: 2026-06-06 | D31: =IF(B31<J$17,Captura!$N$16,0)+Resumen!$L$29+Resumen!$L$30 -> 0 | H31: 0 | K31: 0 | L31: 0 | M31: 0 | O31: =IF(B31=J$17,Captura!$N$29,0) -> 0 | P31: =SUM(D31:F31,I31:N31)*Captura!$C$19 -> 0 | Q31: 0 | T31: 4 | U31: 3 | V31: 8731.461782 | X31: =+V30*Captura!$O$9/12 -> 114.887655 | Y31: -114.887655 | Z31: =IF(U31>J$17,0,Z30) -> 0 | AA31: =IF(U31=J$17,Captura!$N$33,0) -> 0 | AC31: 0 | AD31: 0 | AE31: 0 | AG31: =+(W31+AB31+AC31+AD31+AE31+AF31)*Captura!$C$19 -> 0 | AH31: 0 | AJ31: 0 | AK31: 0
B32: 4 | C32: 2026-07-06 | D32: =IF(B32<J$17,Captura!$N$16,0)+Resumen!$L$29+Resumen!$L$30 -> 0 | H32: 0 | K32: 0 | L32: 0 | M32: 0 | O32: =IF(B32=J$17,Captura!$N$29,0) -> 0 | P32: =SUM(D32:F32,I32:N32)*Captura!$C$19 -> 0 | Q32: 0 | T32: 5 | U32: 4 | V32: 8847.881273 | X32: =+V31*Captura!$O$9/12 -> 116.4194904 | Y32: -116.4194904 | Z32: 0 | AA32: =IF(U32=J$17,Captura!$N$33,0) -> 0 | AC32: 0 | AD32: 0 | AE32: 0 | AG32: =+(W32+AB32+AC32+AD32+AE32+AF32)*Captura!$C$19 -> 0 | AH32: 0 | AJ32: 0 | AK32: 0
B33: 5 | C33: 2026-08-06 | D33: =IF(B33<J$17,Captura!$N$16,0)+Resumen!$L$29+Resumen!$L$30 -> 0 | H33: 0 | K33: 0 | L33: 0 | M33: 0 | O33: =IF(B33=J$17,Captura!$N$29,0) -> 0 | P33: =SUM(D33:F33,I33:N33)*Captura!$C$19 -> 0 | Q33: 0 | T33: 6 | U33: 5 | V33: 8965.853023 | X33: =+V32*Captura!$O$9/12 -> 117.9717503 | Y33: -117.9717503 | Z33: 0 | AA33: =IF(U33=J$17,Captura!$N$33,0) -> 0 | AC33: 0 | AD33: 0 | AE33: 0 | AG33: =+(W33+AB33+AC33+AD33+AE33+AF33)*Captura!$C$19 -> 0 | AH33: 0 | AJ33: 0 | AK33: 0
B34: 6 | C34: 2026-09-06 | D34: =IF(B34<J$17,Captura!$N$16,0)+Resumen!$L$29+Resumen!$L$30 -> 0 | H34: 0 | K34: 0 | L34: 0 | M34: 0 | O34: =IF(B34=J$17,Captura!$N$29,0) -> 0 | P34: =SUM(D34:F34,I34:N34)*Captura!$C$19 -> 0 | Q34: 0 | T34: 7 | U34: 6 | V34: 9085.39773 | X34: =+V33*Captura!$O$9/12 -> 119.544707 | Y34: -119.544707 | Z34: 0 | AA34: =IF(U34=J$17,Captura!$N$33,0) -> 0 | AC34: 0 | AD34: 0 | AE34: 0 | AG34: =+(W34+AB34+AC34+AD34+AE34+AF34)*Captura!$C$19 -> 0 | AH34: 0 | AJ34: 0 | AK34: 0
B35: 7 | C35: 2026-10-06 | D35: =IF(B35<J$17,Captura!$N$16,0)+Resumen!$L$29+Resumen!$L$30 -> 0 | H35: 0 | K35: 0 | L35: 0 | M35: 0 | O35: =IF(B35=J$17,Captura!$N$29,0) -> 0 | P35: =SUM(D35:F35,I35:N35)*Captura!$C$19 -> 0 | Q35: 0 | T35: 8 | U35: 7 | V35: 9206.536366 | X35: =+V34*Captura!$O$9/12 -> 121.1386364 | Y35: -121.1386364 | Z35: 0 | AA35: =IF(U35=J$17,Captura!$N$33,0) -> 0 | AC35: 0 | AD35: 0 | AE35: 0 | AG35: =+(W35+AB35+AC35+AD35+AE35+AF35)*Captura!$C$19 -> 0 | AH35: 0 | AJ35: 0 | AK35: 0
B36: 8 | C36: 2026-11-06 | D36: =IF(B36<J$17,Captura!$N$16,0)+Resumen!$L$29+Resumen!$L$30 -> 0 | H36: 0 | K36: 0 | L36: 0 | M36: 0 | O36: =IF(B36=J$17,Captura!$N$29,0) -> 0 | P36: =SUM(D36:F36,I36:N36)*Captura!$C$19 -> 0 | Q36: 0 | T36: 9 | U36: 8 | V36: 9329.290184 | X36: =+V35*Captura!$O$9/12 -> 122.7538182 | Y36: -122.7538182 | Z36: 0 | AA36: =IF(U36=J$17,Captura!$N$33,0) -> 0 | AC36: 0 | AD36: 0 | AE36: 0 | AG36: =+(W36+AB36+AC36+AD36+AE36+AF36)*Captura!$C$19 -> 0 | AH36: 0 | AJ36: 0 | AK36: 0
B37: 9 | C37: 2026-12-06 | D37: =IF(B37<J$17,Captura!$N$16,0)+Resumen!$L$29+Resumen!$L$30 -> 0 | H37: 0 | K37: 0 | L37: 0 | M37: 0 | O37: =IF(B37=J$17,Captura!$N$29,0) -> 0 | P37: =SUM(D37:F37,I37:N37)*Captura!$C$19 -> 0 | Q37: 0 | T37: 10 | U37: 9 | V37: 9453.68072 | X37: =+V36*Captura!$O$9/12 -> 124.3905358 | Y37: -124.3905358 | Z37: 0 | AA37: =IF(U37=J$17,Captura!$N$33,0) -> 0 | AC37: 0 | AD37: 0 | AE37: 0 | AG37: =+(W37+AB37+AC37+AD37+AE37+AF37)*Captura!$C$19 -> 0 | AH37: 0 | AJ37: 0 | AK37: 0
B38: 10 | C38: 2027-01-06 | D38: =IF(B38<J$17,Captura!$N$16,0)+Resumen!$L$29+Resumen!$L$30 -> 0 | H38: 0 | K38: 0 | L38: 0 | M38: 0 | O38: =IF(B38=J$17,Captura!$N$29,0) -> 0 | P38: =SUM(D38:F38,I38:N38)*Captura!$C$19 -> 0 | Q38: 0 | T38: 11 | U38: 10 | V38: 9579.729796 | X38: =+V37*Captura!$O$9/12 -> 126.0490763 | Y38: -126.0490763 | Z38: 0 | AA38: =IF(U38=J$17,Captura!$N$33,0) -> 0 | AC38: 0 | AD38: 0 | AE38: 0 | AG38: =+(W38+AB38+AC38+AD38+AE38+AF38)*Captura!$C$19 -> 0 | AH38: 0 | AJ38: 0 | AK38: 0
B39: 11 | C39: 2027-02-06 | D39: =IF(B39<J$17,Captura!$N$16,0)+Resumen!$L$29+Resumen!$L$30 -> 0 | H39: 0 | K39: 0 | L39: 0 | M39: 0 | O39: =IF(B39=J$17,Captura!$N$29,0) -> 0 | P39: =SUM(D39:F39,I39:N39)*Captura!$C$19 -> 0 | Q39: 0 | T39: 12 | U39: 11 | V39: 9707.459527 | X39: =+V38*Captura!$O$9/12 -> 127.7297306 | Y39: -127.7297306 | Z39: 0 | AA39: =IF(U39=J$17,Captura!$N$33,0) -> 0 | AC39: 0 | AD39: 0 | AE39: 0 | AG39: =+(W39+AB39+AC39+AD39+AE39+AF39)*Captura!$C$19 -> 0 | AH39: 0 | AJ39: 0 | AK39: 0
B40: 12 | C40: 2027-03-06 | D40: =IF(B40<J$17,Captura!$N$16,0)+Resumen!$L$29+Resumen!$L$30 -> 0 | H40: 0 | K40: =IF(B40+1>=$J$17,0,K28*(1+Captura!$D$35)) -> 0 | L40: =IF(B40+1>=$J$17,0,L28*(1+Captura!$D$35)) -> 0 | M40: =IF(B40+1>=$J$17,0,M28*(1+Captura!$D$35)) -> 0 | O40: =IF(B40=J$17,Captura!$N$29,0) -> 0 | P40: =SUM(D40:F40,I40:N40)*Captura!$C$19 -> 0 | Q40: 0 | T40: 1 | U40: 12 | V40: 9836.892321 | X40: =+V39*Captura!$O$9/12 -> 129.4327937 | Y40: -129.4327937 | Z40: 0 | AA40: =IF(U40=J$17,Captura!$N$33,0) -> 0 | AC40: =IF(U40+1>=$J$17,0,AC28*(1+Captura!$D$35)) -> 2080 | AD40: =IF(U40+1>=$J$17,0,AD28*(1+Captura!$D$35)) -> 0 | AE40: =IF(U40+1>=$J$17,0,AE28*(1+Captura!$D$35)) -> 0 | AG40: =+(W40+AB40+AC40+AD40+AE40+AF40)*Captura!$C$19 -> 332.8 | AH40: 2412.8 | AJ40: 0 | AK40: -2080
B41: 13 | C41: 2027-04-06 | D41: =IF(B41<J$17,Captura!$N$16,0)+Resumen!$L$29+Resumen!$L$30 -> 0 | H41: 0 | K41: =IF(B41+1>=$J$17,0,K29*(1+Captura!$D$35)) -> 0 | L41: =IF(B41+1>=$J$17,0,L29*(1+Captura!$D$35)) -> 0 | M41: =IF(B41+1>=$J$17,0,M29*(1+Captura!$D$35)) -> 0 | O41: =IF(B41=J$17,Captura!$N$29,0) -> 0 | P41: =SUM(D41:F41,I41:N41)*Captura!$C$19 -> 0 | Q41: 0 | T41: 2 | U41: 13 | V41: 9968.050885 | X41: =+V40*Captura!$O$9/12 -> 131.1585643 | Y41: -131.1585643 | Z41: 0 | AA41: =IF(U41=J$17,Captura!$N$33,0) -> 0 | AC41: =IF(U41+1>=$J$17,0,AC29*(1+Captura!$D$35)) -> 0 | AD41: =IF(U41+1>=$J$17,0,AD29*(1+Captura!$D$35)) -> 0 | AE41: =IF(U41+1>=$J$17,0,AE29*(1+Captura!$D$35)) -> 0 | AG41: =+(W41+AB41+AC41+AD41+AE41+AF41)*Captura!$C$19 -> 0 | AH41: 0 | AJ41: 0 | AK41: 0
B42: 14 | C42: 2027-05-06 | D42: =IF(B42<J$17,Captura!$N$16,0)+Resumen!$L$29+Resumen!$L$30 -> 0 | H42: 0 | K42: =IF(B42+1>=$J$17,0,K30*(1+Captura!$D$35)) -> 0 | L42: =IF(B42+1>=$J$17,0,L30*(1+Captura!$D$35)) -> 0 | M42: =IF(B42+1>=$J$17,0,M30*(1+Captura!$D$35)) -> 0 | O42: =IF(B42=J$17,Captura!$N$29,0) -> 0 | P42: =SUM(D42:F42,I42:N42)*Captura!$C$19 -> 0 | Q42: 0 | T42: 3 | U42: 14 | V42: 10100.95823 | X42: =+V41*Captura!$O$9/12 -> 132.9073451 | Y42: -132.9073451 | Z42: 0 | AA42: =IF(U42=J$17,Captura!$N$33,0) -> 0 | AC42: =IF(U42+1>=$J$17,0,AC30*(1+Captura!$D$35)) -> 0 | AD42: =IF(U42+1>=$J$17,0,AD30*(1+Captura!$D$35)) -> 0 | AE42: =IF(U42+1>=$J$17,0,AE30*(1+Captura!$D$35)) -> 0 | AG42: =+(W42+AB42+AC42+AD42+AE42+AF42)*Captura!$C$19 -> 0 | AH42: 0 | AJ42: 0 | AK42: 0
B43: 15 | C43: 2027-06-06 | D43: =IF(B43<J$17,Captura!$N$16,0)+Resumen!$L$29+Resumen!$L$30 -> 0 | H43: 0 | K43: =IF(B43+1>=$J$17,0,K31*(1+Captura!$D$35)) -> 0 | L43: =IF(B43+1>=$J$17,0,L31*(1+Captura!$D$35)) -> 0 | M43: =IF(B43+1>=$J$17,0,M31*(1+Captura!$D$35)) -> 0 | O43: =IF(B43=J$17,Captura!$N$29,0) -> 0 | P43: =SUM(D43:F43,I43:N43)*Captura!$C$19 -> 0 | Q43: 0 | T43: 4 | U43: 15 | V43: 10235.63767 | X43: =+V42*Captura!$O$9/12 -> 134.6794431 | Y43: -134.6794431 | Z43: 0 | AA43: =IF(U43=J$17,Captura!$N$33,0) -> 0 | AC43: =IF(U43+1>=$J$17,0,AC31*(1+Captura!$D$35)) -> 0 | AD43: =IF(U43+1>=$J$17,0,AD31*(1+Captura!$D$35)) -> 0 | AE43: =IF(U43+1>=$J$17,0,AE31*(1+Captura!$D$35)) -> 0 | AG43: =+(W43+AB43+AC43+AD43+AE43+AF43)*Captura!$C$19 -> 0 | AH43: 0 | AJ43: 0 | AK43: 0
B44: 16 | C44: 2027-07-06 | D44: =IF(B44<J$17,Captura!$N$16,0)+Resumen!$L$29+Resumen!$L$30 -> 0 | H44: 0 | K44: =IF(B44+1>=$J$17,0,K32*(1+Captura!$D$35)) -> 0 | L44: =IF(B44+1>=$J$17,0,L32*(1+Captura!$D$35)) -> 0 | M44: =IF(B44+1>=$J$17,0,M32*(1+Captura!$D$35)) -> 0 | O44: =IF(B44=J$17,Captura!$N$29,0) -> 0 | P44: =SUM(D44:F44,I44:N44)*Captura!$C$19 -> 0 | Q44: 0 | T44: 5 | U44: 16 | V44: 10372.11284 | X44: =+V43*Captura!$O$9/12 -> 136.475169 | Y44: -136.475169 | Z44: 0 | AA44: =IF(U44=J$17,Captura!$N$33,0) -> 0 | AC44: =IF(U44+1>=$J$17,0,AC32*(1+Captura!$D$35)) -> 0 | AD44: =IF(U44+1>=$J$17,0,AD32*(1+Captura!$D$35)) -> 0 | AE44: =IF(U44+1>=$J$17,0,AE32*(1+Captura!$D$35)) -> 0 | AG44: =+(W44+AB44+AC44+AD44+AE44+AF44)*Captura!$C$19 -> 0 | AH44: 0 | AJ44: 0 | AK44: 0
B45: 17 | C45: 2027-08-06 | D45: =IF(B45<J$17,Captura!$N$16,0)+Resumen!$L$29+Resumen!$L$30 -> 0 | H45: 0 | K45: =IF(B45+1>=$J$17,0,K33*(1+Captura!$D$35)) -> 0 | L45: =IF(B45+1>=$J$17,0,L33*(1+Captura!$D$35)) -> 0 | M45: =IF(B45+1>=$J$17,0,M33*(1+Captura!$D$35)) -> 0 | O45: =IF(B45=J$17,Captura!$N$29,0) -> 0 | P45: =SUM(D45:F45,I45:N45)*Captura!$C$19 -> 0 | Q45: 0 | T45: 6 | U45: 17 | V45: 10510.40768 | X45: =+V44*Captura!$O$9/12 -> 138.2948379 | Y45: -138.2948379 | Z45: 0 | AA45: =IF(U45=J$17,Captura!$N$33,0) -> 0 | AC45: =IF(U45+1>=$J$17,0,AC33*(1+Captura!$D$35)) -> 0 | AD45: =IF(U45+1>=$J$17,0,AD33*(1+Captura!$D$35)) -> 0 | AE45: =IF(U45+1>=$J$17,0,AE33*(1+Captura!$D$35)) -> 0 | AG45: =+(W45+AB45+AC45+AD45+AE45+AF45)*Captura!$C$19 -> 0 | AH45: 0 | AJ45: 0 | AK45: 0
B46: 18 | C46: 2027-09-06 | D46: =IF(B46<J$17,Captura!$N$16,0)+Resumen!$L$29+Resumen!$L$30 -> 0 | H46: 0 | K46: =IF(B46+1>=$J$17,0,K34*(1+Captura!$D$35)) -> 0 | L46: =IF(B46+1>=$J$17,0,L34*(1+Captura!$D$35)) -> 0 | M46: =IF(B46+1>=$J$17,0,M34*(1+Captura!$D$35)) -> 0 | O46: =IF(B46=J$17,Captura!$N$29,0) -> 0 | P46: =SUM(D46:F46,I46:N46)*Captura!$C$19 -> 0 | Q46: 0 | T46: 7 | U46: 18 | V46: 10650.54645 | X46: =+V45*Captura!$O$9/12 -> 140.1387691 | Y46: -140.1387691 | Z46: 0 | AA46: =IF(U46=J$17,Captura!$N$33,0) -> 0 | AC46: =IF(U46+1>=$J$17,0,AC34*(1+Captura!$D$35)) -> 0 | AD46: =IF(U46+1>=$J$17,0,AD34*(1+Captura!$D$35)) -> 0 | AE46: =IF(U46+1>=$J$17,0,AE34*(1+Captura!$D$35)) -> 0 | AG46: =+(W46+AB46+AC46+AD46+AE46+AF46)*Captura!$C$19 -> 0 | AH46: 0 | AJ46: 0 | AK46: 0
B47: 19 | C47: 2027-10-06 | D47: =IF(B47<J$17,Captura!$N$16,0)+Resumen!$L$29+Resumen!$L$30 -> 0 | H47: 0 | K47: =IF(B47+1>=$J$17,0,K35*(1+Captura!$D$35)) -> 0 | L47: =IF(B47+1>=$J$17,0,L35*(1+Captura!$D$35)) -> 0 | M47: =IF(B47+1>=$J$17,0,M35*(1+Captura!$D$35)) -> 0 | O47: =IF(B47=J$17,Captura!$N$29,0) -> 0 | P47: =SUM(D47:F47,I47:N47)*Captura!$C$19 -> 0 | Q47: 0 | T47: 8 | U47: 19 | V47: 10792.55374 | X47: =+V46*Captura!$O$9/12 -> 142.007286 | Y47: -142.007286 | Z47: 0 | AA47: =IF(U47=J$17,Captura!$N$33,0) -> 0 | AC47: =IF(U47+1>=$J$17,0,AC35*(1+Captura!$D$35)) -> 0 | AD47: =IF(U47+1>=$J$17,0,AD35*(1+Captura!$D$35)) -> 0 | AE47: =IF(U47+1>=$J$17,0,AE35*(1+Captura!$D$35)) -> 0 | AG47: =+(W47+AB47+AC47+AD47+AE47+AF47)*Captura!$C$19 -> 0 | AH47: 0 | AJ47: 0 | AK47: 0
B48: 20 | C48: 2027-11-06 | D48: =IF(B48<J$17,Captura!$N$16,0)+Resumen!$L$29+Resumen!$L$30 -> 0 | H48: 0 | K48: =IF(B48+1>=$J$17,0,K36*(1+Captura!$D$35)) -> 0 | L48: =IF(B48+1>=$J$17,0,L36*(1+Captura!$D$35)) -> 0 | M48: =IF(B48+1>=$J$17,0,M36*(1+Captura!$D$35)) -> 0 | O48: =IF(B48=J$17,Captura!$N$29,0) -> 0 | P48: =SUM(D48:F48,I48:N48)*Captura!$C$19 -> 0 | Q48: 0 | T48: 9 | U48: 20 | V48: 10936.45445 | X48: =+V47*Captura!$O$9/12 -> 143.9007165 | Y48: -143.9007165 | Z48: 0 | AA48: =IF(U48=J$17,Captura!$N$33,0) -> 0 | AC48: =IF(U48+1>=$J$17,0,AC36*(1+Captura!$D$35)) -> 0 | AD48: =IF(U48+1>=$J$17,0,AD36*(1+Captura!$D$35)) -> 0 | AE48: =IF(U48+1>=$J$17,0,AE36*(1+Captura!$D$35)) -> 0 | AG48: =+(W48+AB48+AC48+AD48+AE48+AF48)*Captura!$C$19 -> 0 | AH48: 0 | AJ48: 0 | AK48: 0
B49: 21 | C49: 2027-12-06 | D49: =IF(B49<J$17,Captura!$N$16,0)+Resumen!$L$29+Resumen!$L$30 -> 0 | H49: 0 | K49: =IF(B49+1>=$J$17,0,K37*(1+Captura!$D$35)) -> 0 | L49: =IF(B49+1>=$J$17,0,L37*(1+Captura!$D$35)) -> 0 | M49: =IF(B49+1>=$J$17,0,M37*(1+Captura!$D$35)) -> 0 | O49: =IF(B49=J$17,Captura!$N$29,0) -> 0 | P49: =SUM(D49:F49,I49:N49)*Captura!$C$19 -> 0 | Q49: 0 | T49: 10 | U49: 21 | V49: 11082.27384 | X49: =+V48*Captura!$O$9/12 -> 145.8193927 | Y49: -145.8193927 | Z49: 0 | AA49: =IF(U49=J$17,Captura!$N$33,0) -> 0 | AC49: =IF(U49+1>=$J$17,0,AC37*(1+Captura!$D$35)) -> 0 | AD49: =IF(U49+1>=$J$17,0,AD37*(1+Captura!$D$35)) -> 0 | AE49: =IF(U49+1>=$J$17,0,AE37*(1+Captura!$D$35)) -> 0 | AG49: =+(W49+AB49+AC49+AD49+AE49+AF49)*Captura!$C$19 -> 0 | AH49: 0 | AJ49: 0 | AK49: 0
B50: 22 | C50: 2028-01-06 | D50: =IF(B50<J$17,Captura!$N$16,0)+Resumen!$L$29+Resumen!$L$30 -> 0 | H50: 0 | K50: =IF(B50+1>=$J$17,0,K38*(1+Captura!$D$35)) -> 0 | L50: =IF(B50+1>=$J$17,0,L38*(1+Captura!$D$35)) -> 0 | M50: =IF(B50+1>=$J$17,0,M38*(1+Captura!$D$35)) -> 0 | O50: =IF(B50=J$17,Captura!$N$29,0) -> 0 | P50: =SUM(D50:F50,I50:N50)*Captura!$C$19 -> 0 | Q50: 0 | T50: 11 | U50: 22 | V50: 11230.0375 | X50: =+V49*Captura!$O$9/12 -> 147.7636513 | Y50: -147.7636513 | Z50: 0 | AA50: =IF(U50=J$17,Captura!$N$33,0) -> 0 | AC50: =IF(U50+1>=$J$17,0,AC38*(1+Captura!$D$35)) -> 0 | AD50: =IF(U50+1>=$J$17,0,AD38*(1+Captura!$D$35)) -> 0 | AE50: =IF(U50+1>=$J$17,0,AE38*(1+Captura!$D$35)) -> 0 | AG50: =+(W50+AB50+AC50+AD50+AE50+AF50)*Captura!$C$19 -> 0 | AH50: 0 | AJ50: 0 | AK50: 0
B51: 23 | C51: 2028-02-06 | D51: =IF(B51<J$17,Captura!$N$16,0)+Resumen!$L$29+Resumen!$L$30 -> 0 | H51: 0 | K51: =IF(B51+1>=$J$17,0,K39*(1+Captura!$D$35)) -> 0 | L51: =IF(B51+1>=$J$17,0,L39*(1+Captura!$D$35)) -> 0 | M51: =IF(B51+1>=$J$17,0,M39*(1+Captura!$D$35)) -> 0 | O51: =IF(B51=J$17,Captura!$N$29,0) -> 0 | P51: =SUM(D51:F51,I51:N51)*Captura!$C$19 -> 0 | Q51: 0 | T51: 12 | U51: 23 | V51: 11379.77133 | X51: =+V50*Captura!$O$9/12 -> 149.7338333 | Y51: -149.7338333 | Z51: 0 | AA51: =IF(U51=J$17,Captura!$N$33,0) -> 0 | AC51: =IF(U51+1>=$J$17,0,AC39*(1+Captura!$D$35)) -> 0 | AD51: =IF(U51+1>=$J$17,0,AD39*(1+Captura!$D$35)) -> 0 | AE51: =IF(U51+1>=$J$17,0,AE39*(1+Captura!$D$35)) -> 0 | AG51: =+(W51+AB51+AC51+AD51+AE51+AF51)*Captura!$C$19 -> 0 | AH51: 0 | AJ51: 0 | AK51: 0
B52: 24 | C52: 2028-03-06 | D52: =IF(B52<J$17,Captura!$N$16,0)+Resumen!$L$29+Resumen!$L$30 -> 0 | H52: 0 | K52: =IF(B52+1>=$J$17,0,K40*(1+Captura!$D$35)) -> 0 | L52: =IF(B52+1>=$J$17,0,L40*(1+Captura!$D$35)) -> 0 | M52: =IF(B52+1>=$J$17,0,M40*(1+Captura!$D$35)) -> 0 | O52: =IF(B52=J$17,Captura!$N$29,0) -> 0 | P52: =SUM(D52:F52,I52:N52)*Captura!$C$19 -> 0 | Q52: 0 | T52: 1 | U52: 24 | V52: 11531.50161 | X52: =+V51*Captura!$O$9/12 -> 151.7302844 | Y52: -151.7302844 | Z52: 0 | AA52: =IF(U52=J$17,Captura!$N$33,0) -> 0 | AC52: =IF(U52+1>=$J$17,0,AC40*(1+Captura!$D$35)) -> 2163.2 | AD52: =IF(U52+1>=$J$17,0,AD40*(1+Captura!$D$35)) -> 0 | AE52: =IF(U52+1>=$J$17,0,AE40*(1+Captura!$D$35)) -> 0 | AG52: =+(W52+AB52+AC52+AD52+AE52+AF52)*Captura!$C$19 -> 346.112 | AH52: 2509.312 | AJ52: 0 | AK52: -2163.2
B53: 25 | C53: 2028-04-06 | D53: =IF(B53<J$17,Captura!$N$16,0)+Resumen!$L$29+Resumen!$L$30 -> 0 | H53: 0 | K53: =IF(B53+1>=$J$17,0,K41*(1+Captura!$D$35)) -> 0 | L53: =IF(B53+1>=$J$17,0,L41*(1+Captura!$D$35)) -> 0 | M53: =IF(B53+1>=$J$17,0,M41*(1+Captura!$D$35)) -> 0 | O53: =IF(B53=J$17,Captura!$N$29,0) -> 0 | P53: =SUM(D53:F53,I53:N53)*Captura!$C$19 -> 0 | Q53: 0 | T53: 2 | U53: 25 | V53: 11685.25497 | X53: =+V52*Captura!$O$9/12 -> 153.7533548 | Y53: -153.7533548 | Z53: 0 | AA53: =IF(U53=J$17,Captura!$N$33,0) -> 0 | AC53: =IF(U53+1>=$J$17,0,AC41*(1+Captura!$D$35)) -> 0 | AD53: =IF(U53+1>=$J$17,0,AD41*(1+Captura!$D$35)) -> 0 | AE53: =IF(U53+1>=$J$17,0,AE41*(1+Captura!$D$35)) -> 0 | AG53: =+(W53+AB53+AC53+AD53+AE53+AF53)*Captura!$C$19 -> 0 | AH53: 0 | AJ53: 0 | AK53: 0
B54: 26 | C54: 2028-05-06 | D54: =IF(B54<J$17,Captura!$N$16,0)+Resumen!$L$29+Resumen!$L$30 -> 0 | H54: 0 | K54: =IF(B54+1>=$J$17,0,K42*(1+Captura!$D$35)) -> 0 | L54: =IF(B54+1>=$J$17,0,L42*(1+Captura!$D$35)) -> 0 | M54: =IF(B54+1>=$J$17,0,M42*(1+Captura!$D$35)) -> 0 | O54: =IF(B54=J$17,Captura!$N$29,0) -> 0 | P54: =SUM(D54:F54,I54:N54)*Captura!$C$19 -> 0 | Q54: 0 | T54: 3 | U54: 26 | V54: 11841.05837 | X54: =+V53*Captura!$O$9/12 -> 155.8033996 | Y54: -155.8033996 | Z54: 0 | AA54: =IF(U54=J$17,Captura!$N$33,0) -> 0 | AC54: =IF(U54+1>=$J$17,0,AC42*(1+Captura!$D$35)) -> 0 | AD54: =IF(U54+1>=$J$17,0,AD42*(1+Captura!$D$35)) -> 0 | AE54: =IF(U54+1>=$J$17,0,AE42*(1+Captura!$D$35)) -> 0 | AG54: =+(W54+AB54+AC54+AD54+AE54+AF54)*Captura!$C$19 -> 0 | AH54: 0 | AJ54: 0 | AK54: 0
B55: 27 | C55: 2028-06-06 | D55: =IF(B55<J$17,Captura!$N$16,0)+Resumen!$L$29+Resumen!$L$30 -> 0 | H55: 0 | K55: =IF(B55+1>=$J$17,0,K43*(1+Captura!$D$35)) -> 0 | L55: =IF(B55+1>=$J$17,0,L43*(1+Captura!$D$35)) -> 0 | M55: =IF(B55+1>=$J$17,0,M43*(1+Captura!$D$35)) -> 0 | O55: =IF(B55=J$17,Captura!$N$29,0) -> 0 | P55: =SUM(D55:F55,I55:N55)*Captura!$C$19 -> 0 | Q55: 0 | T55: 4 | U55: 27 | V55: 11998.93915 | X55: =+V54*Captura!$O$9/12 -> 157.8807782 | Y55: -157.8807782 | Z55: 0 | AA55: =IF(U55=J$17,Captura!$N$33,0) -> 0 | AC55: =IF(U55+1>=$J$17,0,AC43*(1+Captura!$D$35)) -> 0 | AD55: =IF(U55+1>=$J$17,0,AD43*(1+Captura!$D$35)) -> 0 | AE55: =IF(U55+1>=$J$17,0,AE43*(1+Captura!$D$35)) -> 0 | AG55: =+(W55+AB55+AC55+AD55+AE55+AF55)*Captura!$C$19 -> 0 | AH55: 0 | AJ55: 0 | AK55: 0
B56: 28 | C56: 2028-07-06 | D56: =IF(B56<J$17,Captura!$N$16,0)+Resumen!$L$29+Resumen!$L$30 -> 0 | H56: 0 | K56: =IF(B56+1>=$J$17,0,K44*(1+Captura!$D$35)) -> 0 | L56: =IF(B56+1>=$J$17,0,L44*(1+Captura!$D$35)) -> 0 | M56: =IF(B56+1>=$J$17,0,M44*(1+Captura!$D$35)) -> 0 | O56: =IF(B56=J$17,Captura!$N$29,0) -> 0 | P56: =SUM(D56:F56,I56:N56)*Captura!$C$19 -> 0 | Q56: 0 | T56: 5 | U56: 28 | V56: 12158.925 | X56: =+V55*Captura!$O$9/12 -> 159.9858553 | Y56: -159.9858553 | Z56: 0 | AA56: =IF(U56=J$17,Captura!$N$33,0) -> 0 | AC56: =IF(U56+1>=$J$17,0,AC44*(1+Captura!$D$35)) -> 0 | AD56: =IF(U56+1>=$J$17,0,AD44*(1+Captura!$D$35)) -> 0 | AE56: =IF(U56+1>=$J$17,0,AE44*(1+Captura!$D$35)) -> 0 | AG56: =+(W56+AB56+AC56+AD56+AE56+AF56)*Captura!$C$19 -> 0 | AH56: 0 | AJ56: 0 | AK56: 0
B57: 29 | C57: 2028-08-06 | D57: =IF(B57<J$17,Captura!$N$16,0)+Resumen!$L$29+Resumen!$L$30 -> 0 | H57: 0 | K57: =IF(B57+1>=$J$17,0,K45*(1+Captura!$D$35)) -> 0 | L57: =IF(B57+1>=$J$17,0,L45*(1+Captura!$D$35)) -> 0 | M57: =IF(B57+1>=$J$17,0,M45*(1+Captura!$D$35)) -> 0 | O57: =IF(B57=J$17,Captura!$N$29,0) -> 0 | P57: =SUM(D57:F57,I57:N57)*Captura!$C$19 -> 0 | Q57: 0 | T57: 6 | U57: 29 | V57: 12321.044 | X57: =+V56*Captura!$O$9/12 -> 162.119 | Y57: -162.119 | Z57: 0 | AA57: =IF(U57=J$17,Captura!$N$33,0) -> 0 | AC57: =IF(U57+1>=$J$17,0,AC45*(1+Captura!$D$35)) -> 0 | AD57: =IF(U57+1>=$J$17,0,AD45*(1+Captura!$D$35)) -> 0 | AE57: =IF(U57+1>=$J$17,0,AE45*(1+Captura!$D$35)) -> 0 | AG57: =+(W57+AB57+AC57+AD57+AE57+AF57)*Captura!$C$19 -> 0 | AH57: 0 | AJ57: 0 | AK57: 0
B58: 30 | C58: 2028-09-06 | D58: =IF(B58<J$17,Captura!$N$16,0)+Resumen!$L$29+Resumen!$L$30 -> 0 | H58: 0 | K58: =IF(B58+1>=$J$17,0,K46*(1+Captura!$D$35)) -> 0 | L58: =IF(B58+1>=$J$17,0,L46*(1+Captura!$D$35)) -> 0 | M58: =IF(B58+1>=$J$17,0,M46*(1+Captura!$D$35)) -> 0 | O58: =IF(B58=J$17,Captura!$N$29,0) -> 0 | P58: =SUM(D58:F58,I58:N58)*Captura!$C$19 -> 0 | Q58: 0 | T58: 7 | U58: 30 | V58: 12485.32459 | X58: =+V57*Captura!$O$9/12 -> 164.2805867 | Y58: -164.2805867 | Z58: 0 | AA58: =IF(U58=J$17,Captura!$N$33,0) -> 0 | AC58: =IF(U58+1>=$J$17,0,AC46*(1+Captura!$D$35)) -> 0 | AD58: =IF(U58+1>=$J$17,0,AD46*(1+Captura!$D$35)) -> 0 | AE58: =IF(U58+1>=$J$17,0,AE46*(1+Captura!$D$35)) -> 0 | AG58: =+(W58+AB58+AC58+AD58+AE58+AF58)*Captura!$C$19 -> 0 | AH58: 0 | AJ58: 0 | AK58: 0
B59: 31 | C59: 2028-10-06 | D59: =IF(B59<J$17,Captura!$N$16,0)+Resumen!$L$29+Resumen!$L$30 -> 0 | H59: 0 | K59: =IF(B59+1>=$J$17,0,K47*(1+Captura!$D$35)) -> 0 | L59: =IF(B59+1>=$J$17,0,L47*(1+Captura!$D$35)) -> 0 | M59: =IF(B59+1>=$J$17,0,M47*(1+Captura!$D$35)) -> 0 | O59: =IF(B59=J$17,Captura!$N$29,0) -> 0 | P59: =SUM(D59:F59,I59:N59)*Captura!$C$19 -> 0 | Q59: 0 | T59: 8 | U59: 31 | V59: 12651.79558 | X59: =+V58*Captura!$O$9/12 -> 166.4709945 | Y59: -166.4709945 | Z59: 0 | AA59: =IF(U59=J$17,Captura!$N$33,0) -> 0 | AC59: =IF(U59+1>=$J$17,0,AC47*(1+Captura!$D$35)) -> 0 | AD59: =IF(U59+1>=$J$17,0,AD47*(1+Captura!$D$35)) -> 0 | AE59: =IF(U59+1>=$J$17,0,AE47*(1+Captura!$D$35)) -> 0 | AG59: =+(W59+AB59+AC59+AD59+AE59+AF59)*Captura!$C$19 -> 0 | AH59: 0 | AJ59: 0 | AK59: 0
B60: 32 | C60: 2028-11-06 | D60: =IF(B60<J$17,Captura!$N$16,0)+Resumen!$L$29+Resumen!$L$30 -> 0 | H60: 0 | K60: =IF(B60+1>=$J$17,0,K48*(1+Captura!$D$35)) -> 0 | L60: =IF(B60+1>=$J$17,0,L48*(1+Captura!$D$35)) -> 0 | M60: =IF(B60+1>=$J$17,0,M48*(1+Captura!$D$35)) -> 0 | O60: =IF(B60=J$17,Captura!$N$29,0) -> 0 | P60: =SUM(D60:F60,I60:N60)*Captura!$C$19 -> 0 | Q60: 0 | T60: 9 | U60: 32 | V60: 12820.48619 | X60: =+V59*Captura!$O$9/12 -> 168.6906078 | Y60: -168.6906078 | Z60: 0 | AA60: =IF(U60=J$17,Captura!$N$33,0) -> 0 | AC60: =IF(U60+1>=$J$17,0,AC48*(1+Captura!$D$35)) -> 0 | AD60: =IF(U60+1>=$J$17,0,AD48*(1+Captura!$D$35)) -> 0 | AE60: =IF(U60+1>=$J$17,0,AE48*(1+Captura!$D$35)) -> 0 | AG60: =+(W60+AB60+AC60+AD60+AE60+AF60)*Captura!$C$19 -> 0 | AH60: 0 | AJ60: 0 | AK60: 0
B61: 33 | C61: 2028-12-06 | D61: =IF(B61<J$17,Captura!$N$16,0)+Resumen!$L$29+Resumen!$L$30 -> 0 | H61: 0 | K61: =IF(B61+1>=$J$17,0,K49*(1+Captura!$D$35)) -> 0 | L61: =IF(B61+1>=$J$17,0,L49*(1+Captura!$D$35)) -> 0 | M61: =IF(B61+1>=$J$17,0,M49*(1+Captura!$D$35)) -> 0 | O61: =IF(B61=J$17,Captura!$N$29,0) -> 0 | P61: =SUM(D61:F61,I61:N61)*Captura!$C$19 -> 0 | Q61: 0 | T61: 10 | U61: 33 | V61: 12991.42601 | X61: =+V60*Captura!$O$9/12 -> 170.9398159 | Y61: -170.9398159 | Z61: 0 | AA61: =IF(U61=J$17,Captura!$N$33,0) -> 0 | AC61: =IF(U61+1>=$J$17,0,AC49*(1+Captura!$D$35)) -> 0 | AD61: =IF(U61+1>=$J$17,0,AD49*(1+Captura!$D$35)) -> 0 | AE61: =IF(U61+1>=$J$17,0,AE49*(1+Captura!$D$35)) -> 0 | AG61: =+(W61+AB61+AC61+AD61+AE61+AF61)*Captura!$C$19 -> 0 | AH61: 0 | AJ61: 0 | AK61: 0
B62: 34 | C62: 2029-01-06 | D62: =IF(B62<J$17,Captura!$N$16,0)+Resumen!$L$29+Resumen!$L$30 -> 0 | H62: 0 | K62: =IF(B62+1>=$J$17,0,K50*(1+Captura!$D$35)) -> 0 | L62: =IF(B62+1>=$J$17,0,L50*(1+Captura!$D$35)) -> 0 | M62: =IF(B62+1>=$J$17,0,M50*(1+Captura!$D$35)) -> 0 | O62: =IF(B62=J$17,Captura!$N$29,0) -> 0 | P62: =SUM(D62:F62,I62:N62)*Captura!$C$19 -> 0 | Q62: 0 | T62: 11 | U62: 34 | V62: 13164.64502 | X62: =+V61*Captura!$O$9/12 -> 173.2190134 | Y62: -173.2190134 | Z62: 0 | AA62: =IF(U62=J$17,Captura!$N$33,0) -> 0 | AC62: =IF(U62+1>=$J$17,0,AC50*(1+Captura!$D$35)) -> 0 | AD62: =IF(U62+1>=$J$17,0,AD50*(1+Captura!$D$35)) -> 0 | AE62: =IF(U62+1>=$J$17,0,AE50*(1+Captura!$D$35)) -> 0 | AG62: =+(W62+AB62+AC62+AD62+AE62+AF62)*Captura!$C$19 -> 0 | AH62: 0 | AJ62: 0 | AK62: 0
B63: 35 | C63: 2029-02-06 | D63: =IF(B63<J$17,Captura!$N$16,0)+Resumen!$L$29+Resumen!$L$30 -> 0 | H63: 0 | K63: =IF(B63+1>=$J$17,0,K51*(1+Captura!$D$35)) -> 0 | L63: =IF(B63+1>=$J$17,0,L51*(1+Captura!$D$35)) -> 0 | M63: =IF(B63+1>=$J$17,0,M51*(1+Captura!$D$35)) -> 0 | O63: =IF(B63=J$17,Captura!$N$29,0) -> 0 | P63: =SUM(D63:F63,I63:N63)*Captura!$C$19 -> 0 | Q63: 0 | T63: 12 | U63: 35 | V63: 13340.17362 | X63: =+V62*Captura!$O$9/12 -> 175.5286003 | Y63: -175.5286003 | Z63: 0 | AA63: =IF(U63=J$17,Captura!$N$33,0) -> 0 | AC63: =IF(U63+1>=$J$17,0,AC51*(1+Captura!$D$35)) -> 0 | AD63: =IF(U63+1>=$J$17,0,AD51*(1+Captura!$D$35)) -> 0 | AE63: =IF(U63+1>=$J$17,0,AE51*(1+Captura!$D$35)) -> 0 | AG63: =+(W63+AB63+AC63+AD63+AE63+AF63)*Captura!$C$19 -> 0 | AH63: 0 | AJ63: 0 | AK63: 0
B64: 36 | C64: 2029-03-06 | D64: =IF(B64<J$17,Captura!$N$16,0)+Resumen!$L$29+Resumen!$L$30 -> 0 | H64: 0 | K64: =IF(B64+1>=$J$17,0,K52*(1+Captura!$D$35)) -> 0 | L64: =IF(B64+1>=$J$17,0,L52*(1+Captura!$D$35)) -> 0 | M64: =IF(B64+1>=$J$17,0,M52*(1+Captura!$D$35)) -> 0 | O64: =IF(B64=J$17,Captura!$N$29,0) -> 0 | P64: =SUM(D64:F64,I64:N64)*Captura!$C$19 -> 0 | Q64: 0 | T64: 1 | U64: 36 | V64: 13518.0426 | X64: =+V63*Captura!$O$9/12 -> 177.8689816 | Y64: -177.8689816 | Z64: 0 | AA64: =IF(U64=J$17,Captura!$N$33,0) -> 0 | AC64: =IF(U64+1>=$J$17,0,AC52*(1+Captura!$D$35)) -> 2249.728 | AD64: =IF(U64+1>=$J$17,0,AD52*(1+Captura!$D$35)) -> 0 | AE64: =IF(U64+1>=$J$17,0,AE52*(1+Captura!$D$35)) -> 0 | AG64: =+(W64+AB64+AC64+AD64+AE64+AF64)*Captura!$C$19 -> 359.95648 | AH64: 2609.68448 | AJ64: 0 | AK64: -2249.728
B65: 37 | C65: 2029-04-06 | D65: =IF(B65<J$17,Captura!$N$16,0)+Resumen!$L$29+Resumen!$L$30 -> 0 | H65: 0 | K65: =IF(B65+1>=$J$17,0,K53*(1+Captura!$D$35)) -> 0 | L65: =IF(B65+1>=$J$17,0,L53*(1+Captura!$D$35)) -> 0 | M65: =IF(B65+1>=$J$17,0,M53*(1+Captura!$D$35)) -> 0 | O65: =IF(B65=J$17,Captura!$N$29,0) -> 0 | P65: =SUM(D65:F65,I65:N65)*Captura!$C$19 -> 0 | Q65: 0 | T65: 2 | U65: 37 | V65: 13698.28317 | X65: =+V64*Captura!$O$9/12 -> 180.240568 | Y65: -180.240568 | Z65: 0 | AA65: =IF(U65=J$17,Captura!$N$33,0) -> 0 | AC65: =IF(U65+1>=$J$17,0,AC53*(1+Captura!$D$35)) -> 0 | AD65: =IF(U65+1>=$J$17,0,AD53*(1+Captura!$D$35)) -> 0 | AE65: =IF(U65+1>=$J$17,0,AE53*(1+Captura!$D$35)) -> 0 | AG65: =+(W65+AB65+AC65+AD65+AE65+AF65)*Captura!$C$19 -> 0 | AH65: 0 | AJ65: 0 | AK65: 0
B66: 38 | C66: 2029-05-06 | D66: =IF(B66<J$17,Captura!$N$16,0)+Resumen!$L$29+Resumen!$L$30 -> 0 | H66: 0 | K66: =IF(B66+1>=$J$17,0,K54*(1+Captura!$D$35)) -> 0 | L66: =IF(B66+1>=$J$17,0,L54*(1+Captura!$D$35)) -> 0 | M66: =IF(B66+1>=$J$17,0,M54*(1+Captura!$D$35)) -> 0 | O66: =IF(B66=J$17,Captura!$N$29,0) -> 0 | P66: =SUM(D66:F66,I66:N66)*Captura!$C$19 -> 0 | Q66: 0 | T66: 3 | U66: 38 | V66: 13880.92694 | X66: =+V65*Captura!$O$9/12 -> 182.6437756 | Y66: -182.6437756 | Z66: 0 | AA66: =IF(U66=J$17,Captura!$N$33,0) -> 0 | AC66: =IF(U66+1>=$J$17,0,AC54*(1+Captura!$D$35)) -> 0 | AD66: =IF(U66+1>=$J$17,0,AD54*(1+Captura!$D$35)) -> 0 | AE66: =IF(U66+1>=$J$17,0,AE54*(1+Captura!$D$35)) -> 0 | AG66: =+(W66+AB66+AC66+AD66+AE66+AF66)*Captura!$C$19 -> 0 | AH66: 0 | AJ66: 0 | AK66: 0
B67: 39 | C67: 2029-06-06 | D67: =IF(B67<J$17,Captura!$N$16,0)+Resumen!$L$29+Resumen!$L$30 -> 0 | H67: 0 | K67: =IF(B67+1>=$J$17,0,K55*(1+Captura!$D$35)) -> 0 | L67: =IF(B67+1>=$J$17,0,L55*(1+Captura!$D$35)) -> 0 | M67: =IF(B67+1>=$J$17,0,M55*(1+Captura!$D$35)) -> 0 | O67: =IF(B67=J$17,Captura!$N$29,0) -> 0 | P67: =SUM(D67:F67,I67:N67)*Captura!$C$19 -> 0 | Q67: 0 | T67: 4 | U67: 39 | V67: 14066.00597 | X67: =+V66*Captura!$O$9/12 -> 185.0790259 | Y67: -185.0790259 | Z67: 0 | AA67: =IF(U67=J$17,Captura!$N$33,0) -> 0 | AC67: =IF(U67+1>=$J$17,0,AC55*(1+Captura!$D$35)) -> 0 | AD67: =IF(U67+1>=$J$17,0,AD55*(1+Captura!$D$35)) -> 0 | AE67: =IF(U67+1>=$J$17,0,AE55*(1+Captura!$D$35)) -> 0 | AG67: =+(W67+AB67+AC67+AD67+AE67+AF67)*Captura!$C$19 -> 0 | AH67: 0 | AJ67: 0 | AK67: 0
B68: 40 | C68: 2029-07-06 | D68: =IF(B68<J$17,Captura!$N$16,0)+Resumen!$L$29+Resumen!$L$30 -> 0 | H68: 0 | K68: =IF(B68+1>=$J$17,0,K56*(1+Captura!$D$35)) -> 0 | L68: =IF(B68+1>=$J$17,0,L56*(1+Captura!$D$35)) -> 0 | M68: =IF(B68+1>=$J$17,0,M56*(1+Captura!$D$35)) -> 0 | O68: =IF(B68=J$17,Captura!$N$29,0) -> 0 | P68: =SUM(D68:F68,I68:N68)*Captura!$C$19 -> 0 | Q68: 0 | T68: 5 | U68: 40 | V68: 14253.55272 | X68: =+V67*Captura!$O$9/12 -> 187.5467463 | Y68: -187.5467463 | Z68: 0 | AA68: =IF(U68=J$17,Captura!$N$33,0) -> 0 | AC68: =IF(U68+1>=$J$17,0,AC56*(1+Captura!$D$35)) -> 0 | AD68: =IF(U68+1>=$J$17,0,AD56*(1+Captura!$D$35)) -> 0 | AE68: =IF(U68+1>=$J$17,0,AE56*(1+Captura!$D$35)) -> 0 | AG68: =+(W68+AB68+AC68+AD68+AE68+AF68)*Captura!$C$19 -> 0 | AH68: 0 | AJ68: 0 | AK68: 0
B69: 41 | C69: 2029-08-06 | D69: =IF(B69<J$17,Captura!$N$16,0)+Resumen!$L$29+Resumen!$L$30 -> 0 | H69: 0 | K69: =IF(B69+1>=$J$17,0,K57*(1+Captura!$D$35)) -> 0 | L69: =IF(B69+1>=$J$17,0,L57*(1+Captura!$D$35)) -> 0 | M69: =IF(B69+1>=$J$17,0,M57*(1+Captura!$D$35)) -> 0 | O69: =IF(B69=J$17,Captura!$N$29,0) -> 0 | P69: =SUM(D69:F69,I69:N69)*Captura!$C$19 -> 0 | Q69: 0 | T69: 6 | U69: 41 | V69: 14443.60009 | X69: =+V68*Captura!$O$9/12 -> 190.0473696 | Y69: -190.0473696 | Z69: 0 | AA69: =IF(U69=J$17,Captura!$N$33,0) -> 0 | AC69: =IF(U69+1>=$J$17,0,AC57*(1+Captura!$D$35)) -> 0 | AD69: =IF(U69+1>=$J$17,0,AD57*(1+Captura!$D$35)) -> 0 | AE69: =IF(U69+1>=$J$17,0,AE57*(1+Captura!$D$35)) -> 0 | AG69: =+(W69+AB69+AC69+AD69+AE69+AF69)*Captura!$C$19 -> 0 | AH69: 0 | AJ69: 0 | AK69: 0
B70: 42 | C70: 2029-09-06 | D70: =IF(B70<J$17,Captura!$N$16,0)+Resumen!$L$29+Resumen!$L$30 -> 0 | H70: 0 | K70: =IF(B70+1>=$J$17,0,K58*(1+Captura!$D$35)) -> 0 | L70: =IF(B70+1>=$J$17,0,L58*(1+Captura!$D$35)) -> 0 | M70: =IF(B70+1>=$J$17,0,M58*(1+Captura!$D$35)) -> 0 | O70: =IF(B70=J$17,Captura!$N$29,0) -> 0 | P70: =SUM(D70:F70,I70:N70)*Captura!$C$19 -> 0 | Q70: 0 | T70: 7 | U70: 42 | V70: 14636.18142 | X70: =+V69*Captura!$O$9/12 -> 192.5813345 | Y70: -192.5813345 | Z70: 0 | AA70: =IF(U70=J$17,Captura!$N$33,0) -> 0 | AC70: =IF(U70+1>=$J$17,0,AC58*(1+Captura!$D$35)) -> 0 | AD70: =IF(U70+1>=$J$17,0,AD58*(1+Captura!$D$35)) -> 0 | AE70: =IF(U70+1>=$J$17,0,AE58*(1+Captura!$D$35)) -> 0 | AG70: =+(W70+AB70+AC70+AD70+AE70+AF70)*Captura!$C$19 -> 0 | AH70: 0 | AJ70: 0 | AK70: 0
B71: 43 | C71: 2029-10-06 | D71: =IF(B71<J$17,Captura!$N$16,0)+Resumen!$L$29+Resumen!$L$30 -> 0 | H71: 0 | K71: =IF(B71+1>=$J$17,0,K59*(1+Captura!$D$35)) -> 0 | L71: =IF(B71+1>=$J$17,0,L59*(1+Captura!$D$35)) -> 0 | M71: =IF(B71+1>=$J$17,0,M59*(1+Captura!$D$35)) -> 0 | O71: =IF(B71=J$17,Captura!$N$29,0) -> 0 | P71: =SUM(D71:F71,I71:N71)*Captura!$C$19 -> 0 | Q71: 0 | T71: 8 | U71: 43 | V71: 14831.33051 | X71: =+V70*Captura!$O$9/12 -> 195.1490856 | Y71: -195.1490856 | Z71: 0 | AA71: =IF(U71=J$17,Captura!$N$33,0) -> 0 | AC71: =IF(U71+1>=$J$17,0,AC59*(1+Captura!$D$35)) -> 0 | AD71: =IF(U71+1>=$J$17,0,AD59*(1+Captura!$D$35)) -> 0 | AE71: =IF(U71+1>=$J$17,0,AE59*(1+Captura!$D$35)) -> 0 | AG71: =+(W71+AB71+AC71+AD71+AE71+AF71)*Captura!$C$19 -> 0 | AH71: 0 | AJ71: 0 | AK71: 0
B72: 44 | C72: 2029-11-06 | D72: =IF(B72<J$17,Captura!$N$16,0)+Resumen!$L$29+Resumen!$L$30 -> 0 | H72: 0 | K72: =IF(B72+1>=$J$17,0,K60*(1+Captura!$D$35)) -> 0 | L72: =IF(B72+1>=$J$17,0,L60*(1+Captura!$D$35)) -> 0 | M72: =IF(B72+1>=$J$17,0,M60*(1+Captura!$D$35)) -> 0 | O72: =IF(B72=J$17,Captura!$N$29,0) -> 0 | P72: =SUM(D72:F72,I72:N72)*Captura!$C$19 -> 0 | Q72: 0 | T72: 9 | U72: 44 | V72: 15029.08158 | X72: =+V71*Captura!$O$9/12 -> 197.7510734 | Y72: -197.7510734 | Z72: 0 | AA72: =IF(U72=J$17,Captura!$N$33,0) -> 0 | AC72: =IF(U72+1>=$J$17,0,AC60*(1+Captura!$D$35)) -> 0 | AD72: =IF(U72+1>=$J$17,0,AD60*(1+Captura!$D$35)) -> 0 | AE72: =IF(U72+1>=$J$17,0,AE60*(1+Captura!$D$35)) -> 0 | AG72: =+(W72+AB72+AC72+AD72+AE72+AF72)*Captura!$C$19 -> 0 | AH72: 0 | AJ72: 0 | AK72: 0
B73: 45 | C73: 2029-12-06 | D73: =IF(B73<J$17,Captura!$N$16,0)+Resumen!$L$29+Resumen!$L$30 -> 0 | H73: 0 | K73: =IF(B73+1>=$J$17,0,K61*(1+Captura!$D$35)) -> 0 | L73: =IF(B73+1>=$J$17,0,L61*(1+Captura!$D$35)) -> 0 | M73: =IF(B73+1>=$J$17,0,M61*(1+Captura!$D$35)) -> 0 | O73: =IF(B73=J$17,Captura!$N$29,0) -> 0 | P73: =SUM(D73:F73,I73:N73)*Captura!$C$19 -> 0 | Q73: 0 | T73: 10 | U73: 45 | V73: 15229.46933 | X73: =+V72*Captura!$O$9/12 -> 200.3877544 | Y73: -200.3877544 | Z73: 0 | AA73: =IF(U73=J$17,Captura!$N$33,0) -> 0 | AC73: =IF(U73+1>=$J$17,0,AC61*(1+Captura!$D$35)) -> 0 | AD73: =IF(U73+1>=$J$17,0,AD61*(1+Captura!$D$35)) -> 0 | AE73: =IF(U73+1>=$J$17,0,AE61*(1+Captura!$D$35)) -> 0 | AG73: =+(W73+AB73+AC73+AD73+AE73+AF73)*Captura!$C$19 -> 0 | AH73: 0 | AJ73: 0 | AK73: 0
B74: 46 | C74: 2030-01-06 | D74: =IF(B74<J$17,Captura!$N$16,0)+Resumen!$L$29+Resumen!$L$30 -> 0 | H74: 0 | K74: =IF(B74+1>=$J$17,0,K62*(1+Captura!$D$35)) -> 0 | L74: =IF(B74+1>=$J$17,0,L62*(1+Captura!$D$35)) -> 0 | M74: =IF(B74+1>=$J$17,0,M62*(1+Captura!$D$35)) -> 0 | O74: =IF(B74=J$17,Captura!$N$29,0) -> 0 | P74: =SUM(D74:F74,I74:N74)*Captura!$C$19 -> 0 | Q74: 0 | T74: 11 | U74: 46 | V74: 15432.52893 | X74: =+V73*Captura!$O$9/12 -> 203.0595911 | Y74: -203.0595911 | Z74: 0 | AA74: =IF(U74=J$17,Captura!$N$33,0) -> 0 | AC74: =IF(U74+1>=$J$17,0,AC62*(1+Captura!$D$35)) -> 0 | AD74: =IF(U74+1>=$J$17,0,AD62*(1+Captura!$D$35)) -> 0 | AE74: =IF(U74+1>=$J$17,0,AE62*(1+Captura!$D$35)) -> 0 | AG74: =+(W74+AB74+AC74+AD74+AE74+AF74)*Captura!$C$19 -> 0 | AH74: 0 | AJ74: 0 | AK74: 0
B75: 47 | C75: 2030-02-06 | D75: =IF(B75<J$17,Captura!$N$16,0)+Resumen!$L$29+Resumen!$L$30 -> 0 | H75: 0 | K75: =IF(B75+1>=$J$17,0,K63*(1+Captura!$D$35)) -> 0 | L75: =IF(B75+1>=$J$17,0,L63*(1+Captura!$D$35)) -> 0 | M75: =IF(B75+1>=$J$17,0,M63*(1+Captura!$D$35)) -> 0 | O75: =IF(B75=J$17,Captura!$N$29,0) -> 0 | P75: =SUM(D75:F75,I75:N75)*Captura!$C$19 -> 0 | Q75: 0 | T75: 12 | U75: 47 | V75: 15638.29598 | X75: =+V74*Captura!$O$9/12 -> 205.7670523 | Y75: -205.7670523 | Z75: 0 | AA75: =IF(U75=J$17,Captura!$N$33,0) -> 0 | AC75: =IF(U75+1>=$J$17,0,AC63*(1+Captura!$D$35)) -> 0 | AD75: =IF(U75+1>=$J$17,0,AD63*(1+Captura!$D$35)) -> 0 | AE75: =IF(U75+1>=$J$17,0,AE63*(1+Captura!$D$35)) -> 0 | AG75: =+(W75+AB75+AC75+AD75+AE75+AF75)*Captura!$C$19 -> 0 | AH75: 0 | AJ75: 0 | AK75: 0
B76: 48 | C76: 2030-03-06 | D76: =IF(B76<J$17,Captura!$N$16,0) -> 0 | H76: 0 | K76: =IF(B76+1>=$J$17,0,K64*(1+Captura!$D$35)) -> 0 | L76: =IF(B76+1>=$J$17,0,L64*(1+Captura!$D$35)) -> 0 | M76: =IF(B76+1>=$J$17,0,M64*(1+Captura!$D$35)) -> 0 | O76: =IF(B76=J$17,Captura!$N$29,0) -> 0 | P76: =SUM(D76:F76,I76:N76)*Captura!$C$19 -> 0 | Q76: 0 | T76: 1 | U76: 48 | V76: 15846.80659 | X76: =+V75*Captura!$O$9/12 -> 208.510613 | Y76: -208.510613 | Z76: 0 | AA76: =IF(U76=J$17,Captura!$N$33,0) -> 0 | AC76: =IF(U76+1>=$J$17,0,AC64*(1+Captura!$D$35)) -> 0 | AD76: =IF(U76+1>=$J$17,0,AD64*(1+Captura!$D$35)) -> 0 | AE76: =IF(U76+1>=$J$17,0,AE64*(1+Captura!$D$35)) -> 0 | AG76: =+(W76+AB76+AC76+AD76+AE76+AF76)*Captura!$C$19 -> 0 | AH76: 0 | AJ76: 0 | AK76: 0
B77: 49 | C77: 2030-04-06 | D77: =IF(B77<J$17,Captura!$N$16,0) -> 0 | H77: 0 | K77: =IF(B77+1>=$J$17,0,K65*(1+Captura!$D$35)) -> 0 | L77: =IF(B77+1>=$J$17,0,L65*(1+Captura!$D$35)) -> 0 | M77: =IF(B77+1>=$J$17,0,M65*(1+Captura!$D$35)) -> 0 | O77: =IF(B77=J$17,Captura!$N$29,0) -> 0 | P77: =SUM(D77:F77,I77:N77)*Captura!$C$19 -> 0 | Q77: 0 | T77: 2 | U77: 49 | V77: 16058.09735 | X77: =+V76*Captura!$O$9/12 -> 211.2907545 | Y77: -211.2907545 | Z77: 0 | AA77: =IF(U77=J$17,Captura!$N$33,0) -> 0 | AC77: =IF(U77+1>=$J$17,0,AC65*(1+Captura!$D$35)) -> 0 | AD77: =IF(U77+1>=$J$17,0,AD65*(1+Captura!$D$35)) -> 0 | AE77: =IF(U77+1>=$J$17,0,AE65*(1+Captura!$D$35)) -> 0 | AG77: =+(W77+AB77+AC77+AD77+AE77+AF77)*Captura!$C$19 -> 0 | AH77: 0 | AJ77: 0 | AK77: 0
B78: 50 | C78: 2030-05-06 | D78: =IF(B78<J$17,Captura!$N$16,0) -> 0 | H78: 0 | K78: =IF(B78+1>=$J$17,0,K66*(1+Captura!$D$35)) -> 0 | L78: =IF(B78+1>=$J$17,0,L66*(1+Captura!$D$35)) -> 0 | M78: =IF(B78+1>=$J$17,0,M66*(1+Captura!$D$35)) -> 0 | O78: =IF(B78=J$17,Captura!$N$29,0) -> 0 | P78: =SUM(D78:F78,I78:N78)*Captura!$C$19 -> 0 | Q78: 0 | T78: 3 | U78: 50 | V78: 16272.20531 | X78: =+V77*Captura!$O$9/12 -> 214.1079646 | Y78: -214.1079646 | Z78: 0 | AA78: =IF(U78=J$17,Captura!$N$33,0) -> 0 | AC78: =IF(U78+1>=$J$17,0,AC66*(1+Captura!$D$35)) -> 0 | AD78: =IF(U78+1>=$J$17,0,AD66*(1+Captura!$D$35)) -> 0 | AE78: =IF(U78+1>=$J$17,0,AE66*(1+Captura!$D$35)) -> 0 | AG78: =+(W78+AB78+AC78+AD78+AE78+AF78)*Captura!$C$19 -> 0 | AH78: 0 | AJ78: 0 | AK78: 0
B79: 51 | C79: 2030-06-06 | D79: =IF(B79<J$17,Captura!$N$16,0) -> 0 | H79: 0 | K79: =IF(B79+1>=$J$17,0,K67*(1+Captura!$D$35)) -> 0 | L79: =IF(B79+1>=$J$17,0,L67*(1+Captura!$D$35)) -> 0 | M79: =IF(B79+1>=$J$17,0,M67*(1+Captura!$D$35)) -> 0 | O79: =IF(B79=J$17,Captura!$N$29,0) -> 0 | P79: =SUM(D79:F79,I79:N79)*Captura!$C$19 -> 0 | Q79: 0 | T79: 4 | U79: 51 | V79: 16489.16805 | X79: =+V78*Captura!$O$9/12 -> 216.9627375 | Y79: -216.9627375 | Z79: 0 | AA79: =IF(U79=J$17,Captura!$N$33,0) -> 0 | AC79: =IF(U79+1>=$J$17,0,AC67*(1+Captura!$D$35)) -> 0 | AD79: =IF(U79+1>=$J$17,0,AD67*(1+Captura!$D$35)) -> 0 | AE79: =IF(U79+1>=$J$17,0,AE67*(1+Captura!$D$35)) -> 0 | AG79: =+(W79+AB79+AC79+AD79+AE79+AF79)*Captura!$C$19 -> 0 | AH79: 0 | AJ79: 0 | AK79: 0
B80: 52 | C80: 2030-07-06 | D80: =IF(B80<J$17,Captura!$N$16,0) -> 0 | H80: 0 | K80: =IF(B80+1>=$J$17,0,K68*(1+Captura!$D$35)) -> 0 | L80: =IF(B80+1>=$J$17,0,L68*(1+Captura!$D$35)) -> 0 | M80: =IF(B80+1>=$J$17,0,M68*(1+Captura!$D$35)) -> 0 | O80: =IF(B80=J$17,Captura!$N$29,0) -> 0 | P80: =SUM(D80:F80,I80:N80)*Captura!$C$19 -> 0 | Q80: 0 | T80: 5 | U80: 52 | V80: 16709.02362 | X80: =+V79*Captura!$O$9/12 -> 219.855574 | Y80: -219.855574 | Z80: 0 | AA80: =IF(U80=J$17,Captura!$N$33,0) -> 0 | AC80: =IF(U80+1>=$J$17,0,AC68*(1+Captura!$D$35)) -> 0 | AD80: =IF(U80+1>=$J$17,0,AD68*(1+Captura!$D$35)) -> 0 | AE80: =IF(U80+1>=$J$17,0,AE68*(1+Captura!$D$35)) -> 0 | AG80: =+(W80+AB80+AC80+AD80+AE80+AF80)*Captura!$C$19 -> 0 | AH80: 0 | AJ80: 0 | AK80: 0
B81: 53 | C81: 2030-08-06 | D81: =IF(B81<J$17,Captura!$N$16,0) -> 0 | H81: 0 | K81: =IF(B81+1>=$J$17,0,K69*(1+Captura!$D$35)) -> 0 | L81: =IF(B81+1>=$J$17,0,L69*(1+Captura!$D$35)) -> 0 | M81: =IF(B81+1>=$J$17,0,M69*(1+Captura!$D$35)) -> 0 | O81: =IF(B81=J$17,Captura!$N$29,0) -> 0 | P81: =SUM(D81:F81,I81:N81)*Captura!$C$19 -> 0 | Q81: 0 | T81: 6 | U81: 53 | V81: 16931.8106 | X81: =+V80*Captura!$O$9/12 -> 222.7869816 | Y81: -222.7869816 | Z81: 0 | AA81: =IF(U81=J$17,Captura!$N$33,0) -> 0 | AC81: =IF(U81+1>=$J$17,0,AC69*(1+Captura!$D$35)) -> 0 | AD81: =IF(U81+1>=$J$17,0,AD69*(1+Captura!$D$35)) -> 0 | AE81: =IF(U81+1>=$J$17,0,AE69*(1+Captura!$D$35)) -> 0 | AG81: =+(W81+AB81+AC81+AD81+AE81+AF81)*Captura!$C$19 -> 0 | AH81: 0 | AJ81: 0 | AK81: 0
B82: 54 | C82: 2030-09-06 | D82: =IF(B82<J$17,Captura!$N$16,0) -> 0 | H82: 0 | K82: =IF(B82+1>=$J$17,0,K70*(1+Captura!$D$35)) -> 0 | L82: =IF(B82+1>=$J$17,0,L70*(1+Captura!$D$35)) -> 0 | M82: =IF(B82+1>=$J$17,0,M70*(1+Captura!$D$35)) -> 0 | O82: =IF(B82=J$17,Captura!$N$29,0) -> 0 | P82: =SUM(D82:F82,I82:N82)*Captura!$C$19 -> 0 | Q82: 0 | T82: 7 | U82: 54 | V82: 17157.56808 | X82: =+V81*Captura!$O$9/12 -> 225.7574747 | Y82: -225.7574747 | Z82: 0 | AA82: =IF(U82=J$17,Captura!$N$33,0) -> 0 | AC82: =IF(U82+1>=$J$17,0,AC70*(1+Captura!$D$35)) -> 0 | AD82: =IF(U82+1>=$J$17,0,AD70*(1+Captura!$D$35)) -> 0 | AE82: =IF(U82+1>=$J$17,0,AE70*(1+Captura!$D$35)) -> 0 | AG82: =+(W82+AB82+AC82+AD82+AE82+AF82)*Captura!$C$19 -> 0 | AH82: 0 | AJ82: 0 | AK82: 0
B83: 55 | C83: 2030-10-06 | D83: =IF(B83<J$17,Captura!$N$16,0) -> 0 | H83: 0 | K83: =IF(B83+1>=$J$17,0,K71*(1+Captura!$D$35)) -> 0 | L83: =IF(B83+1>=$J$17,0,L71*(1+Captura!$D$35)) -> 0 | M83: =IF(B83+1>=$J$17,0,M71*(1+Captura!$D$35)) -> 0 | O83: =IF(B83=J$17,Captura!$N$29,0) -> 0 | P83: =SUM(D83:F83,I83:N83)*Captura!$C$19 -> 0 | Q83: 0 | T83: 8 | U83: 55 | V83: 17386.33565 | X83: =+V82*Captura!$O$9/12 -> 228.7675744 | Y83: -228.7675744 | Z83: 0 | AA83: =IF(U83=J$17,Captura!$N$33,0) -> 0 | AC83: =IF(U83+1>=$J$17,0,AC71*(1+Captura!$D$35)) -> 0 | AD83: =IF(U83+1>=$J$17,0,AD71*(1+Captura!$D$35)) -> 0 | AE83: =IF(U83+1>=$J$17,0,AE71*(1+Captura!$D$35)) -> 0 | AG83: =+(W83+AB83+AC83+AD83+AE83+AF83)*Captura!$C$19 -> 0 | AH83: 0 | AJ83: 0 | AK83: 0
B84: 56 | C84: 2030-11-06 | D84: =IF(B84<J$17,Captura!$N$16,0) -> 0 | H84: 0 | K84: =IF(B84+1>=$J$17,0,K72*(1+Captura!$D$35)) -> 0 | L84: =IF(B84+1>=$J$17,0,L72*(1+Captura!$D$35)) -> 0 | M84: =IF(B84+1>=$J$17,0,M72*(1+Captura!$D$35)) -> 0 | O84: =IF(B84=J$17,Captura!$N$29,0) -> 0 | P84: =SUM(D84:F84,I84:N84)*Captura!$C$19 -> 0 | Q84: 0 | T84: 9 | U84: 56 | V84: 17618.15346 | X84: =+V83*Captura!$O$9/12 -> 231.8178087 | Y84: -231.8178087 | Z84: 0 | AA84: =IF(U84=J$17,Captura!$N$33,0) -> 0 | AC84: =IF(U84+1>=$J$17,0,AC72*(1+Captura!$D$35)) -> 0 | AD84: =IF(U84+1>=$J$17,0,AD72*(1+Captura!$D$35)) -> 0 | AE84: =IF(U84+1>=$J$17,0,AE72*(1+Captura!$D$35)) -> 0 | AG84: =+(W84+AB84+AC84+AD84+AE84+AF84)*Captura!$C$19 -> 0 | AH84: 0 | AJ84: 0 | AK84: 0
B85: 57 | C85: 2030-12-06 | D85: =IF(B85<J$17,Captura!$N$16,0) -> 0 | H85: 0 | K85: =IF(B85+1>=$J$17,0,K73*(1+Captura!$D$35)) -> 0 | L85: =IF(B85+1>=$J$17,0,L73*(1+Captura!$D$35)) -> 0 | M85: =IF(B85+1>=$J$17,0,M73*(1+Captura!$D$35)) -> 0 | O85: =IF(B85=J$17,Captura!$N$29,0) -> 0 | P85: =SUM(D85:F85,I85:N85)*Captura!$C$19 -> 0 | Q85: 0 | T85: 10 | U85: 57 | V85: 17853.06217 | X85: =+V84*Captura!$O$9/12 -> 234.9087128 | Y85: -234.9087128 | Z85: 0 | AA85: =IF(U85=J$17,Captura!$N$33,0) -> 0 | AC85: =IF(U85+1>=$J$17,0,AC73*(1+Captura!$D$35)) -> 0 | AD85: =IF(U85+1>=$J$17,0,AD73*(1+Captura!$D$35)) -> 0 | AE85: =IF(U85+1>=$J$17,0,AE73*(1+Captura!$D$35)) -> 0 | AG85: =+(W85+AB85+AC85+AD85+AE85+AF85)*Captura!$C$19 -> 0 | AH85: 0 | AJ85: 0 | AK85: 0
B86: 58 | C86: 2031-01-06 | D86: =IF(B86<J$17,Captura!$N$16,0) -> 0 | H86: 0 | K86: =IF(B86+1>=$J$17,0,K74*(1+Captura!$D$35)) -> 0 | L86: =IF(B86+1>=$J$17,0,L74*(1+Captura!$D$35)) -> 0 | M86: =IF(B86+1>=$J$17,0,M74*(1+Captura!$D$35)) -> 0 | O86: =IF(B86=J$17,Captura!$N$29,0) -> 0 | P86: =SUM(D86:F86,I86:N86)*Captura!$C$19 -> 0 | Q86: 0 | T86: 11 | U86: 58 | V86: 18091.103 | X86: =+V85*Captura!$O$9/12 -> 238.040829 | Y86: -238.040829 | Z86: 0 | AA86: =IF(U86=J$17,Captura!$N$33,0) -> 0 | AC86: =IF(U86+1>=$J$17,0,AC74*(1+Captura!$D$35)) -> 0 | AD86: =IF(U86+1>=$J$17,0,AD74*(1+Captura!$D$35)) -> 0 | AE86: =IF(U86+1>=$J$17,0,AE74*(1+Captura!$D$35)) -> 0 | AG86: =+(W86+AB86+AC86+AD86+AE86+AF86)*Captura!$C$19 -> 0 | AH86: 0 | AJ86: 0 | AK86: 0
B87: 59 | C87: 2031-02-06 | D87: =IF(B87<J$17,Captura!$N$16,0) -> 0 | H87: 0 | K87: =IF(B87+1>=$J$17,0,K75*(1+Captura!$D$35)) -> 0 | L87: =IF(B87+1>=$J$17,0,L75*(1+Captura!$D$35)) -> 0 | M87: =IF(B87+1>=$J$17,0,M75*(1+Captura!$D$35)) -> 0 | O87: =IF(B87=J$17,Captura!$N$29,0) -> 0 | P87: =SUM(D87:F87,I87:N87)*Captura!$C$19 -> 0 | Q87: 0 | T87: 12 | U87: 59 | V87: 18332.31771 | X87: =+V86*Captura!$O$9/12 -> 241.2147067 | Y87: -241.2147067 | Z87: 0 | AA87: =IF(U87=J$17,Captura!$N$33,0) -> 0 | AC87: =IF(U87+1>=$J$17,0,AC75*(1+Captura!$D$35)) -> 0 | AD87: =IF(U87+1>=$J$17,0,AD75*(1+Captura!$D$35)) -> 0 | AE87: =IF(U87+1>=$J$17,0,AE75*(1+Captura!$D$35)) -> 0 | AG87: =+(W87+AB87+AC87+AD87+AE87+AF87)*Captura!$C$19 -> 0 | AH87: 0 | AJ87: 0 | AK87: 0
B88: 60 | C88: 2031-03-06 | D88: =IF(B88<J$17,Captura!$N$16,0) -> 0 | H88: 0 | K88: =IF(B88+1>=$J$17,0,K76*(1+Captura!$D$35)) -> 0 | L88: =IF(B88+1>=$J$17,0,L76*(1+Captura!$D$35)) -> 0 | M88: =IF(B88+1>=$J$17,0,M76*(1+Captura!$D$35)) -> 0 | O88: =IF(B88=J$17,Captura!$N$29,0) -> 0 | P88: =SUM(D88:F88,I88:N88)*Captura!$C$19 -> 0 | Q88: 0 | T88: 1 | U88: 60 | V88: 18576.74861 | X88: =+V87*Captura!$O$9/12 -> 244.4309028 | Y88: -244.4309028 | Z88: 0 | AA88: =IF(U88=J$17,Captura!$N$33,0) -> 0 | AC88: =IF(U88+1>=$J$17,0,AC76*(1+Captura!$D$35)) -> 0 | AD88: =IF(U88+1>=$J$17,0,AD76*(1+Captura!$D$35)) -> 0 | AE88: =IF(U88+1>=$J$17,0,AE76*(1+Captura!$D$35)) -> 0 | AG88: =+(W88+AB88+AC88+AD88+AE88+AF88)*Captura!$C$19 -> 0 | AH88: 0 | AJ88: 0 | AK88: 0
B92: Notas:
B93: 1. Esta cotización no es una autorización y no representa ninguna obligación para Leasing Mobile de México, S. A. de C. V.
B94: 2. La información descrita en el presente documento está sujeta a cambios sin previo aviso.
B95: 3. Esta cotización no considera gastos que el equipo requiera para su adquisición, uso o mantenimiento.
B96: 4. Las rentas en depósito serán devueltas al cumplimiento de todas las obligaciones contractauales del Arrendatario.
B107: __________________________________
B108: Leasing Mobile de Mexico, SA de CV
B109: =+Captura!D31 -> xxxx
B110: =+Captura!D32 -> xxxx
B111: =+Captura!D33 -> xxxx

Sheet Plazo 5 (hidden)
B7: Cotización
B8: Arrendamiento Puro
P10: =+Captura!N3 -> 2026-03-06
B12: Cliente: | E12: =+Captura!D7 -> SOPORTE LOGISTICO EXPRESS | J12: Teléfono | K12: =+Captura!D9 -> 0
B13: Atención: | E13: =+Captura!D8 -> A QUIEN CORRESPONDA | J13: E-mail | K13: =+Captura!D10 -> 0
Q14: =+Captura!O40 -> v. 20240220
B17: Tipo de equipo | E17: =+Captura!T7 -> Vehículo utilitario | H17: Plazo del arrendamiento | J17: =+Captura!O13 -> 60 | L17: Gestoría y Registro | N17: =+Captura!F23 -> Pago único | AJ17: Valor presente de flujos
B18: Estado del equipo | E18: =+Captura!T17 -> Nuevo | H18: No. de rentas en depósito | J18: =+Captura!K8 -> 0 | L18: Equipo de geolocalizacióon | N18: =+Captura!F24 -> Pago único | Q18: =+Captura!O36 -> 0 | AJ18: =NPV(Captura!$D$35/12,AJ29:AJ88)+AJ28 -> -13936.62284 | AK18: =NPV(Captura!$D$35/12,AK29:AK88)+AK28 -> -1594.445904
B19: Descripción | E19: =+Captura!D15 -> LAP TOP DELL PRO 14", 16 GB | H19: Comisión de apertura | J19: =+Captura!K9 -> 0.03 | L19: Seguro de daños | N19: =+Captura!T26 -> Pago en renta | AJ19: Tasa Interna de Retorno
H20: Anticipo | J20: =+Captura!K10 -> 733.5064655 | L20: Placas y Tenencia | N20: =+Captura!T33 -> Pago anual | AJ20: =IRR(AJ28:AJ88,0.01)*12 ->  | AK20: =IRR(AK28:AK88,0.01)*12 -> 0.1318498063
H21: Residual estimado | J21: Valor mercado | L21: Servicio de geolocalización | N21: =+Captura!T40 -> Pago anual | Q21: =+Captura!O37 -> Positivo | AJ21: Capital Req. | AK21: =+Captura!O34 -> 8626.036034
B22: Valor factura sin IVA | E22: =+Captura!G18 -> 14670.12931 | L22: =+Captura!I25 -> Otro | N22: =+Captura!F28 -> 0 | AJ22: VP / CR | AK22: =+(AJ18+AK18)/AK21 -> -1.800487349
B23: IVA | E23: =+Captura!G19 -> 2347.22069 | Q23: Regresar
B24: Valor factua con IVA | E24: =+Captura!G20 -> 17017.35 | AJ24: Indicador anualizado | AK24: =+AK22/J17*12 -> -0.3600974697
B26: Periodo | C26: Mes | D26: Renta | E26: Anticipo | F26: Comisión de apertura | G26: Rentas en depósito | H26: Devolución de rentas en depósito | I26: Gestoría y Registro | J26: Equipo de geo localización | K26: Seguro de daños | L26: Placas y Tenencia | M26: Servicio de geo localización | N26: =+L22 -> Otro | O26: Residual estimado | P26: IVA | Q26: TOTAL | T26: Mes | U26: Periodo | V26: Fondeo | W26: Comisión de apertura | X26: Intereses | Y26: Capital | Z26: Pago | AA26: Bullet | AB26: Equipo de geo localización | AC26: Seguro de daños | AD26: Placas y Tenencia | AE26: Servicio de geo localización | AF26: Otro | AG26: IVA | AH26: TOTAL | AJ26: Flujo Activo sin IVA | AK26: Flujo Pasivo sin IVA
B28: 0 | C28: =+P10 -> 2026-03-06 | D28: =+Captura!O16+Resumen!M29+Resumen!M30 -> 0 | E28: =+Captura!K10 -> 733.5064655 | F28: =+Captura!O18 -> 0 | G28: =+Captura!O19 -> 0 | H28: =IF(B28=J$17,-G$28,0) -> 0 | I28: =+Captura!O20 -> 0 | J28: =+Captura!O21 -> 0 | K28: =+Captura!O22 -> 0 | L28: =+Captura!O23 -> 0 | M28: =+Captura!O24 -> 0 | N28: =+Captura!O25 -> 0 | O28: =IF(B28=J$17,Captura!$O$29,0) -> 0 | P28: =SUM(D28:F28,I28:N28)*Captura!$C$19 -> 117.3610345 | Q28: =SUM(D28:P28)-O28 -> 850.8675 | T28: 1 | U28: =+B28 -> 0 | V28: =+Captura!O8 -> 8391.313966 | W28: =+Captura!O31 -> 0 | AB28: =+J28 -> 0 | AC28: =+Captura!G25 -> 2000 | AD28: =+Captura!G26 -> 0 | AE28: =+Captura!G27 -> 0 | AF28: =+N28 -> 0 | AG28: =+(W28+AB28+AC28+AD28+AE28+AF28)*Captura!$C$19 -> 320 | AH28: =SUM(W28,Z28:AG28) -> 2320 | AJ28: =-E22+(Q28-P28)+O28 -> -13936.62284 | AK28: =+V28-(AH28-AG28) -> 6391.313966
B29: 1 | C29: =EDATE(C28,1) -> 2026-04-06 | D29: =IF(B29<J$17,Captura!$O$16,0)+Resumen!$M$29+Resumen!$M$30 -> 0 | H29: 0 | K29: 0 | L29: 0 | M29: 0 | O29: =IF(B29=J$17,Captura!$O$29,0) -> 0 | P29: =SUM(D29:F29,I29:N29)*Captura!$C$19 -> 0 | Q29: =SUM(D29:P29)-O29 -> 0 | T29: =IF(T28=12,1,T28+1) -> 2 | U29: =+B29 -> 1 | V29: =+V28-Y29-AA29 -> 8503.198152 | X29: =+V28*Captura!$O$9/12 -> 111.8841862 | Y29: =+Z29-X29 -> -111.8841862 | Z29: =+Captura!O30 -> 0 | AA29: =IF(U29=J$17,Captura!$O$33,0) -> 0 | AC29: 0 | AD29: 0 | AE29: 0 | AG29: =+(W29+AB29+AC29+AD29+AE29+AF29)*Captura!$C$19 -> 0 | AH29: =SUM(W29,Z29:AG29) -> 0 | AJ29: =Q29-P29+O29 -> 0 | AK29: =-(AH29-AG29) -> 0
B30: 2 | C30: =EDATE(C29,1) -> 2026-05-06 | D30: =IF(B30<J$17,Captura!$O$16,0)+Resumen!$M$29+Resumen!$M$30 -> 0 | H30: 0 | K30: 0 | L30: 0 | M30: 0 | O30: =IF(B30=J$17,Captura!$O$29,0) -> 0 | P30: =SUM(D30:F30,I30:N30)*Captura!$C$19 -> 0 | Q30: 0 | T30: =IF(T29=12,1,T29+1) -> 3 | U30: 2 | V30: =+V29-Y30-AA30 -> 8616.574127 | X30: =+V29*Captura!$O$9/12 -> 113.3759754 | Y30: =+Z30-X30 -> -113.3759754 | Z30: =IF(U30>J$17,0,Z29) -> 0 | AA30: =IF(U30=J$17,Captura!$O$33,0) -> 0 | AC30: 0 | AD30: 0 | AE30: 0 | AG30: =+(W30+AB30+AC30+AD30+AE30+AF30)*Captura!$C$19 -> 0 | AH30: 0 | AJ30: =Q30-P30+O30 -> 0 | AK30: =-(AH30-AG30) -> 0
B31: 3 | C31: 2026-06-06 | D31: =IF(B31<J$17,Captura!$O$16,0)+Resumen!$M$29+Resumen!$M$30 -> 0 | H31: 0 | K31: 0 | L31: 0 | M31: 0 | O31: =IF(B31=J$17,Captura!$O$29,0) -> 0 | P31: =SUM(D31:F31,I31:N31)*Captura!$C$19 -> 0 | Q31: 0 | T31: 4 | U31: 3 | V31: 8731.461782 | X31: =+V30*Captura!$O$9/12 -> 114.887655 | Y31: -114.887655 | Z31: =IF(U31>J$17,0,Z30) -> 0 | AA31: =IF(U31=J$17,Captura!$O$33,0) -> 0 | AC31: 0 | AD31: 0 | AE31: 0 | AG31: =+(W31+AB31+AC31+AD31+AE31+AF31)*Captura!$C$19 -> 0 | AH31: 0 | AJ31: 0 | AK31: 0
B32: 4 | C32: 2026-07-06 | D32: =IF(B32<J$17,Captura!$O$16,0)+Resumen!$M$29+Resumen!$M$30 -> 0 | H32: 0 | K32: 0 | L32: 0 | M32: 0 | O32: =IF(B32=J$17,Captura!$O$29,0) -> 0 | P32: =SUM(D32:F32,I32:N32)*Captura!$C$19 -> 0 | Q32: 0 | T32: 5 | U32: 4 | V32: 8847.881273 | X32: =+V31*Captura!$O$9/12 -> 116.4194904 | Y32: -116.4194904 | Z32: 0 | AA32: =IF(U32=J$17,Captura!$O$33,0) -> 0 | AC32: 0 | AD32: 0 | AE32: 0 | AG32: =+(W32+AB32+AC32+AD32+AE32+AF32)*Captura!$C$19 -> 0 | AH32: 0 | AJ32: 0 | AK32: 0
B33: 5 | C33: 2026-08-06 | D33: =IF(B33<J$17,Captura!$O$16,0)+Resumen!$M$29+Resumen!$M$30 -> 0 | H33: 0 | K33: 0 | L33: 0 | M33: 0 | O33: =IF(B33=J$17,Captura!$O$29,0) -> 0 | P33: =SUM(D33:F33,I33:N33)*Captura!$C$19 -> 0 | Q33: 0 | T33: 6 | U33: 5 | V33: 8965.853023 | X33: =+V32*Captura!$O$9/12 -> 117.9717503 | Y33: -117.9717503 | Z33: 0 | AA33: =IF(U33=J$17,Captura!$O$33,0) -> 0 | AC33: 0 | AD33: 0 | AE33: 0 | AG33: =+(W33+AB33+AC33+AD33+AE33+AF33)*Captura!$C$19 -> 0 | AH33: 0 | AJ33: 0 | AK33: 0
B34: 6 | C34: 2026-09-06 | D34: =IF(B34<J$17,Captura!$O$16,0)+Resumen!$M$29+Resumen!$M$30 -> 0 | H34: 0 | K34: 0 | L34: 0 | M34: 0 | O34: =IF(B34=J$17,Captura!$O$29,0) -> 0 | P34: =SUM(D34:F34,I34:N34)*Captura!$C$19 -> 0 | Q34: 0 | T34: 7 | U34: 6 | V34: 9085.39773 | X34: =+V33*Captura!$O$9/12 -> 119.544707 | Y34: -119.544707 | Z34: 0 | AA34: =IF(U34=J$17,Captura!$O$33,0) -> 0 | AC34: 0 | AD34: 0 | AE34: 0 | AG34: =+(W34+AB34+AC34+AD34+AE34+AF34)*Captura!$C$19 -> 0 | AH34: 0 | AJ34: 0 | AK34: 0
B35: 7 | C35: 2026-10-06 | D35: =IF(B35<J$17,Captura!$O$16,0)+Resumen!$M$29+Resumen!$M$30 -> 0 | H35: 0 | K35: 0 | L35: 0 | M35: 0 | O35: =IF(B35=J$17,Captura!$O$29,0) -> 0 | P35: =SUM(D35:F35,I35:N35)*Captura!$C$19 -> 0 | Q35: 0 | T35: 8 | U35: 7 | V35: 9206.536366 | X35: =+V34*Captura!$O$9/12 -> 121.1386364 | Y35: -121.1386364 | Z35: 0 | AA35: =IF(U35=J$17,Captura!$O$33,0) -> 0 | AC35: 0 | AD35: 0 | AE35: 0 | AG35: =+(W35+AB35+AC35+AD35+AE35+AF35)*Captura!$C$19 -> 0 | AH35: 0 | AJ35: 0 | AK35: 0
B36: 8 | C36: 2026-11-06 | D36: =IF(B36<J$17,Captura!$O$16,0)+Resumen!$M$29+Resumen!$M$30 -> 0 | H36: 0 | K36: 0 | L36: 0 | M36: 0 | O36: =IF(B36=J$17,Captura!$O$29,0) -> 0 | P36: =SUM(D36:F36,I36:N36)*Captura!$C$19 -> 0 | Q36: 0 | T36: 9 | U36: 8 | V36: 9329.290184 | X36: =+V35*Captura!$O$9/12 -> 122.7538182 | Y36: -122.7538182 | Z36: 0 | AA36: =IF(U36=J$17,Captura!$O$33,0) -> 0 | AC36: 0 | AD36: 0 | AE36: 0 | AG36: =+(W36+AB36+AC36+AD36+AE36+AF36)*Captura!$C$19 -> 0 | AH36: 0 | AJ36: 0 | AK36: 0
B37: 9 | C37: 2026-12-06 | D37: =IF(B37<J$17,Captura!$O$16,0)+Resumen!$M$29+Resumen!$M$30 -> 0 | H37: 0 | K37: 0 | L37: 0 | M37: 0 | O37: =IF(B37=J$17,Captura!$O$29,0) -> 0 | P37: =SUM(D37:F37,I37:N37)*Captura!$C$19 -> 0 | Q37: 0 | T37: 10 | U37: 9 | V37: 9453.68072 | X37: =+V36*Captura!$O$9/12 -> 124.3905358 | Y37: -124.3905358 | Z37: 0 | AA37: =IF(U37=J$17,Captura!$O$33,0) -> 0 | AC37: 0 | AD37: 0 | AE37: 0 | AG37: =+(W37+AB37+AC37+AD37+AE37+AF37)*Captura!$C$19 -> 0 | AH37: 0 | AJ37: 0 | AK37: 0
B38: 10 | C38: 2027-01-06 | D38: =IF(B38<J$17,Captura!$O$16,0)+Resumen!$M$29+Resumen!$M$30 -> 0 | H38: 0 | K38: 0 | L38: 0 | M38: 0 | O38: =IF(B38=J$17,Captura!$O$29,0) -> 0 | P38: =SUM(D38:F38,I38:N38)*Captura!$C$19 -> 0 | Q38: 0 | T38: 11 | U38: 10 | V38: 9579.729796 | X38: =+V37*Captura!$O$9/12 -> 126.0490763 | Y38: -126.0490763 | Z38: 0 | AA38: =IF(U38=J$17,Captura!$O$33,0) -> 0 | AC38: 0 | AD38: 0 | AE38: 0 | AG38: =+(W38+AB38+AC38+AD38+AE38+AF38)*Captura!$C$19 -> 0 | AH38: 0 | AJ38: 0 | AK38: 0
B39: 11 | C39: 2027-02-06 | D39: =IF(B39<J$17,Captura!$O$16,0)+Resumen!$M$29+Resumen!$M$30 -> 0 | H39: 0 | K39: 0 | L39: 0 | M39: 0 | O39: =IF(B39=J$17,Captura!$O$29,0) -> 0 | P39: =SUM(D39:F39,I39:N39)*Captura!$C$19 -> 0 | Q39: 0 | T39: 12 | U39: 11 | V39: 9707.459527 | X39: =+V38*Captura!$O$9/12 -> 127.7297306 | Y39: -127.7297306 | Z39: 0 | AA39: =IF(U39=J$17,Captura!$O$33,0) -> 0 | AC39: 0 | AD39: 0 | AE39: 0 | AG39: =+(W39+AB39+AC39+AD39+AE39+AF39)*Captura!$C$19 -> 0 | AH39: 0 | AJ39: 0 | AK39: 0
B40: 12 | C40: 2027-03-06 | D40: =IF(B40<J$17,Captura!$O$16,0)+Resumen!$M$29+Resumen!$M$30 -> 0 | H40: 0 | K40: =IF(B40+1>=$J$17,0,K28*(1+Captura!$D$35)) -> 0 | L40: =IF(B40+1>=$J$17,0,L28*(1+Captura!$D$35)) -> 0 | M40: =IF(B40+1>=$J$17,0,M28*(1+Captura!$D$35)) -> 0 | O40: =IF(B40=J$17,Captura!$O$29,0) -> 0 | P40: =SUM(D40:F40,I40:N40)*Captura!$C$19 -> 0 | Q40: 0 | T40: 1 | U40: 12 | V40: 9836.892321 | X40: =+V39*Captura!$O$9/12 -> 129.4327937 | Y40: -129.4327937 | Z40: 0 | AA40: =IF(U40=J$17,Captura!$O$33,0) -> 0 | AC40: =IF(U40+1>=$J$17,0,AC28*(1+Captura!$D$35)) -> 2080 | AD40: =IF(U40+1>=$J$17,0,AD28*(1+Captura!$D$35)) -> 0 | AE40: =IF(U40+1>=$J$17,0,AE28*(1+Captura!$D$35)) -> 0 | AG40: =+(W40+AB40+AC40+AD40+AE40+AF40)*Captura!$C$19 -> 332.8 | AH40: 2412.8 | AJ40: 0 | AK40: -2080
B41: 13 | C41: 2027-04-06 | D41: =IF(B41<J$17,Captura!$O$16,0)+Resumen!$M$29+Resumen!$M$30 -> 0 | H41: 0 | K41: =IF(B41+1>=$J$17,0,K29*(1+Captura!$D$35)) -> 0 | L41: =IF(B41+1>=$J$17,0,L29*(1+Captura!$D$35)) -> 0 | M41: =IF(B41+1>=$J$17,0,M29*(1+Captura!$D$35)) -> 0 | O41: =IF(B41=J$17,Captura!$O$29,0) -> 0 | P41: =SUM(D41:F41,I41:N41)*Captura!$C$19 -> 0 | Q41: 0 | T41: 2 | U41: 13 | V41: 9968.050885 | X41: =+V40*Captura!$O$9/12 -> 131.1585643 | Y41: -131.1585643 | Z41: 0 | AA41: =IF(U41=J$17,Captura!$O$33,0) -> 0 | AC41: =IF(U41+1>=$J$17,0,AC29*(1+Captura!$D$35)) -> 0 | AD41: =IF(U41+1>=$J$17,0,AD29*(1+Captura!$D$35)) -> 0 | AE41: =IF(U41+1>=$J$17,0,AE29*(1+Captura!$D$35)) -> 0 | AG41: =+(W41+AB41+AC41+AD41+AE41+AF41)*Captura!$C$19 -> 0 | AH41: 0 | AJ41: 0 | AK41: 0
B42: 14 | C42: 2027-05-06 | D42: =IF(B42<J$17,Captura!$O$16,0)+Resumen!$M$29+Resumen!$M$30 -> 0 | H42: 0 | K42: =IF(B42+1>=$J$17,0,K30*(1+Captura!$D$35)) -> 0 | L42: =IF(B42+1>=$J$17,0,L30*(1+Captura!$D$35)) -> 0 | M42: =IF(B42+1>=$J$17,0,M30*(1+Captura!$D$35)) -> 0 | O42: =IF(B42=J$17,Captura!$O$29,0) -> 0 | P42: =SUM(D42:F42,I42:N42)*Captura!$C$19 -> 0 | Q42: 0 | T42: 3 | U42: 14 | V42: 10100.95823 | X42: =+V41*Captura!$O$9/12 -> 132.9073451 | Y42: -132.9073451 | Z42: 0 | AA42: =IF(U42=J$17,Captura!$O$33,0) -> 0 | AC42: =IF(U42+1>=$J$17,0,AC30*(1+Captura!$D$35)) -> 0 | AD42: =IF(U42+1>=$J$17,0,AD30*(1+Captura!$D$35)) -> 0 | AE42: =IF(U42+1>=$J$17,0,AE30*(1+Captura!$D$35)) -> 0 | AG42: =+(W42+AB42+AC42+AD42+AE42+AF42)*Captura!$C$19 -> 0 | AH42: 0 | AJ42: 0 | AK42: 0
B43: 15 | C43: 2027-06-06 | D43: =IF(B43<J$17,Captura!$O$16,0)+Resumen!$M$29+Resumen!$M$30 -> 0 | H43: 0 | K43: =IF(B43+1>=$J$17,0,K31*(1+Captura!$D$35)) -> 0 | L43: =IF(B43+1>=$J$17,0,L31*(1+Captura!$D$35)) -> 0 | M43: =IF(B43+1>=$J$17,0,M31*(1+Captura!$D$35)) -> 0 | O43: =IF(B43=J$17,Captura!$O$29,0) -> 0 | P43: =SUM(D43:F43,I43:N43)*Captura!$C$19 -> 0 | Q43: 0 | T43: 4 | U43: 15 | V43: 10235.63767 | X43: =+V42*Captura!$O$9/12 -> 134.6794431 | Y43: -134.6794431 | Z43: 0 | AA43: =IF(U43=J$17,Captura!$O$33,0) -> 0 | AC43: =IF(U43+1>=$J$17,0,AC31*(1+Captura!$D$35)) -> 0 | AD43: =IF(U43+1>=$J$17,0,AD31*(1+Captura!$D$35)) -> 0 | AE43: =IF(U43+1>=$J$17,0,AE31*(1+Captura!$D$35)) -> 0 | AG43: =+(W43+AB43+AC43+AD43+AE43+AF43)*Captura!$C$19 -> 0 | AH43: 0 | AJ43: 0 | AK43: 0
B44: 16 | C44: 2027-07-06 | D44: =IF(B44<J$17,Captura!$O$16,0)+Resumen!$M$29+Resumen!$M$30 -> 0 | H44: 0 | K44: =IF(B44+1>=$J$17,0,K32*(1+Captura!$D$35)) -> 0 | L44: =IF(B44+1>=$J$17,0,L32*(1+Captura!$D$35)) -> 0 | M44: =IF(B44+1>=$J$17,0,M32*(1+Captura!$D$35)) -> 0 | O44: =IF(B44=J$17,Captura!$O$29,0) -> 0 | P44: =SUM(D44:F44,I44:N44)*Captura!$C$19 -> 0 | Q44: 0 | T44: 5 | U44: 16 | V44: 10372.11284 | X44: =+V43*Captura!$O$9/12 -> 136.475169 | Y44: -136.475169 | Z44: 0 | AA44: =IF(U44=J$17,Captura!$O$33,0) -> 0 | AC44: =IF(U44+1>=$J$17,0,AC32*(1+Captura!$D$35)) -> 0 | AD44: =IF(U44+1>=$J$17,0,AD32*(1+Captura!$D$35)) -> 0 | AE44: =IF(U44+1>=$J$17,0,AE32*(1+Captura!$D$35)) -> 0 | AG44: =+(W44+AB44+AC44+AD44+AE44+AF44)*Captura!$C$19 -> 0 | AH44: 0 | AJ44: 0 | AK44: 0
B45: 17 | C45: 2027-08-06 | D45: =IF(B45<J$17,Captura!$O$16,0)+Resumen!$M$29+Resumen!$M$30 -> 0 | H45: 0 | K45: =IF(B45+1>=$J$17,0,K33*(1+Captura!$D$35)) -> 0 | L45: =IF(B45+1>=$J$17,0,L33*(1+Captura!$D$35)) -> 0 | M45: =IF(B45+1>=$J$17,0,M33*(1+Captura!$D$35)) -> 0 | O45: =IF(B45=J$17,Captura!$O$29,0) -> 0 | P45: =SUM(D45:F45,I45:N45)*Captura!$C$19 -> 0 | Q45: 0 | T45: 6 | U45: 17 | V45: 10510.40768 | X45: =+V44*Captura!$O$9/12 -> 138.2948379 | Y45: -138.2948379 | Z45: 0 | AA45: =IF(U45=J$17,Captura!$O$33,0) -> 0 | AC45: =IF(U45+1>=$J$17,0,AC33*(1+Captura!$D$35)) -> 0 | AD45: =IF(U45+1>=$J$17,0,AD33*(1+Captura!$D$35)) -> 0 | AE45: =IF(U45+1>=$J$17,0,AE33*(1+Captura!$D$35)) -> 0 | AG45: =+(W45+AB45+AC45+AD45+AE45+AF45)*Captura!$C$19 -> 0 | AH45: 0 | AJ45: 0 | AK45: 0
B46: 18 | C46: 2027-09-06 | D46: =IF(B46<J$17,Captura!$O$16,0)+Resumen!$M$29+Resumen!$M$30 -> 0 | H46: 0 | K46: =IF(B46+1>=$J$17,0,K34*(1+Captura!$D$35)) -> 0 | L46: =IF(B46+1>=$J$17,0,L34*(1+Captura!$D$35)) -> 0 | M46: =IF(B46+1>=$J$17,0,M34*(1+Captura!$D$35)) -> 0 | O46: =IF(B46=J$17,Captura!$O$29,0) -> 0 | P46: =SUM(D46:F46,I46:N46)*Captura!$C$19 -> 0 | Q46: 0 | T46: 7 | U46: 18 | V46: 10650.54645 | X46: =+V45*Captura!$O$9/12 -> 140.1387691 | Y46: -140.1387691 | Z46: 0 | AA46: =IF(U46=J$17,Captura!$O$33,0) -> 0 | AC46: =IF(U46+1>=$J$17,0,AC34*(1+Captura!$D$35)) -> 0 | AD46: =IF(U46+1>=$J$17,0,AD34*(1+Captura!$D$35)) -> 0 | AE46: =IF(U46+1>=$J$17,0,AE34*(1+Captura!$D$35)) -> 0 | AG46: =+(W46+AB46+AC46+AD46+AE46+AF46)*Captura!$C$19 -> 0 | AH46: 0 | AJ46: 0 | AK46: 0
B47: 19 | C47: 2027-10-06 | D47: =IF(B47<J$17,Captura!$O$16,0)+Resumen!$M$29+Resumen!$M$30 -> 0 | H47: 0 | K47: =IF(B47+1>=$J$17,0,K35*(1+Captura!$D$35)) -> 0 | L47: =IF(B47+1>=$J$17,0,L35*(1+Captura!$D$35)) -> 0 | M47: =IF(B47+1>=$J$17,0,M35*(1+Captura!$D$35)) -> 0 | O47: =IF(B47=J$17,Captura!$O$29,0) -> 0 | P47: =SUM(D47:F47,I47:N47)*Captura!$C$19 -> 0 | Q47: 0 | T47: 8 | U47: 19 | V47: 10792.55374 | X47: =+V46*Captura!$O$9/12 -> 142.007286 | Y47: -142.007286 | Z47: 0 | AA47: =IF(U47=J$17,Captura!$O$33,0) -> 0 | AC47: =IF(U47+1>=$J$17,0,AC35*(1+Captura!$D$35)) -> 0 | AD47: =IF(U47+1>=$J$17,0,AD35*(1+Captura!$D$35)) -> 0 | AE47: =IF(U47+1>=$J$17,0,AE35*(1+Captura!$D$35)) -> 0 | AG47: =+(W47+AB47+AC47+AD47+AE47+AF47)*Captura!$C$19 -> 0 | AH47: 0 | AJ47: 0 | AK47: 0
B48: 20 | C48: 2027-11-06 | D48: =IF(B48<J$17,Captura!$O$16,0)+Resumen!$M$29+Resumen!$M$30 -> 0 | H48: 0 | K48: =IF(B48+1>=$J$17,0,K36*(1+Captura!$D$35)) -> 0 | L48: =IF(B48+1>=$J$17,0,L36*(1+Captura!$D$35)) -> 0 | M48: =IF(B48+1>=$J$17,0,M36*(1+Captura!$D$35)) -> 0 | O48: =IF(B48=J$17,Captura!$O$29,0) -> 0 | P48: =SUM(D48:F48,I48:N48)*Captura!$C$19 -> 0 | Q48: 0 | T48: 9 | U48: 20 | V48: 10936.45445 | X48: =+V47*Captura!$O$9/12 -> 143.9007165 | Y48: -143.9007165 | Z48: 0 | AA48: =IF(U48=J$17,Captura!$O$33,0) -> 0 | AC48: =IF(U48+1>=$J$17,0,AC36*(1+Captura!$D$35)) -> 0 | AD48: =IF(U48+1>=$J$17,0,AD36*(1+Captura!$D$35)) -> 0 | AE48: =IF(U48+1>=$J$17,0,AE36*(1+Captura!$D$35)) -> 0 | AG48: =+(W48+AB48+AC48+AD48+AE48+AF48)*Captura!$C$19 -> 0 | AH48: 0 | AJ48: 0 | AK48: 0
B49: 21 | C49: 2027-12-06 | D49: =IF(B49<J$17,Captura!$O$16,0)+Resumen!$M$29+Resumen!$M$30 -> 0 | H49: 0 | K49: =IF(B49+1>=$J$17,0,K37*(1+Captura!$D$35)) -> 0 | L49: =IF(B49+1>=$J$17,0,L37*(1+Captura!$D$35)) -> 0 | M49: =IF(B49+1>=$J$17,0,M37*(1+Captura!$D$35)) -> 0 | O49: =IF(B49=J$17,Captura!$O$29,0) -> 0 | P49: =SUM(D49:F49,I49:N49)*Captura!$C$19 -> 0 | Q49: 0 | T49: 10 | U49: 21 | V49: 11082.27384 | X49: =+V48*Captura!$O$9/12 -> 145.8193927 | Y49: -145.8193927 | Z49: 0 | AA49: =IF(U49=J$17,Captura!$O$33,0) -> 0 | AC49: =IF(U49+1>=$J$17,0,AC37*(1+Captura!$D$35)) -> 0 | AD49: =IF(U49+1>=$J$17,0,AD37*(1+Captura!$D$35)) -> 0 | AE49: =IF(U49+1>=$J$17,0,AE37*(1+Captura!$D$35)) -> 0 | AG49: =+(W49+AB49+AC49+AD49+AE49+AF49)*Captura!$C$19 -> 0 | AH49: 0 | AJ49: 0 | AK49: 0
B50: 22 | C50: 2028-01-06 | D50: =IF(B50<J$17,Captura!$O$16,0)+Resumen!$M$29+Resumen!$M$30 -> 0 | H50: 0 | K50: =IF(B50+1>=$J$17,0,K38*(1+Captura!$D$35)) -> 0 | L50: =IF(B50+1>=$J$17,0,L38*(1+Captura!$D$35)) -> 0 | M50: =IF(B50+1>=$J$17,0,M38*(1+Captura!$D$35)) -> 0 | O50: =IF(B50=J$17,Captura!$O$29,0) -> 0 | P50: =SUM(D50:F50,I50:N50)*Captura!$C$19 -> 0 | Q50: 0 | T50: 11 | U50: 22 | V50: 11230.0375 | X50: =+V49*Captura!$O$9/12 -> 147.7636513 | Y50: -147.7636513 | Z50: 0 | AA50: =IF(U50=J$17,Captura!$O$33,0) -> 0 | AC50: =IF(U50+1>=$J$17,0,AC38*(1+Captura!$D$35)) -> 0 | AD50: =IF(U50+1>=$J$17,0,AD38*(1+Captura!$D$35)) -> 0 | AE50: =IF(U50+1>=$J$17,0,AE38*(1+Captura!$D$35)) -> 0 | AG50: =+(W50+AB50+AC50+AD50+AE50+AF50)*Captura!$C$19 -> 0 | AH50: 0 | AJ50: 0 | AK50: 0
B51: 23 | C51: 2028-02-06 | D51: =IF(B51<J$17,Captura!$O$16,0)+Resumen!$M$29+Resumen!$M$30 -> 0 | H51: 0 | K51: =IF(B51+1>=$J$17,0,K39*(1+Captura!$D$35)) -> 0 | L51: =IF(B51+1>=$J$17,0,L39*(1+Captura!$D$35)) -> 0 | M51: =IF(B51+1>=$J$17,0,M39*(1+Captura!$D$35)) -> 0 | O51: =IF(B51=J$17,Captura!$O$29,0) -> 0 | P51: =SUM(D51:F51,I51:N51)*Captura!$C$19 -> 0 | Q51: 0 | T51: 12 | U51: 23 | V51: 11379.77133 | X51: =+V50*Captura!$O$9/12 -> 149.7338333 | Y51: -149.7338333 | Z51: 0 | AA51: =IF(U51=J$17,Captura!$O$33,0) -> 0 | AC51: =IF(U51+1>=$J$17,0,AC39*(1+Captura!$D$35)) -> 0 | AD51: =IF(U51+1>=$J$17,0,AD39*(1+Captura!$D$35)) -> 0 | AE51: =IF(U51+1>=$J$17,0,AE39*(1+Captura!$D$35)) -> 0 | AG51: =+(W51+AB51+AC51+AD51+AE51+AF51)*Captura!$C$19 -> 0 | AH51: 0 | AJ51: 0 | AK51: 0
B52: 24 | C52: 2028-03-06 | D52: =IF(B52<J$17,Captura!$O$16,0)+Resumen!$M$29+Resumen!$M$30 -> 0 | H52: 0 | K52: =IF(B52+1>=$J$17,0,K40*(1+Captura!$D$35)) -> 0 | L52: =IF(B52+1>=$J$17,0,L40*(1+Captura!$D$35)) -> 0 | M52: =IF(B52+1>=$J$17,0,M40*(1+Captura!$D$35)) -> 0 | O52: =IF(B52=J$17,Captura!$O$29,0) -> 0 | P52: =SUM(D52:F52,I52:N52)*Captura!$C$19 -> 0 | Q52: 0 | T52: 1 | U52: 24 | V52: 11531.50161 | X52: =+V51*Captura!$O$9/12 -> 151.7302844 | Y52: -151.7302844 | Z52: 0 | AA52: =IF(U52=J$17,Captura!$O$33,0) -> 0 | AC52: =IF(U52+1>=$J$17,0,AC40*(1+Captura!$D$35)) -> 2163.2 | AD52: =IF(U52+1>=$J$17,0,AD40*(1+Captura!$D$35)) -> 0 | AE52: =IF(U52+1>=$J$17,0,AE40*(1+Captura!$D$35)) -> 0 | AG52: =+(W52+AB52+AC52+AD52+AE52+AF52)*Captura!$C$19 -> 346.112 | AH52: 2509.312 | AJ52: 0 | AK52: -2163.2
B53: 25 | C53: 2028-04-06 | D53: =IF(B53<J$17,Captura!$O$16,0)+Resumen!$M$29+Resumen!$M$30 -> 0 | H53: 0 | K53: =IF(B53+1>=$J$17,0,K41*(1+Captura!$D$35)) -> 0 | L53: =IF(B53+1>=$J$17,0,L41*(1+Captura!$D$35)) -> 0 | M53: =IF(B53+1>=$J$17,0,M41*(1+Captura!$D$35)) -> 0 | O53: =IF(B53=J$17,Captura!$O$29,0) -> 0 | P53: =SUM(D53:F53,I53:N53)*Captura!$C$19 -> 0 | Q53: 0 | T53: 2 | U53: 25 | V53: 11685.25497 | X53: =+V52*Captura!$O$9/12 -> 153.7533548 | Y53: -153.7533548 | Z53: 0 | AA53: =IF(U53=J$17,Captura!$O$33,0) -> 0 | AC53: =IF(U53+1>=$J$17,0,AC41*(1+Captura!$D$35)) -> 0 | AD53: =IF(U53+1>=$J$17,0,AD41*(1+Captura!$D$35)) -> 0 | AE53: =IF(U53+1>=$J$17,0,AE41*(1+Captura!$D$35)) -> 0 | AG53: =+(W53+AB53+AC53+AD53+AE53+AF53)*Captura!$C$19 -> 0 | AH53: 0 | AJ53: 0 | AK53: 0
B54: 26 | C54: 2028-05-06 | D54: =IF(B54<J$17,Captura!$O$16,0)+Resumen!$M$29+Resumen!$M$30 -> 0 | H54: 0 | K54: =IF(B54+1>=$J$17,0,K42*(1+Captura!$D$35)) -> 0 | L54: =IF(B54+1>=$J$17,0,L42*(1+Captura!$D$35)) -> 0 | M54: =IF(B54+1>=$J$17,0,M42*(1+Captura!$D$35)) -> 0 | O54: =IF(B54=J$17,Captura!$O$29,0) -> 0 | P54: =SUM(D54:F54,I54:N54)*Captura!$C$19 -> 0 | Q54: 0 | T54: 3 | U54: 26 | V54: 11841.05837 | X54: =+V53*Captura!$O$9/12 -> 155.8033996 | Y54: -155.8033996 | Z54: 0 | AA54: =IF(U54=J$17,Captura!$O$33,0) -> 0 | AC54: =IF(U54+1>=$J$17,0,AC42*(1+Captura!$D$35)) -> 0 | AD54: =IF(U54+1>=$J$17,0,AD42*(1+Captura!$D$35)) -> 0 | AE54: =IF(U54+1>=$J$17,0,AE42*(1+Captura!$D$35)) -> 0 | AG54: =+(W54+AB54+AC54+AD54+AE54+AF54)*Captura!$C$19 -> 0 | AH54: 0 | AJ54: 0 | AK54: 0
B55: 27 | C55: 2028-06-06 | D55: =IF(B55<J$17,Captura!$O$16,0)+Resumen!$M$29+Resumen!$M$30 -> 0 | H55: 0 | K55: =IF(B55+1>=$J$17,0,K43*(1+Captura!$D$35)) -> 0 | L55: =IF(B55+1>=$J$17,0,L43*(1+Captura!$D$35)) -> 0 | M55: =IF(B55+1>=$J$17,0,M43*(1+Captura!$D$35)) -> 0 | O55: =IF(B55=J$17,Captura!$O$29,0) -> 0 | P55: =SUM(D55:F55,I55:N55)*Captura!$C$19 -> 0 | Q55: 0 | T55: 4 | U55: 27 | V55: 11998.93915 | X55: =+V54*Captura!$O$9/12 -> 157.8807782 | Y55: -157.8807782 | Z55: 0 | AA55: =IF(U55=J$17,Captura!$O$33,0) -> 0 | AC55: =IF(U55+1>=$J$17,0,AC43*(1+Captura!$D$35)) -> 0 | AD55: =IF(U55+1>=$J$17,0,AD43*(1+Captura!$D$35)) -> 0 | AE55: =IF(U55+1>=$J$17,0,AE43*(1+Captura!$D$35)) -> 0 | AG55: =+(W55+AB55+AC55+AD55+AE55+AF55)*Captura!$C$19 -> 0 | AH55: 0 | AJ55: 0 | AK55: 0
B56: 28 | C56: 2028-07-06 | D56: =IF(B56<J$17,Captura!$O$16,0)+Resumen!$M$29+Resumen!$M$30 -> 0 | H56: 0 | K56: =IF(B56+1>=$J$17,0,K44*(1+Captura!$D$35)) -> 0 | L56: =IF(B56+1>=$J$17,0,L44*(1+Captura!$D$35)) -> 0 | M56: =IF(B56+1>=$J$17,0,M44*(1+Captura!$D$35)) -> 0 | O56: =IF(B56=J$17,Captura!$O$29,0) -> 0 | P56: =SUM(D56:F56,I56:N56)*Captura!$C$19 -> 0 | Q56: 0 | T56: 5 | U56: 28 | V56: 12158.925 | X56: =+V55*Captura!$O$9/12 -> 159.9858553 | Y56: -159.9858553 | Z56: 0 | AA56: =IF(U56=J$17,Captura!$O$33,0) -> 0 | AC56: =IF(U56+1>=$J$17,0,AC44*(1+Captura!$D$35)) -> 0 | AD56: =IF(U56+1>=$J$17,0,AD44*(1+Captura!$D$35)) -> 0 | AE56: =IF(U56+1>=$J$17,0,AE44*(1+Captura!$D$35)) -> 0 | AG56: =+(W56+AB56+AC56+AD56+AE56+AF56)*Captura!$C$19 -> 0 | AH56: 0 | AJ56: 0 | AK56: 0
B57: 29 | C57: 2028-08-06 | D57: =IF(B57<J$17,Captura!$O$16,0)+Resumen!$M$29+Resumen!$M$30 -> 0 | H57: 0 | K57: =IF(B57+1>=$J$17,0,K45*(1+Captura!$D$35)) -> 0 | L57: =IF(B57+1>=$J$17,0,L45*(1+Captura!$D$35)) -> 0 | M57: =IF(B57+1>=$J$17,0,M45*(1+Captura!$D$35)) -> 0 | O57: =IF(B57=J$17,Captura!$O$29,0) -> 0 | P57: =SUM(D57:F57,I57:N57)*Captura!$C$19 -> 0 | Q57: 0 | T57: 6 | U57: 29 | V57: 12321.044 | X57: =+V56*Captura!$O$9/12 -> 162.119 | Y57: -162.119 | Z57: 0 | AA57: =IF(U57=J$17,Captura!$O$33,0) -> 0 | AC57: =IF(U57+1>=$J$17,0,AC45*(1+Captura!$D$35)) -> 0 | AD57: =IF(U57+1>=$J$17,0,AD45*(1+Captura!$D$35)) -> 0 | AE57: =IF(U57+1>=$J$17,0,AE45*(1+Captura!$D$35)) -> 0 | AG57: =+(W57+AB57+AC57+AD57+AE57+AF57)*Captura!$C$19 -> 0 | AH57: 0 | AJ57: 0 | AK57: 0
B58: 30 | C58: 2028-09-06 | D58: =IF(B58<J$17,Captura!$O$16,0)+Resumen!$M$29+Resumen!$M$30 -> 0 | H58: 0 | K58: =IF(B58+1>=$J$17,0,K46*(1+Captura!$D$35)) -> 0 | L58: =IF(B58+1>=$J$17,0,L46*(1+Captura!$D$35)) -> 0 | M58: =IF(B58+1>=$J$17,0,M46*(1+Captura!$D$35)) -> 0 | O58: =IF(B58=J$17,Captura!$O$29,0) -> 0 | P58: =SUM(D58:F58,I58:N58)*Captura!$C$19 -> 0 | Q58: 0 | T58: 7 | U58: 30 | V58: 12485.32459 | X58: =+V57*Captura!$O$9/12 -> 164.2805867 | Y58: -164.2805867 | Z58: 0 | AA58: =IF(U58=J$17,Captura!$O$33,0) -> 0 | AC58: =IF(U58+1>=$J$17,0,AC46*(1+Captura!$D$35)) -> 0 | AD58: =IF(U58+1>=$J$17,0,AD46*(1+Captura!$D$35)) -> 0 | AE58: =IF(U58+1>=$J$17,0,AE46*(1+Captura!$D$35)) -> 0 | AG58: =+(W58+AB58+AC58+AD58+AE58+AF58)*Captura!$C$19 -> 0 | AH58: 0 | AJ58: 0 | AK58: 0
B59: 31 | C59: 2028-10-06 | D59: =IF(B59<J$17,Captura!$O$16,0)+Resumen!$M$29+Resumen!$M$30 -> 0 | H59: 0 | K59: =IF(B59+1>=$J$17,0,K47*(1+Captura!$D$35)) -> 0 | L59: =IF(B59+1>=$J$17,0,L47*(1+Captura!$D$35)) -> 0 | M59: =IF(B59+1>=$J$17,0,M47*(1+Captura!$D$35)) -> 0 | O59: =IF(B59=J$17,Captura!$O$29,0) -> 0 | P59: =SUM(D59:F59,I59:N59)*Captura!$C$19 -> 0 | Q59: 0 | T59: 8 | U59: 31 | V59: 12651.79558 | X59: =+V58*Captura!$O$9/12 -> 166.4709945 | Y59: -166.4709945 | Z59: 0 | AA59: =IF(U59=J$17,Captura!$O$33,0) -> 0 | AC59: =IF(U59+1>=$J$17,0,AC47*(1+Captura!$D$35)) -> 0 | AD59: =IF(U59+1>=$J$17,0,AD47*(1+Captura!$D$35)) -> 0 | AE59: =IF(U59+1>=$J$17,0,AE47*(1+Captura!$D$35)) -> 0 | AG59: =+(W59+AB59+AC59+AD59+AE59+AF59)*Captura!$C$19 -> 0 | AH59: 0 | AJ59: 0 | AK59: 0
B60: 32 | C60: 2028-11-06 | D60: =IF(B60<J$17,Captura!$O$16,0)+Resumen!$M$29+Resumen!$M$30 -> 0 | H60: 0 | K60: =IF(B60+1>=$J$17,0,K48*(1+Captura!$D$35)) -> 0 | L60: =IF(B60+1>=$J$17,0,L48*(1+Captura!$D$35)) -> 0 | M60: =IF(B60+1>=$J$17,0,M48*(1+Captura!$D$35)) -> 0 | O60: =IF(B60=J$17,Captura!$O$29,0) -> 0 | P60: =SUM(D60:F60,I60:N60)*Captura!$C$19 -> 0 | Q60: 0 | T60: 9 | U60: 32 | V60: 12820.48619 | X60: =+V59*Captura!$O$9/12 -> 168.6906078 | Y60: -168.6906078 | Z60: 0 | AA60: =IF(U60=J$17,Captura!$O$33,0) -> 0 | AC60: =IF(U60+1>=$J$17,0,AC48*(1+Captura!$D$35)) -> 0 | AD60: =IF(U60+1>=$J$17,0,AD48*(1+Captura!$D$35)) -> 0 | AE60: =IF(U60+1>=$J$17,0,AE48*(1+Captura!$D$35)) -> 0 | AG60: =+(W60+AB60+AC60+AD60+AE60+AF60)*Captura!$C$19 -> 0 | AH60: 0 | AJ60: 0 | AK60: 0
B61: 33 | C61: 2028-12-06 | D61: =IF(B61<J$17,Captura!$O$16,0)+Resumen!$M$29+Resumen!$M$30 -> 0 | H61: 0 | K61: =IF(B61+1>=$J$17,0,K49*(1+Captura!$D$35)) -> 0 | L61: =IF(B61+1>=$J$17,0,L49*(1+Captura!$D$35)) -> 0 | M61: =IF(B61+1>=$J$17,0,M49*(1+Captura!$D$35)) -> 0 | O61: =IF(B61=J$17,Captura!$O$29,0) -> 0 | P61: =SUM(D61:F61,I61:N61)*Captura!$C$19 -> 0 | Q61: 0 | T61: 10 | U61: 33 | V61: 12991.42601 | X61: =+V60*Captura!$O$9/12 -> 170.9398159 | Y61: -170.9398159 | Z61: 0 | AA61: =IF(U61=J$17,Captura!$O$33,0) -> 0 | AC61: =IF(U61+1>=$J$17,0,AC49*(1+Captura!$D$35)) -> 0 | AD61: =IF(U61+1>=$J$17,0,AD49*(1+Captura!$D$35)) -> 0 | AE61: =IF(U61+1>=$J$17,0,AE49*(1+Captura!$D$35)) -> 0 | AG61: =+(W61+AB61+AC61+AD61+AE61+AF61)*Captura!$C$19 -> 0 | AH61: 0 | AJ61: 0 | AK61: 0
B62: 34 | C62: 2029-01-06 | D62: =IF(B62<J$17,Captura!$O$16,0)+Resumen!$M$29+Resumen!$M$30 -> 0 | H62: 0 | K62: =IF(B62+1>=$J$17,0,K50*(1+Captura!$D$35)) -> 0 | L62: =IF(B62+1>=$J$17,0,L50*(1+Captura!$D$35)) -> 0 | M62: =IF(B62+1>=$J$17,0,M50*(1+Captura!$D$35)) -> 0 | O62: =IF(B62=J$17,Captura!$O$29,0) -> 0 | P62: =SUM(D62:F62,I62:N62)*Captura!$C$19 -> 0 | Q62: 0 | T62: 11 | U62: 34 | V62: 13164.64502 | X62: =+V61*Captura!$O$9/12 -> 173.2190134 | Y62: -173.2190134 | Z62: 0 | AA62: =IF(U62=J$17,Captura!$O$33,0) -> 0 | AC62: =IF(U62+1>=$J$17,0,AC50*(1+Captura!$D$35)) -> 0 | AD62: =IF(U62+1>=$J$17,0,AD50*(1+Captura!$D$35)) -> 0 | AE62: =IF(U62+1>=$J$17,0,AE50*(1+Captura!$D$35)) -> 0 | AG62: =+(W62+AB62+AC62+AD62+AE62+AF62)*Captura!$C$19 -> 0 | AH62: 0 | AJ62: 0 | AK62: 0
B63: 35 | C63: 2029-02-06 | D63: =IF(B63<J$17,Captura!$O$16,0)+Resumen!$M$29+Resumen!$M$30 -> 0 | H63: 0 | K63: =IF(B63+1>=$J$17,0,K51*(1+Captura!$D$35)) -> 0 | L63: =IF(B63+1>=$J$17,0,L51*(1+Captura!$D$35)) -> 0 | M63: =IF(B63+1>=$J$17,0,M51*(1+Captura!$D$35)) -> 0 | O63: =IF(B63=J$17,Captura!$O$29,0) -> 0 | P63: =SUM(D63:F63,I63:N63)*Captura!$C$19 -> 0 | Q63: 0 | T63: 12 | U63: 35 | V63: 13340.17362 | X63: =+V62*Captura!$O$9/12 -> 175.5286003 | Y63: -175.5286003 | Z63: 0 | AA63: =IF(U63=J$17,Captura!$O$33,0) -> 0 | AC63: =IF(U63+1>=$J$17,0,AC51*(1+Captura!$D$35)) -> 0 | AD63: =IF(U63+1>=$J$17,0,AD51*(1+Captura!$D$35)) -> 0 | AE63: =IF(U63+1>=$J$17,0,AE51*(1+Captura!$D$35)) -> 0 | AG63: =+(W63+AB63+AC63+AD63+AE63+AF63)*Captura!$C$19 -> 0 | AH63: 0 | AJ63: 0 | AK63: 0
B64: 36 | C64: 2029-03-06 | D64: =IF(B64<J$17,Captura!$O$16,0)+Resumen!$M$29+Resumen!$M$30 -> 0 | H64: 0 | K64: =IF(B64+1>=$J$17,0,K52*(1+Captura!$D$35)) -> 0 | L64: =IF(B64+1>=$J$17,0,L52*(1+Captura!$D$35)) -> 0 | M64: =IF(B64+1>=$J$17,0,M52*(1+Captura!$D$35)) -> 0 | O64: =IF(B64=J$17,Captura!$O$29,0) -> 0 | P64: =SUM(D64:F64,I64:N64)*Captura!$C$19 -> 0 | Q64: 0 | T64: 1 | U64: 36 | V64: 13518.0426 | X64: =+V63*Captura!$O$9/12 -> 177.8689816 | Y64: -177.8689816 | Z64: 0 | AA64: =IF(U64=J$17,Captura!$O$33,0) -> 0 | AC64: =IF(U64+1>=$J$17,0,AC52*(1+Captura!$D$35)) -> 2249.728 | AD64: =IF(U64+1>=$J$17,0,AD52*(1+Captura!$D$35)) -> 0 | AE64: =IF(U64+1>=$J$17,0,AE52*(1+Captura!$D$35)) -> 0 | AG64: =+(W64+AB64+AC64+AD64+AE64+AF64)*Captura!$C$19 -> 359.95648 | AH64: 2609.68448 | AJ64: 0 | AK64: -2249.728
B65: 37 | C65: 2029-04-06 | D65: =IF(B65<J$17,Captura!$O$16,0)+Resumen!$M$29+Resumen!$M$30 -> 0 | H65: 0 | K65: =IF(B65+1>=$J$17,0,K53*(1+Captura!$D$35)) -> 0 | L65: =IF(B65+1>=$J$17,0,L53*(1+Captura!$D$35)) -> 0 | M65: =IF(B65+1>=$J$17,0,M53*(1+Captura!$D$35)) -> 0 | O65: =IF(B65=J$17,Captura!$O$29,0) -> 0 | P65: =SUM(D65:F65,I65:N65)*Captura!$C$19 -> 0 | Q65: 0 | T65: 2 | U65: 37 | V65: 13698.28317 | X65: =+V64*Captura!$O$9/12 -> 180.240568 | Y65: -180.240568 | Z65: 0 | AA65: =IF(U65=J$17,Captura!$O$33,0) -> 0 | AC65: =IF(U65+1>=$J$17,0,AC53*(1+Captura!$D$35)) -> 0 | AD65: =IF(U65+1>=$J$17,0,AD53*(1+Captura!$D$35)) -> 0 | AE65: =IF(U65+1>=$J$17,0,AE53*(1+Captura!$D$35)) -> 0 | AG65: =+(W65+AB65+AC65+AD65+AE65+AF65)*Captura!$C$19 -> 0 | AH65: 0 | AJ65: 0 | AK65: 0
B66: 38 | C66: 2029-05-06 | D66: =IF(B66<J$17,Captura!$O$16,0)+Resumen!$M$29+Resumen!$M$30 -> 0 | H66: 0 | K66: =IF(B66+1>=$J$17,0,K54*(1+Captura!$D$35)) -> 0 | L66: =IF(B66+1>=$J$17,0,L54*(1+Captura!$D$35)) -> 0 | M66: =IF(B66+1>=$J$17,0,M54*(1+Captura!$D$35)) -> 0 | O66: =IF(B66=J$17,Captura!$O$29,0) -> 0 | P66: =SUM(D66:F66,I66:N66)*Captura!$C$19 -> 0 | Q66: 0 | T66: 3 | U66: 38 | V66: 13880.92694 | X66: =+V65*Captura!$O$9/12 -> 182.6437756 | Y66: -182.6437756 | Z66: 0 | AA66: =IF(U66=J$17,Captura!$O$33,0) -> 0 | AC66: =IF(U66+1>=$J$17,0,AC54*(1+Captura!$D$35)) -> 0 | AD66: =IF(U66+1>=$J$17,0,AD54*(1+Captura!$D$35)) -> 0 | AE66: =IF(U66+1>=$J$17,0,AE54*(1+Captura!$D$35)) -> 0 | AG66: =+(W66+AB66+AC66+AD66+AE66+AF66)*Captura!$C$19 -> 0 | AH66: 0 | AJ66: 0 | AK66: 0
B67: 39 | C67: 2029-06-06 | D67: =IF(B67<J$17,Captura!$O$16,0)+Resumen!$M$29+Resumen!$M$30 -> 0 | H67: 0 | K67: =IF(B67+1>=$J$17,0,K55*(1+Captura!$D$35)) -> 0 | L67: =IF(B67+1>=$J$17,0,L55*(1+Captura!$D$35)) -> 0 | M67: =IF(B67+1>=$J$17,0,M55*(1+Captura!$D$35)) -> 0 | O67: =IF(B67=J$17,Captura!$O$29,0) -> 0 | P67: =SUM(D67:F67,I67:N67)*Captura!$C$19 -> 0 | Q67: 0 | T67: 4 | U67: 39 | V67: 14066.00597 | X67: =+V66*Captura!$O$9/12 -> 185.0790259 | Y67: -185.0790259 | Z67: 0 | AA67: =IF(U67=J$17,Captura!$O$33,0) -> 0 | AC67: =IF(U67+1>=$J$17,0,AC55*(1+Captura!$D$35)) -> 0 | AD67: =IF(U67+1>=$J$17,0,AD55*(1+Captura!$D$35)) -> 0 | AE67: =IF(U67+1>=$J$17,0,AE55*(1+Captura!$D$35)) -> 0 | AG67: =+(W67+AB67+AC67+AD67+AE67+AF67)*Captura!$C$19 -> 0 | AH67: 0 | AJ67: 0 | AK67: 0
B68: 40 | C68: 2029-07-06 | D68: =IF(B68<J$17,Captura!$O$16,0)+Resumen!$M$29+Resumen!$M$30 -> 0 | H68: 0 | K68: =IF(B68+1>=$J$17,0,K56*(1+Captura!$D$35)) -> 0 | L68: =IF(B68+1>=$J$17,0,L56*(1+Captura!$D$35)) -> 0 | M68: =IF(B68+1>=$J$17,0,M56*(1+Captura!$D$35)) -> 0 | O68: =IF(B68=J$17,Captura!$O$29,0) -> 0 | P68: =SUM(D68:F68,I68:N68)*Captura!$C$19 -> 0 | Q68: 0 | T68: 5 | U68: 40 | V68: 14253.55272 | X68: =+V67*Captura!$O$9/12 -> 187.5467463 | Y68: -187.5467463 | Z68: 0 | AA68: =IF(U68=J$17,Captura!$O$33,0) -> 0 | AC68: =IF(U68+1>=$J$17,0,AC56*(1+Captura!$D$35)) -> 0 | AD68: =IF(U68+1>=$J$17,0,AD56*(1+Captura!$D$35)) -> 0 | AE68: =IF(U68+1>=$J$17,0,AE56*(1+Captura!$D$35)) -> 0 | AG68: =+(W68+AB68+AC68+AD68+AE68+AF68)*Captura!$C$19 -> 0 | AH68: 0 | AJ68: 0 | AK68: 0
B69: 41 | C69: 2029-08-06 | D69: =IF(B69<J$17,Captura!$O$16,0)+Resumen!$M$29+Resumen!$M$30 -> 0 | H69: 0 | K69: =IF(B69+1>=$J$17,0,K57*(1+Captura!$D$35)) -> 0 | L69: =IF(B69+1>=$J$17,0,L57*(1+Captura!$D$35)) -> 0 | M69: =IF(B69+1>=$J$17,0,M57*(1+Captura!$D$35)) -> 0 | O69: =IF(B69=J$17,Captura!$O$29,0) -> 0 | P69: =SUM(D69:F69,I69:N69)*Captura!$C$19 -> 0 | Q69: 0 | T69: 6 | U69: 41 | V69: 14443.60009 | X69: =+V68*Captura!$O$9/12 -> 190.0473696 | Y69: -190.0473696 | Z69: 0 | AA69: =IF(U69=J$17,Captura!$O$33,0) -> 0 | AC69: =IF(U69+1>=$J$17,0,AC57*(1+Captura!$D$35)) -> 0 | AD69: =IF(U69+1>=$J$17,0,AD57*(1+Captura!$D$35)) -> 0 | AE69: =IF(U69+1>=$J$17,0,AE57*(1+Captura!$D$35)) -> 0 | AG69: =+(W69+AB69+AC69+AD69+AE69+AF69)*Captura!$C$19 -> 0 | AH69: 0 | AJ69: 0 | AK69: 0
B70: 42 | C70: 2029-09-06 | D70: =IF(B70<J$17,Captura!$O$16,0)+Resumen!$M$29+Resumen!$M$30 -> 0 | H70: 0 | K70: =IF(B70+1>=$J$17,0,K58*(1+Captura!$D$35)) -> 0 | L70: =IF(B70+1>=$J$17,0,L58*(1+Captura!$D$35)) -> 0 | M70: =IF(B70+1>=$J$17,0,M58*(1+Captura!$D$35)) -> 0 | O70: =IF(B70=J$17,Captura!$O$29,0) -> 0 | P70: =SUM(D70:F70,I70:N70)*Captura!$C$19 -> 0 | Q70: 0 | T70: 7 | U70: 42 | V70: 14636.18142 | X70: =+V69*Captura!$O$9/12 -> 192.5813345 | Y70: -192.5813345 | Z70: 0 | AA70: =IF(U70=J$17,Captura!$O$33,0) -> 0 | AC70: =IF(U70+1>=$J$17,0,AC58*(1+Captura!$D$35)) -> 0 | AD70: =IF(U70+1>=$J$17,0,AD58*(1+Captura!$D$35)) -> 0 | AE70: =IF(U70+1>=$J$17,0,AE58*(1+Captura!$D$35)) -> 0 | AG70: =+(W70+AB70+AC70+AD70+AE70+AF70)*Captura!$C$19 -> 0 | AH70: 0 | AJ70: 0 | AK70: 0
B71: 43 | C71: 2029-10-06 | D71: =IF(B71<J$17,Captura!$O$16,0)+Resumen!$M$29+Resumen!$M$30 -> 0 | H71: 0 | K71: =IF(B71+1>=$J$17,0,K59*(1+Captura!$D$35)) -> 0 | L71: =IF(B71+1>=$J$17,0,L59*(1+Captura!$D$35)) -> 0 | M71: =IF(B71+1>=$J$17,0,M59*(1+Captura!$D$35)) -> 0 | O71: =IF(B71=J$17,Captura!$O$29,0) -> 0 | P71: =SUM(D71:F71,I71:N71)*Captura!$C$19 -> 0 | Q71: 0 | T71: 8 | U71: 43 | V71: 14831.33051 | X71: =+V70*Captura!$O$9/12 -> 195.1490856 | Y71: -195.1490856 | Z71: 0 | AA71: =IF(U71=J$17,Captura!$O$33,0) -> 0 | AC71: =IF(U71+1>=$J$17,0,AC59*(1+Captura!$D$35)) -> 0 | AD71: =IF(U71+1>=$J$17,0,AD59*(1+Captura!$D$35)) -> 0 | AE71: =IF(U71+1>=$J$17,0,AE59*(1+Captura!$D$35)) -> 0 | AG71: =+(W71+AB71+AC71+AD71+AE71+AF71)*Captura!$C$19 -> 0 | AH71: 0 | AJ71: 0 | AK71: 0
B72: 44 | C72: 2029-11-06 | D72: =IF(B72<J$17,Captura!$O$16,0)+Resumen!$M$29+Resumen!$M$30 -> 0 | H72: 0 | K72: =IF(B72+1>=$J$17,0,K60*(1+Captura!$D$35)) -> 0 | L72: =IF(B72+1>=$J$17,0,L60*(1+Captura!$D$35)) -> 0 | M72: =IF(B72+1>=$J$17,0,M60*(1+Captura!$D$35)) -> 0 | O72: =IF(B72=J$17,Captura!$O$29,0) -> 0 | P72: =SUM(D72:F72,I72:N72)*Captura!$C$19 -> 0 | Q72: 0 | T72: 9 | U72: 44 | V72: 15029.08158 | X72: =+V71*Captura!$O$9/12 -> 197.7510734 | Y72: -197.7510734 | Z72: 0 | AA72: =IF(U72=J$17,Captura!$O$33,0) -> 0 | AC72: =IF(U72+1>=$J$17,0,AC60*(1+Captura!$D$35)) -> 0 | AD72: =IF(U72+1>=$J$17,0,AD60*(1+Captura!$D$35)) -> 0 | AE72: =IF(U72+1>=$J$17,0,AE60*(1+Captura!$D$35)) -> 0 | AG72: =+(W72+AB72+AC72+AD72+AE72+AF72)*Captura!$C$19 -> 0 | AH72: 0 | AJ72: 0 | AK72: 0
B73: 45 | C73: 2029-12-06 | D73: =IF(B73<J$17,Captura!$O$16,0)+Resumen!$M$29+Resumen!$M$30 -> 0 | H73: 0 | K73: =IF(B73+1>=$J$17,0,K61*(1+Captura!$D$35)) -> 0 | L73: =IF(B73+1>=$J$17,0,L61*(1+Captura!$D$35)) -> 0 | M73: =IF(B73+1>=$J$17,0,M61*(1+Captura!$D$35)) -> 0 | O73: =IF(B73=J$17,Captura!$O$29,0) -> 0 | P73: =SUM(D73:F73,I73:N73)*Captura!$C$19 -> 0 | Q73: 0 | T73: 10 | U73: 45 | V73: 15229.46933 | X73: =+V72*Captura!$O$9/12 -> 200.3877544 | Y73: -200.3877544 | Z73: 0 | AA73: =IF(U73=J$17,Captura!$O$33,0) -> 0 | AC73: =IF(U73+1>=$J$17,0,AC61*(1+Captura!$D$35)) -> 0 | AD73: =IF(U73+1>=$J$17,0,AD61*(1+Captura!$D$35)) -> 0 | AE73: =IF(U73+1>=$J$17,0,AE61*(1+Captura!$D$35)) -> 0 | AG73: =+(W73+AB73+AC73+AD73+AE73+AF73)*Captura!$C$19 -> 0 | AH73: 0 | AJ73: 0 | AK73: 0
B74: 46 | C74: 2030-01-06 | D74: =IF(B74<J$17,Captura!$O$16,0)+Resumen!$M$29+Resumen!$M$30 -> 0 | H74: 0 | K74: =IF(B74+1>=$J$17,0,K62*(1+Captura!$D$35)) -> 0 | L74: =IF(B74+1>=$J$17,0,L62*(1+Captura!$D$35)) -> 0 | M74: =IF(B74+1>=$J$17,0,M62*(1+Captura!$D$35)) -> 0 | O74: =IF(B74=J$17,Captura!$O$29,0) -> 0 | P74: =SUM(D74:F74,I74:N74)*Captura!$C$19 -> 0 | Q74: 0 | T74: 11 | U74: 46 | V74: 15432.52893 | X74: =+V73*Captura!$O$9/12 -> 203.0595911 | Y74: -203.0595911 | Z74: 0 | AA74: =IF(U74=J$17,Captura!$O$33,0) -> 0 | AC74: =IF(U74+1>=$J$17,0,AC62*(1+Captura!$D$35)) -> 0 | AD74: =IF(U74+1>=$J$17,0,AD62*(1+Captura!$D$35)) -> 0 | AE74: =IF(U74+1>=$J$17,0,AE62*(1+Captura!$D$35)) -> 0 | AG74: =+(W74+AB74+AC74+AD74+AE74+AF74)*Captura!$C$19 -> 0 | AH74: 0 | AJ74: 0 | AK74: 0
B75: 47 | C75: 2030-02-06 | D75: =IF(B75<J$17,Captura!$O$16,0)+Resumen!$M$29+Resumen!$M$30 -> 0 | H75: 0 | K75: =IF(B75+1>=$J$17,0,K63*(1+Captura!$D$35)) -> 0 | L75: =IF(B75+1>=$J$17,0,L63*(1+Captura!$D$35)) -> 0 | M75: =IF(B75+1>=$J$17,0,M63*(1+Captura!$D$35)) -> 0 | O75: =IF(B75=J$17,Captura!$O$29,0) -> 0 | P75: =SUM(D75:F75,I75:N75)*Captura!$C$19 -> 0 | Q75: 0 | T75: 12 | U75: 47 | V75: 15638.29598 | X75: =+V74*Captura!$O$9/12 -> 205.7670523 | Y75: -205.7670523 | Z75: 0 | AA75: =IF(U75=J$17,Captura!$O$33,0) -> 0 | AC75: =IF(U75+1>=$J$17,0,AC63*(1+Captura!$D$35)) -> 0 | AD75: =IF(U75+1>=$J$17,0,AD63*(1+Captura!$D$35)) -> 0 | AE75: =IF(U75+1>=$J$17,0,AE63*(1+Captura!$D$35)) -> 0 | AG75: =+(W75+AB75+AC75+AD75+AE75+AF75)*Captura!$C$19 -> 0 | AH75: 0 | AJ75: 0 | AK75: 0
B76: 48 | C76: 2030-03-06 | D76: =IF(B76<J$17,Captura!$O$16,0)+Resumen!$M$29+Resumen!$M$30 -> 0 | H76: 0 | K76: =IF(B76+1>=$J$17,0,K64*(1+Captura!$D$35)) -> 0 | L76: =IF(B76+1>=$J$17,0,L64*(1+Captura!$D$35)) -> 0 | M76: =IF(B76+1>=$J$17,0,M64*(1+Captura!$D$35)) -> 0 | O76: =IF(B76=J$17,Captura!$O$29,0) -> 0 | P76: =SUM(D76:F76,I76:N76)*Captura!$C$19 -> 0 | Q76: 0 | T76: 1 | U76: 48 | V76: 15846.80659 | X76: =+V75*Captura!$O$9/12 -> 208.510613 | Y76: -208.510613 | Z76: 0 | AA76: =IF(U76=J$17,Captura!$O$33,0) -> 0 | AC76: =IF(U76+1>=$J$17,0,AC64*(1+Captura!$D$35)) -> 2339.71712 | AD76: =IF(U76+1>=$J$17,0,AD64*(1+Captura!$D$35)) -> 0 | AE76: =IF(U76+1>=$J$17,0,AE64*(1+Captura!$D$35)) -> 0 | AG76: =+(W76+AB76+AC76+AD76+AE76+AF76)*Captura!$C$19 -> 374.3547392 | AH76: 2714.071859 | AJ76: 0 | AK76: -2339.71712
B77: 49 | C77: 2030-04-06 | D77: =IF(B77<J$17,Captura!$O$16,0)+Resumen!$M$29+Resumen!$M$30 -> 0 | H77: 0 | K77: =IF(B77+1>=$J$17,0,K65*(1+Captura!$D$35)) -> 0 | L77: =IF(B77+1>=$J$17,0,L65*(1+Captura!$D$35)) -> 0 | M77: =IF(B77+1>=$J$17,0,M65*(1+Captura!$D$35)) -> 0 | O77: =IF(B77=J$17,Captura!$O$29,0) -> 0 | P77: =SUM(D77:F77,I77:N77)*Captura!$C$19 -> 0 | Q77: 0 | T77: 2 | U77: 49 | V77: 16058.09735 | X77: =+V76*Captura!$O$9/12 -> 211.2907545 | Y77: -211.2907545 | Z77: 0 | AA77: =IF(U77=J$17,Captura!$O$33,0) -> 0 | AC77: =IF(U77+1>=$J$17,0,AC65*(1+Captura!$D$35)) -> 0 | AD77: =IF(U77+1>=$J$17,0,AD65*(1+Captura!$D$35)) -> 0 | AE77: =IF(U77+1>=$J$17,0,AE65*(1+Captura!$D$35)) -> 0 | AG77: =+(W77+AB77+AC77+AD77+AE77+AF77)*Captura!$C$19 -> 0 | AH77: 0 | AJ77: 0 | AK77: 0
B78: 50 | C78: 2030-05-06 | D78: =IF(B78<J$17,Captura!$O$16,0)+Resumen!$M$29+Resumen!$M$30 -> 0 | H78: 0 | K78: =IF(B78+1>=$J$17,0,K66*(1+Captura!$D$35)) -> 0 | L78: =IF(B78+1>=$J$17,0,L66*(1+Captura!$D$35)) -> 0 | M78: =IF(B78+1>=$J$17,0,M66*(1+Captura!$D$35)) -> 0 | O78: =IF(B78=J$17,Captura!$O$29,0) -> 0 | P78: =SUM(D78:F78,I78:N78)*Captura!$C$19 -> 0 | Q78: 0 | T78: 3 | U78: 50 | V78: 16272.20531 | X78: =+V77*Captura!$O$9/12 -> 214.1079646 | Y78: -214.1079646 | Z78: 0 | AA78: =IF(U78=J$17,Captura!$O$33,0) -> 0 | AC78: =IF(U78+1>=$J$17,0,AC66*(1+Captura!$D$35)) -> 0 | AD78: =IF(U78+1>=$J$17,0,AD66*(1+Captura!$D$35)) -> 0 | AE78: =IF(U78+1>=$J$17,0,AE66*(1+Captura!$D$35)) -> 0 | AG78: =+(W78+AB78+AC78+AD78+AE78+AF78)*Captura!$C$19 -> 0 | AH78: 0 | AJ78: 0 | AK78: 0
B79: 51 | C79: 2030-06-06 | D79: =IF(B79<J$17,Captura!$O$16,0)+Resumen!$M$29+Resumen!$M$30 -> 0 | H79: 0 | K79: =IF(B79+1>=$J$17,0,K67*(1+Captura!$D$35)) -> 0 | L79: =IF(B79+1>=$J$17,0,L67*(1+Captura!$D$35)) -> 0 | M79: =IF(B79+1>=$J$17,0,M67*(1+Captura!$D$35)) -> 0 | O79: =IF(B79=J$17,Captura!$O$29,0) -> 0 | P79: =SUM(D79:F79,I79:N79)*Captura!$C$19 -> 0 | Q79: 0 | T79: 4 | U79: 51 | V79: 16489.16805 | X79: =+V78*Captura!$O$9/12 -> 216.9627375 | Y79: -216.9627375 | Z79: 0 | AA79: =IF(U79=J$17,Captura!$O$33,0) -> 0 | AC79: =IF(U79+1>=$J$17,0,AC67*(1+Captura!$D$35)) -> 0 | AD79: =IF(U79+1>=$J$17,0,AD67*(1+Captura!$D$35)) -> 0 | AE79: =IF(U79+1>=$J$17,0,AE67*(1+Captura!$D$35)) -> 0 | AG79: =+(W79+AB79+AC79+AD79+AE79+AF79)*Captura!$C$19 -> 0 | AH79: 0 | AJ79: 0 | AK79: 0
B80: 52 | C80: 2030-07-06 | D80: =IF(B80<J$17,Captura!$O$16,0)+Resumen!$M$29+Resumen!$M$30 -> 0 | H80: 0 | K80: =IF(B80+1>=$J$17,0,K68*(1+Captura!$D$35)) -> 0 | L80: =IF(B80+1>=$J$17,0,L68*(1+Captura!$D$35)) -> 0 | M80: =IF(B80+1>=$J$17,0,M68*(1+Captura!$D$35)) -> 0 | O80: =IF(B80=J$17,Captura!$O$29,0) -> 0 | P80: =SUM(D80:F80,I80:N80)*Captura!$C$19 -> 0 | Q80: 0 | T80: 5 | U80: 52 | V80: 16709.02362 | X80: =+V79*Captura!$O$9/12 -> 219.855574 | Y80: -219.855574 | Z80: 0 | AA80: =IF(U80=J$17,Captura!$O$33,0) -> 0 | AC80: =IF(U80+1>=$J$17,0,AC68*(1+Captura!$D$35)) -> 0 | AD80: =IF(U80+1>=$J$17,0,AD68*(1+Captura!$D$35)) -> 0 | AE80: =IF(U80+1>=$J$17,0,AE68*(1+Captura!$D$35)) -> 0 | AG80: =+(W80+AB80+AC80+AD80+AE80+AF80)*Captura!$C$19 -> 0 | AH80: 0 | AJ80: 0 | AK80: 0
B81: 53 | C81: 2030-08-06 | D81: =IF(B81<J$17,Captura!$O$16,0)+Resumen!$M$29+Resumen!$M$30 -> 0 | H81: 0 | K81: =IF(B81+1>=$J$17,0,K69*(1+Captura!$D$35)) -> 0 | L81: =IF(B81+1>=$J$17,0,L69*(1+Captura!$D$35)) -> 0 | M81: =IF(B81+1>=$J$17,0,M69*(1+Captura!$D$35)) -> 0 | O81: =IF(B81=J$17,Captura!$O$29,0) -> 0 | P81: =SUM(D81:F81,I81:N81)*Captura!$C$19 -> 0 | Q81: 0 | T81: 6 | U81: 53 | V81: 16931.8106 | X81: =+V80*Captura!$O$9/12 -> 222.7869816 | Y81: -222.7869816 | Z81: 0 | AA81: =IF(U81=J$17,Captura!$O$33,0) -> 0 | AC81: =IF(U81+1>=$J$17,0,AC69*(1+Captura!$D$35)) -> 0 | AD81: =IF(U81+1>=$J$17,0,AD69*(1+Captura!$D$35)) -> 0 | AE81: =IF(U81+1>=$J$17,0,AE69*(1+Captura!$D$35)) -> 0 | AG81: =+(W81+AB81+AC81+AD81+AE81+AF81)*Captura!$C$19 -> 0 | AH81: 0 | AJ81: 0 | AK81: 0
B82: 54 | C82: 2030-09-06 | D82: =IF(B82<J$17,Captura!$O$16,0)+Resumen!$M$29+Resumen!$M$30 -> 0 | H82: 0 | K82: =IF(B82+1>=$J$17,0,K70*(1+Captura!$D$35)) -> 0 | L82: =IF(B82+1>=$J$17,0,L70*(1+Captura!$D$35)) -> 0 | M82: =IF(B82+1>=$J$17,0,M70*(1+Captura!$D$35)) -> 0 | O82: =IF(B82=J$17,Captura!$O$29,0) -> 0 | P82: =SUM(D82:F82,I82:N82)*Captura!$C$19 -> 0 | Q82: 0 | T82: 7 | U82: 54 | V82: 17157.56808 | X82: =+V81*Captura!$O$9/12 -> 225.7574747 | Y82: -225.7574747 | Z82: 0 | AA82: =IF(U82=J$17,Captura!$O$33,0) -> 0 | AC82: =IF(U82+1>=$J$17,0,AC70*(1+Captura!$D$35)) -> 0 | AD82: =IF(U82+1>=$J$17,0,AD70*(1+Captura!$D$35)) -> 0 | AE82: =IF(U82+1>=$J$17,0,AE70*(1+Captura!$D$35)) -> 0 | AG82: =+(W82+AB82+AC82+AD82+AE82+AF82)*Captura!$C$19 -> 0 | AH82: 0 | AJ82: 0 | AK82: 0
B83: 55 | C83: 2030-10-06 | D83: =IF(B83<J$17,Captura!$O$16,0)+Resumen!$M$29+Resumen!$M$30 -> 0 | H83: 0 | K83: =IF(B83+1>=$J$17,0,K71*(1+Captura!$D$35)) -> 0 | L83: =IF(B83+1>=$J$17,0,L71*(1+Captura!$D$35)) -> 0 | M83: =IF(B83+1>=$J$17,0,M71*(1+Captura!$D$35)) -> 0 | O83: =IF(B83=J$17,Captura!$O$29,0) -> 0 | P83: =SUM(D83:F83,I83:N83)*Captura!$C$19 -> 0 | Q83: 0 | T83: 8 | U83: 55 | V83: 17386.33565 | X83: =+V82*Captura!$O$9/12 -> 228.7675744 | Y83: -228.7675744 | Z83: 0 | AA83: =IF(U83=J$17,Captura!$O$33,0) -> 0 | AC83: =IF(U83+1>=$J$17,0,AC71*(1+Captura!$D$35)) -> 0 | AD83: =IF(U83+1>=$J$17,0,AD71*(1+Captura!$D$35)) -> 0 | AE83: =IF(U83+1>=$J$17,0,AE71*(1+Captura!$D$35)) -> 0 | AG83: =+(W83+AB83+AC83+AD83+AE83+AF83)*Captura!$C$19 -> 0 | AH83: 0 | AJ83: 0 | AK83: 0
B84: 56 | C84: 2030-11-06 | D84: =IF(B84<J$17,Captura!$O$16,0)+Resumen!$M$29+Resumen!$M$30 -> 0 | H84: 0 | K84: =IF(B84+1>=$J$17,0,K72*(1+Captura!$D$35)) -> 0 | L84: =IF(B84+1>=$J$17,0,L72*(1+Captura!$D$35)) -> 0 | M84: =IF(B84+1>=$J$17,0,M72*(1+Captura!$D$35)) -> 0 | O84: =IF(B84=J$17,Captura!$O$29,0) -> 0 | P84: =SUM(D84:F84,I84:N84)*Captura!$C$19 -> 0 | Q84: 0 | T84: 9 | U84: 56 | V84: 17618.15346 | X84: =+V83*Captura!$O$9/12 -> 231.8178087 | Y84: -231.8178087 | Z84: 0 | AA84: =IF(U84=J$17,Captura!$O$33,0) -> 0 | AC84: =IF(U84+1>=$J$17,0,AC72*(1+Captura!$D$35)) -> 0 | AD84: =IF(U84+1>=$J$17,0,AD72*(1+Captura!$D$35)) -> 0 | AE84: =IF(U84+1>=$J$17,0,AE72*(1+Captura!$D$35)) -> 0 | AG84: =+(W84+AB84+AC84+AD84+AE84+AF84)*Captura!$C$19 -> 0 | AH84: 0 | AJ84: 0 | AK84: 0
B85: 57 | C85: 2030-12-06 | D85: =IF(B85<J$17,Captura!$O$16,0)+Resumen!$M$29+Resumen!$M$30 -> 0 | H85: 0 | K85: =IF(B85+1>=$J$17,0,K73*(1+Captura!$D$35)) -> 0 | L85: =IF(B85+1>=$J$17,0,L73*(1+Captura!$D$35)) -> 0 | M85: =IF(B85+1>=$J$17,0,M73*(1+Captura!$D$35)) -> 0 | O85: =IF(B85=J$17,Captura!$O$29,0) -> 0 | P85: =SUM(D85:F85,I85:N85)*Captura!$C$19 -> 0 | Q85: 0 | T85: 10 | U85: 57 | V85: 17853.06217 | X85: =+V84*Captura!$O$9/12 -> 234.9087128 | Y85: -234.9087128 | Z85: 0 | AA85: =IF(U85=J$17,Captura!$O$33,0) -> 0 | AC85: =IF(U85+1>=$J$17,0,AC73*(1+Captura!$D$35)) -> 0 | AD85: =IF(U85+1>=$J$17,0,AD73*(1+Captura!$D$35)) -> 0 | AE85: =IF(U85+1>=$J$17,0,AE73*(1+Captura!$D$35)) -> 0 | AG85: =+(W85+AB85+AC85+AD85+AE85+AF85)*Captura!$C$19 -> 0 | AH85: 0 | AJ85: 0 | AK85: 0
B86: 58 | C86: 2031-01-06 | D86: =IF(B86<J$17,Captura!$O$16,0)+Resumen!$M$29+Resumen!$M$30 -> 0 | H86: 0 | K86: =IF(B86+1>=$J$17,0,K74*(1+Captura!$D$35)) -> 0 | L86: =IF(B86+1>=$J$17,0,L74*(1+Captura!$D$35)) -> 0 | M86: =IF(B86+1>=$J$17,0,M74*(1+Captura!$D$35)) -> 0 | O86: =IF(B86=J$17,Captura!$O$29,0) -> 0 | P86: =SUM(D86:F86,I86:N86)*Captura!$C$19 -> 0 | Q86: 0 | T86: 11 | U86: 58 | V86: 18091.103 | X86: =+V85*Captura!$O$9/12 -> 238.040829 | Y86: -238.040829 | Z86: 0 | AA86: =IF(U86=J$17,Captura!$O$33,0) -> 0 | AC86: =IF(U86+1>=$J$17,0,AC74*(1+Captura!$D$35)) -> 0 | AD86: =IF(U86+1>=$J$17,0,AD74*(1+Captura!$D$35)) -> 0 | AE86: =IF(U86+1>=$J$17,0,AE74*(1+Captura!$D$35)) -> 0 | AG86: =+(W86+AB86+AC86+AD86+AE86+AF86)*Captura!$C$19 -> 0 | AH86: 0 | AJ86: 0 | AK86: 0
B87: 59 | C87: 2031-02-06 | D87: =IF(B87<J$17,Captura!$O$16,0)+Resumen!$M$29+Resumen!$M$30 -> 0 | H87: 0 | K87: =IF(B87+1>=$J$17,0,K75*(1+Captura!$D$35)) -> 0 | L87: =IF(B87+1>=$J$17,0,L75*(1+Captura!$D$35)) -> 0 | M87: =IF(B87+1>=$J$17,0,M75*(1+Captura!$D$35)) -> 0 | O87: =IF(B87=J$17,Captura!$O$29,0) -> 0 | P87: =SUM(D87:F87,I87:N87)*Captura!$C$19 -> 0 | Q87: 0 | T87: 12 | U87: 59 | V87: 18332.31771 | X87: =+V86*Captura!$O$9/12 -> 241.2147067 | Y87: -241.2147067 | Z87: 0 | AA87: =IF(U87=J$17,Captura!$O$33,0) -> 0 | AC87: =IF(U87+1>=$J$17,0,AC75*(1+Captura!$D$35)) -> 0 | AD87: =IF(U87+1>=$J$17,0,AD75*(1+Captura!$D$35)) -> 0 | AE87: =IF(U87+1>=$J$17,0,AE75*(1+Captura!$D$35)) -> 0 | AG87: =+(W87+AB87+AC87+AD87+AE87+AF87)*Captura!$C$19 -> 0 | AH87: 0 | AJ87: 0 | AK87: 0
B88: 60 | C88: 2031-03-06 | D88: =IF(B88<J$17,Captura!$O$16,0) -> 0 | H88: 0 | K88: =IF(B88+1>=$J$17,0,K76*(1+Captura!$D$35)) -> 0 | L88: =IF(B88+1>=$J$17,0,L76*(1+Captura!$D$35)) -> 0 | M88: =IF(B88+1>=$J$17,0,M76*(1+Captura!$D$35)) -> 0 | O88: =IF(B88=J$17,Captura!$O$29,0) -> 0 | P88: =SUM(D88:F88,I88:N88)*Captura!$C$19 -> 0 | Q88: 0 | T88: 1 | U88: 60 | V88: 18576.74861 | X88: =+V87*Captura!$O$9/12 -> 244.4309028 | Y88: -244.4309028 | Z88: 0 | AA88: =IF(U88=J$17,Captura!$O$33,0) -> 0 | AC88: =IF(U88+1>=$J$17,0,AC76*(1+Captura!$D$35)) -> 0 | AD88: =IF(U88+1>=$J$17,0,AD76*(1+Captura!$D$35)) -> 0 | AE88: =IF(U88+1>=$J$17,0,AE76*(1+Captura!$D$35)) -> 0 | AG88: =+(W88+AB88+AC88+AD88+AE88+AF88)*Captura!$C$19 -> 0 | AH88: 0 | AJ88: 0 | AK88: 0
B92: Notas:
B93: 1. Esta cotización no es una autorización y no representa ninguna obligación para Leasing Mobile de México, S. A. de C. V.
B94: 2. La información descrita en el presente documento está sujeta a cambios sin previo aviso.
B95: 3. Esta cotización no considera gastos que el equipo requiera para su adquisición, uso o mantenimiento.
B96: 4. Las rentas en depósito serán devueltas al cumplimiento de todas las obligaciones contractauales del Arrendatario.
B107: __________________________________
B108: Leasing Mobile de Mexico, SA de CV
B109: =+Captura!D31 -> xxxx
B110: =+Captura!D32 -> xxxx
B111: =+Captura!D33 -> xxxx
